Workbook

Sheet Previous Input Comparison
S1: Unit Cost | X1: Mean
Q2: Asset Group | S2: 2021 | T2: 2018 | U2: Difference | V2: Outlier? | X2: 2021 | Y2: 2018 | Z2: Difference | AA2: Outlier?
Q3: OVERHEAD CONDUCTORS | R3: ˂ = 1 kV | S3: 54.43786065 | T3: 49.89771894 | U3: =S3/T3-1 -> 0.09098896297 | V3: =IF(OR(S3/T3-1 > 0.5, S3/T3-1 < -0.5), "Major Outlier", IF(OR(S3/T3-1 > 0.2, S3/T3-1 < -0.2), "Outlier", "")) ->  | X3: 91.55044556 | Y3: 91.84007261 | Z3: =X3/Y3-1 -> -0.003153602132 | AA3: =IF(OR(X3/Y3-1 > 0.5, X3/Y3-1 < -0.5), "Major Outlier", IF(OR(X3/Y3-1 > 0.2, X3/Y3-1 < -0.2), "Outlier", "")) -> 
Q4: OVERHEAD CONDUCTORS | R4: ˃ 11 kV & < = 22 kV ; Multiple-Phase | S4: 66.148895 | T4: 57.3243447 | U4: 0.1539407095 | X4: 90.55175781 | Y4: 87.70297271 | Z4: 0.03248219547 | AA4: =IF(OR(X4/Y4-1 > 0.5, X4/Y4-1 < -0.5), "Major Outlier", IF(OR(X4/Y4-1 > 0.2, X4/Y4-1 < -0.2), "Outlier", "")) -> 
Q5: OVERHEAD CONDUCTORS | R5: ˃ 11 kV & < = 22 kV ; Single-Phase | S5: 52.69096008 | T5: 42.99638848 | U5: 0.2254740907 | V5: Outlier | X5: 91.59851074 | Y5: 95.38354504 | Z5: -0.03968225647
Q6: OVERHEAD CONDUCTORS | R6: ˃ 11 kV & < = 22 kV ; SWER | S6: 30.89104095 | T6: 30.9322846 | U6: -0.001333352743 | X6: 104.3731689 | Y6: 105.5668869 | Z6: -0.01130769342
Q7: OVERHEAD CONDUCTORS | R7: > 1 kV & < = 11 kV | S7: 65.02012377 | T7: 51.84768804 | U7: 0.2540602335 | V7: Outlier | X7: 88.82904053 | Y7: 84.85245035 | Z7: 0.04686476534
Q8: OVERHEAD CONDUCTORS | R8: > 22 kV & < = 66 kV | S8: 68.70640752 | T8: 70.00771581 | U8: -0.01858806966 | X8: 92.04864502 | Y8: 93.66451006 | Z8: -0.01725162539
Q9: OVERHEAD CONDUCTORS | R9: > 66 kV & < = 132 kV | S9: 155.6702412 | T9: 70.00771581 | U9: 1.223615489 | V9: Major Outlier | X9: 98.26889038 | Y9: 93.66451006 | Z9: 0.04915821711
Q10: POLES | R10: ˂ = 1 kV; Concrete | S10: 6.37879475 | T10: 6.500740625 | U10: -0.01875876647 | X10: 68.74694824 | Y10: 61.34389626 | Z10: 0.1206811505
Q11: POLES | R11: ˂ = 1 kV; Steel | S11: 6.914102703 | T11: 7.236306164 | U11: -0.04452595762 | X11: 88.64746094 | Y11: 77.06440538 | Z11: 0.1503035741
Q12: POLES | R12: ˂ = 1 kV; Wood | S12: 5.207574157 | T12: 4.062895652 | U12: 0.2817395779 | V12: Outlier | X12: 73.84185791 | Y12: 70.61337136 | Z12: 0.0457206119
Q13: POLES | R13: ˃ 11 kV & < = 22 kV; Concrete | S13: 7.811396136 | T13: 8.022489777 | U13: -0.02631273414 | X13: 58.65325928 | Y13: 56.05261527 | Z13: 0.04639647945
Q14: POLES | R14: ˃ 11 kV & < = 22 kV; Steel | S14: 7.855499203 | T14: 8.779143479 | U14: -0.1052089282 | X14: 57.8994751 | Y14: 55.80806102 | Z14: 0.0374751252
Q15: POLES | R15: ˃ 11 kV & < = 22 kV; Wood | S15: 5.19340725 | T15: 4.406814613 | U15: 0.1784946058 | X15: 72.30529785 | Y15: 70.74041576 | Z15: 0.0221214715
Q16: POLES | R16: > 1 kV & < = 11 kV; Concrete | S16: 7.589668606 | T16: 7.227111892 | U16: 0.05016619625 | X16: 53.93066406 | Y16: 55.13939012 | Z16: -0.02192128095
Q17: POLES | R17: > 1 kV & < = 11 kV; Steel | S17: 7.83396091 | T17: 8.265424663 | U17: -0.05220103872 | X17: 65.04516602 | Y17: 65.07053919 | Z17: -0.0003899333001
Q18: POLES | R18: > 1 kV & < = 11 kV; Wood | S18: 5.464363682 | T18: 4.476795373 | U18: 0.2205971518 | V18: Outlier | X18: 72.92022705 | Y18: 71.04797837 | Z18: 0.02635189242
Q19: POLES | R19: > 22 kV & < = 66 kV; Concrete | S19: 11.65562689 | T19: 11.26175051 | U19: 0.0349747029 | X19: 55.33905029 | Y19: 54.37457092 | Z19: 0.01773769171
Q20: POLES | R20: > 22 kV & < = 66 kV; Steel | S20: 11.77982626 | T20: 15.35630126 | U20: -0.2328995073 | V20: Outlier | X20: 81.98699951 | Y20: 97.06788126 | Z20: -0.1553642827
Q21: POLES | R21: > 22 kV & < = 66 kV; Wood | S21: 9.136309708 | T21: 7.283633195 | U21: 0.2543615889 | V21: Outlier | X21: 75.27008057 | Y21: 71.94053326 | Z21: 0.04628193814
Q22: POLES | R22: > 66 kV & < = 132 kV; Concrete | S22: 11.69657512 | T22: 11.92450013 | U22: -0.01911400944 | X22: 55.49926758 | Y22: 50.72604952 | Z22: 0.09409796553
Q23: POLES | R23: > 66 kV & < = 132 kV; Steel | S23: 12.31378401 | T23: 12.71404631 | U23: -0.03148189791 | X23: 65.78445435 | Y23: 60.00596142 | Z23: 0.09629864749
Q24: POLES | R24: > 66 kV & < = 132 kV; Wood | S24: 11.07039104 | T24: 6.873377281 | U24: 0.6106188542 | V24: Major Outlier | X24: 69.14978027 | Y24: 69.80965752 | Z24: -0.009452520869
Q25: POLES | R25: Staking of a wooden pole | S25: 1.171565843 | T25: 6.09742291 | U25: -0.8078588512 | V25: Major Outlier | X25: 58.18939209 | Y25: 28.59115578 | Z25: 1.035223498 | AA25: Major Outlier
Q26: SERVICE LINES | R26: ˂ = 11 kV ; Commercial & Industrial ; Simple Type | S26: 1.245938425 | T26: 1.354626426 | U26: -0.08023466804 | X26: 72.47314453 | Y26: 69.98048133 | Z26: 0.03561940632
Q27: SERVICE LINES | R27: ˂ = 11 kV ; Residential ; Simple Type | S27: 0.9964890026 | T27: 0.9160197905 | U27: 0.0878465869 | X27: 66.86859131 | Y27: 65.79012813 | Z27: 0.0163924772
Q28: SWITCHGEAR | R28: ˂ = 11 kV ; Circuit Breaker | S28: 47.11227532 | T28: 58.44997408 | U28: -0.1939726911 | X28: 58.24279785 | Y28: 52.16150967 | Z28: 0.1165857396
Q29: SWITCHGEAR | R29: ˂ = 11 kV ; FUSE | S29: 2.068230715 | T29: 2.246634642 | U29: -0.07940940828 | X29: 65.11077881 | Y29: 67.79940275 | Z29: -0.03965556965
Q30: SWITCHGEAR | R30: ˂ = 11 kV ; Switch | S30: 9.758936546 | T30: 10.05909485 | U30: -0.02983949445 | X30: 68.79577637 | Y30: 69.2005978 | Z30: -0.005849970141
Q31: SWITCHGEAR | R31: > 11 kV & < = 22 kV ; Circuit Breaker | S31: 62.55732536 | T31: 76.76779323 | U31: -0.1851097612 | X31: 55.42297363 | Y31: 49.82238452 | Z31: 0.1124111013
Q32: SWITCHGEAR | R32: > 11 kV & < = 22 kV ; Switch | S32: 12.61804573 | T32: 13.91544905 | U32: -0.09323474396 | X32: 62.68157959 | Y32: 68.40834218 | Z32: -0.08371438931
Q33: SWITCHGEAR | R33: > 22 kV & < = 33 kV ; Circuit Breaker | S33: 90.59967514 | T33: 110.1222033 | U33: -0.177280581 | X33: 43.02978516 | Y33: 42.94572909 | Z33: 0.001957262549
Q34: SWITCHGEAR | R34: > 22 kV & < = 33 kV ; Switch | S34: 20.19552039 | T34: 17.40352222 | U34: 0.1604271901 | X34: 59.12628174 | Y34: 59.12946398 | Z34: -5.381818295e-05
Q35: SWITCHGEAR | R35: > 33 kV & < = 66 kV ; Circuit Breaker | S35: 157.857604 | T35: 147.9389413 | U35: =S35/T35-1 -> 0.06704565208 | V35: =IF(OR(S35/T35-1 > 0.5, S35/T35-1 < -0.5), "Major Outlier", IF(OR(S35/T35-1 > 0.2, S35/T35-1 < -0.2), "Outlier", "")) ->  | X35: 38.28430176 | Y35: 37.78005587 | Z35: =X35/Y35-1 -> 0.01334688051
Q36: SWITCHGEAR | R36: > 33 kV & < = 66 kV ; Switch | S36: 39.72998344 | T36: 35.39710659 | U36: 0.1224076561 | X36: 71.81091309 | Y36: 66.14307252 | Z36: 0.0856906151
Q37: SWITCHGEAR | R37: > 66 kV & < = 132 kV ; Circuit Breaker | S37: 183.1368434 | T37: 187.7221722 | U37: -0.02442614395 | X37: 39.65301514 | Y37: 32.66631665 | Z37: 0.2138808166 | AA37: Outlier
Q38: SWITCHGEAR | R38: > 66 kV & < = 132 kV ; Switch | S38: 65.3103583 | T38: 68.45042738 | U38: -0.04587362267 | X38: 75.28381348 | Y38: 68.07277051 | Z38: 0.1059313865
Q39: TRANSFORMERS | R39: Ground Outdoor / Indoor Chamber Mounted ; ˂ 22 kV ; > 600 kVA ; Multiple Phase | S39: 91.06510485 | T39: 70.7787497 | U39: 0.2866164666 | V39: Outlier | X39: 52.69775391 | Y39: 54.21661923 | Z39: -0.02801475532
Q40: TRANSFORMERS | R40: Ground Outdoor / Indoor Chamber Mounted ; ˂ 22 kV ; > 60 kVA and < = 600 kVA ; Multiple Phase | S40: 53.64672819 | T40: 37.93760632 | U40: 0.4140778345 | V40: Outlier | X40: 52.85186768 | Y40: 49.34024198 | Z40: 0.07117163511
Q41: TRANSFORMERS | R41: Ground Outdoor / Indoor Chamber Mounted ; > = 22 kV & < = 33 kV ; < = 15 MVA | S41: 194.8060559 | T41: 188.2173509 | U41: 0.03500583209 | X41: 59.48791504 | Y41: 56.25786953 | Z41: 0.05741499875
Q42: TRANSFORMERS | R42: Ground Outdoor / Indoor Chamber Mounted ; > = 22 kV & < = 33 kV ; > 15 MVA and < = 40 MVA | S42: 290.9223333 | T42: 307.4678729 | U42: -0.05381225494 | X42: 41.92199707 | Y42: 48.04979263 | Z42: -0.1275301147
Q43: TRANSFORMERS | R43: Ground Outdoor / Indoor Chamber Mounted ; > 33 kV & < = 66 kV ; < = 15 MVA | S43: 335.1910603 | T43: 322.1063493 | U43: 0.04062233194 | X43: 64.35852051 | Y43: 58.62956173 | Z43: 0.097714508
Q44: TRANSFORMERS | R44: Ground Outdoor / Indoor Chamber Mounted ; > 33 kV & < = 66 kV ; > 15 MVA and < = 40 MVA | S44: 496.2987335 | T44: 307.4678729 | U44: 0.6141482649 | V44: Major Outlier | X44: 52.8465271 | Y44: 48.04979263 | Z44: 0.09982841135
Q45: TRANSFORMERS | R45: Ground Outdoor / Indoor Chamber Mounted ; > 66 kV & < = 132 kV ; < = 100 MVA | S45: 950.9988001 | T45: 178.3553503 | U45: 4.332045261 | V45: Major Outlier | X45: 60.0189209 | Y45: 57.9526994 | Z45: 0.03565358506
Q46: TRANSFORMERS | R46: Kiosk Mounted ; < = 22kV ; < = 60 kVA ; Single Phase | S46: 18.0221366 | T46: 8.818545242 | U46: 1.043663224 | V46: Major Outlier | X46: 21.01364136 | Y46: 17.79407328 | Z46: 0.1809348552
Q47: TRANSFORMERS | R47: Kiosk Mounted ; < = 22kV ; > 60 kVA and < = 600 kVA ; Multiple Phase | S47: 51.32619951 | T47: 37.70848932 | U47: 0.3611311521 | V47: Outlier | X47: 49.88250732 | Y47: 52.18290835 | Z47: -0.04408341917
Q48: TRANSFORMERS | R48: Kiosk Mounted ; < = 22kV ; > 600 kVA ; Multiple Phase | S48: 70.84536633 | T48: 49.12689788 | U48: 0.4420891486 | V48: Outlier | X48: 46.48895264 | Y48: 45.43134765 | Z48: 0.02327919032
Q49: TRANSFORMERS | R49: Pole Mounted ; < = 22kV ; < = 60 kVA ; Multiple Phase | S49: 6.260202679 | T49: 4.912082011 | U49: 0.2744499512 | V49: Outlier | X49: 66.93267822 | Y49: 67.25773151 | Z49: -0.004832950559
Q50: TRANSFORMERS | R50: Pole Mounted ; < = 22kV ; < = 60 kVA ; Single Phase | S50: 2.431954283 | T50: 1.89599309 | U50: 0.2826809844 | V50: Outlier | X50: 65.81420898 | Y50: 66.33173254 | Z50: -0.007802050905
Q51: TRANSFORMERS | R51: Pole Mounted ; < = 22kV ; > 60 kVA and < = 600 kVA ; Multiple Phase | S51: 11.74129667 | T51: 9.283593828 | U51: 0.2647361446 | V51: Outlier | X51: 60.53161621 | Y51: 59.5178014 | Z51: 0.01703380811
Q52: TRANSFORMERS | R52: Pole Mounted ; < = 22kV ; > 60 kVA and < = 600 kVA ; Single Phase | S52: 5.09525415 | T52: 3.993376439 | U52: 0.2759263313 | V52: Outlier | X52: 60.68878174 | Y52: 61.25565435 | Z52: -0.009254208805
Q53: TRANSFORMERS | R53: Pole Mounted ; < = 22kV ; > 600 kVA ; Multiple Phase | S53: 16.54373939 | T53: 14.50475758 | U53: 0.1405733118 | X53: 47.83477783 | Y53: 55.83254309 | Z53: -0.1432455842
Q54: TRANSFORMERS | R54: Pole Mounted ; < = 22kV ; > 600 kVA ; Single Phase | S54: 11.85626125 | T54: 12.08729798 | U54: -0.01911400944 | X54: 43.8293457 | Y54: 55.83254309 | Z54: -0.2149856825 | AA54: Outlier
Q55: UNDERGOUND CABLES | R55: ˂ = 1 kV | S55: 623.5535218 | T55: 602.9227815 | U55: 0.03421788161 | X55: 74.4934082 | Y55: 69.70833266 | Z55: 0.06864424031
Q56: UNDERGOUND CABLES | R56: > 1 kV & < = 11 kV | S56: 914.7112524 | T56: 1031.588202 | U56: -0.1132980677 | X56: 67.95654297 | Y56: 69.58860822 | Z56: -0.02345305207
Q57: UNDERGOUND CABLES | R57: > 11 kV & < = 22 kV | S57: 1029.612296 | T57: 1219.052603 | U57: -0.1553996171 | X57: 56.9442749 | Y57: 53.27078152 | Z57: 0.06895887906
Q58: UNDERGOUND CABLES | R58: > 22 kV & < = 33 kV | S58: 366.16 | T58: 1219.052603 | U58: -0.6996356031 | V58: Major Outlier | X58: 62.48779297 | Y58: 53.27078152 | Z58: 0.1730218927
Q59: UNDERGOUND CABLES | R59: > 33 kV & < = 66 kV | S59: 2004.237838 | T59: 1219.052603 | U59: 0.644094629 | V59: Major Outlier | X59: 64.97650146 | Y59: 53.27078152 | Z59: 0.2197399702 | AA59: Outlier

Sheet Previous Output Comparison
Q1: OVERHEAD CONDUCTORS
Q2: Expenditure | R2: 1 | S2: 2 | T2: 3 | U2: 4 | V2: 5 | W2: 6 | X2: 7 | Y2: 8 | Z2: 9 | AA2: 10 | AB2: 11 | AC2: 12 | AD2: 13 | AE2: 14 | AF2: 15 | AG2: 16 | AH2: 17 | AI2: 18 | AJ2: 19 | AK2: 20
Q3: 2021 | R3: 20731.88757 | S3: 24243.55312 | T3: 28232.15277 | U3: 32736.77357 | V3: 37793.29961 | W3: 43432.60609 | X3: 49678.62173 | Y3: 56546.3442 | Z3: 64039.90847 | AA3: 72150.81693 | AB3: 80856.44169 | AC3: 90118.90254 | AD3: 99884.40952 | AE3: 110083.1369 | AF3: 120629.6692 | AG3: 131424.0288 | AH3: 142353.2674 | AI3: 153293.5719 | AJ3: 164112.8163 | AK3: 174673.4701
Q4: 2018 | R4: 19007.88437 | S4: 21540.16205 | T4: 24361.0441 | U4: 27496.11498 | V4: 30970.22221 | W4: 34806.44347 | X4: 39024.95227 | Y4: 43641.83731 | Z4: 48667.93908 | AA4: 54107.77105 | AB4: 59958.59019 | AC4: 66209.67279 | AD4: 72841.83761 | AE4: 79827.23979 | AF4: 87129.43916 | AG4: 94703.72688 | AH4: 102497.6782 | AI4: 110451.8876 | AJ4: 118500.8385 | AK4: 126573.8625
Q5: Difference | R5: =R3/R4 - 1 -> 0.09069937334 | S5: =S3/S4 - 1 -> 0.1255046769 | T5: 0.1589056958 | U5: 0.1905963295 | V5: 0.2203108959 | W5: 0.2478323484 | X5: 0.2729963483 | Y5: 0.295691192 | Z5: 0.3158541266 | AA5: 0.3334649631 | AB5: 0.3485380733 | AC5: 0.3611138486 | AD5: 0.371250545 | AE5: 0.3790172028 | AF5: 0.3844880713 | AG5: 0.387738721 | AH5: 0.3888438245 | AI5: 0.3878764341 | AJ5: 0.3849084814 | AK5: 0.3800121651
Q6: Outlier? | R6: =IF(OR(R3/R4 - 1 > 0.5, R3/R4 - 1 < -0.5), "Major Outlier", IF(OR(R3/R4 - 1 > 0.2, R3/R4 - 1 < -0.2), "Outlier", "")) ->  | S6: =IF(OR(S3/S4 - 1 > 0.5, S3/S4 - 1 < -0.5), "Major Outlier", IF(OR(S3/S4 - 1 > 0.2, S3/S4 - 1 < -0.2), "Outlier", "")) ->  | V6: Outlier | W6: Outlier | X6: Outlier | Y6: Outlier | Z6: Outlier | AA6: Outlier | AB6: Outlier | AC6: Outlier | AD6: Outlier | AE6: Outlier | AF6: Outlier | AG6: Outlier | AH6: Outlier | AI6: Outlier | AJ6: Outlier | AK6: Outlier
Q8: Volume | R8: 1 | S8: 2 | T8: 3 | U8: 4 | V8: 5 | W8: 6 | X8: 7 | Y8: 8 | Z8: 9 | AA8: 10 | AB8: 11 | AC8: 12 | AD8: 13 | AE8: 14 | AF8: 15 | AG8: 16 | AH8: 17 | AI8: 18 | AJ8: 19 | AK8: 20
Q9: 2021 | R9: 330.4214281 | S9: 386.9181242 | T9: 451.1957171 | U9: 523.9111992 | V9: 605.6733617 | W9: 697.0135839 | X9: 798.3543652 | Y9: 909.9769486 | Z9: 1031.98964 | AA9: 1164.298582 | AB9: 1306.582773 | AC9: 1458.275036 | AD9: 1618.550405 | AE9: 1786.323048 | AF9: 1960.252459 | AG9: 2138.759107 | AH9: 2320.049305 | AI9: 2502.14856 | AJ9: 2682.942295 | AK9: 2860.22251
Q10: 2018 | R10: 362.0949436 | S10: 410.8155101 | T10: 465.1601604 | U10: 525.627941 | V10: 592.7020228 | W10: 666.8295382 | X10: 748.3995787 | Y10: 837.72044 | Z10: 934.9973683 | AA10: 1040.31212 | AB10: 1153.605592 | AC10: 1274.66459 | AD10: 1403.113528 | AE10: 1538.411485 | AF10: 1679.854621 | AG10: 1826.583613 | AH10: 1977.595394 | AI10: 2131.758301 | AJ10: 2287.829624 | AK10: 2444.474605
Q11: Difference | R11: =R9/R10 - 1 -> -0.08747295725 | S11: =S9/S10 - 1 -> -0.05817060278 | T11: -0.03002072073 | U11: -0.003266077925 | V11: 0.02188509296 | W11: 0.04526500996 | X11: 0.06674881699 | Y11: 0.0862537252 | Z11: 0.103735342 | AA11: 0.1191819827 | AB11: 0.1326078699 | AC11: 0.1440460873 | AD11: 0.1535420135 | AE11: 0.1611477589 | AF11: 0.166917919 | AG11: 0.1709067637 | AH11: 0.1731668227 | AI11: 0.1737487119 | AJ11: 0.1727019649 | AK11: 0.1700765899
Q12: Outlier? | R12: =IF(OR(R9/R10 - 1 > 0.5, R9/R10 - 1 < -0.5), "Major Outlier", IF(OR(R9/R10 - 1 > 0.2, R9/R10 - 1 < -0.2), "Outlier", "")) ->  | S12: =IF(OR(S9/S10 - 1 > 0.5, S9/S10 - 1 < -0.5), "Major Outlier", IF(OR(S9/S10 - 1 > 0.2, S9/S10 - 1 < -0.2), "Outlier", "")) -> 
Q21: POLES
Q22: Expenditure | R22: 1 | S22: 2 | T22: 3 | U22: 4 | V22: 5 | W22: 6 | X22: 7 | Y22: 8 | Z22: 9 | AA22: 10 | AB22: 11 | AC22: 12 | AD22: 13 | AE22: 14 | AF22: 15 | AG22: 16 | AH22: 17 | AI22: 18 | AJ22: 19 | AK22: 20
Q23: 2021 | R23: 58438.80618 | S23: 61696.48145 | T23: 65315.58073 | U23: 69230.67084 | V23: 73377.64729 | W23: 77695.4304 | X23: 82127.03647 | Y23: 86620.06803 | Z23: 91126.7155 | AA23: 95603.39506 | AB23: 100010.1636 | AC23: 104310.0521 | AD23: 108468.4465 | AE23: 112452.6223 | AF23: 116231.5079 | AG23: 119775.7182 | AH23: 123057.8609 | AI23: 126053.0849 | AJ23: 128739.8075 | AK23: 131100.5312
Q24: 2018 | R24: 45160.73054 | S24: 48086.7148 | T24: 51374.64742 | U24: 54963.43988 | V24: 58793.8048 | W24: 62810.7067 | X24: 66964.69205 | Y24: 71212.14557 | Z24: 75514.69606 | AA24: 79838.09954 | AB24: 84150.95067 | AC24: 88423.5249 | AD24: 92626.95564 | AE24: 96732.8305 | AF24: 100713.1733 | AG24: 104540.686 | AH24: 108189.072 | AI24: 111633.2642 | AJ24: 114849.434 | AK24: 117814.7654
Q25: Difference | R25: =R23/R24 - 1 -> 0.2940181764 | S25: =S23/S24 - 1 -> 0.2830255032 | T25: 0.2713582284 | U25: 0.2595767474 | V25: 0.2480506669 | W25: 0.2369774913 | X25: 0.2264229695 | Y25: 0.2163664967 | Z25: 0.2067414722 | AA25: 0.1974658166 | AB25: 0.1884614826 | AC25: 0.1796640339 | AD25: 0.1710246303 | AE25: 0.1625073069 | AF25: 0.1540844567 | AG25: 0.1457330423 | AH25: 0.1374333706 | AI25: 0.1291713616 | AJ25: 0.1209442044 | AK25: 0.112768258
Q26: Outlier? | R26: =IF(OR(R23/R24 - 1 > 0.5, R23/R24 - 1 < -0.5), "Major Outlier", IF(OR(R23/R24 - 1 > 0.2, R23/R24 - 1 < -0.2), "Outlier", "")) -> Outlier | S26: =IF(OR(S23/S24 - 1 > 0.5, S23/S24 - 1 < -0.5), "Major Outlier", IF(OR(S23/S24 - 1 > 0.2, S23/S24 - 1 < -0.2), "Outlier", "")) -> Outlier | T26: Outlier | U26: Outlier | V26: Outlier | W26: Outlier | X26: Outlier | Y26: Outlier | Z26: Outlier
Q28: Volume | R28: 1 | S28: 2 | T28: 3 | U28: 4 | V28: 5 | W28: 6 | X28: 7 | Y28: 8 | Z28: 9 | AA28: 10 | AB28: 11 | AC28: 12 | AD28: 13 | AE28: 14 | AF28: 15 | AG28: 16 | AH28: 17 | AI28: 18 | AJ28: 19 | AK28: 20
Q29: 2021 | R29: 10941.10186 | S29: 11484.73609 | T29: 12088.31813 | U29: 12738.93705 | V29: 13424.07617 | W29: 14131.91417 | X29: 14851.53339 | Y29: 15573.03681 | Z29: 16287.58553 | AA29: 16987.37441 | AB29: 17665.56716 | AC29: 18316.21181 | AD29: 18934.15518 | AE29: 19514.97086 | AF29: 20054.90999 | AG29: 20550.87862 | AH29: 21000.44035 | AI29: 21401.83816 | AJ29: 21754.02635 | AK29: 22056.70084
Q30: 2018 | R30: 9724.4597 | S30: 10361.62798 | T30: 11073.0793 | U30: 11845.19699 | V30: 12664.33728 | W30: 13517.3878 | X30: 14392.12394 | Y30: 15277.37118 | Z30: 16163.01226 | AA30: 17039.89658 | AB30: 17899.71304 | AC30: 18734.87859 | AD30: 19538.47705 | AE30: 20304.26094 | AF30: 21026.70762 | AG30: 21701.10395 | AH30: 22323.62436 | AI30: 22891.36667 | AJ30: 23402.32048 | AK30: 23855.26143
Q31: Difference | R31: =R29/R30 - 1 -> 0.1251115428 | S31: =S29/S30 - 1 -> 0.1083910854 | T31: 0.09168532103 | U31: 0.07545168359 | V31: 0.05999041749 | W31: 0.04546191803 | X31: 0.03192089309 | Y31: 0.01935317455 | Z31: 0.00770730526 | AA31: -0.003082305857 | AB31: -0.01308098526 | AC31: -0.02234691718 | AD31: -0.03092983493 | AE31: -0.03887312548 | AF31: -0.04621729885 | AG31: -0.05300307901 | AH31: -0.05927281302 | AI31: -0.06506944438 | AJ31: -0.07043293557 | AK31: -0.0753947131
Q32: Outlier? | R32: =IF(OR(R29/R30 - 1 > 0.5, R29/R30 - 1 < -0.5), "Major Outlier", IF(OR(R29/R30 - 1 > 0.2, R29/R30 - 1 < -0.2), "Outlier", "")) ->  | S32: =IF(OR(S29/S30 - 1 > 0.5, S29/S30 - 1 < -0.5), "Major Outlier", IF(OR(S29/S30 - 1 > 0.2, S29/S30 - 1 < -0.2), "Outlier", "")) -> 
Q40: SERVICE LINES
Q41: Expenditure | R41: 1 | S41: 2 | T41: 3 | U41: 4 | V41: 5 | W41: 6 | X41: 7 | Y41: 8 | Z41: 9 | AA41: 10 | AB41: 11 | AC41: 12 | AD41: 13 | AE41: 14 | AF41: 15 | AG41: 16 | AH41: 17 | AI41: 18 | AJ41: 19 | AK41: 20
Q42: 2021 | R42: 7297.713145 | S42: 7855.294597 | T42: 8392.111982 | U42: 8895.894214 | V42: 9356.082643 | W42: 9764.354286 | X42: 10115.00975 | Y42: 10405.1894 | Z42: 10634.89752 | AA42: 10806.83284 | AB42: 10926.04378 | AC42: 10999.44355 | AD42: 11035.23282 | AE42: 11042.28444 | AF42: 11029.54415 | AG42: 11005.49484 | AH42: 10977.72064 | AI42: 10952.59279 | AJ42: 10935.08427 | AK42: 10928.70634
Q43: 2018 | R43: 4876.146984 | S43: 5403.127678 | T43: 5950.070267 | U43: 6505.130099 | V43: 7056.114147 | W43: 7591.032329 | X43: 8098.678816 | Y43: 8569.196345 | Z43: 8994.573509 | AA43: 9369.028565 | AB43: 9689.243137 | AC43: 9954.424109 | AD43: 10166.18992 | AE43: 10328.29578 | AF43: 10446.22854 | AG43: 10526.71376 | AH43: 10577.18374 | AI43: 10605.25503 | AJ43: 10618.2581 | AK43: 10622.85161
Q44: Difference | R44: =R42/R43 - 1 -> 0.4966146774 | S44: =S42/S43 - 1 -> 0.4538421199 | T44: 0.410422332 | U44: 0.3675198003 | V44: 0.3259539808 | W44: 0.2863012385 | X44: 0.2489703537 | Y44: 0.214254988 | Z44: 0.1823681813 | AA44: 0.1534635379 | AB44: 0.1276467759 | AC44: 0.1049804021 | AD44: 0.08548363833 | AE44: 0.06912937789 | AF44: 0.05583982892 | AG44: 0.04548248318 | AH44: 0.03786800971 | AI44: 0.03275147682 | AJ44: 0.0298378661 | AK44: 0.02879214898
Q45: Outlier? | R45: =IF(OR(R42/R43 - 1 > 0.5, R42/R43 - 1 < -0.5), "Major Outlier", IF(OR(R42/R43 - 1 > 0.2, R42/R43 - 1 < -0.2), "Outlier", "")) -> Outlier | S45: =IF(OR(S42/S43 - 1 > 0.5, S42/S43 - 1 < -0.5), "Major Outlier", IF(OR(S42/S43 - 1 > 0.2, S42/S43 - 1 < -0.2), "Outlier", "")) -> Outlier | T45: Outlier | U45: Outlier | V45: Outlier | W45: Outlier | X45: Outlier | Y45: Outlier
Q47: Volume | R47: 1 | S47: 2 | T47: 3 | U47: 4 | V47: 5 | W47: 6 | X47: 7 | Y47: 8 | Z47: 9 | AA47: 10 | AB47: 11 | AC47: 12 | AD47: 13 | AE47: 14 | AF47: 15 | AG47: 16 | AH47: 17 | AI47: 18 | AJ47: 19 | AK47: 20
Q48: 2021 | R48: 7233.099167 | S48: 7781.57625 | T48: 8308.553763 | U48: 8801.884929 | V48: 9251.171724 | W48: 9648.282718 | X48: 9987.732894 | Y48: 10266.88945 | Z48: 10485.98386 | AA48: 10647.92958 | AB48: 10757.96469 | AC48: 10823.15564 | AD48: 10851.81087 | AE48: 10852.8596 | AF48: 10835.25006 | AG48: 10807.41512 | AH48: 10776.84125 | AI48: 10749.76236 | AJ48: 10730.98459 | AK48: 10723.83449
Q49: 2018 | R49: 5180.161201 | S49: 5735.923626 | T49: 6311.392393 | U49: 6893.864005 | V49: 7470.335338 | W49: 8028.099615 | X49: 8555.369892 | Y49: 9041.878848 | Z49: 9479.40089 | AA49: 9862.147033 | AB49: 10186.99416 | AC49: 10453.52693 | AD49: 10663.89015 | AE49: 10822.46953 | AF49: 10935.43571 | AG49: 11010.19932 | AH49: 11054.83063 | AI49: 11077.49651 | AJ49: 11085.96063 | AK49: 11087.18071
Q50: Difference | R50: =R48/R49 - 1 -> 0.3963077377 | S50: =S48/S49 - 1 -> 0.3566387487 | T50: 0.3164375222 | U50: 0.2767708969 | V50: 0.2383877438 | W50: 0.2018140259 | X50: 0.1674226853 | Y50: 0.1354818647 | Z50: 0.1061863487 | AA50: 0.07967662026 | AB50: 0.05604897027 | AC50: 0.03535923476 | AD50: 0.01762215453 | AE50: 0.002808053324 | AF50: -0.009161559292 | AG50: -0.01841784982 | AH50: -0.02514641621 | AI50: -0.02958557868 | AJ50: -0.03202032243 | AK50: -0.03277174177
Q51: Outlier? | R51: =IF(OR(R48/R49 - 1 > 0.5, R48/R49 - 1 < -0.5), "Major Outlier", IF(OR(R48/R49 - 1 > 0.2, R48/R49 - 1 < -0.2), "Outlier", "")) -> Outlier | S51: =IF(OR(S48/S49 - 1 > 0.5, S48/S49 - 1 < -0.5), "Major Outlier", IF(OR(S48/S49 - 1 > 0.2, S48/S49 - 1 < -0.2), "Outlier", "")) -> Outlier | T51: Outlier | U51: Outlier | V51: Outlier | W51: Outlier
Q59: SWITCHGEAR
Q60: Expenditure | R60: 1 | S60: 2 | T60: 3 | U60: 4 | V60: 5 | W60: 6 | X60: 7 | Y60: 8 | Z60: 9 | AA60: 10 | AB60: 11 | AC60: 12 | AD60: 13 | AE60: 14 | AF60: 15 | AG60: 16 | AH60: 17 | AI60: 18 | AJ60: 19 | AK60: 20
Q61: 2021 | R61: 26179.28732 | S61: 25885.21902 | T61: 25697.02151 | U61: 25586.68123 | V61: 25538.1694 | W61: 25544.79608 | X61: 25606.86488 | Y61: 25729.62574 | Z61: 25921.49509 | AA61: 26192.49787 | AB61: 26552.88536 | AC61: 27011.89542 | AD61: 27576.64408 | AE61: 28251.16425 | AF61: 29035.63211 | AG61: 29925.83874 | AH61: 30912.97 | AI61: 31983.74898 | AJ61: 33120.97393 | AK61: 34304.45328
Q62: 2018 | R62: 29191.69939 | S62: 28994.5375 | T62: 29197.04391 | U62: 29677.72452 | V62: 30351.53975 | W62: 31158.10929 | X62: 32054.19521 | Y62: 33008.80357 | Z62: 33999.90311 | AA62: 35012.17468 | AB62: 36035.44513 | AC62: 37063.58784 | AD62: 38093.73652 | AE62: 39125.69355 | AF62: 40161.44025 | AG62: 41204.68304 | AH62: 42260.39965 | AI62: 43334.38091 | AJ62: 44432.78995 | AK62: 45561.77773
Q63: Difference | R63: =R61/R62 - 1 -> -0.1031941315 | S63: =S61/S62 - 1 -> -0.107238078 | T63: -0.1198759166 | U63: -0.1378489542 | V63: -0.1585873531 | W63: -0.1801557712 | X63: -0.2011384247 | Y63: -0.2205223165 | Z63: -0.237600913 | AA63: -0.251903142 | AB63: -0.2631453484 | AC63: -0.2712012789 | AD63: -0.2760845589 | AE63: -0.2779383139 | AF63: -0.2770271204 | AG63: -0.2737272434 | AH63: -0.2685121234 | AI63: -0.2619313278 | AJ63: -0.2545826187 | AK63: -0.2470782531
Q64: Outlier? | R64: =IF(OR(R61/R62 - 1 > 0.5, R61/R62 - 1 < -0.5), "Major Outlier", IF(OR(R61/R62 - 1 > 0.2, R61/R62 - 1 < -0.2), "Outlier", "")) ->  | S64: =IF(OR(S61/S62 - 1 > 0.5, S61/S62 - 1 < -0.5), "Major Outlier", IF(OR(S61/S62 - 1 > 0.2, S61/S62 - 1 < -0.2), "Outlier", "")) ->  | X64: Outlier | Y64: Outlier | Z64: Outlier | AA64: Outlier | AB64: Outlier | AC64: Outlier | AD64: Outlier | AE64: Outlier | AF64: Outlier | AG64: Outlier | AH64: Outlier | AI64: Outlier | AJ64: Outlier | AK64: Outlier
Q66: Volume | R66: 1 | S66: 2 | T66: 3 | U66: 4 | V66: 5 | W66: 6 | X66: 7 | Y66: 8 | Z66: 9 | AA66: 10 | AB66: 11 | AC66: 12 | AD66: 13 | AE66: 14 | AF66: 15 | AG66: 16 | AH66: 17 | AI66: 18 | AJ66: 19 | AK66: 20
Q67: 2021 | R67: 3363.448288 | S67: 3403.051182 | T67: 3442.354173 | U67: 3480.563745 | V67: 3517.559721 | W67: 3553.694094 | X67: 3589.625862 | Y67: 3626.191281 | Z67: 3664.3065 | AA67: 3704.897983 | AB67: 3748.855147 | AC67: 3796.999418 | AD67: 3850.06413 | AE67: 3908.680438 | AF67: 3973.365447 | AG67: 4044.510088 | AH67: 4122.365625 | AI67: 4207.029076 | AJ67: 4298.429023 | AK67: 4396.31431
Q68: 2018 | R68: 3419.913577 | S68: 3625.29294 | T68: 3840.162797 | U68: 4060.204163 | V68: 4281.711014 | W68: 4501.535825 | X68: 4717.046657 | Y68: 4926.085258 | Z68: 5126.923562 | AA68: 5318.220518 | AB68: 5498.983082 | AC68: 5668.53511 | AD68: 5826.496504 | AE68: 5972.772851 | AF68: 6107.553493 | AG68: 6231.313875 | AH68: 6344.816553 | AI68: 6449.104492 | AJ68: 6545.480559 | AK68: 6635.468259
Q69: Difference | R69: =R67/R68 - 1 -> -0.0165107355 | S69: =S67/S68 - 1 -> -0.06130311706 | T69: -0.1035916042 | U69: -0.1427613969 | V69: -0.1784686753 | W69: -0.210559633 | X69: -0.2390098883 | Y69: -0.2638797157 | Z69: -0.2852816205 | AA69: -0.3033575854 | AB69: -0.3182639242 | AC69: -0.3301621418 | AD69: -0.3392145473 | AE69: -0.3455836117 | AF69: -0.3494341963 | AG69: -0.3509378329 | AH69: -0.350278201 | AI69: -0.3476568598 | AJ69: -0.3432981758 | AK69: -0.3374522883
Q70: Outlier? | R70: =IF(OR(R67/R68 - 1 > 0.5, R67/R68 - 1 < -0.5), "Major Outlier", IF(OR(R67/R68 - 1 > 0.2, R67/R68 - 1 < -0.2), "Outlier", "")) ->  | S70: =IF(OR(S67/S68 - 1 > 0.5, S67/S68 - 1 < -0.5), "Major Outlier", IF(OR(S67/S68 - 1 > 0.2, S67/S68 - 1 < -0.2), "Outlier", "")) ->  | W70: Outlier | X70: Outlier | Y70: Outlier | Z70: Outlier | AA70: Outlier | AB70: Outlier | AC70: Outlier | AD70: Outlier | AE70: Outlier | AF70: Outlier | AG70: Outlier | AH70: Outlier | AI70: Outlier | AJ70: Outlier | AK70: Outlier
Q79: TRANSFORMERS
Q80: Expenditure | R80: 1 | S80: 2 | T80: 3 | U80: 4 | V80: 5 | W80: 6 | X80: 7 | Y80: 8 | Z80: 9 | AA80: 10 | AB80: 11 | AC80: 12 | AD80: 13 | AE80: 14 | AF80: 15 | AG80: 16 | AH80: 17 | AI80: 18 | AJ80: 19 | AK80: 20
Q81: 2021 | R81: 15670.10013 | S81: 15785.44464 | T81: 15984.5883 | U81: 16234.74678 | V81: 16512.31972 | W81: 16800.60803 | X81: 17088.33803 | Y81: 17368.65766 | Z81: 17638.38658 | AA81: 17897.39427 | AB81: 18148.04889 | AC81: 18394.72073 | AD81: 18643.34092 | AE81: 18901.01391 | AF81: 19175.67162 | AG81: 19475.74749 | AH81: 19809.84583 | AI81: 20186.38756 | AJ81: 20613.2255 | AK81: 21097.23585
Q82: 2018 | R82: 10538.22209 | S82: 10083.47208 | T82: 10067.7815 | U82: 10199.22417 | V82: 10407.75638 | W82: 10659.00525 | X82: 10932.74983 | Y82: 11216.01242 | Z82: 11500.18276 | AA82: 11779.78025 | AB82: 12051.70306 | AC82: 12314.64572 | AD82: 12568.5908 | AE82: 12814.37989 | AF82: 13053.40849 | AG82: 13287.48921 | AH82: 13518.89549 | AI82: 13750.545 | AJ82: 13986.22785 | AK82: 14230.75373
Q83: Difference | R83: =R81/R82 - 1 -> 0.4869775939 | S83: =S81/S82 - 1 -> 0.5654771008 | T83: 0.587697181 | U83: 0.5917629137 | V83: 0.5865397999 | W83: 0.5761891133 | X83: 0.5630411642 | Y83: 0.5485590606 | Z83: 0.5337483714 | AA83: 0.5193317612 | AB83: 0.5058493233 | AC83: 0.4937271564 | AD83: 0.4833278619 | AE83: 0.4749846714 | AF83: 0.4690164364 | AG83: 0.4657206627 | AH83: 0.4653449947 | AI83: 0.4680427261 | AJ83: 0.4738230867 | AK83: 0.4825100805
Q84: Outlier? | R84: =IF(OR(R81/R82 - 1 > 0.5, R81/R82 - 1 < -0.5), "Major Outlier", IF(OR(R81/R82 - 1 > 0.2, R81/R82 - 1 < -0.2), "Outlier", "")) -> Outlier | S84: =IF(OR(S81/S82 - 1 > 0.5, S81/S82 - 1 < -0.5), "Major Outlier", IF(OR(S81/S82 - 1 > 0.2, S81/S82 - 1 < -0.2), "Outlier", "")) -> Major Outlier | T84: Major Outlier | U84: Major Outlier | V84: Major Outlier | W84: Major Outlier | X84: Major Outlier | Y84: Major Outlier | Z84: Major Outlier | AA84: Major Outlier | AB84: Major Outlier | AC84: Outlier | AD84: Outlier | AE84: Outlier | AF84: Outlier | AG84: Outlier | AH84: Outlier | AI84: Outlier | AJ84: Outlier | AK84: Outlier
Q86: Volume | R86: 1 | S86: 2 | T86: 3 | U86: 4 | V86: 5 | W86: 6 | X86: 7 | Y86: 8 | Z86: 9 | AA86: 10 | AB86: 11 | AC86: 12 | AD86: 13 | AE86: 14 | AF86: 15 | AG86: 16 | AH86: 17 | AI86: 18 | AJ86: 19 | AK86: 20
Q87: 2021 | R87: 1329.324556 | S87: 1342.152383 | T87: 1358.884825 | U87: 1378.168407 | V87: 1398.974474 | W87: 1420.564002 | X87: 1442.462161 | Y87: 1464.434625 | Z87: 1486.460538 | AA87: 1508.70005 | AB87: 1531.456878 | AC87: 1555.137963 | AD87: 1580.212863 | AE87: 1607.175185 | AF87: 1636.507511 | AG87: 1668.650503 | AH87: 1703.976317 | AI87: 1742.766374 | AJ87: 1785.193648 | AK87: 1831.30989
Q88: 2018 | R88: 1081.840074 | S88: 1036.539114 | T88: 1041.319505 | U88: 1063.684698 | V88: 1095.900972 | W88: 1134.070769 | X88: 1175.805135 | Y88: 1219.502987 | Z88: 1264.056519 | AA88: 1308.724018 | AB88: 1353.047878 | AC88: 1396.786819 | AD88: 1439.854391 | AE88: 1482.265628 | AF88: 1524.097306 | AG88: 1565.466814 | AH88: 1606.531008 | AI88: 1647.500662 | AJ88: 1688.660304 | AK88: 1730.380175
Q89: Difference | R89: =R87/R88 - 1 -> 0.2287625395 | S89: =S87/S88 - 1 -> 0.2948400738 | T89: 0.3049643445 | U89: 0.2956550095 | V89: 0.2765519058 | W89: 0.2526237703 | X89: 0.2267867506 | Y89: 0.2008454601 | Z89: 0.1759446793 | AA89: 0.152802294 | AB89: 0.1318571232 | AC89: 0.1133681543 | AD89: 0.09748101833 | AE89: 0.08426934729 | AF89: 0.07375526771 | AG89: 0.06591240899 | AH89: 0.06065572869 | AI89: 0.05782438451 | AJ89: 0.05716563786 | AK89: 0.05832805764
Q90: Outlier? | R90: =IF(OR(R87/R88 - 1 > 0.5, R87/R88 - 1 < -0.5), "Major Outlier", IF(OR(R87/R88 - 1 > 0.2, R87/R88 - 1 < -0.2), "Outlier", "")) -> Outlier | S90: =IF(OR(S87/S88 - 1 > 0.5, S87/S88 - 1 < -0.5), "Major Outlier", IF(OR(S87/S88 - 1 > 0.2, S87/S88 - 1 < -0.2), "Outlier", "")) -> Outlier | T90: Outlier | U90: Outlier | V90: Outlier | W90: Outlier | X90: Outlier | Y90: Outlier
Q98: UNDERGROUND CABLES
Q99: Expenditure | R99: 1 | S99: 2 | T99: 3 | U99: 4 | V99: 5 | W99: 6 | X99: 7 | Y99: 8 | Z99: 9 | AA99: 10 | AB99: 11 | AC99: 12 | AD99: 13 | AE99: 14 | AF99: 15 | AG99: 16 | AH99: 17 | AI99: 18 | AJ99: 19 | AK99: 20
Q100: 2021 | R100: 3789.946325 | S100: 4192.601321 | T100: 4656.042116 | U100: 5190.496995 | V100: 5806.963043 | W100: 6517.05515 | X100: 7332.820671 | Y100: 8266.520858 | Z100: 9330.380257 | AA100: 10536.30574 | AB100: 11895.57809 | AC100: 13418.52152 | AD100: 15114.16 | AE100: 16989.87402 | AF100: 19051.07682 | AG100: 21300.93399 | AH100: 23740.15451 | AI100: 26366.88257 | AJ100: 29176.71803 | AK100: 32162.88733
Q101: 2018 | R101: 3910.597406 | S101: 4302.78749 | T101: 4748.317212 | U101: 5254.821976 | V101: 5831.281271 | W101: 6488.02312 | X101: 7236.646173 | Y101: 8089.85804 | Z101: 9061.230736 | AA101: 10164.8763 | AB101: 11415.04847 | AC101: 12825.68059 | AD101: 14409.87544 | AE101: 16179.36972 | AF101: 18144.00275 | AG101: 20311.22512 | AH101: 22685.68635 | AI101: 25268.94076 | AJ101: 28059.30553 | AK101: 31051.89618
Q102: Difference | R102: =R100/R101 - 1 -> -0.03085234004 | S102: =S100/S101 - 1 -> -0.02560808981 | T102: -0.01943322066 | U102: -0.01224113435 | V102: -0.004170306147 | W102: 0.004474711235 | X102: 0.01328992673 | Y102: 0.02183756713 | Z102: 0.02970341765 | AA102: 0.03654047806 | AB102: 0.04209615233 | AC102: 0.04622296122 | AD102: 0.04887513186 | AE102: 0.05009492426 | AF102: 0.04999305157 | AG102: 0.04872718771 | AH102: 0.04648165122 | AI102: 0.04345025061 | AJ102: 0.03982324141 | AK102: 0.03577852854
Q103: Outlier? | R103: =IF(OR(R100/R101 - 1 > 0.5, R100/R101 - 1 < -0.5), "Major Outlier", IF(OR(R100/R101 - 1 > 0.2, R100/R101 - 1 < -0.2), "Outlier", "")) ->  | S103: =IF(OR(S100/S101 - 1 > 0.5, S100/S101 - 1 < -0.5), "Major Outlier", IF(OR(S100/S101 - 1 > 0.2, S100/S101 - 1 < -0.2), "Outlier", "")) -> 
Q105: Volume | R105: 1 | S105: 2 | T105: 3 | U105: 4 | V105: 5 | W105: 6 | X105: 7 | Y105: 8 | Z105: 9 | AA105: 10 | AB105: 11 | AC105: 12 | AD105: 13 | AE105: 14 | AF105: 15 | AG105: 16 | AH105: 17 | AI105: 18 | AJ105: 19 | AK105: 20
Q106: 2021 | R106: 4.878791008 | S106: 5.425243116 | T106: 6.054856077 | U106: 6.781764084 | V106: 7.621372834 | W106: 8.590184533 | X106: 9.705561856 | Y106: 10.98542987 | Z106: 12.44791611 | AA106: 14.11093103 | AB106: 15.99169357 | AC106: 18.10621145 | AD106: 20.46873092 | AE106: 23.09117808 | AF106: 25.98262139 | AG106: 29.14879194 | AH106: 32.59170353 | AI106: 36.30941637 | AJ106: 40.29598576 | AK106: 44.54162867
Q107: 2018 | R107: 5.060548217 | S107: 5.604077748 | T107: 6.224218052 | U107: 6.932521977 | V107: 7.742304627 | W107: 8.668618567 | X107: 9.728124439 | Y107: 10.9388524 | Z107: 12.31985334 | AA107: 13.89074278 | AB107: 15.67114495 | AC107: 17.68005104 | AD107: 19.93511297 | AE107: 22.45190327 | AF107: 25.24318009 | AG107: 28.31820434 | AH107: 31.68216042 | AI107: 35.33573272 | AJ107: 39.2748848 | AK107: 43.49087756
Q108: Difference | R108: =R106/R107 - 1 -> -0.03591650572 | S108: =S106/S107 - 1 -> -0.03191151881 | T108: -0.02721016086 | U108: -0.0217464716 | V108: -0.01561961183 | W108: -0.00904804313 | X108: -0.002319314809 | Y108: 0.004257984999 | Z108: 0.01039482945 | AA108: 0.01585143796 | AB108: 0.02045470283 | AC108: 0.02410402622 | AD108: 0.02676774147 | AE108: 0.02847307865 | AF108: 0.02929271548 | AG108: 0.0293305181 | AH108: 0.0287083678 | AI108: 0.02755521305 | AJ108: 0.02599882756 | AK108: 0.02416026458
Q109: Outlier? | R109: =IF(OR(R106/R107 - 1 > 0.5, R106/R107 - 1 < -0.5), "Major Outlier", IF(OR(R106/R107 - 1 > 0.2, R106/R107 - 1 < -0.2), "Outlier", "")) ->  | S109: =IF(OR(S106/S107 - 1 > 0.5, S106/S107 - 1 < -0.5), "Major Outlier", IF(OR(S106/S107 - 1 > 0.2, S106/S107 - 1 < -0.2), "Outlier", "")) -> 

Sheet DNSP Input Comparison
U1: Unit Cost | AC1: Mean
Q2: Asset Group | S2: Difference | T2: Outlier? | U2: Essential | V2: Powercor | W2: Ergon | X2: Ausnet | Y2: NEM Median | AA2: Difference | AB2: Outlier? | AC2: Essential | AD2: Powercor | AE2: Ergon | AF2: Ausnet | AG2: NEM Median
Q3: OVERHEAD CONDUCTORS | R3: ˂ = 1 kV | S3: =IFERROR(U3/Y3 - 1,"") -> -0.3337704178 | T3: =IF(AND(S3 <> "", OR(S3 < -0.5, S3 > 0.5)), "Outlier", "") ->  | U3: 54.43786065 | V3: 199.4287622 | W3: 62.29077381 | X3: 61.51092684 | Y3: 81.71036247 | Z3: =SUM(U3:X3)/4 -> 94.41708088 | AA3: =IFERROR(AC3/AG3 - 1,"") -> 0.2597747056 | AB3: =IF(AND(AA3 <> "", OR(AA3 < -0.5, AA3 > 0.5)), "Outlier", "") ->  | AC3: 91.55044556 | AD3: 101.2837901 | AE3: 70.45395378 | AF3: 116.88139 | AG3: 72.67207791
Q4: OVERHEAD CONDUCTORS | R4: ˃ 11 kV & < = 22 kV ; Multiple-Phase | S4: =IFERROR(U4/Y4 - 1,"") -> -0.4426697429 | T4: =IF(AND(S4 <> "", OR(S4 < -0.5, S4 > 0.5)), "Outlier", "") ->  | U4: 66.148895 | V4: 78.50183314 | W4: 15.98122295 | X4: 108.3043704 | Y4: 118.6888638 | Z4: =SUM(U4:X4)/4 -> 67.23408038 | AA4: =IFERROR(AC4/AG4 - 1,"") -> 0.2240009348 | AB4: =IF(AND(AA4 <> "", OR(AA4 < -0.5, AA4 > 0.5)), "Outlier", "") ->  | AC4: 90.55175781 | AD4: 80.00276734 | AE4: 76.45866566 | AF4: 78.23107189 | AG4: 73.98013779
Q5: OVERHEAD CONDUCTORS | R5: ˃ 11 kV & < = 22 kV ; Single-Phase | S5: -0.5560580969 | T5: Outlier | U5: 52.69096008 | W5: 15.98122295 | X5: 107.1504919 | Y5: 118.6888638 | Z5: 43.95566873 | AA5: 0.1212389283 | AC5: 91.59851074 | AE5: 76.45866566 | AF5: 84.03248746 | AG5: 81.69401582
Q6: OVERHEAD CONDUCTORS | R6: ˃ 11 kV & < = 22 kV ; SWER | S6: -0.07705199486 | U6: 30.89104095 | V6: 16.82944451 | W6: 15.31814249 | X6: 60.02265467 | Y6: 33.46996882 | Z6: 30.76532066 | AA6: 0.3114802567 | AC6: 104.3731689 | AD6: 78.70388391 | AE6: 79.08739836 | AF6: 81.71409573 | AG6: 79.5842472
Q7: OVERHEAD CONDUCTORS | R7: > 1 kV & < = 11 kV | S7: 0.1033290819 | U7: 65.02012377 | V7: 199.4287622 | W7: 33.3254127 | X7: 62.63433518 | Y7: 58.93085285 | Z7: 90.10215847 | AA7: 0.09475137395 | AC7: 88.82904053 | AD7: 101.2837901 | AE7: 77.79990874 | AF7: 119.1279723 | AG7: 81.14083493
Q8: OVERHEAD CONDUCTORS | R8: > 22 kV & < = 66 kV | S8: -0.3965314428 | U8: 68.70640752 | V8: 97.8443242 | W8: 23.68154943 | X8: 62.63433518 | Y8: 113.852506 | Z8: 63.21665408 | AA8: 0.01731081241 | AC8: 92.04864502 | AD8: 71.35975098 | AE8: 87.82393474 | AF8: 119.1279723 | AG8: 90.48232251
Q9: OVERHEAD CONDUCTORS | R9: > 66 kV & < = 132 kV | U9: 155.6702412 | W9: 399.5539928 | Z9: 138.8060585 | AC9: 98.26889038 | AE9: 85.95529476
Q10: POLES | R10: ˂ = 1 kV; Concrete | S10: -0.4267849093 | U10: 6.37879475 | V10: 17.62313314 | W10: 48.84736859 | X10: 6.437494914 | Y10: 11.12809982 | Z10: 19.82169785 | AA10: 0.12300038 | AC10: 68.74694824 | AD10: 58.07761405 | AE10: 63.78084856 | AF10: 70.15548728 | AG10: 61.21720835
Q11: POLES | R11: ˂ = 1 kV; Steel | S11: -0.237565517 | U11: 6.914102703 | V11: 9.068454873 | W11: 4.44107733 | X11: 2.522457401 | Y11: 9.068454873 | Z11: 5.736523077 | AA11: 0.3376410925 | AC11: 88.64746094 | AD11: 70.4356932 | AE11: 63.49635582 | AF11: 33.86248357 | AG11: 66.27148451
Q12: POLES | R12: ˂ = 1 kV; Wood | S12: 0.1862950525 | U12: 5.207574157 | V12: 5.988652869 | W12: 4.44107733 | X12: 3.558688306 | Y12: 4.389779884 | Z12: 4.798998165 | AA12: 0.04283736271 | AC12: 73.84185791 | AD12: 82.0952969 | AE12: 63.49635582 | AF12: 70.15548728 | AG12: 70.80860406
Q13: POLES | R13: ˃ 11 kV & < = 22 kV; Concrete | S13: -0.3670159293 | U13: 7.811396136 | V13: 18.11862804 | W13: 6.145145019 | X13: 2.498210958 | Y13: 12.3405888 | Z13: 8.643345039 | AA13: -0.01213697499 | AC13: 58.65325928 | AD13: 52.68775208 | AE13: 64.60173817 | AF13: 70.39890488 | AG13: 59.37387856
Q14: POLES | R14: ˃ 11 kV & < = 22 kV; Steel | S14: -0.22609393 | U14: 7.855499203 | V14: 9.068454873 | W14: 7.127873374 | X14: 6.322406827 | Y14: 10.1504556 | Z14: 7.593558569 | AA14: 0.211400665 | AC14: 57.8994751 | AD14: 70.4356932 | AE14: 39.46991713 | AF14: 70.39890488 | AG14: 47.79547904
Q15: POLES | R15: ˃ 11 kV & < = 22 kV; Wood | S15: -0.2614446368 | U15: 5.19340725 | V15: 6.247593654 | W15: 6.145145019 | X15: 9.020449445 | Y15: 7.031845559 | Z15: 6.651648842 | AA15: 0.09449768554 | AC15: 72.30529785 | AD15: 78.49454943 | AE15: 64.60173817 | AF15: 68.46842827 | AG15: 66.06254066
Q16: POLES | R16: > 1 kV & < = 11 kV; Concrete | S16: -0.3163391927 | U16: 7.589668606 | V16: 18.11862804 | W16: 6.067585282 | X16: 4.195342591 | Y16: 11.10151193 | Z16: 8.99280613 | AA16: -0.003043339413 | AC16: 53.93066406 | AD16: 52.68775208 | AE16: 68.2991839 | AF16: 68.46842827 | AG16: 54.0952944
Q17: POLES | R17: > 1 kV & < = 11 kV; Steel | S17: -0.03790910733 | U17: 7.83396091 | W17: 6.067585282 | X17: 4.464311328 | Y17: 8.142641168 | Z17: 4.59146438 | AA17: 0.05302955971 | AC17: 65.04516602 | AE17: 68.2991839 | AF17: 22.25 | AG17: 61.76955378
Q18: POLES | R18: > 1 kV & < = 11 kV; Wood | S18: -0.1078309346 | U18: 5.464363682 | V18: 5.945524036 | W18: 6.067585282 | X18: 4.126064391 | Y18: 6.124807387 | Z18: 5.400884348 | AA18: 0.04719985295 | AC18: 72.92022705 | AD18: 74.23730404 | AE18: 68.2991839 | AF18: 109.4803293 | AG18: 69.63353446
Q19: POLES | R19: > 22 kV & < = 66 kV; Concrete | S19: -0.4092886654 | U19: 11.65562689 | V19: 23.64426812 | W19: 41.88369718 | X19: 15.68227112 | Y19: 19.73151048 | Z19: 23.21646583 | AA19: -0.0209413457 | AC19: 55.33905029 | AD19: 56.52271194 | AE19: 51.21983522 | AF19: 61.16202495 | AG19: 56.52271194
Q20: POLES | R20: > 22 kV & < = 66 kV; Steel | S20: -0.4312608644 | U20: 11.77982626 | V20: 9.068454873 | W20: 14.73225459 | X20: 3.138456553 | Y20: 20.71217809 | Z20: 9.67974807 | AA20: 0.3404886379 | AC20: 81.98699951 | AD20: 70.4356932 | AE20: 69.48307105 | AF20: 61.16202495 | AG20: 61.16202495
Q21: POLES | R21: > 22 kV & < = 66 kV; Wood | S21: 0.1046939319 | U21: 9.136309708 | V21: 7.906971268 | W21: 14.73225459 | X21: 14.48267099 | Y21: 8.270444369 | Z21: 11.56455164 | AA21: 0.1652941626 | AC21: 75.27008057 | AD21: 80.25482676 | AE21: 69.48307105 | AF21: 64.59320142 | AG21: 64.59320142
Q22: POLES | R22: > 66 kV & < = 132 kV; Concrete | U22: 11.69657512 | W22: 173.4853451 | Z22: 46.29548004 | AC22: 55.49926758 | AE22: 52.99554845
Q23: POLES | R23: > 66 kV & < = 132 kV; Steel | U23: 12.31378401 | W23: 111.9503705 | Z23: 31.06603864 | AC23: 65.78445435 | AE23: 72.46707955
Q24: POLES | R24: > 66 kV & < = 132 kV; Wood | U24: 11.07039104 | W24: 111.9503705 | Z24: 30.75519039 | AC24: 69.14978027 | AE24: 72.46707955
Q25: POLES | R25: Staking of a wooden pole | S25: -0.8808127899 | T25: Outlier | U25: 1.171565843 | V25: 11.19456911 | W25: 7.300651895 | X25: 8.658195308 | Y25: 9.829627202 | Z25: 7.081245538 | AA25: 0.961609887 | AB25: Outlier | AC25: 58.18939209 | AD25: 34.44226854 | AE25: 25.78710152 | AF25: 25.96234018 | AG25: 29.66410012
Q26: SERVICE LINES | R26: ˂ = 11 kV ; Commercial & Industrial ; Simple Type | S26: 0.2307614854 | U26: 1.245938425 | W26: 1.077688166 | X26: 1.161198718 | Y26: 1.012331341 | Z26: 0.8712063271 | AA26: 0.2914257422 | AC26: 72.47314453 | AE26: 53.77667733 | AF26: 45.10406732 | AG26: 56.11870831
Q27: SERVICE LINES | R27: ˂ = 11 kV ; Residential ; Simple Type | S27: 0.08006605438 | U27: 0.9964890026 | V27: 1.118352243 | W27: 0.7976211353 | X27: 1.180257833 | Y27: 0.9226185737 | Z27: 1.023180054 | AA27: 0.122179268 | AC27: 66.86859131 | AD27: 60.32119322 | AE27: 59.77334577 | AF27: 44.6012165 | AG27: 59.58815424
Q28: SWITCHGEAR | R28: ˂ = 11 kV ; Circuit Breaker | S28: -0.5505224089 | T28: Outlier | U28: 47.11227532 | W28: 229.485125 | X28: 258.47475 | Y28: 104.8156265 | Z28: 133.7680376 | AA28: 0.02092277279 | AC28: 58.24279785 | AE28: 57.59431194 | AF28: 78.36075458 | AG28: 57.04917101
Q29: SWITCHGEAR | R29: ˂ = 11 kV ; FUSE | S29: -0.1250996076 | U29: 2.068230715 | W29: 6.532452739 | X29: 1.533217217 | Y29: 2.363961353 | Z29: 2.533475168 | AA29: 0.35456198 | AC29: 65.11077881 | AE29: 50.58623324 | AF29: 45.96985418 | AG29: 48.06777377
Q30: SWITCHGEAR | R30: ˂ = 11 kV ; Switch | S30: -0.2783232408 | U30: 9.758936546 | V30: 17.06051861 | W30: 18.4901764 | X30: 12.40263753 | Y30: 13.5225867 | Z30: 14.42806727 | AA30: 0.08087572166 | AC30: 68.79577637 | AD30: 54.42486796 | AE30: 58.34747281 | AF30: 102.6330032 | AG30: 63.64818359
Q31: SWITCHGEAR | R31: > 11 kV & < = 22 kV ; Circuit Breaker | S31: -0.2084214544 | U31: 62.55732536 | V31: 29.34945785 | W31: 19.12753112 | X31: 183.2215371 | Y31: 79.02857614 | Z31: 73.56396287 | AA31: 0.04230247749 | AC31: 55.42297363 | AD31: 51.62981793 | AE31: 40.65031969 | AF31: 57.71429781 | AG31: 53.17359867
Q32: SWITCHGEAR | R32: > 11 kV & < = 22 kV ; Switch | S32: -0.1372198705 | U32: 12.61804573 | V32: 18.88423846 | W32: 5.391917419 | X32: 3.175246157 | Y32: 14.62486825 | Z32: 10.01736194 | AA32: 0.1641770854 | AC32: 62.68157959 | AD32: 76.54063369 | AE32: 48.1018691 | AF32: 83.5018641 | AG32: 53.84196303
Q33: SWITCHGEAR | R33: > 22 kV & < = 33 kV ; Circuit Breaker | U33: 90.59967514 | W33: 98.41056759 | Z33: 47.25256068 | AC33: 43.02978516 | AE33: 56.47472704
Q34: SWITCHGEAR | R34: > 22 kV & < = 33 kV ; Switch | U34: 20.19552039 | W34: 6.738394253 | Z34: 6.73347866 | AC34: 59.12628174 | AE34: 54.23198061
Q35: SWITCHGEAR | R35: > 33 kV & < = 66 kV ; Circuit Breaker | S35: -0.001568209222 | U35: 157.857604 | V35: 29.34945785 | W35: 164.9893672 | X35: 765.9916628 | Y35: 158.1055466 | Z35: 279.547023 | AA35: -0.2874917428 | AC35: 38.28430176 | AD35: 51.62981793 | AE35: 45.07077781 | AF35: 55.83364336 | AG35: 53.73173064
Q36: SWITCHGEAR | R36: > 33 kV & < = 66 kV ; Switch | S36: -0.01052972914 | U36: 39.72998344 | V36: 29.34945785 | W36: 28.57365109 | X36: 1.20583799 | Y36: 40.15278135 | Z36: 24.71473259 | AA36: 0.1993245573 | AC36: 71.81091309 | AD36: 76.54063369 | AE36: 60.06858888 | AF36: 71.57066386 | AG36: 59.87612999
Q37: SWITCHGEAR | R37: > 66 kV & < = 132 kV ; Circuit Breaker | U37: 183.1368434 | W37: 164.9893672 | Z37: 87.03155266 | AC37: 39.65301514 | AE37: 50.97717017
Q38: SWITCHGEAR | R38: > 66 kV & < = 132 kV ; Switch | U38: 65.3103583 | W38: 28.57365109 | Z38: 23.47100235 | AC38: 75.28381348 | AE38: 51.72202367
Q39: TRANSFORMERS | R39: Ground Outdoor / Indoor Chamber Mounted ; ˂ 22 kV ; > 600 kVA ; Multiple Phase | S39: 0.4525651469 | U39: 91.06510485 | W39: 213.1984064 | X39: 13.39800995 | Y39: 62.69261316 | Z39: 79.41538029 | AA39: -0.1019634468 | AC39: 52.69775391 | AE39: 55.46922945 | AF39: 60.60146366 | AG39: 58.68107898
Q40: TRANSFORMERS | R40: Ground Outdoor / Indoor Chamber Mounted ; ˂ 22 kV ; > 60 kVA and < = 600 kVA ; Multiple Phase | S40: -0.2942532361 | U40: 53.64672819 | V40: 36.50311964 | W40: 66.22752632 | X40: 25.90082455 | Y40: 76.01413274 | Z40: 45.56954968 | AA40: -0.2057773459 | AC40: 52.85186768 | AD40: 71.54913914 | AE40: 55.46922945 | AF40: 60.60146366 | AG40: 66.54540437
Q41: TRANSFORMERS | R41: Ground Outdoor / Indoor Chamber Mounted ; > = 22 kV & < = 33 kV ; < = 15 MVA | S41: -0.5844208015 | T41: Outlier | U41: 194.8060559 | W41: 193.7553456 | X41: 49.52826855 | Y41: 468.7579566 | Z41: 109.5224175 | AA41: -0.06270757323 | AC41: 59.48791504 | AE41: 75.58378528 | AF41: 58.68107898 | AG41: 63.46782855
Q42: TRANSFORMERS | R42: Ground Outdoor / Indoor Chamber Mounted ; > = 22 kV & < = 33 kV ; > 15 MVA and < = 40 MVA | S42: -0.8698961229 | T42: Outlier | U42: 290.9223333 | W42: 1569.748038 | X42: 49.52826855 | Y42: 2236.077354 | Z42: 477.54966 | AA42: -0.1619957722 | AC42: 41.92199707 | AE42: 60.95794434 | AF42: 58.68107898 | AG42: 50.0259971
Q43: TRANSFORMERS | R43: Ground Outdoor / Indoor Chamber Mounted ; > 33 kV & < = 66 kV ; < = 15 MVA | S43: -0.4384054958 | U43: 335.1910603 | V43: 57.91997769 | W43: 3651.777698 | X43: 49.52826855 | Y43: 596.8560194 | Z43: 1023.604251 | AA43: -0.01089191351 | AC43: 64.35852051 | AD43: 56.71959964 | AE43: 78.07129288 | AF43: 58.68107898 | AG43: 65.06722712
Q44: TRANSFORMERS | R44: Ground Outdoor / Indoor Chamber Mounted ; > 33 kV & < = 66 kV ; > 15 MVA and < = 40 MVA | S44: -0.3168436894 | U44: 496.2987335 | V44: 57.91997769 | W44: 415.1329248 | X44: 1999.667129 | Y44: 726.4790296 | Z44: 742.2546912 | AA44: -0.06828455357 | AC44: 52.8465271 | AD44: 56.71959964 | AE44: 56.38655519 | AF44: 56.77617458 | AG44: 56.71959964
Q45: TRANSFORMERS | R45: Ground Outdoor / Indoor Chamber Mounted ; > 66 kV & < = 132 kV ; < = 100 MVA | U45: 950.9988001 | W45: 3651.777698 | Z45: 1150.694125 | AC45: 60.0189209 | AE45: 78.07129288
Q46: TRANSFORMERS | R46: Kiosk Mounted ; < = 22kV ; < = 60 kVA ; Single Phase | S46: 0.5323366146 | T46: Outlier | U46: 18.0221366 | V46: 10.89155094 | W46: 223.5854407 | X46: 9.997290305 | Y46: 11.76121254 | Z46: 65.62410465 | AA46: -0.4246619831 | AC46: 21.01364136 | AD46: 45.56661618 | AE46: 54.02093715 | AF46: 21.86032268 | AG46: 36.5239924
Q47: TRANSFORMERS | R47: Kiosk Mounted ; < = 22kV ; > 60 kVA and < = 600 kVA ; Multiple Phase | S47: -0.08558049237 | U47: 51.32619951 | V47: 101.1500562 | W47: 223.5854407 | X47: 43.9636666 | Y47: 56.12981688 | Z47: 105.0063408 | AA47: -0.03244946599 | AC47: 49.88250732 | AD47: 64.08635325 | AE47: 54.02093715 | AF47: 44.23357498 | AG47: 51.55545428
Q48: TRANSFORMERS | R48: Kiosk Mounted ; < = 22kV ; > 600 kVA ; Multiple Phase | S48: 0.0848497359 | U48: 70.84536633 | V48: 127.5627116 | W48: 155.850997 | X48: 78.98006766 | Y48: 65.30431265 | Z48: 108.3097857 | AA48: 0.0006824511155 | AC48: 46.48895264 | AD48: 62.14201426 | AE48: 55.5882857 | AF48: 33.35076293 | AG48: 46.45724784
Q49: TRANSFORMERS | R49: Pole Mounted ; < = 22kV ; < = 60 kVA ; Multiple Phase | S49: -0.5279706963 | T49: Outlier | U49: 6.260202679 | V49: 11.64942842 | W49: 18.67147876 | X49: 6.003473284 | Y49: 13.26231789 | Z49: 10.64614579 | AA49: 0.1665098637 | AC49: 66.93267822 | AD49: 62.24484126 | AE49: 54.87140725 | AF49: 46.30903054 | AG49: 57.37857887
Q50: TRANSFORMERS | R50: Pole Mounted ; < = 22kV ; < = 60 kVA ; Single Phase | S50: -0.7174582653 | T50: Outlier | U50: 2.431954283 | V50: 5.858696088 | W50: 11.54899852 | X50: 5.241006812 | Y50: 8.607416127 | Z50: 6.270163925 | AA50: 0.1911696235 | AC50: 65.81420898 | AD50: 58.32340469 | AE50: 48.36601506 | AF50: 55.2517523 | AG50: 55.2517523
Q51: TRANSFORMERS | R51: Pole Mounted ; < = 22kV ; > 60 kVA and < = 600 kVA ; Multiple Phase | S51: -0.4356687409 | U51: 11.74129667 | V51: 21.61793923 | W51: 32.17490451 | X51: 18.43455602 | Y51: 20.8056819 | Z51: 20.9921741 | AA51: 0.1031329876 | AC51: 60.53161621 | AD51: 62.99325816 | AE51: 47.67910241 | AF51: 53.61549676 | AG51: 54.8724559
Q52: TRANSFORMERS | R52: Pole Mounted ; < = 22kV ; > 60 kVA and < = 600 kVA ; Single Phase | S52: -0.7742848545 | T52: Outlier | U52: 5.09525415 | V52: 23.17276931 | W52: 59.28087041 | X52: 18.43455602 | Y52: 22.57382481 | Z52: 26.49586247 | AA52: 0.3060495257 | AC52: 60.68878174 | AD52: 55.36262201 | AE52: 41.22566183 | AF52: 59.44291525 | AG52: 46.46744288
Q53: TRANSFORMERS | R53: Pole Mounted ; < = 22kV ; > 600 kVA ; Multiple Phase | S53: -0.7676759957 | T53: Outlier | U53: 16.54373939 | V53: 184.3412946 | W53: 46.44177439 | X53: 32.84289543 | Y53: 71.20977205 | Z53: 70.04242595 | AA53: -0.04020663486 | AC53: 47.83477783 | AD53: 55.36262201 | AE53: 21.79176359 | AF53: 59.44291525 | AG53: 49.83862107
Q54: TRANSFORMERS | R54: Pole Mounted ; < = 22kV ; > 600 kVA ; Single Phase | U54: 11.85626125 | W54: 46.44177439 | Z54: 14.57450891 | AC54: 43.8293457 | AE54: 21.79176359
Q55: UNDERGOUND CABLES | R55: ˂ = 1 kV | S55: 0.9295836223 | T55: Outlier | U55: 623.5535218 | V55: 2854.054943 | W55: 216.9289023 | Y55: 323.1544436 | Z55: 923.6343417 | AA55: 0.1514381601 | AC55: 74.4934082 | AD55: 74.82581713 | AE55: 25.83730557 | AG55: 64.6959696
Q56: UNDERGOUND CABLES | R56: > 1 kV & < = 11 kV | S56: 0.4520671211 | U56: 914.7112524 | V56: 2854.054943 | W56: 372.6575397 | Y56: 629.9373074 | Z56: 1035.355934 | AA56: -0.06428565053 | AC56: 67.95654297 | AD56: 70.64592878 | AE56: 54.47353507 | AG56: 72.62530815
Q57: UNDERGOUND CABLES | R57: > 11 kV & < = 22 kV | S57: 0.6315504002 | T57: Outlier | U57: 1029.612296 | V57: 2105.69279 | W57: 1758.627452 | X57: 1180.829945 | Y57: 631.0637389 | Z57: 1518.690621 | AA57: -0.06822358072 | AC57: 56.9442749 | AD57: 70.64592878 | AE57: 59.39775672 | AF57: 58.42552295 | AG57: 61.11366818
Q58: UNDERGOUND CABLES | R58: > 22 kV & < = 33 kV | U58: 366.16 | W58: 372.6575397 | Z58: 184.7043849 | AC58: 62.48779297 | AE58: 54.47353507
Q59: UNDERGOUND CABLES | R59: > 33 kV & < = 66 kV | U59: 2004.237838 | V59: 1797.492788 | W59: 372.6575397 | Z59: 1043.597041 | AC59: 64.97650146 | AD59: 25.25 | AE59: 54.47353507
V61: 0.9523809524 | W61: 0.9473684211 | X61: 0.9523809524

Sheet DSNP Output Comparison (Hist)
Q1: OVERHEAD CONDUCTORS
Q2: Expenditure | R2: 1 | S2: 2 | T2: 3 | U2: 4 | V2: 5 | W2: 6 | X2: 7 | Y2: 8 | Z2: 9 | AA2: 10 | AB2: 11 | AC2: 12 | AD2: 13 | AE2: 14 | AF2: 15 | AG2: 16 | AH2: 17 | AI2: 18 | AJ2: 19 | AK2: 20
Q3: Essential | R3: 20731.88757 | S3: 24243.55312 | T3: 28232.15277 | U3: 32736.77357 | V3: 37793.29961 | W3: 43432.60609 | X3: 49678.62173 | Y3: 56546.3442 | Z3: 64039.90847 | AA3: 72150.81693 | AB3: 80856.44169 | AC3: 90118.90254 | AD3: 99884.40952 | AE3: 110083.1369 | AF3: 120629.6692 | AG3: 131424.0288 | AH3: 142353.2674 | AI3: 153293.5719 | AJ3: 164112.8163 | AK3: 174673.4701
Q4: Powercor | R4: 9231.115007 | S4: 9839.816556 | T4: 10517.97657 | U4: 11285.03366 | V4: 12161.32705 | W4: 13167.24338 | X4: 14322.28134 | Y4: 15644.07727 | Z4: 17147.43946 | AA4: 18843.44141 | AB4: 20738.62538 | AC4: 22834.36593 | AD4: 25126.43941 | AE4: 27604.8383 | AF4: 30253.85996 | AG4: 33052.4858 | AH4: 35975.0512 | AI4: 38992.18788 | AJ4: 42072.00078 | AK4: 45181.42162
Q5: Ergon | R5: 14444.43932 | S5: 16345.81893 | T5: 18358.12281 | U5: 20470.62815 | V5: 22671.75079 | W5: 24949.5313 | X5: 27292.10008 | Y5: 29688.08628 | Z5: 32126.94077 | AA5: 34599.15064 | AB5: 37096.33321 | AC5: 39611.20799 | AD5: 42137.45652 | AE5: 44669.49002 | AF5: 47202.15292 | AG5: 49730.39586 | AH5: 52248.95364 | AI5: 54752.06214 | AJ5: 57233.24338 | AK5: 59685.17985
Q6: Ausnet | R6: 15787.06802 | S6: 16221.67834 | T6: 16806.43767 | U6: 17557.93749 | V6: 18489.71544 | W6: 19612.04097 | X6: 20931.73336 | Y6: 22451.99079 | Z6: 24172.21659 | AA6: 26087.83905 | AB6: 28190.1318 | AC6: 30466.05317 | AD6: 32898.13192 | AE6: 35464.4335 | AF6: 38138.64369 | AG6: 40890.30499 | AH6: 43685.23452 | AI6: 46486.14183 | AJ6: 49253.45005 | AK6: 51946.30707
Q8: Volume | R8: 1 | S8: 2 | T8: 3 | U8: 4 | V8: 5 | W8: 6 | X8: 7 | Y8: 8 | Z8: 9 | AA8: 10 | AB8: 11 | AC8: 12 | AD8: 13 | AE8: 14 | AF8: 15 | AG8: 16 | AH8: 17 | AI8: 18 | AJ8: 19 | AK8: 20
Q9: Essential | R9: 330.4214281 | S9: 386.9181242 | T9: 451.1957171 | U9: 523.9111992 | V9: 605.6733617 | W9: 697.0135839 | X9: 798.3543652 | Y9: 909.9769486 | Z9: 1031.98964 | AA9: 1164.298582 | AB9: 1306.582773 | AC9: 1458.275036 | AD9: 1618.550405 | AE9: 1786.323048 | AF9: 1960.252459 | AG9: 2138.759107 | AH9: 2320.049305 | AI9: 2502.14856 | AJ9: 2682.942295 | AK9: 2860.22251
Q10: Powercor | R10: 170.8318371 | S10: 180.7101384 | T10: 191.685134 | U10: 204.1079427 | V10: 218.3460013 | W10: 234.7676969 | X10: 253.7257204 | Y10: 275.5399018 | Z10: 300.480334 | AA10: 328.7516076 | AB10: 360.4789682 | AC10: 395.697162 | AD10: 434.3426618 | AE10: 476.249856 | AF10: 521.1516346 | AG10: 568.6846141 | AH10: 618.3990121 | AI10: 669.7729153 | AJ10: 722.2303953 | AK10: 775.162634
Q11: Ergon | R11: 370.4550222 | S11: 425.6688894 | T11: 485.3229104 | U11: 549.2264765 | V11: 617.133464 | W11: 688.753961 | X11: 763.7676765 | Y11: 841.8379044 | Z11: 922.6248275 | AA11: 1005.796985 | AB11: 1091.039895 | AC11: 1178.061123 | AD11: 1266.591459 | AE11: 1356.382327 | AF11: 1447.19996 | AG11: 1538.817247 | AH11: 1631.004436 | AI11: 1723.519945 | AJ11: 1816.102464 | AK11: 1908.465305
Q12: Ausnet | R12: 162.2618474 | S12: 167.7880392 | T12: 175.136912 | U12: 184.526649 | V12: 196.1429385 | W12: 210.1345024 | X12: 226.6087608 | Y12: 245.6274999 | Z12: 267.2025135 | AA12: 291.2913048 | AB12: 317.7930717 | AC12: 346.5453145 | AD12: 377.3215016 | AE12: 409.830283 | AF12: 443.7167428 | AG12: 478.5661281 | AH12: 513.9103747 | AI12: 549.2375866 | AJ12: 584.0044112 | AK12: 617.6510222
Q19: POLES
Q20: Expenditure | R20: 1 | S20: 2 | T20: 3 | U20: 4 | V20: 5 | W20: 6 | X20: 7 | Y20: 8 | Z20: 9 | AA20: 10 | AB20: 11 | AC20: 12 | AD20: 13 | AE20: 14 | AF20: 15 | AG20: 16 | AH20: 17 | AI20: 18 | AJ20: 19 | AK20: 20
Q21: Essential | R21: 58438.80618 | S21: 61696.48145 | T21: 65315.58073 | U21: 69230.67084 | V21: 73377.64729 | W21: 77695.4304 | X21: 82127.03647 | Y21: 86620.06803 | Z21: 91126.7155 | AA21: 95603.39506 | AB21: 100010.1636 | AC21: 104310.0521 | AD21: 108468.4465 | AE21: 112452.6223 | AF21: 116231.5079 | AG21: 119775.7182 | AH21: 123057.8609 | AI21: 126053.0849 | AJ21: 128739.8075 | AK21: 131100.5312
Q22: Powercor | R22: 17385.23793 | S22: 19696.02848 | T22: 22376.23909 | U22: 25463.9609 | V22: 28992.84784 | W22: 32990.1538 | X22: 37474.64541 | Y22: 42454.33292 | Z22: 47924.0038 | AA22: 53862.6236 | AB22: 60230.7751 | AC22: 66968.41957 | AD22: 73993.35723 | AE22: 81200.80964 | AF22: 88464.52174 | AG22: 95639.6743 | AH22: 102567.7148 | AI22: 109082.979 | AJ22: 115020.726 | AK22: 120225.995
Q23: Ergon | R23: 48329.30372 | S23: 52574.5336 | T23: 57051.11108 | U23: 61820.06908 | V23: 66945.29545 | W23: 72485.45511 | X23: 78485.48713 | Y23: 84968.58641 | Z23: 91929.54415 | AA23: 99330.20561 | AB23: 107097.6172 | AC23: 115125.1915 | AD23: 123276.9391 | AE23: 131394.5348 | AF23: 139306.7248 | AG23: 146840.3688 | AH23: 153832.2434 | AI23: 160140.61 | AJ23: 165655.4791 | AK23: 170306.5114
Q24: Ausnet | R24: 33367.43758 | S24: 31160.81254 | T24: 29374.09671 | U24: 27981.5901 | V24: 26986.1035 | W24: 26377.69222 | X24: 26132.47812 | Y24: 26216.40281 | Z24: 26590.03382 | AA24: 27212.64956 | AB24: 28044.96326 | AC24: 29050.40355 | AD24: 30195.19706 | AE24: 31447.57823 | AF24: 32776.46274 | AG24: 34149.91295 | AH24: 35533.73429 | AI24: 36890.55088 | AJ24: 38179.67244 | AK24: 39357.95097
Q26: Volume | R26: 1 | S26: 2 | T26: 3 | U26: 4 | V26: 5 | W26: 6 | X26: 7 | Y26: 8 | Z26: 9 | AA26: 10 | AB26: 11 | AC26: 12 | AD26: 13 | AE26: 14 | AF26: 15 | AG26: 16 | AH26: 17 | AI26: 18 | AJ26: 19 | AK26: 20
Q27: Essential | R27: 10941.10186 | S27: 11484.73609 | T27: 12088.31813 | U27: 12738.93705 | V27: 13424.07617 | W27: 14131.91417 | X27: 14851.53339 | Y27: 15573.03681 | Z27: 16287.58553 | AA27: 16987.37441 | AB27: 17665.56716 | AC27: 18316.21181 | AD27: 18934.15518 | AE27: 19514.97086 | AF27: 20054.90999 | AG27: 20550.87862 | AH27: 21000.44035 | AI27: 21401.83816 | AJ27: 21754.02635 | AK27: 22056.70084
Q28: Powercor | R28: 2111.242036 | S28: 2303.374632 | T28: 2520.078198 | U28: 2764.594632 | V28: 3039.93113 | W28: 3348.725323 | X28: 3693.106657 | Y28: 4074.546296 | Z28: 4493.689421 | AA28: 4950.168948 | AB28: 5442.407754 | AC28: 5967.426038 | AD28: 6520.679482 | AE28: 7095.959858 | AF28: 7685.390779 | AG28: 8279.54585 | AH28: 8867.704792 | AI28: 9438.246579 | AJ28: 9979.160105 | AK28: 10478.63591
Q29: Ergon | R29: 7380.253625 | S29: 7884.247433 | T29: 8385.659043 | U29: 8888.332486 | V29: 9396.718174 | W29: 9915.114252 | X29: 10446.93838 | Y29: 10994.12822 | Z29: 11556.74523 | AA29: 12132.82444 | AB29: 12718.47634 | AC29: 13308.21279 | AD29: 13895.44044 | AE29: 14473.04873 | AF29: 15034.01688 | AG29: 15571.97416 | AH29: 16081.66549 | AI29: 16559.29241 | AJ29: 17002.71271 | AK29: 17411.48917
Q30: Ausnet | R30: 4300.101455 | S30: 4023.467368 | T30: 3801.591004 | U30: 3631.317224 | V30: 3512.639679 | W30: 3443.93961 | X30: 3421.870454 | Y30: 3441.81992 | Z30: 3498.496635 | AA30: 3586.433425 | AB30: 3700.331427 | AC30: 3835.234378 | AD30: 3986.560537 | AE30: 4150.029159 | AF30: 4321.519878 | AG30: 4496.90256 | AH30: 4671.87677 | AI30: 4841.861361 | AJ30: 5001.970958 | AK30: 5147.10332
Q36: SERVICE LINES
Q37: Expenditure | R37: 1 | S37: 2 | T37: 3 | U37: 4 | V37: 5 | W37: 6 | X37: 7 | Y37: 8 | Z37: 9 | AA37: 10 | AB37: 11 | AC37: 12 | AD37: 13 | AE37: 14 | AF37: 15 | AG37: 16 | AH37: 17 | AI37: 18 | AJ37: 19 | AK37: 20
Q38: Essential | R38: 7297.713145 | S38: 7855.294597 | T38: 8392.111982 | U38: 8895.894214 | V38: 9356.082643 | W38: 9764.354286 | X38: 10115.00975 | Y38: 10405.1894 | Z38: 10634.89752 | AA38: 10806.83284 | AB38: 10926.04378 | AC38: 10999.44355 | AD38: 11035.23282 | AE38: 11042.28444 | AF38: 11029.54415 | AG38: 11005.49484 | AH38: 10977.72064 | AI38: 10952.59279 | AJ38: 10935.08427 | AK38: 10928.70634
Q39: Powercor | R39: 6075.175459 | S39: 6370.017774 | T39: 6659.010789 | U39: 6939.68649 | V39: 7209.620466 | W39: 7466.587386 | X39: 7708.700201 | Y39: 7934.518237 | Z39: 8143.113255 | AA39: 8334.087389 | AB39: 8507.542044 | AC39: 8664.001857 | AD39: 8804.30225 | AE39: 8929.452657 | AF39: 9040.490095 | AG39: 9138.339122 | AH39: 9223.69455 | AI39: 9296.942163 | AJ39: 9358.130344 | AK39: 9407.001613
Q40: Ergon | R40: 5962.392571 | S40: 5872.610028 | T40: 5797.276937 | U40: 5740.567799 | V40: 5705.21179 | W40: 5692.494032 | X40: 5702.336859 | Y40: 5733.44901 | Z40: 5783.527199 | AA40: 5849.492457 | AB40: 5927.7429 | AC40: 6014.405303 | AD40: 6105.569803 | AE40: 6197.495088 | AF40: 6286.775071 | AG40: 6370.462074 | AH40: 6446.145458 | AI40: 6511.988033 | AJ40: 6566.725369 | AK40: 6609.63483
Q41: Ausnet | R41: 6827.592529 | S41: 6904.313305 | T41: 7006.567355 | U41: 7127.424954 | V41: 7256.776277 | W41: 7382.562226 | X41: 7492.093609 | Y41: 7573.320475 | Z41: 7615.94232 | AA41: 7612.284832 | AB41: 7557.903303 | AC41: 7451.902415 | AD41: 7296.984882 | AE41: 7099.257552 | AF41: 6867.834142 | AG41: 6614.280018 | AH41: 6351.947069 | AI41: 6095.245812 | AJ41: 5858.897255 | AK41: 5657.199014
Q43: Volume | R43: 1 | S43: 2 | T43: 3 | U43: 4 | V43: 5 | W43: 6 | X43: 7 | Y43: 8 | Z43: 9 | AA43: 10 | AB43: 11 | AC43: 12 | AD43: 13 | AE43: 14 | AF43: 15 | AG43: 16 | AH43: 17 | AI43: 18 | AJ43: 19 | AK43: 20
Q44: Essential | R44: 7233.099167 | S44: 7781.57625 | T44: 8308.553763 | U44: 8801.884929 | V44: 9251.171724 | W44: 9648.282718 | X44: 9987.732894 | Y44: 10266.88945 | Z44: 10485.98386 | AA44: 10647.92958 | AB44: 10757.96469 | AC44: 10823.15564 | AD44: 10851.81087 | AE44: 10852.8596 | AF44: 10835.25006 | AG44: 10807.41512 | AH44: 10776.84125 | AI44: 10749.76236 | AJ44: 10730.98459 | AK44: 10723.83449
Q45: Powercor | R45: 5432.255801 | S45: 5695.895738 | T45: 5954.30539 | U45: 6205.277929 | V45: 6446.64551 | W45: 6676.418304 | X45: 6892.908964 | Y45: 7094.829278 | Z45: 7281.34924 | AA45: 7452.113089 | AB45: 7607.211499 | AC45: 7747.113587 | AD45: 7872.566362 | AE45: 7984.472435 | AF45: 8083.759076 | AG45: 8171.253001 | AH45: 8247.575491 | AI45: 8313.071504 | AJ45: 8367.784302 | AK45: 8411.483655
Q46: Ergon | R46: 7019.661245 | S46: 6938.672373 | T46: 6871.087212 | U46: 6822.308309 | V46: 6796.06756 | W46: 6794.375061 | X46: 6817.576416 | Y46: 6864.505051 | Z46: 6932.710263 | AA46: 7018.737884 | AB46: 7118.438917 | AC46: 7227.28205 | AD46: 7340.648547 | AE46: 7454.092074 | AF46: 7563.551087 | AG46: 7665.50688 | AH46: 7757.085668 | AI46: 7836.107666 | AJ46: 7901.089647 | AK46: 7951.209726
Q47: Ausnet | R47: 5794.716259 | S47: 5859.886944 | T47: 5946.727055 | U47: 6049.356707 | V47: 6159.196604 | W47: 6266.01247 | X47: 6359.034574 | Y47: 6428.035053 | Z47: 6464.270254 | AA47: 6461.225005 | AB47: 6415.124933 | AC47: 6325.208074 | AD47: 6193.766354 | AE47: 6025.981192 | AF47: 5829.586459 | AG47: 5614.397343 | AH47: 5391.745885 | AI47: 5173.863199 | AJ47: 4973.244464 | AK47: 4802.026006
Q53: SWITCHGEAR
Q54: Expenditure | R54: 1 | S54: 2 | T54: 3 | U54: 4 | V54: 5 | W54: 6 | X54: 7 | Y54: 8 | Z54: 9 | AA54: 10 | AB54: 11 | AC54: 12 | AD54: 13 | AE54: 14 | AF54: 15 | AG54: 16 | AH54: 17 | AI54: 18 | AJ54: 19 | AK54: 20
Q55: Essential | R55: 26179.28732 | S55: 25885.21902 | T55: 25697.02151 | U55: 25586.68123 | V55: 25538.1694 | W55: 25544.79608 | X55: 25606.86488 | Y55: 25729.62574 | Z55: 25921.49509 | AA55: 26192.49787 | AB55: 26552.88536 | AC55: 27011.89542 | AD55: 27576.64408 | AE55: 28251.16425 | AF55: 29035.63211 | AG55: 29925.83874 | AH55: 30912.97 | AI55: 31983.74898 | AJ55: 33120.97393 | AK55: 34304.45328
Q56: Powercor | R56: 3192.627636 | S56: 2958.987401 | T56: 2757.319178 | U56: 2589.117693 | V56: 2454.641186 | W56: 2353.062167 | X56: 2282.648001 | Y56: 2240.958045 | Z56: 2225.044316 | AA56: 2231.643903 | AB56: 2257.353395 | AC56: 2298.778327 | AD56: 2352.653688 | AE56: 2415.934498 | AF56: 2485.857977 | AG56: 2559.980654 | AH56: 2636.194651 | AI56: 2712.727495 | AJ56: 2788.129236 | AK56: 2861.249749
Q57: Ergon | R57: 22109.30943 | S57: 20935.2956 | T57: 20035.4809 | U57: 19363.67514 | V57: 18880.50893 | W57: 18553.23419 | X57: 18355.17786 | Y57: 18264.99497 | Z57: 18265.83099 | AA57: 18344.4727 | AB57: 18490.54555 | AC57: 18695.80403 | AD57: 18953.55571 | AE57: 19258.25579 | AF57: 19605.30329 | AG57: 19991.05827 | AH57: 20413.08259 | AI57: 20870.58422 | AJ57: 21365.01968 | AK57: 21900.78494
Q58: Ausnet | R58: 10700.16104 | S58: 10090.6655 | T58: 9558.067408 | U58: 9065.867283 | V58: 8597.847043 | W58: 8149.826209 | X58: 7724.208226 | Y58: 7326.357852 | Z58: 6962.211624 | AA58: 6636.753432 | AB58: 6353.127945 | AC58: 6112.245316 | AD58: 5912.772675 | AE58: 5751.424845 | AF58: 5623.471338 | AG58: 5523.377206 | AH58: 5445.495953 | AI58: 5384.738865 | AJ58: 5337.155928 | AK58: 5300.379435
Q60: Volume | R60: 1 | S60: 2 | T60: 3 | U60: 4 | V60: 5 | W60: 6 | X60: 7 | Y60: 8 | Z60: 9 | AA60: 10 | AB60: 11 | AC60: 12 | AD60: 13 | AE60: 14 | AF60: 15 | AG60: 16 | AH60: 17 | AI60: 18 | AJ60: 19 | AK60: 20
Q61: Essential | R61: 3363.448288 | S61: 3403.051182 | T61: 3442.354173 | U61: 3480.563745 | V61: 3517.559721 | W61: 3553.694094 | X61: 3589.625862 | Y61: 3626.191281 | Z61: 3664.3065 | AA61: 3704.897983 | AB61: 3748.855147 | AC61: 3796.999418 | AD61: 3850.06413 | AE61: 3908.680438 | AF61: 3973.365447 | AG61: 4044.510088 | AH61: 4122.365625 | AI61: 4207.029076 | AJ61: 4298.429023 | AK61: 4396.31431
Q62: Powercor | R62: 140.1951528 | S62: 130.0356961 | T62: 121.415052 | U62: 114.3922843 | V62: 108.971258 | W62: 105.1079999 | X62: 102.7190285 | Y62: 101.6900711 | Z62: 101.8846471 | AA62: 103.1520916 | AB62: 105.3347014 | AC62: 108.2738088 | AD62: 111.8147016 | AE62: 115.810411 | AF62: 120.1244652 | AG62: 124.6327491 | AH62: 129.2246233 | AI62: 133.8034395 | AJ62: 138.2865559 | AK62: 142.604919
Q63: Ergon | R63: 2026.08502 | S63: 1870.905949 | T63: 1746.219043 | U63: 1647.333068 | V63: 1570.0856 | W63: 1510.867697 | X63: 1466.599893 | Y63: 1434.680268 | Z63: 1412.922171 | AA63: 1399.494673 | AB63: 1392.874001 | AC63: 1391.809872 | AD63: 1395.307209 | AE63: 1402.621393 | AF63: 1413.263997 | AG63: 1427.015576 | AH63: 1443.942288 | AI63: 1464.413556 | AJ63: 1489.118263 | AK63: 1519.076905
Q64: Ausnet | R64: 1306.652048 | S64: 1190.83198 | T64: 1075.450809 | U64: 962.2241085 | V64: 853.2003294 | W64: 750.306273 | X64: 655.142224 | Y64: 568.9001537 | Z64: 492.3481326 | AA64: 425.8540618 | AB64: 369.4337771 | AC64: 322.8132347 | AD64: 285.4972016 | AE64: 256.838189 | AF64: 236.1008542 | AG64: 222.51874 | AH64: 215.3411653 | AI64: 213.8696679 | AJ64: 217.4843252 | AK64: 225.6611111
Q71: TRANSFORMERS
Q72: Expenditure | R72: 1 | S72: 2 | T72: 3 | U72: 4 | V72: 5 | W72: 6 | X72: 7 | Y72: 8 | Z72: 9 | AA72: 10 | AB72: 11 | AC72: 12 | AD72: 13 | AE72: 14 | AF72: 15 | AG72: 16 | AH72: 17 | AI72: 18 | AJ72: 19 | AK72: 20
Q73: Essential | R73: 15670.10013 | S73: 15785.44464 | T73: 15984.5883 | U73: 16234.74678 | V73: 16512.31972 | W73: 16800.60803 | X73: 17088.33803 | Y73: 17368.65766 | Z73: 17638.38658 | AA73: 17897.39427 | AB73: 18148.04889 | AC73: 18394.72073 | AD73: 18643.34092 | AE73: 18901.01391 | AF73: 19175.67162 | AG73: 19475.74749 | AH73: 19809.84583 | AI73: 20186.38756 | AJ73: 20613.2255 | AK73: 21097.23585
Q74: Powercor | R74: 8508.745263 | S74: 9110.433981 | T74: 9709.042377 | U74: 10299.2021 | V74: 10876.69906 | W74: 11438.76361 | X74: 11984.25088 | Y74: 12513.69163 | Z74: 13029.20448 | AA74: 13534.27087 | AB74: 14033.386 | AC74: 14531.60999 | AD74: 15034.05281 | AE74: 15545.33366 | AF74: 16069.05892 | AG74: 16607.36252 | AH74: 17160.54849 | AI74: 17726.86764 | AJ74: 18302.44974 | AK74: 18881.39992
Q75: Ergon | R75: 38642.16256 | S75: 37422.88769 | T75: 36920.53272 | U75: 36891.63174 | V75: 37205.10574 | W75: 37783.55932 | X75: 38577.2225 | Y75: 39551.23023 | Z75: 40679.11932 | AA75: 41939.51669 | AB75: 43314.44926 | AC75: 44788.38639 | AD75: 46347.57614 | AE75: 47979.58724 | AF75: 49673.19112 | AG75: 51418.78746 | AH75: 53209.48928 | AI75: 55042.78521 | AJ75: 56922.46536 | AK75: 58860.32132
Q76: Ausnet | R76: 10485.39165 | S76: 10227.95727 | T76: 10101.54917 | U76: 10088.02784 | V76: 10172.85609 | W76: 10343.73113 | X76: 10589.66393 | Y76: 10900.29298 | Z76: 11265.35583 | AA76: 11674.30985 | AB76: 12116.12223 | AC76: 12579.24907 | AD76: 13051.81047 | AE76: 13521.94265 | AF76: 13978.28699 | AG76: 14410.55421 | AH76: 14810.09247 | AI76: 15170.38714 | AJ76: 15487.42947 | AK76: 15759.90939
Q78: Volume | R78: 1 | S78: 2 | T78: 3 | U78: 4 | V78: 5 | W78: 6 | X78: 7 | Y78: 8 | Z78: 9 | AA78: 10 | AB78: 11 | AC78: 12 | AD78: 13 | AE78: 14 | AF78: 15 | AG78: 16 | AH78: 17 | AI78: 18 | AJ78: 19 | AK78: 20
Q79: Essential | R79: 1329.324556 | S79: 1342.152383 | T79: 1358.884825 | U79: 1378.168407 | V79: 1398.974474 | W79: 1420.564002 | X79: 1442.462161 | Y79: 1464.434625 | Z79: 1486.460538 | AA79: 1508.70005 | AB79: 1531.456878 | AC79: 1555.137963 | AD79: 1580.212863 | AE79: 1607.175185 | AF79: 1636.507511 | AG79: 1668.650503 | AH79: 1703.976317 | AI79: 1742.766374 | AJ79: 1785.193648 | AK79: 1831.30989
Q80: Powercor | R80: 601.8779204 | S80: 635.8087882 | T80: 668.0867501 | U80: 698.6078891 | V80: 727.3867964 | W80: 754.5575394 | X80: 780.3650129 | Y80: 805.1467518 | Z80: 829.306234 | AA80: 853.2795886 | AB80: 877.4983411 | AC80: 902.3512764 | AD80: 928.1486415 | AE80: 955.0917231 | AF80: 983.2503623 | AG80: 1012.550264 | AH80: 1042.771119 | AI80: 1073.555671 | AJ80: 1104.428994 | AK80: 1134.826506
Q81: Ergon | R81: 1453.50025 | S81: 1433.915053 | T81: 1426.339417 | U81: 1426.898088 | V81: 1433.787415 | W81: 1446.055438 | X81: 1463.076438 | Y81: 1484.310985 | Z81: 1509.202232 | AA81: 1537.144729 | AB81: 1567.491176 | AC81: 1599.57586 | AD81: 1632.742507 | AE81: 1666.371924 | AF81: 1699.910059 | AG81: 1732.899382 | AH81: 1765.015455 | AI81: 1796.107062 | AJ81: 1826.233851 | AK81: 1855.692021
Q82: Ausnet | R82: 826.4756254 | S82: 840.3821393 | T82: 857.8594424 | U82: 878.385943 | V82: 901.7984319 | W82: 928.0811016 | X82: 957.2283978 | Y82: 989.1537434 | Z82: 1023.631623 | AA82: 1060.267083 | AB82: 1098.489249 | AC82: 1137.565646 | AD82: 1176.634009 | AE82: 1214.747138 | AF82: 1250.926227 | AG82: 1284.217508 | AH82: 1313.747473 | AI82: 1338.772391 | AJ82: 1358.718808 | AK82: 1373.2128
Q88: UNDERGROUND CABLES
Q89: Expenditure | R89: 1 | S89: 2 | T89: 3 | U89: 4 | V89: 5 | W89: 6 | X89: 7 | Y89: 8 | Z89: 9 | AA89: 10 | AB89: 11 | AC89: 12 | AD89: 13 | AE89: 14 | AF89: 15 | AG89: 16 | AH89: 17 | AI89: 18 | AJ89: 19 | AK89: 20
Q90: Essential | R90: 3789.946325 | S90: 4192.601321 | T90: 4656.042116 | U90: 5190.496995 | V90: 5806.963043 | W90: 6517.05515 | X90: 7332.820671 | Y90: 8266.520858 | Z90: 9330.380257 | AA90: 10536.30574 | AB90: 11895.57809 | AC90: 13418.52152 | AD90: 15114.16 | AE90: 16989.87402 | AF90: 19051.07682 | AG90: 21300.93399 | AH90: 23740.15451 | AI90: 26366.88257 | AJ90: 29176.71803 | AK90: 32162.88733
Q91: Powercor | R91: 579.9442843 | S91: 656.6443351 | T91: 768.4562587 | U91: 918.0001146 | V91: 1107.696423 | W91: 1340.25737 | X91: 1619.249912 | Y91: 1949.727182 | Z91: 2338.891549 | AA91: 2796.711431 | AB91: 3336.384966 | AC91: 3974.542341 | AD91: 4731.109051 | AE91: 5628.806757 | AF91: 6692.331887 | AG91: 7947.310062 | AH91: 9419.167695 | AI91: 11132.08775 | AJ91: 13108.2241 | AK91: 15367.33556
Q92: Ergon | R92: 5083.405068 | S92: 6161.614162 | T92: 7781.919321 | U92: 10098.99805 | V92: 13295.0531 | W92: 17552.43298 | X92: 23019.74252 | Y92: 29773.0643 | Z92: 37777.38612 | AA92: 46856.01499 | AB92: 56676.74613 | AC92: 66762.10284 | AD92: 76526.90912 | AE92: 85340.50268 | AF92: 92604.57129 | AG92: 97832.84215 | AH92: 100717.3434 | AI92: 101168.4107 | AJ92: 99321.45113 | AK92: 95510.9692
Q93: Ausnet | R93: 7202.197023 | S93: 8950.257229 | T93: 10970.21356 | U93: 13260.20598 | V93: 15804.87144 | W93: 18573.40483 | X93: 21518.50044 | Y93: 24576.47432 | Z93: 27668.79357 | AA93: 30705.11866 | AB93: 33587.80908 | AC93: 36217.66811 | AD93: 38500.53119 | AE93: 40354.15994 | AF93: 41714.81404 | AG93: 42542.85245 | AH93: 42826.77356 | AI93: 42585.23595 | AJ93: 41866.79356 | AK93: 40747.30674
Q95: Volume | R95: 1 | S95: 2 | T95: 3 | U95: 4 | V95: 5 | W95: 6 | X95: 7 | Y95: 8 | Z95: 9 | AA95: 10 | AB95: 11 | AC95: 12 | AD95: 13 | AE95: 14 | AF95: 15 | AG95: 16 | AH95: 17 | AI95: 18 | AJ95: 19 | AK95: 20
Q96: Essential | R96: 4.878791008 | S96: 5.425243116 | T96: 6.054856077 | U96: 6.781764084 | V96: 7.621372834 | W96: 8.590184533 | X96: 9.705561856 | Y96: 10.98542987 | Z96: 12.44791611 | AA96: 14.11093103 | AB96: 15.99169357 | AC96: 18.10621145 | AD96: 20.46873092 | AE96: 23.09117808 | AF96: 25.98262139 | AG96: 29.14879194 | AH96: 32.59170353 | AI96: 36.30941637 | AJ96: 40.29598576 | AK96: 44.54162867
Q97: Powercor | R97: 0.2739652968 | S97: 0.3045233811 | T97: 0.3516444767 | U97: 0.416054087 | V97: 0.4981973384 | W97: 0.5984830086 | X97: 0.7175669469 | Y97: 0.8566745752 | Z97: 1.017944187 | AA97: 1.204750141 | AB97: 1.421949076 | AC97: 1.675991384 | AD97: 1.974856702 | AE97: 2.327801514 | AF97: 2.744941057 | AG97: 3.236718316 | AH97: 3.813335172 | AI97: 4.484233254 | AJ97: 5.257714654 | AK97: 6.140784232
Q98: Ergon | R98: 17.05156418 | S98: 21.50042849 | T98: 28.37275099 | U98: 38.37727377 | V98: 52.3440297 | W98: 71.09879112 | X98: 95.30738716 | Y98: 125.297503 | Z98: 160.8815739 | AA98: 201.216738 | AB98: 244.7423254 | AC98: 289.2286155 | AD98: 331.9518484 | AE98: 369.982974 | AF98: 400.5484127 | AG98: 421.3991546 | AH98: 431.1175421 | AI98: 429.3024035 | AJ98: 416.600151 | AK98: 394.5840786
Q99: Ausnet | R99: 6.099266923 | S99: 7.579632671 | T99: 9.290256917 | U99: 11.22956446 | V99: 13.38454492 | W99: 15.72911063 | X99: 18.22320016 | Y99: 20.81288201 | Z99: 23.43164965 | AA99: 26.00299797 | AB99: 28.44423892 | AC99: 30.67136659 | AD99: 32.60463656 | AE99: 34.1744043 | AF99: 35.32669054 | AG99: 36.0279248 | AH99: 36.2683668 | AI99: 36.06381778 | AJ99: 35.45539622 | AK99: 34.50734538

Sheet DSNP Output Comparison (Comb)
Q1: OVERHEAD CONDUCTORS
Q2: Expenditure | R2: 1 | S2: 2 | T2: 3 | U2: 4 | V2: 5 | W2: 6 | X2: 7 | Y2: 8 | Z2: 9 | AA2: 10 | AB2: 11 | AC2: 12 | AD2: 13 | AE2: 14 | AF2: 15 | AG2: 16 | AH2: 17 | AI2: 18 | AJ2: 19 | AK2: 20
Q3: Essential | R3: 16099.5061 | S3: 18834.25476 | T3: 21942.81657 | U3: 25456.62939 | V3: 29404.87745 | W3: 33813.10383 | X3: 38701.71081 | Y3: 44084.41117 | Z3: 49966.70581 | AA3: 56344.47031 | AB3: 63202.7354 | AC3: 70514.74192 | AD3: 78241.3407 | AE3: 86330.79199 | AF3: 94718.99962 | AG3: 103330.1929 | AH3: 112078.0467 | AI3: 120867.2097 | AJ3: 129595.1916 | AK3: 138154.5472
Q4: Powercor | R4: 7670.468797 | S4: 8185.756466 | T4: 8757.131142 | U4: 9402.002161 | V4: 10138.97812 | W4: 10987.07582 | X4: 11964.82351 | Y4: 13089.30113 | Z4: 14375.16653 | AA4: 15833.72075 | AB4: 17472.06711 | AC4: 19292.41808 | AD4: 21291.59975 | AE4: 23460.79725 | AF4: 25785.57411 | AG4: 28246.18514 | AH4: 30818.18611 | AI4: 33473.32453 | AJ4: 36180.67547 | AK4: 38907.96613
Q5: Ergon | R5: 11554.9763 | S5: 13273.92041 | T5: 15121.3297 | U5: 17088.0656 | V5: 19163.17123 | W5: 21334.37931 | X5: 23588.67496 | Y5: 25912.86777 | Z5: 28294.12623 | AA5: 30720.43052 | AB5: 33180.90743 | AC5: 35666.02314 | AD5: 38167.62376 | AE5: 40678.8293 | AF5: 43193.80125 | AG5: 45707.41654 | AH5: 48214.88931 | AI5: 50711.38538 | AJ5: 53191.67306 | AK5: 55649.84775
Q6: Ausnet | R6: 8112.644737 | S6: 8359.917963 | T6: 8687.438954 | U6: 9104.469651 | V6: 9618.726794 | W6: 10236.23185 | X6: 10961.17575 | Y6: 11795.78934 | Z6: 12740.21432 | AA6: 13792.37442 | AB6: 14947.85224 | AC6: 16199.78257 | AD6: 17538.77758 | AE6: 18952.9025 | AF6: 20427.72142 | AG6: 21946.4317 | AH6: 23490.10183 | AI6: 25038.02172 | AJ6: 26568.16636 | AK6: 28057.76463
Q8: Volume | R8: 1 | S8: 2 | T8: 3 | U8: 4 | V8: 5 | W8: 6 | X8: 7 | Y8: 8 | Z8: 9 | AA8: 10 | AB8: 11 | AC8: 12 | AD8: 13 | AE8: 14 | AF8: 15 | AG8: 16 | AH8: 17 | AI8: 18 | AJ8: 19 | AK8: 20
Q9: Essential | R9: 330.4214281 | S9: 386.9181242 | T9: 451.1957171 | U9: 523.9111992 | V9: 605.6733617 | W9: 697.0135839 | X9: 798.3543652 | Y9: 909.9769486 | Z9: 1031.98964 | AA9: 1164.298582 | AB9: 1306.582773 | AC9: 1458.275036 | AD9: 1618.550405 | AE9: 1786.323048 | AF9: 1960.252459 | AG9: 2138.759107 | AH9: 2320.049305 | AI9: 2502.14856 | AJ9: 2682.942295 | AK9: 2860.22251
Q10: Powercor | R10: 152.1690615 | S10: 161.4612003 | T10: 171.7106014 | U10: 183.2426268 | V10: 196.4054028 | W10: 211.5555164 | X10: 229.0419841 | Y10: 249.1892521 | Z10: 272.2800669 | AA10: 298.5390972 | AB10: 328.1181952 | AC10: 361.084145 | AD10: 397.4096762 | AE10: 436.9684028 | AF10: 479.5341886 | AG10: 524.7852405 | AH10: 572.312983 | AI10: 621.6354919 | AJ10: 672.2149618 | AK10: 723.478376
Q11: Ergon | R11: 335.742094 | S11: 389.8391703 | T11: 448.7976936 | U11: 512.4387855 | V11: 580.5089525 | W11: 652.692596 | X11: 728.6275841 | Y11: 807.9225585 | Z11: 890.1744435 | AA11: 974.9845836 | AB11: 1061.97207 | AC11: 1150.783125 | AD11: 1241.095865 | AE11: 1332.620287 | AF11: 1425.093879 | AG11: 1518.273759 | AH11: 1611.926597 | AI11: 1705.817781 | AJ11: 1799.701276 | AK11: 1893.311379
Q12: Ausnet | R12: 162.2618474 | S12: 167.7880392 | T12: 175.136912 | U12: 184.526649 | V12: 196.1429385 | W12: 210.1345024 | X12: 226.6087608 | Y12: 245.6274999 | Z12: 267.2025135 | AA12: 291.2913048 | AB12: 317.7930717 | AC12: 346.5453145 | AD12: 377.3215016 | AE12: 409.830283 | AF12: 443.7167428 | AG12: 478.5661281 | AH12: 513.9103747 | AI12: 549.2375866 | AJ12: 584.0044112 | AK12: 617.6510222
Q19: POLES
Q20: Expenditure | R20: 1 | S20: 2 | T20: 3 | U20: 4 | V20: 5 | W20: 6 | X20: 7 | Y20: 8 | Z20: 9 | AA20: 10 | AB20: 11 | AC20: 12 | AD20: 13 | AE20: 14 | AF20: 15 | AG20: 16 | AH20: 17 | AI20: 18 | AJ20: 19 | AK20: 20
Q21: Essential | R21: 49454.50557 | S21: 52233.26488 | T21: 55310.26662 | U21: 58627.96858 | V21: 62129.9359 | W21: 65762.45976 | X21: 69475.64047 | Y21: 73223.96969 | Z21: 76966.48457 | AA21: 80666.59091 | AB21: 84291.66394 | AC21: 87812.53456 | AD21: 91202.95951 | AE21: 94439.15666 | AF21: 97499.46531 | AG21: 100364.1678 | AH21: 103015.4839 | AI21: 105437.7275 | AJ21: 107617.5933 | AK21: 109544.5251
Q22: Powercor | R22: 12858.86521 | S22: 14075.98235 | T22: 15445.15324 | U22: 16985.18831 | V22: 18714.96284 | W22: 20653.65623 | X22: 22820.98469 | Y22: 25237.23635 | Z22: 27922.90984 | AA22: 30897.79217 | AB22: 34179.38616 | AC22: 37780.70467 | AD22: 41707.56961 | AE22: 45955.66794 | AF22: 50507.70127 | AG22: 55331.00323 | AH22: 60375.97919 | AI22: 65575.65057 | AJ22: 70846.47437 | AK22: 76090.47945
Q23: Ergon | R23: 33204.61861 | S23: 36501.56776 | T23: 39904.58232 | U23: 43415.1164 | V23: 47040.38754 | W23: 50791.92127 | X23: 54683.04922 | Y23: 58725.61553 | Z23: 62926.29753 | AA23: 67283.0418 | AB23: 71782.13735 | AC23: 76396.38801 | AD23: 81084.71244 | AE23: 85793.31056 | AF23: 90458.32165 | AG23: 95009.69736 | AH23: 99375.85833 | AI23: 103488.6225 | AJ23: 107287.8914 | AK23: 110725.6472
Q24: Ausnet | R24: 21895.9568 | S24: 21217.85778 | T24: 20745.48608 | U24: 20431.42762 | V24: 20261.29949 | W24: 20227.00238 | X24: 20321.91906 | Y24: 20538.51202 | Z24: 20867.32794 | AA24: 21297.06119 | AB24: 21815.18764 | AC24: 22408.82082 | AD24: 23065.46292 | AE24: 23773.43275 | AF24: 24521.86809 | AG24: 25300.30269 | AH24: 26097.8961 | AI24: 26902.45307 | AJ24: 27699.41529 | AK24: 28471.04353
Q26: Volume | R26: 1 | S26: 2 | T26: 3 | U26: 4 | V26: 5 | W26: 6 | X26: 7 | Y26: 8 | Z26: 9 | AA26: 10 | AB26: 11 | AC26: 12 | AD26: 13 | AE26: 14 | AF26: 15 | AG26: 16 | AH26: 17 | AI26: 18 | AJ26: 19 | AK26: 20
Q27: Essential | R27: 10931.13487 | S27: 11472.85469 | T27: 12073.73792 | U27: 12720.8323 | V27: 13401.56835 | W27: 14104.07677 | X27: 14817.41264 | Y27: 15531.68752 | Z27: 16238.12021 | AA27: 16929.02341 | AB27: 17597.74601 | AC27: 18238.59139 | AD27: 18846.72902 | AE27: 19418.11348 | AF27: 19949.41987 | AG27: 20437.99993 | AH27: 20881.85849 | AI27: 21279.64604 | AJ27: 21630.66047 | AK27: 21934.84902
Q28: Powercor | R28: 1931.302209 | S28: 2075.419586 | T28: 2234.410067 | U28: 2410.799824 | V28: 2607.166291 | W28: 2826.126847 | X28: 3070.327073 | Y28: 3342.411398 | Z28: 3644.957868 | AA28: 3980.361898 | AB28: 4350.661011 | AC28: 4757.302958 | AD28: 5200.871468 | AE28: 5680.795039 | AF28: 6195.072347 | AG28: 6740.051164 | AH28: 7310.295255 | AI28: 7898.565832 | AJ28: 8495.932403 | AK28: 9092.014396
Q29: Ergon | R29: 5595.77993 | S29: 6111.589192 | T29: 6636.256058 | U29: 7169.092402 | V29: 7710.362197 | W29: 8261.116255 | X29: 8822.889371 | Y29: 9397.294962 | Z29: 9985.570346 | AA29: 10588.13587 | AB29: 11204.23123 | AC29: 11831.68242 | AD29: 12466.8341 | AE29: 13104.6582 | AF29: 13739.02386 | AG29: 14363.09189 | AH29: 14969.78201 | AI29: 15552.25642 | AJ29: 16104.36799 | AK29: 16621.03335
Q30: Ausnet | R30: 3588.141136 | S30: 3456.919736 | T30: 3366.308947 | U30: 3310.256586 | V30: 3286.114312 | W30: 3291.635103 | X30: 3324.502206 | Y30: 3382.128355 | Z30: 3461.608559 | AA30: 3559.785375 | AB30: 3673.370353 | AC30: 3799.082189 | AD30: 3933.764846 | AE30: 4074.461616 | AF30: 4218.434354 | AG30: 4363.128753 | AH30: 4506.095331 | AI30: 4644.882375 | AJ30: 4776.922278 | AK30: 4899.43677
Q36: SERVICE LINES
Q37: Expenditure | R37: 1 | S37: 2 | T37: 3 | U37: 4 | V37: 5 | W37: 6 | X37: 7 | Y37: 8 | Z37: 9 | AA37: 10 | AB37: 11 | AC37: 12 | AD37: 13 | AE37: 14 | AF37: 15 | AG37: 16 | AH37: 17 | AI37: 18 | AJ37: 19 | AK37: 20
Q38: Essential | R38: 5899.348582 | S38: 6349.411422 | T38: 6782.539677 | U38: 7188.81615 | V38: 7559.716307 | W38: 7888.531123 | X38: 8170.679915 | Y38: 8403.883731 | Z38: 8588.182907 | AA38: 8725.797803 | AB38: 8820.847536 | AC38: 8878.95543 | AD38: 8906.780059 | AE38: 8911.515998 | AF38: 8900.408091 | AG38: 8880.317836 | AH38: 8857.371167 | AI38: 8836.705353 | AJ38: 8822.320516 | AK38: 8817.030168
Q39: Powercor | R39: 5011.900099 | S39: 5255.139202 | T39: 5493.552746 | U39: 5725.104672 | V39: 5947.794885 | W39: 6159.787533 | X39: 6359.525837 | Y39: 6545.821269 | Z39: 6717.908051 | AA39: 6875.45795 | AB39: 7018.554623 | AC39: 7147.630888 | AD39: 7263.375948 | AE39: 7366.62257 | AF39: 7458.226269 | AG39: 7538.949789 | AH39: 7609.366336 | AI39: 7669.794174 | AJ39: 7720.273218 | AK39: 7760.591052
Q40: Ergon | R40: 4900.206465 | S40: 4825.018772 | T40: 4761.833663 | U40: 4714.080635 | V40: 4683.99421 | W40: 4672.618314 | X40: 4679.876062 | Y40: 4704.694682 | Z40: 4745.17268 | AA40: 4798.774738 | AB40: 4862.539375 | AC40: 4933.285079 | AD40: 5007.80224 | AE40: 5083.020692 | AF40: 5156.145679 | AG40: 5224.758252 | AH40: 5286.879297 | AI40: 5340.99913 | AJ40: 5386.076813 | AK40: 5421.514763
Q41: Ausnet | R41: 541.5257461 | S41: 628.5081446 | T41: 724.7491091 | U41: 831.020042 | V41: 948.2256245 | W41: 1077.37823 | X41: 1219.541555 | Y41: 1375.742071 | Z41: 1546.850939 | AA41: 1733.443394 | AB41: 1935.646739 | AC41: 2152.991323 | AD41: 2384.280809 | AE41: 2627.498179 | AF41: 2879.762191 | AG41: 3137.345567 | AH41: 3395.761191 | AI41: 3649.91681 | AJ41: 3894.332538 | AK41: 4123.409641
Q43: Volume | R43: 1 | S43: 2 | T43: 3 | U43: 4 | V43: 5 | W43: 6 | X43: 7 | Y43: 8 | Z43: 9 | AA43: 10 | AB43: 11 | AC43: 12 | AD43: 13 | AE43: 14 | AF43: 15 | AG43: 16 | AH43: 17 | AI43: 18 | AJ43: 19 | AK43: 20
Q44: Essential | R44: 7233.099167 | S44: 7781.57625 | T44: 8308.553763 | U44: 8801.884929 | V44: 9251.171724 | W44: 9648.282718 | X44: 9987.732894 | Y44: 10266.88945 | Z44: 10485.98386 | AA44: 10647.92958 | AB44: 10757.96469 | AC44: 10823.15564 | AD44: 10851.81087 | AE44: 10852.8596 | AF44: 10835.25006 | AG44: 10807.41512 | AH44: 10776.84125 | AI44: 10749.76236 | AJ44: 10730.98459 | AK44: 10723.83449
Q45: Powercor | R45: 5432.255801 | S45: 5695.895738 | T45: 5954.30539 | U45: 6205.277929 | V45: 6446.64551 | W45: 6676.418304 | X45: 6892.908964 | Y45: 7094.829278 | Z45: 7281.34924 | AA45: 7452.113089 | AB45: 7607.211499 | AC45: 7747.113587 | AD45: 7872.566362 | AE45: 7984.472435 | AF45: 8083.759076 | AG45: 8171.253001 | AH45: 8247.575491 | AI45: 8313.071504 | AJ45: 8367.784302 | AK45: 8411.483655
Q46: Ergon | R46: 7011.531683 | S46: 6931.992325 | T46: 6865.559051 | U46: 6817.68364 | V46: 6792.144977 | W46: 6790.995469 | X46: 6814.617065 | Y46: 6861.873215 | Z46: 6930.337194 | AA46: 7016.573459 | AB46: 7116.447128 | AC46: 7225.437355 | AD46: 7338.932997 | AE46: 7452.493084 | AF46: 7562.059732 | AG46: 7664.116606 | AH46: 7755.791354 | AI46: 7834.904984 | AJ46: 7899.974695 | AK46: 7950.178902
Q47: Ausnet | R47: 584.4724507 | S47: 678.421583 | T47: 782.3770466 | U47: 897.1718472 | V47: 1023.783181 | W47: 1163.305066 | X47: 1316.887711 | Y47: 1485.642077 | Z47: 1670.512435 | AA47: 1872.124458 | AB47: 2090.620855 | AC47: 2325.500081 | AD47: 2575.475738 | AE47: 2838.374474 | AF47: 3111.088341 | AG47: 3389.593824 | AH47: 3669.044426 | AI47: 3943.937369 | AJ47: 4208.348313 | AK47: 4456.221691
Q53: SWITCHGEAR
Q54: Expenditure | R54: 1 | S54: 2 | T54: 3 | U54: 4 | V54: 5 | W54: 6 | X54: 7 | Y54: 8 | Z54: 9 | AA54: 10 | AB54: 11 | AC54: 12 | AD54: 13 | AE54: 14 | AF54: 15 | AG54: 16 | AH54: 17 | AI54: 18 | AJ54: 19 | AK54: 20
Q55: Essential | R55: 24040.75877 | S55: 23863.21346 | T55: 23786.91019 | U55: 23785.40958 | V55: 23841.28407 | W55: 23944.06817 | X55: 24088.54166 | Y55: 24273.29165 | Z55: 24499.50942 | AA55: 24769.9906 | AB55: 25088.31721 | AC55: 25458.20677 | AD55: 25883.01629 | AE55: 26365.38902 | AF55: 26907.03089 | AG55: 27508.60261 | AH55: 28169.71397 | AI55: 28889.0081 | AJ55: 29664.3258 | AK55: 30492.94225
Q56: Powercor | R56: 2527.756265 | S56: 2380.024803 | T56: 2250.575486 | U56: 2141.011849 | V56: 2052.187184 | W56: 1984.248784 | X56: 1936.702372 | Y56: 1908.4942 | Z56: 1898.107309 | AA56: 1903.66739 | AB56: 1923.052797 | AC56: 1954.002937 | AD56: 1994.219462 | AE56: 2041.455593 | AF56: 2093.590223 | AG56: 2148.68506 | AH56: 2205.024547 | AI56: 2261.13956 | AJ56: 2315.816632 | AK56: 2368.094795
Q57: Ergon | R57: 9390.343108 | S57: 9082.510305 | T57: 8858.712905 | U57: 8707.942731 | V57: 8620.384522 | W57: 8587.614614 | X57: 8602.566036 | Y57: 8659.336119 | Z57: 8752.913292 | AA57: 8878.891629 | AB57: 9033.227806 | AC57: 9212.078508 | AD57: 9411.739469 | AE57: 9628.691914 | AF57: 9859.749301 | AG57: 10102.28729 | AH57: 10354.53256 | AI57: 10615.88103 | AJ57: 10887.21311 | AK57: 11171.17148
Q58: Ausnet | R58: 5835.331019 | S58: 5407.175976 | T58: 5001.625123 | U58: 4613.585795 | V58: 4243.513575 | W58: 3894.590716 | X58: 3570.934922 | Y58: 3276.485851 | Z58: 3014.348894 | AA58: 2786.455982 | AB58: 2593.451206 | AC58: 2434.737558 | AD58: 2308.63736 | AE58: 2212.628186 | AF58: 2143.621784 | AG58: 2098.257473 | AH58: 2073.185549 | AI58: 2065.320708 | AJ58: 2072.050551 | AK58: 2091.390029
Q60: Volume | R60: 1 | S60: 2 | T60: 3 | U60: 4 | V60: 5 | W60: 6 | X60: 7 | Y60: 8 | Z60: 9 | AA60: 10 | AB60: 11 | AC60: 12 | AD60: 13 | AE60: 14 | AF60: 15 | AG60: 16 | AH60: 17 | AI60: 18 | AJ60: 19 | AK60: 20
Q61: Essential | R61: 3352.998435 | S61: 3393.266738 | T61: 3433.232025 | U61: 3472.109614 | V61: 3509.769844 | W61: 3546.540551 | X61: 3583.045702 | Y61: 3620.079309 | Z61: 3658.511535 | AA61: 3699.222495 | AB61: 3743.058397 | AC61: 3790.804313 | AD61: 3843.168038 | AE61: 3900.769981 | AF61: 3964.134979 | AG61: 4033.683038 | AH61: 4109.717425 | AI61: 4192.409906 | AJ61: 4281.784361 | AK61: 4377.701151
Q62: Powercor | R62: 129.0789655 | S62: 121.0773817 | T62: 114.3273256 | U62: 108.8935714 | V62: 104.7971064 | W62: 102.0198074 | X62: 100.5097426 | Y62: 100.1868193 | Z62: 100.948542 | AA62: 102.6756833 | AB62: 105.2376999 | AC62: 108.4977546 | AD62: 112.3172371 | AE62: 116.5597076 | AF62: 121.0942203 | AG62: 125.7980156 | AH62: 130.5585934 | AI62: 135.2751907 | AJ62: 139.8596961 | AK62: 144.2370284
Q63: Ergon | R63: 1835.525814 | S63: 1703.60697 | T63: 1598.045653 | U63: 1514.938584 | V63: 1450.75864 | W63: 1402.417627 | X63: 1367.266926 | Y63: 1343.058943 | Z63: 1327.89044 | AA63: 1320.144709 | AB63: 1318.44427 | AC63: 1321.620486 | AD63: 1328.701813 | AE63: 1338.918919 | AF63: 1351.72263 | AG63: 1366.809699 | AH63: 1384.151324 | AI63: 1404.019961 | AJ63: 1427.010721 | AK63: 1454.054334
Q64: Ausnet | R64: 1305.595321 | S64: 1189.927266 | T64: 1074.474842 | U64: 961.141807 | V64: 852.0259606 | W64: 749.0653953 | X64: 653.8642737 | Y64: 567.6182646 | Z64: 491.0995523 | AA64: 424.6796054 | AB64: 368.3760725 | AC64: 321.9141034 | AD64: 284.7944636 | AE64: 256.3623264 | AF64: 235.8720587 | AG64: 222.5445879 | AH64: 215.6153067 | AI64: 214.37168 | AJ64: 218.1806978 | AK64: 226.5072052
Q71: TRANSFORMERS
Q72: Expenditure | R72: 1 | S72: 2 | T72: 3 | U72: 4 | V72: 5 | W72: 6 | X72: 7 | Y72: 8 | Z72: 9 | AA72: 10 | AB72: 11 | AC72: 12 | AD72: 13 | AE72: 14 | AF72: 15 | AG72: 16 | AH72: 17 | AI72: 18 | AJ72: 19 | AK72: 20
Q73: Essential | R73: 11024.04965 | S73: 11212.99007 | T73: 11464.70643 | U73: 11758.8227 | V73: 12079.93734 | W73: 12416.51882 | X73: 12760.11567 | Y73: 13104.78728 | Z73: 13446.68281 | AA73: 13783.71475 | AB73: 14115.29061 | AC73: 14442.08021 | AD73: 14765.80657 | AE73: 15089.05508 | AF73: 15415.09926 | AG73: 15747.74132 | AH73: 16091.1645 | AI73: 16449.79081 | AJ73: 16828.13567 | AK73: 17230.64953
Q74: Powercor | R74: 7064.868367 | S74: 7581.925551 | T74: 8090.049377 | U74: 8585.752039 | V74: 9066.517749 | W74: 9530.973669 | X74: 9978.987722 | Y74: 10411.67683 | Z74: 10831.31598 | AA74: 11241.14707 | AB74: 11645.09611 | AC74: 12047.41656 | AD74: 12452.2847 | AE74: 12863.37917 | AF74: 13283.47956 | AG74: 13714.11877 | AH74: 14155.32056 | AI74: 14605.44691 | AJ74: 15061.17108 | AK74: 15517.58191
Q75: Ergon | R75: 12442.7409 | S75: 12569.92948 | T75: 12899.88117 | U75: 13356.15421 | V75: 13897.16728 | W75: 14498.87634 | X75: 15147.62172 | Y75: 15836.29435 | Z75: 16561.70215 | AA75: 17322.48465 | AB75: 18117.39202 | AC75: 18943.93336 | AD75: 19797.47837 | AE75: 20670.92085 | AF75: 21554.97011 | AG75: 22439.04801 | AH75: 23312.65435 | AI75: 24166.95984 | AJ75: 24996.3269 | AK75: 25799.46631
Q76: Ausnet | R76: 5791.621389 | S76: 5804.841739 | T76: 5872.591321 | U76: 5990.167221 | V76: 6153.979558 | W76: 6361.063341 | X76: 6608.631228 | Y76: 6893.66321 | Z76: 7212.549891 | AA76: 7560.816614 | AB76: 7932.957165 | AC76: 8322.399821 | AD76: 8721.61745 | AE76: 9122.379352 | AF76: 9516.128027 | AG76: 9894.450862 | AH76: 10249.60647 | AI76: 10575.05904 | AJ76: 10865.97194 | AK76: 11119.61438
Q78: Volume | R78: 1 | S78: 2 | T78: 3 | U78: 4 | V78: 5 | W78: 6 | X78: 7 | Y78: 8 | Z78: 9 | AA78: 10 | AB78: 11 | AC78: 12 | AD78: 13 | AE78: 14 | AF78: 15 | AG78: 16 | AH78: 17 | AI78: 18 | AJ78: 19 | AK78: 20
Q79: Essential | R79: 1303.055328 | S79: 1316.588459 | T79: 1333.923188 | U79: 1353.853337 | V79: 1375.456146 | W79: 1398.0599 | X79: 1421.218295 | Y79: 1444.688132 | Z79: 1468.407447 | AA79: 1492.471951 | AB79: 1517.10852 | AC79: 1542.645416 | AD79: 1569.479773 | AE79: 1598.043555 | AF79: 1628.769665 | AG79: 1662.060029 | AH79: 1698.257355 | AI79: 1737.621946 | AJ79: 1780.314412 | AK79: 1826.384585
Q80: Powercor | R80: 597.8985098 | S80: 632.5298484 | T80: 665.4366282 | U80: 696.5247007 | V80: 725.8168998 | W80: 753.4532945 | X80: 779.6823354 | Y80: 804.8428935 | Z80: 829.3381016 | AA80: 853.6027761 | AB80: 878.0669156 | AC80: 903.1182441 | AD80: 929.066937 | AE80: 956.1155184 | AF80: 984.3364794 | AG80: 1013.659495 | AH80: 1043.869301 | AI80: 1074.614405 | AJ80: 1105.425976 | AK80: 1135.745466
Q81: Ergon | R81: 704.3251648 | S81: 739.1628195 | T81: 778.6352317 | U81: 820.7715252 | V81: 864.4606517 | W81: 909.0811539 | X81: 954.3391307 | Y81: 1000.167525 | Z81: 1046.64311 | AA81: 1093.910211 | AB81: 1142.110885 | AC81: 1191.325453 | AD81: 1241.528556 | AE81: 1292.565592 | AF81: 1344.152332 | AG81: 1395.897382 | AH81: 1447.343532 | AI81: 1498.020853 | AJ81: 1547.502626 | AK81: 1595.455127
Q82: Ausnet | R82: 675.8807422 | S82: 697.0430479 | T82: 719.945467 | U82: 744.5763171 | V82: 771.1123236 | W82: 799.8073269 | X82: 830.8996406 | Y82: 864.5368645 | Z82: 900.7188986 | AA82: 939.2605468 | AB82: 979.774727 | AC82: 1021.676266 | AD82: 1064.204881 | AE82: 1106.464552 | AF82: 1147.475324 | AG82: 1186.232804 | AH82: 1221.770307 | AI82: 1253.21875 | AJ82: 1279.859936 | AK82: 1301.169633
Q88: UNDERGROUND CABLES
Q89: Expenditure | R89: 1 | S89: 2 | T89: 3 | U89: 4 | V89: 5 | W89: 6 | X89: 7 | Y89: 8 | Z89: 9 | AA89: 10 | AB89: 11 | AC89: 12 | AD89: 13 | AE89: 14 | AF89: 15 | AG89: 16 | AH89: 17 | AI89: 18 | AJ89: 19 | AK89: 20
Q90: Essential | R90: 1615.68746 | S90: 1806.877315 | T90: 2025.939947 | U90: 2277.727227 | V90: 2567.657948 | W90: 2901.677354 | X90: 3286.18691 | Y90: 3727.943343 | Z90: 4233.927754 | AA90: 4811.187403 | AB90: 5466.654513 | AC90: 6206.947886 | AD90: 7038.164479 | AE90: 7965.669169 | AF90: 8993.891937 | AG90: 10126.14252 | AH90: 11364.45336 | AI90: 12709.46198 | AJ90: 14160.34415 | AK90: 15714.8083
Q91: Powercor | R91: 77.92373678 | S91: 94.2291052 | T91: 113.5556785 | U91: 136.3513489 | V91: 163.1035836 | W91: 194.3418181 | X91: 230.6421374 | Y91: 272.6347665 | Z91: 321.0145373 | AA91: 376.5540302 | AB91: 440.1185715 | AC91: 512.6817792 | AD91: 595.3400075 | AE91: 689.3239143 | AF91: 796.0055714 | AG91: 916.9000764 | AH91: 1053.661513 | AI91: 1208.074284 | AJ91: 1382.042135 | AK91: 1577.578487
Q92: Ergon | R92: 272.2912945 | S92: 299.0620067 | T92: 329.2199878 | U92: 363.2974735 | V92: 401.935843 | W92: 445.9003578 | X92: 496.0891706 | Y92: 553.5339278 | Z92: 619.3896439 | AA92: 694.9123332 | AB92: 781.4242266 | AC92: 880.2682937 | AD92: 992.7562049 | AE92: 1120.116702 | AF92: 1263.454403 | AG92: 1423.732096 | AH92: 1601.792157 | AI92: 1798.434578 | AJ92: 2014.56954 | AK92: 2251.461237
Q93: Ausnet | R93: 2090.264012 | S93: 2673.91575 | T93: 3375.872473 | U93: 4205.981296 | V93: 5170.637218 | W93: 6271.490068 | X93: 7504.207906 | Y93: 8857.433208 | Z93: 10312.08027 | AA93: 11841.118 | AB93: 13409.9586 | AC93: 14977.52823 | AD93: 16498.03423 | AE93: 17923.36858 | AF93: 19206.00952 | AG93: 20302.21154 | AH93: 21175.21946 | AI93: 21798.21411 | AJ93: 22156.70127 | AK93: 22250.09378
Q95: Volume | R95: 1 | S95: 2 | T95: 3 | U95: 4 | V95: 5 | W95: 6 | X95: 7 | Y95: 8 | Z95: 9 | AA95: 10 | AB95: 11 | AC95: 12 | AD95: 13 | AE95: 14 | AF95: 15 | AG95: 16 | AH95: 17 | AI95: 18 | AJ95: 19 | AK95: 20
Q96: Essential | R96: 3.902032046 | S96: 4.382281546 | T96: 4.93379236 | U96: 5.568846692 | V96: 6.301211069 | W96: 7.146052929 | X96: 8.119779491 | Y96: 9.23979386 | Z96: 10.5241676 | AA96: 11.99123379 | AB96: 13.65910934 | AC96: 15.54516036 | AD96: 17.66542898 | AE96: 20.03404454 | AF96: 22.66264625 | AG96: 25.55984794 | AH96: 28.73077788 | AI96: 32.17672813 | AJ96: 35.89494641 | AK96: 39.87860005
Q97: Powercor | R97: 0.1762809562 | S97: 0.216129781 | T97: 0.2645376552 | U97: 0.3232584471 | V97: 0.3943736715 | W97: 0.4803418888 | X97: 0.5840510543 | Y97: 0.7088717564 | Z97: 0.85870831 | AA97: 1.038043736 | AB97: 1.251973956 | AC97: 1.506226275 | AD97: 1.807157637 | AE97: 2.16172937 | AF97: 2.577457335 | AG97: 3.062339342 | AH97: 3.624765402 | AI97: 4.273420213 | AJ97: 5.017190866 | AK97: 5.86509535
Q98: Ergon | R98: 1.050691399 | S98: 1.146973721 | T98: 1.259391953 | U98: 1.390483706 | V98: 1.543264308 | W98: 1.721296684 | X98: 1.928735608 | Y98: 2.17033576 | Z98: 2.451415044 | AA98: 2.777768601 | AB98: 3.155534952 | AC98: 3.591024108 | AD98: 4.090527964 | AE98: 4.660145682 | AF98: 5.30567031 | AG98: 6.032596564 | AH98: 6.84632213 | AI98: 7.752624235 | AJ98: 8.758497329 | AK98: 9.873434021
Q99: Ausnet | R99: 3.312286673 | S99: 4.237156384 | T99: 5.34949525 | U99: 6.664907262 | V99: 8.193526105 | W99: 9.937966138 | X99: 11.89136286 | Y99: 14.03571884 | Z99: 16.34079037 | AA99: 18.7637433 | AB99: 21.24976887 | AC99: 23.73378044 | AD99: 26.14321377 | AE99: 28.40183563 | AF99: 30.43434179 | AG99: 32.171412 | AH99: 33.55480304 | AI99: 34.54201654 | AJ99: 35.11008462 | AK99: 35.25807681

Sheet AER Repex Model -->

Sheet Historical scenario - output
D1: Replacement expenditure forecast ($,000) | X1: Replacement quantity forecast (#)
D2: 1 | E2: 2 | F2: 3 | G2: 4 | H2: 5 | I2: 6 | J2: 7 | K2: 8 | L2: 9 | M2: 10 | N2: 11 | O2: 12 | P2: 13 | Q2: 14 | R2: 15 | S2: 16 | T2: 17 | U2: 18 | V2: 19 | W2: 20 | X2: 1 | Y2: 2 | Z2: 3 | AA2: 4 | AB2: 5 | AC2: 6 | AD2: 7 | AE2: 8 | AF2: 9 | AG2: 10 | AH2: 11 | AI2: 12 | AJ2: 13 | AK2: 14 | AL2: 15 | AM2: 16 | AN2: 17 | AO2: 18 | AP2: 19 | AQ2: 20
A5: ID | B5: Asset group | D5: 2022 | E5: 2023 | F5: 2024 | G5: 2025 | H5: 2026 | I5: 2027 | J5: 2028 | K5: 2029 | L5: 2030 | M5: 2031 | N5: 2032 | O5: 2033 | P5: 2034 | Q5: 2035 | R5: 2036 | S5: 2037 | T5: 2038 | U5: 2039 | V5: 2040 | W5: 2041 | X5: 2022 | Y5: 2023 | Z5: 2024 | AA5: 2025 | AB5: 2026 | AC5: 2027 | AD5: 2028 | AE5: 2029 | AF5: 2030 | AG5: 2031 | AH5: 2032 | AI5: 2033 | AJ5: 2034 | AK5: 2035 | AL5: 2036 | AM5: 2037 | AN5: 2038 | AO5: 2039 | AP5: 2040 | AQ5: 2041
A6: 1 | B6: OVERHEAD CONDUCTORS | D6: =IFERROR(IF($A6="","",SUMIFS(D$21:D$175,$A$21:$A$175,$A6)),"") -> 10898.19736 | E6: =IFERROR(IF($A6="","",SUMIFS(E$21:E$175,$A$21:$A$175,$A6)),"") -> 13020.34678 | F6: 15486.44517 | G6: 18337.01891 | H6: 21613.66704 | I6: 25358.05664 | J6: 29610.68166 | K6: 34409.39812 | L6: 39787.76556 | M6: 45773.24258 | N6: 52385.30121 | O6: 59633.5403 | P6: 67515.88925 | Q6: 76017.00022 | R6: 85106.92755 | S6: 94740.18741 | T6: 104855.2789 | U6: =IFERROR(IF($A6="","",SUMIFS(U$21:U$175,$A$21:$A$175,$A6)),"") -> 115374.7302 | V6: 126205.7102 | W6: 137241.2228 | X6: =IFERROR(IF($A6="","",SUMIFS(X$21:X$175,$A$21:$A$175,$A6)),"") -> 165.1755475 | Y6: =IFERROR(IF($A6="","",SUMIFS(Y$21:Y$175,$A$21:$A$175,$A6)),"") -> 197.4628222 | Z6: 235.0210744 | AA6: 278.4782532 | AB6: 328.4795386 | AC6: 385.6717125 | AD6: 450.683855 | AE6: 524.1045794 | AF6: 606.4562849 | AG6: 698.1671809 | AH6: 799.5421024 | AI6: 910.7333683 | AJ6: 1031.713108 | AK6: 1162.248585 | AL6: 1301.882043 | AM6: 1449.916535 | AN6: 1605.408972 | AO6: =IFERROR(IF($A6="","",SUMIFS(AO$21:AO$175,$A$21:$A$175,$A6)),"") -> 1767.171386 | AP6: 1933.781033 | AQ6: 2103.59958
A7: 2 | B7: POLES | D7: =IFERROR(IF($A7="","",SUMIFS(D$21:D$175,$A$21:$A$175,$A7)),"") -> 64197.28898 | E7: 67963.10583 | F7: 72194.09604 | G7: 76815.04566 | H7: 81752.96778 | I7: 86938.13265 | J7: 92304.6131 | K7: 97790.35329 | L7: 103336.839 | M7: 108888.4979 | N7: 114391.9863 | O7: 119795.5265 | P7: 125048.4422 | Q7: 130101.0091 | R7: 134904.6919 | S7: 139412.7823 | T7: 143581.4037 | U7: 147370.793 | V7: 150746.7342 | W7: 153681.9928 | X7: 10589.51369 | Y7: 11078.05758 | Z7: 11643.52564 | AA7: 12271.08672 | AB7: 12946.6588 | AC7: 13657.03917 | AD7: 14389.99909 | AE7: 15134.32563 | AF7: 15879.81112 | AG7: 16617.20251 | AH7: 17338.12852 | AI7: 18035.02432 | AJ7: 18701.07107 | AK7: 19330.1634 | AL7: 19916.91137 | AM7: 20456.67717 | AN7: 20945.63989 | AO7: 21380.87698 | AP7: 21760.44703 | AQ7: 22083.45751
A8: 3 | B8: SERVICE LINES | D8: 8948.000343 | E8: 9658.764354 | F8: 10347.92461 | G8: 11000.01424 | H8: 11601.48275 | I8: 12141.37519 | J8: 12611.85535 | K8: 13008.52441 | L8: 13330.50549 | M8: 13580.28729 | N8: 13763.34483 | O8: 13887.57694 | P8: 13962.61745 | Q8: 13999.08615 | R8: 14007.84719 | S8: 13999.33557 | T8: 13982.99941 | U8: 13966.88832 | V8: 13957.39941 | W8: 13959.17529 | X8: 6885.660167 | Y8: 7430.465252 | Z8: 7958.128513 | AA8: 8456.736444 | AB8: 8915.875853 | AC8: 9327.157847 | AD8: 9684.619972 | AE8: 9984.969016 | AF8: 10227.64162 | AG8: 10414.67791 | AH8: 10550.42219 | AI8: 10641.08208 | AJ8: 10694.19032 | AK8: 10718.021 | AL8: 10721.01277 | AM8: 10711.24634 | AN8: 10696.01313 | AO8: 10681.49867 | AP8: 10672.58931 | AQ8: 10672.79782
A9: 4 | B9: SWITCHGEAR | D9: 26976.31203 | E9: 26183.46219 | F9: 25509.1942 | G9: 24925.92151 | H9: 24418.88096 | I9: 23981.57823 | J9: 23612.65132 | K9: 23313.75115 | L9: 23088.13031 | M9: 22939.70872 | N9: 22872.44712 | O9: 22889.90644 | P9: 22994.90668 | Q9: 23189.22721 | R9: 23473.31555 | S9: 23845.99452 | T9: 24304.18037 | U9: 24842.6442 | V9: 25453.86425 | W9: 26128.02398 | X9: 3976.749953 | Y9: 3948.993372 | Z9: 3926.031915 | AA9: 3906.619482 | AB9: 3890.507582 | AC9: 3878.0329 | AD9: 3869.835107 | AE9: 3866.671627 | AF9: 3869.302414 | AG9: 3878.423499 | AH9: 3894.632885 | AI9: 3918.416358 | AJ9: 3950.144016 | AK9: 3990.070954 | AL9: 4038.337766 | AM9: 4094.968452 | AN9: 4159.864976 | AO9: 4232.79923 | AP9: 4313.40437 | AQ9: 4401.168506
A10: 5 | B10: TRANSFORMERS | D10: 18475.18281 | E10: 18682.91677 | F10: 19012.48564 | G10: 19425.92922 | H10: 19895.21952 | I10: 20399.97038 | J10: 20925.94764 | K10: 21464.00821 | L10: 22009.23237 | M10: 22560.12613 | N10: 23117.85834 | O10: 23685.55459 | P10: 24267.69119 | Q10: 24869.62169 | R10: 25497.23784 | S10: 26156.73139 | T10: 26854.39924 | U10: 27596.42834 | V10: 28388.61039 | W10: 29235.96404 | X10: 1422.326479 | Y10: 1428.541296 | Z10: 1439.124573 | AA10: 1452.633797 | AB10: 1467.992599 | AC10: 1484.448103 | AD10: 1501.538568 | AE10: 1519.063159 | AF10: 1537.048463 | AG10: 1555.709281 | AH10: 1575.403953 | AI10: 1596.586442 | AJ10: 1619.758443 | AK10: 1645.424706 | AL10: 1674.053945 | AM10: 1706.046591 | AN10: 1741.709571 | AO10: 1781.237695 | AP10: 1824.700991 | AQ10: 1872.037459
A11: 6 | B11: UNDERGROUND CABLES | D11: 3254.4824 | E11: 3485.896489 | F11: 3773.493639 | G11: 4114.015159 | H11: 4506.472528 | I11: 4952.050307 | J11: 5453.980484 | K11: 6017.371891 | L11: 6648.976776 | M11: 7356.883255 | N11: 8150.13463 | O11: 9038.290829 | P11: 10030.96006 | Q11: 11137.33751 | R11: 12365.79078 | S11: 13723.5291 | T11: 15216.38447 | U11: 16848.72161 | V11: 18623.47866 | W11: 20542.32704 | X11: 4.404425443 | Y11: 4.787139126 | Z11: 5.246183672 | AA11: 5.780180865 | AB11: 6.390832655 | AC11: 7.082903054 | AD11: 7.864139569 | AE11: 8.745089958 | AF11: 9.738777684 | AG11: 10.8602188 | AH11: 12.12578888 | AI11: 13.55247539 | AJ11: 15.15707276 | AK11: 16.95539078 | AL11: 18.96154916 | AM11: 21.18742288 | AN11: 23.64228575 | AO11: 26.33267629 | AP11: 29.26248446 | AQ11: 32.43323324
A12: 7 | B12: POLE TOP STRUCTURES | D12: 45271.25167 | E12: 44718.39495 | F12: 44251.87294 | G12: 43858.28704 | H12: 43530.72411 | I12: 43266.13962 | J12: 43063.46778 | K12: 42922.36708 | L12: 42842.47387 | M12: 42823.025 | N12: 42862.7168 | O12: 42959.68732 | P12: 43111.53473 | Q12: 43315.31491 | R12: 43567.48928 | S12: 43863.81944 | T12: 44199.22462 | U12: 44567.6311 | V12: 44961.84882 | W12: 45373.51043 | X12: 19204.23339 | Y12: 18939.06611 | Z12: 18707.10956 | AA12: 18503.97278 | AB12: 18328.1021 | AC12: 18179.61592 | AD12: 18059.44798 | AE12: 17968.75968 | AF12: 17908.56868 | AG12: 17879.53705 | AH12: 17881.86621 | AI12: 17915.25421 | AJ12: 17978.88187 | AK12: 18071.40576 | AL12: 18190.94679 | AM12: 18335.07253 | AN12: 18500.77765 | AO12: 18684.47191 | AP12: 18881.98611 | AQ12: 19088.60672
A13: 8 | B13: PUBLIC LIGHTING | D13: 6236.34094 | E13: 5003.272856 | F13: 4907.947379 | G13: 5244.807509 | H13: 5822.364769 | I13: 6491.256281 | J13: 7100.253163 | K13: 7526.891818 | L13: 7721.164185 | M13: 7723.680734 | N13: 7642.083974 | O13: 7597.881758 | P13: 7673.703241 | Q13: 7887.313112 | R13: 8199.346405 | S13: 8542.76623 | T13: 8855.169105 | U13: 9100.113309 | V13: 9273.131842 | W13: 9395.395123 | X13: 14314.77059 | Y13: 10582.31303 | Z13: 10265.87049 | AA13: 11223.06818 | AB13: 12869.92839 | AC13: 14753.27322 | AD13: 16416.4618 | AE13: 17491.03052 | AF13: 17827.87499 | AG13: 17551.42769 | AH13: 16987.93191 | AI13: 16504.64935 | AJ13: 16350.64639 | AK13: 16578.68062 | AL13: 17069.14361 | AM13: 17619.67521 | AN13: 18043.22358 | AO13: 18232.58787 | AP13: 18178.248 | AQ13: 17948.52547
A14: 9 | B14: SCADA, NETWORK CONTROL AND PROTECTION SYSTEMS | D14: 4953.801767 | E14: 5234.692719 | F14: 5489.56468 | G14: 5725.550503 | H14: 5942.646495 | I14: 6134.63328 | J14: 6303.788011 | K14: 6467.596627 | L14: 6650.2567 | M14: 6867.412771 | N14: 7117.424862 | O14: 7384.278289 | P14: 7647.087695 | Q14: 7888.464519 | R14: 8097.927552 | S14: 8271.096516 | T14: 8407.22654 | U14: 8507.146197 | V14: 8572.434054 | W14: 8605.655029 | X14: 110.9842014 | Y14: 118.3084344 | Z14: 125.6882829 | AA14: 132.757539 | AB14: 138.6024135 | AC14: 141.9980967 | AD14: 142.5152882 | AE14: 141.0386267 | AF14: 139.2153166 | AG14: 138.3993418 | AH14: 138.9894508 | AI14: 140.5252571 | AJ14: 142.2329059 | AK14: 143.5227368 | AL14: 144.1847133 | AM14: 144.3186091 | AN14: 144.1551801 | AO14: 143.8988533 | AP14: 143.6512799 | AQ14: 143.415378
A15: 10 | B15: OTHER | D15: 6486.808175 | E15: 7015.728712 | F15: 7576.872427 | G15: 8159.638801 | H15: 8750.187752 | I15: 9332.503168 | J15: 9889.931923 | K15: 10406.91575 | L15: 10870.57832 | M15: 11271.87905 | N15: 11606.17965 | O15: 11873.23545 | P15: 12076.75881 | Q15: 12223.76181 | R15: 12323.86302 | S15: 12388.66462 | T15: 12431.2162 | U15: 12465.51767 | V15: 12505.99627 | W15: 12566.91556 | X15: 6001.859446 | Y15: 6375.28077 | Z15: 6822.969907 | AA15: 7350.79918 | AB15: 7961.483762 | AC15: 8654.020977 | AD15: 9423.409299 | AE15: 10260.70951 | AF15: 11153.47433 | AG15: 12086.53052 | AH15: 13043.05378 | AI15: 14005.83768 | AJ15: 14958.62821 | AK15: 15887.38098 | AL15: 16781.30101 | AM15: 17633.54743 | AN15: 18441.52411 | AO15: 19206.72795 | AP15: 19934.18153 | AQ15: 20631.52752
C18: Total | D18: =IFERROR(SUM(D$6:D$17),"") -> 195697.6665 | E18: =IFERROR(SUM(E$6:E$17),"") -> 200966.5816 | F18: 208549.8967 | G18: 217606.2285 | H18: 227834.6137 | I18: 238995.6958 | J18: 250877.1704 | K18: 263327.1783 | L18: 276285.9226 | M18: 289784.7434 | N18: 303909.4778 | O18: 318745.4785 | P18: 334329.5913 | Q18: 350628.1363 | R18: 367544.437 | S18: 384944.907 | T18: 402687.4826 | U18: 420640.6139 | V18: 438689.2081 | W18: 456730.1821
A20: ID | B20: Asset group | C20: Asset category
A21: =IFERROR('Historical scenario - input'!A6,"") -> 1 | B21: =IFERROR('Historical scenario - input'!B6,"") -> OVERHEAD CONDUCTORS | C21: =IFERROR('Historical scenario - input'!C6,"") -> ˂ = 1 kV | D21: =IFERROR(repcalc('Historical scenario - input'!$CV6:$GH6,'Historical scenario - input'!$G6,'Historical scenario - input'!$E6,'Historical scenario - input'!$F6,20,TRUE,TRUE),"") -> 2079.350874 | E21: 2479.742805 | F21: 2943.084057 | G21: 3476.03566 | H21: 4085.202791 | I21: 4776.934495 | J21: 5557.094882 | K21: 6430.811279 | L21: 7402.206726 | M21: 8474.125668 | N21: 9647.862841 | O21: 10922.90597 | P21: 12296.70299 | Q21: 13764.46428 | R21: 15319.00957 | S21: 16950.66845 | T21: 18647.24233 | U21: 20394.03426 | V21: 22173.95232 | W21: 23967.69039 | X21: =IFERROR(IF(OR(D21="",'Historical scenario - input'!$D6=""),"",D21/'Historical scenario - input'!$D6),"") -> 38.54984488 | Y21: =IFERROR(IF(OR(E21="",'Historical scenario - input'!$D6=""),"",E21/'Historical scenario - input'!$D6),"") -> 45.97285705 | Z21: =IFERROR(IF(OR(F21="",'Historical scenario - input'!$D6=""),"",F21/'Historical scenario - input'!$D6),"") -> 54.56290965 | AA21: =IFERROR(IF(OR(G21="",'Historical scenario - input'!$D6=""),"",G21/'Historical scenario - input'!$D6),"") -> 64.44349396 | AB21: =IFERROR(IF(OR(H21="",'Historical scenario - input'!$D6=""),"",H21/'Historical scenario - input'!$D6),"") -> 75.73706576 | AC21: =IFERROR(IF(OR(I21="",'Historical scenario - input'!$D6=""),"",I21/'Historical scenario - input'!$D6),"") -> 88.56133234 | AD21: =IFERROR(IF(OR(J21="",'Historical scenario - input'!$D6=""),"",J21/'Historical scenario - input'!$D6),"") -> 103.0250105 | AE21: =IFERROR(IF(OR(K21="",'Historical scenario - input'!$D6=""),"",K21/'Historical scenario - input'!$D6),"") -> 119.2231577 | AF21: =IFERROR(IF(OR(L21="",'Historical scenario - input'!$D6=""),"",L21/'Historical scenario - input'!$D6),"") -> 137.2322125 | AG21: =IFERROR(IF(OR(M21="",'Historical scenario - input'!$D6=""),"",M21/'Historical scenario - input'!$D6),"") -> 157.1049091 | AH21: =IFERROR(IF(OR(N21="",'Historical scenario - input'!$D6=""),"",N21/'Historical scenario - input'!$D6),"") -> 178.865251 | AI21: =IFERROR(IF(OR(O21="",'Historical scenario - input'!$D6=""),"",O21/'Historical scenario - input'!$D6),"") -> 202.503741 | AJ21: =IFERROR(IF(OR(P21="",'Historical scenario - input'!$D6=""),"",P21/'Historical scenario - input'!$D6),"") -> 227.9730655 | AK21: =IFERROR(IF(OR(Q21="",'Historical scenario - input'!$D6=""),"",Q21/'Historical scenario - input'!$D6),"") -> 255.1844278 | AL21: =IFERROR(IF(OR(R21="",'Historical scenario - input'!$D6=""),"",R21/'Historical scenario - input'!$D6),"") -> 284.0047103 | AM21: =IFERROR(IF(OR(S21="",'Historical scenario - input'!$D6=""),"",S21/'Historical scenario - input'!$D6),"") -> 314.25463 | AN21: =IFERROR(IF(OR(T21="",'Historical scenario - input'!$D6=""),"",T21/'Historical scenario - input'!$D6),"") -> 345.7080324 | AO21: =IFERROR(IF(OR(U21="",'Historical scenario - input'!$D6=""),"",U21/'Historical scenario - input'!$D6),"") -> 378.0924456 | AP21: =IFERROR(IF(OR(V21="",'Historical scenario - input'!$D6=""),"",V21/'Historical scenario - input'!$D6),"") -> 411.0909963 | AQ21: =IFERROR(IF(OR(W21="",'Historical scenario - input'!$D6=""),"",W21/'Historical scenario - input'!$D6),"") -> 444.3457612
A22: =IFERROR('Historical scenario - input'!A7,"") -> 1 | B22: =IFERROR('Historical scenario - input'!B7,"") -> OVERHEAD CONDUCTORS | C22: =IFERROR('Historical scenario - input'!C7,"") -> > 1 kV & < = 11 kV | D22: =IFERROR(repcalc('Historical scenario - input'!$CV7:$GH7,'Historical scenario - input'!$G7,'Historical scenario - input'!$E7,'Historical scenario - input'!$F7,20,TRUE,TRUE),"") -> 6625.401611 | E22: 7897.934292 | F22: 9374.877971 | G22: 11079.63611 | H22: 13035.68769 | I22: 15265.76588 | J22: 17790.87032 | K22: 20629.13582 | L22: 23794.5959 | M22: 27295.89525 | N22: 31135.01885 | O22: 35306.11593 | P22: 39794.50186 | Q22: 44575.92045 | R22: 49616.14137 | S22: 54870.95235 | T22: 60286.58553 | U22: 65800.59144 | V22: 71343.14578 | W22: 76838.74567 | X22: =IFERROR(IF(OR(D22="",'Historical scenario - input'!$D7=""),"",D22/'Historical scenario - input'!$D7),"") -> 95.89559717 | Y22: =IFERROR(IF(OR(E22="",'Historical scenario - input'!$D7=""),"",E22/'Historical scenario - input'!$D7),"") -> 114.3141457 | Z22: =IFERROR(IF(OR(F22="",'Historical scenario - input'!$D7=""),"",F22/'Historical scenario - input'!$D7),"") -> 135.6913247 | AA22: =IFERROR(IF(OR(G22="",'Historical scenario - input'!$D7=""),"",G22/'Historical scenario - input'!$D7),"") -> 160.3658742 | AB22: =IFERROR(IF(OR(H22="",'Historical scenario - input'!$D7=""),"",H22/'Historical scenario - input'!$D7),"") -> 188.6776273 | AC22: =IFERROR(IF(OR(I22="",'Historical scenario - input'!$D7=""),"",I22/'Historical scenario - input'!$D7),"") -> 220.9556222 | AD22: =IFERROR(IF(OR(J22="",'Historical scenario - input'!$D7=""),"",J22/'Historical scenario - input'!$D7),"") -> 257.5038064 | AE22: =IFERROR(IF(OR(K22="",'Historical scenario - input'!$D7=""),"",K22/'Historical scenario - input'!$D7),"") -> 298.5846617 | AF22: =IFERROR(IF(OR(L22="",'Historical scenario - input'!$D7=""),"",L22/'Historical scenario - input'!$D7),"") -> 344.4013084 | AG22: =IFERROR(IF(OR(M22="",'Historical scenario - input'!$D7=""),"",M22/'Historical scenario - input'!$D7),"") -> 395.078869 | AH22: =IFERROR(IF(OR(N22="",'Historical scenario - input'!$D7=""),"",N22/'Historical scenario - input'!$D7),"") -> 450.6460741 | AI22: =IFERROR(IF(OR(O22="",'Historical scenario - input'!$D7=""),"",O22/'Historical scenario - input'!$D7),"") -> 511.0182401 | AJ22: =IFERROR(IF(OR(P22="",'Historical scenario - input'!$D7=""),"",P22/'Historical scenario - input'!$D7),"") -> 575.9828224 | AK22: =IFERROR(IF(OR(Q22="",'Historical scenario - input'!$D7=""),"",Q22/'Historical scenario - input'!$D7),"") -> 645.188739 | AL22: =IFERROR(IF(OR(R22="",'Historical scenario - input'!$D7=""),"",R22/'Historical scenario - input'!$D7),"") -> 718.1405423 | AM22: =IFERROR(IF(OR(S22="",'Historical scenario - input'!$D7=""),"",S22/'Historical scenario - input'!$D7),"") -> 794.198307 | AN22: =IFERROR(IF(OR(T22="",'Historical scenario - input'!$D7=""),"",T22/'Historical scenario - input'!$D7),"") -> 872.583801 | AO22: =IFERROR(IF(OR(U22="",'Historical scenario - input'!$D7=""),"",U22/'Historical scenario - input'!$D7),"") -> 952.393135 | AP22: =IFERROR(IF(OR(V22="",'Historical scenario - input'!$D7=""),"",V22/'Historical scenario - input'!$D7),"") -> 1032.615677 | AQ22: =IFERROR(IF(OR(W22="",'Historical scenario - input'!$D7=""),"",W22/'Historical scenario - input'!$D7),"") -> 1112.158603
A23: =IFERROR('Historical scenario - input'!A8,"") -> 1 | B23: =IFERROR('Historical scenario - input'!B8,"") -> OVERHEAD CONDUCTORS | C23: =IFERROR('Historical scenario - input'!C8,"") -> ˃ 11 kV & < = 22 kV ; SWER | D23: =IFERROR(repcalc('Historical scenario - input'!$CV8:$GH8,'Historical scenario - input'!$G8,'Historical scenario - input'!$E8,'Historical scenario - input'!$F8,20,TRUE,TRUE),"") -> 51.10891198 | E23: 66.11712629 | F23: 84.81818841 | G23: 107.909073 | H23: 136.1638312 | I23: 170.4301668 | J23: 211.6235277 | K23: 260.7188999 | L23: 318.740756 | M23: 386.7518998 | N23: 465.8422362 | O23: 557.1187502 | P23: 661.6981641 | Q23: 780.703817 | R23: 915.2682453 | S23: 1066.542697 | T23: 1235.714378 | U23: 1424.031595 | V23: 1632.836149 | W23: 1863.601371 | X23: =IFERROR(IF(OR(D23="",'Historical scenario - input'!$D8=""),"",D23/'Historical scenario - input'!$D8),"") -> 1.337219007 | Y23: =IFERROR(IF(OR(E23="",'Historical scenario - input'!$D8=""),"",E23/'Historical scenario - input'!$D8),"") -> 1.729895522 | Z23: =IFERROR(IF(OR(F23="",'Historical scenario - input'!$D8=""),"",F23/'Historical scenario - input'!$D8),"") -> 2.2191921 | AA23: =IFERROR(IF(OR(G23="",'Historical scenario - input'!$D8=""),"",G23/'Historical scenario - input'!$D8),"") -> 2.823344459 | AB23: =IFERROR(IF(OR(H23="",'Historical scenario - input'!$D8=""),"",H23/'Historical scenario - input'!$D8),"") -> 3.562604957 | AC23: =IFERROR(IF(OR(I23="",'Historical scenario - input'!$D8=""),"",I23/'Historical scenario - input'!$D8),"") -> 4.459153004 | AD23: =IFERROR(IF(OR(J23="",'Historical scenario - input'!$D8=""),"",J23/'Historical scenario - input'!$D8),"") -> 5.536940479 | AE23: =IFERROR(IF(OR(K23="",'Historical scenario - input'!$D8=""),"",K23/'Historical scenario - input'!$D8),"") -> 6.821477017 | AF23: =IFERROR(IF(OR(L23="",'Historical scenario - input'!$D8=""),"",L23/'Historical scenario - input'!$D8),"") -> 8.339567029 | AG23: =IFERROR(IF(OR(M23="",'Historical scenario - input'!$D8=""),"",M23/'Historical scenario - input'!$D8),"") -> 10.11901783 | AH23: =IFERROR(IF(OR(N23="",'Historical scenario - input'!$D8=""),"",N23/'Historical scenario - input'!$D8),"") -> 12.1883458 | AI23: =IFERROR(IF(OR(O23="",'Historical scenario - input'!$D8=""),"",O23/'Historical scenario - input'!$D8),"") -> 14.57651422 | AJ23: =IFERROR(IF(OR(P23="",'Historical scenario - input'!$D8=""),"",P23/'Historical scenario - input'!$D8),"") -> 17.31274112 | AK23: =IFERROR(IF(OR(Q23="",'Historical scenario - input'!$D8=""),"",Q23/'Historical scenario - input'!$D8),"") -> 20.42641768 | AL23: =IFERROR(IF(OR(R23="",'Historical scenario - input'!$D8=""),"",R23/'Historical scenario - input'!$D8),"") -> 23.94717569 | AM23: =IFERROR(IF(OR(S23="",'Historical scenario - input'!$D8=""),"",S23/'Historical scenario - input'!$D8),"") -> 27.90513652 | AN23: =IFERROR(IF(OR(T23="",'Historical scenario - input'!$D8=""),"",T23/'Historical scenario - input'!$D8),"") -> 32.33136237 | AO23: =IFERROR(IF(OR(U23="",'Historical scenario - input'!$D8=""),"",U23/'Historical scenario - input'!$D8),"") -> 37.25851406 | AP23: =IFERROR(IF(OR(V23="",'Historical scenario - input'!$D8=""),"",V23/'Historical scenario - input'!$D8),"") -> 42.72169862 | AQ23: =IFERROR(IF(OR(W23="",'Historical scenario - input'!$D8=""),"",W23/'Historical scenario - input'!$D8),"") -> 48.75946442
A24: =IFERROR('Historical scenario - input'!A9,"") -> 1 | B24: =IFERROR('Historical scenario - input'!B9,"") -> OVERHEAD CONDUCTORS | C24: =IFERROR('Historical scenario - input'!C9,"") -> ˃ 11 kV & < = 22 kV ; Single-Phase | D24: =IFERROR(repcalc('Historical scenario - input'!$CV9:$GH9,'Historical scenario - input'!$G9,'Historical scenario - input'!$E9,'Historical scenario - input'!$F9,20,TRUE,TRUE),"") -> 706.7917417 | E24: 865.2190604 | F24: 1055.918443 | G24: 1284.505496 | H24: 1557.242949 | I24: 1881.006511 | J24: 2263.211835 | K24: 2711.695735 | L24: 3234.54606 | M24: 3839.876617 | N24: 4535.546366 | O24: 5328.825542 | P24: 6226.015464 | Q24: 7232.03315 | R24: 8349.976341 | S24: 9580.688626 | T24: 10922.34786 | U24: 12370.10337 | V24: 13915.78848 | W24: 15547.73397 | X24: =IFERROR(IF(OR(D24="",'Historical scenario - input'!$D9=""),"",D24/'Historical scenario - input'!$D9),"") -> 11.91316835 | Y24: =IFERROR(IF(OR(E24="",'Historical scenario - input'!$D9=""),"",E24/'Historical scenario - input'!$D9),"") -> 14.58350419 | Z24: =IFERROR(IF(OR(F24="",'Historical scenario - input'!$D9=""),"",F24/'Historical scenario - input'!$D9),"") -> 17.79779451 | AA24: =IFERROR(IF(OR(G24="",'Historical scenario - input'!$D9=""),"",G24/'Historical scenario - input'!$D9),"") -> 21.65069189 | AB24: =IFERROR(IF(OR(H24="",'Historical scenario - input'!$D9=""),"",H24/'Historical scenario - input'!$D9),"") -> 26.24775635 | AC24: =IFERROR(IF(OR(I24="",'Historical scenario - input'!$D9=""),"",I24/'Historical scenario - input'!$D9),"") -> 31.70487984 | AD24: =IFERROR(IF(OR(J24="",'Historical scenario - input'!$D9=""),"",J24/'Historical scenario - input'!$D9),"") -> 38.14705523 | AE24: =IFERROR(IF(OR(K24="",'Historical scenario - input'!$D9=""),"",K24/'Historical scenario - input'!$D9),"") -> 45.70637419 | AF24: =IFERROR(IF(OR(L24="",'Historical scenario - input'!$D9=""),"",L24/'Historical scenario - input'!$D9),"") -> 54.51915958 | AG24: =IFERROR(IF(OR(M24="",'Historical scenario - input'!$D9=""),"",M24/'Historical scenario - input'!$D9),"") -> 64.72217189 | AH24: =IFERROR(IF(OR(N24="",'Historical scenario - input'!$D9=""),"",N24/'Historical scenario - input'!$D9),"") -> 76.44787601 | AI24: =IFERROR(IF(OR(O24="",'Historical scenario - input'!$D9=""),"",O24/'Historical scenario - input'!$D9),"") -> 89.81881376 | AJ24: =IFERROR(IF(OR(P24="",'Historical scenario - input'!$D9=""),"",P24/'Historical scenario - input'!$D9),"") -> 104.9411956 | AK24: =IFERROR(IF(OR(Q24="",'Historical scenario - input'!$D9=""),"",Q24/'Historical scenario - input'!$D9),"") -> 121.8978992 | AL24: =IFERROR(IF(OR(R24="",'Historical scenario - input'!$D9=""),"",R24/'Historical scenario - input'!$D9),"") -> 140.7411378 | AM24: =IFERROR(IF(OR(S24="",'Historical scenario - input'!$D9=""),"",S24/'Historical scenario - input'!$D9),"") -> 161.4851304 | AN24: =IFERROR(IF(OR(T24="",'Historical scenario - input'!$D9=""),"",T24/'Historical scenario - input'!$D9),"") -> 184.0991641 | AO24: =IFERROR(IF(OR(U24="",'Historical scenario - input'!$D9=""),"",U24/'Historical scenario - input'!$D9),"") -> 208.5014798 | AP24: =IFERROR(IF(OR(V24="",'Historical scenario - input'!$D9=""),"",V24/'Historical scenario - input'!$D9),"") -> 234.5544256 | AQ24: =IFERROR(IF(OR(W24="",'Historical scenario - input'!$D9=""),"",W24/'Historical scenario - input'!$D9),"") -> 262.0613136
A25: =IFERROR('Historical scenario - input'!A10,"") -> 1 | B25: =IFERROR('Historical scenario - input'!B10,"") -> OVERHEAD CONDUCTORS | C25: =IFERROR('Historical scenario - input'!C10,"") -> ˃ 11 kV & < = 22 kV ; Multiple-Phase | D25: =IFERROR(repcalc('Historical scenario - input'!$CV10:$GH10,'Historical scenario - input'!$G10,'Historical scenario - input'!$E10,'Historical scenario - input'!$F10,20,TRUE,TRUE),"") -> 1416.578252 | E25: 1687.071948 | F25: 1996.931916 | G25: 2350.066278 | H25: 2750.677891 | I25: 3203.315973 | J25: 3712.927279 | K25: 4284.898133 | L25: 4925.076476 | M25: 5639.761479 | N25: 6435.647558 | O25: 7319.71007 | P25: 8299.021866 | Q25: 9380.493132 | R25: 10570.53181 | S25: 11874.62784 | T25: 13296.87159 | U25: 14839.42388 | V25: 16501.96271 | W25: 18281.13772 | X25: =IFERROR(IF(OR(D25="",'Historical scenario - input'!$D10=""),"",D25/'Historical scenario - input'!$D10),"") -> 16.93055065 | Y25: =IFERROR(IF(OR(E25="",'Historical scenario - input'!$D10=""),"",E25/'Historical scenario - input'!$D10),"") -> 20.16341633 | Z25: =IFERROR(IF(OR(F25="",'Historical scenario - input'!$D10=""),"",F25/'Historical scenario - input'!$D10),"") -> 23.86677678 | AA25: =IFERROR(IF(OR(G25="",'Historical scenario - input'!$D10=""),"",G25/'Historical scenario - input'!$D10),"") -> 28.08734081 | AB25: =IFERROR(IF(OR(H25="",'Historical scenario - input'!$D10=""),"",H25/'Historical scenario - input'!$D10),"") -> 32.87533976 | AC25: =IFERROR(IF(OR(I25="",'Historical scenario - input'!$D10=""),"",I25/'Historical scenario - input'!$D10),"") -> 38.28514466 | AD25: =IFERROR(IF(OR(J25="",'Historical scenario - input'!$D10=""),"",J25/'Historical scenario - input'!$D10),"") -> 44.37587775 | AE25: =IFERROR(IF(OR(K25="",'Historical scenario - input'!$D10=""),"",K25/'Historical scenario - input'!$D10),"") -> 51.21191487 | AF25: =IFERROR(IF(OR(L25="",'Historical scenario - input'!$D10=""),"",L25/'Historical scenario - input'!$D10),"") -> 58.86314899 | AG25: =IFERROR(IF(OR(M25="",'Historical scenario - input'!$D10=""),"",M25/'Historical scenario - input'!$D10),"") -> 67.40486607 | AH25: =IFERROR(IF(OR(N25="",'Historical scenario - input'!$D10=""),"",N25/'Historical scenario - input'!$D10),"") -> 76.91707588 | AI25: =IFERROR(IF(OR(O25="",'Historical scenario - input'!$D10=""),"",O25/'Historical scenario - input'!$D10),"") -> 87.48314601 | AJ25: =IFERROR(IF(OR(P25="",'Historical scenario - input'!$D10=""),"",P25/'Historical scenario - input'!$D10),"") -> 99.18760916 | AK25: =IFERROR(IF(OR(Q25="",'Historical scenario - input'!$D10=""),"",Q25/'Historical scenario - input'!$D10),"") -> 112.113054 | AL25: =IFERROR(IF(OR(R25="",'Historical scenario - input'!$D10=""),"",R25/'Historical scenario - input'!$D10),"") -> 126.3360664 | AM25: =IFERROR(IF(OR(S25="",'Historical scenario - input'!$D10=""),"",S25/'Historical scenario - input'!$D10),"") -> 141.9222608 | AN25: =IFERROR(IF(OR(T25="",'Historical scenario - input'!$D10=""),"",T25/'Historical scenario - input'!$D10),"") -> 158.9205238 | AO25: =IFERROR(IF(OR(U25="",'Historical scenario - input'!$D10=""),"",U25/'Historical scenario - input'!$D10),"") -> 177.3566812 | AP25: =IFERROR(IF(OR(V25="",'Historical scenario - input'!$D10=""),"",V25/'Historical scenario - input'!$D10),"") -> 197.2268846 | AQ25: =IFERROR(IF(OR(W25="",'Historical scenario - input'!$D10=""),"",W25/'Historical scenario - input'!$D10),"") -> 218.4910911
A26: =IFERROR('Historical scenario - input'!A11,"") -> 1 | B26: =IFERROR('Historical scenario - input'!B11,"") -> OVERHEAD CONDUCTORS | C26: =IFERROR('Historical scenario - input'!C11,"") -> > 22 kV & < = 66 kV | D26: =IFERROR(repcalc('Historical scenario - input'!$CV11:$GH11,'Historical scenario - input'!$G11,'Historical scenario - input'!$E11,'Historical scenario - input'!$F11,20,TRUE,TRUE),"") -> 11.67466963 | E26: 15.01197005 | F26: 19.17146725 | G26: 24.32075396 | H26: 30.65413215 | I26: 38.39587153 | J26: 47.80392795 | K26: 59.17425189 | L26: 72.84583943 | M26: 89.20669345 | N26: 108.7008667 | O26: 131.8367464 | P26: 159.1967069 | Q26: 191.4482012 | R26: 229.3562786 | S26: 273.7974047 | T26: 325.7743267 | U26: 386.4315678 | V26: 457.0709643 | W26: 539.1664791 | X26: =IFERROR(IF(OR(D26="",'Historical scenario - input'!$D11=""),"",D26/'Historical scenario - input'!$D11),"") -> 0.1355089465 | Y26: =IFERROR(IF(OR(E26="",'Historical scenario - input'!$D11=""),"",E26/'Historical scenario - input'!$D11),"") -> 0.1742452943 | Z26: =IFERROR(IF(OR(F26="",'Historical scenario - input'!$D11=""),"",F26/'Historical scenario - input'!$D11),"") -> 0.2225249546 | AA26: =IFERROR(IF(OR(G26="",'Historical scenario - input'!$D11=""),"",G26/'Historical scenario - input'!$D11),"") -> 0.2822931911 | AB26: =IFERROR(IF(OR(H26="",'Historical scenario - input'!$D11=""),"",H26/'Historical scenario - input'!$D11),"") -> 0.3558052847 | AC26: =IFERROR(IF(OR(I26="",'Historical scenario - input'!$D11=""),"",I26/'Historical scenario - input'!$D11),"") -> 0.445664354 | AD26: =IFERROR(IF(OR(J26="",'Historical scenario - input'!$D11=""),"",J26/'Historical scenario - input'!$D11),"") -> 0.5548645159 | AE26: =IFERROR(IF(OR(K26="",'Historical scenario - input'!$D11=""),"",K26/'Historical scenario - input'!$D11),"") -> 0.6868408944 | AF26: =IFERROR(IF(OR(L26="",'Historical scenario - input'!$D11=""),"",L26/'Historical scenario - input'!$D11),"") -> 0.8455282477 | AG26: =IFERROR(IF(OR(M26="",'Historical scenario - input'!$D11=""),"",M26/'Historical scenario - input'!$D11),"") -> 1.03543016 | AH26: =IFERROR(IF(OR(N26="",'Historical scenario - input'!$D11=""),"",N26/'Historical scenario - input'!$D11),"") -> 1.261700793 | AI26: =IFERROR(IF(OR(O26="",'Historical scenario - input'!$D11=""),"",O26/'Historical scenario - input'!$D11),"") -> 1.530241041 | AJ26: =IFERROR(IF(OR(P26="",'Historical scenario - input'!$D11=""),"",P26/'Historical scenario - input'!$D11),"") -> 1.847810577 | AK26: =IFERROR(IF(OR(Q26="",'Historical scenario - input'!$D11=""),"",Q26/'Historical scenario - input'!$D11),"") -> 2.222156589 | AL26: =IFERROR(IF(OR(R26="",'Historical scenario - input'!$D11=""),"",R26/'Historical scenario - input'!$D11),"") -> 2.662159072 | AM26: =IFERROR(IF(OR(S26="",'Historical scenario - input'!$D11=""),"",S26/'Historical scenario - input'!$D11),"") -> 3.177991243 | AN26: =IFERROR(IF(OR(T26="",'Historical scenario - input'!$D11=""),"",T26/'Historical scenario - input'!$D11),"") -> 3.781292078 | AO26: =IFERROR(IF(OR(U26="",'Historical scenario - input'!$D11=""),"",U26/'Historical scenario - input'!$D11),"") -> 4.485346163 | AP26: =IFERROR(IF(OR(V26="",'Historical scenario - input'!$D11=""),"",V26/'Historical scenario - input'!$D11),"") -> 5.305264027 | AQ26: =IFERROR(IF(OR(W26="",'Historical scenario - input'!$D11=""),"",W26/'Historical scenario - input'!$D11),"") -> 6.258154094
A27: =IFERROR('Historical scenario - input'!A12,"") -> 1 | B27: =IFERROR('Historical scenario - input'!B12,"") -> OVERHEAD CONDUCTORS | C27: =IFERROR('Historical scenario - input'!C12,"") -> > 66 kV & < = 132 kV | D27: =IFERROR(repcalc('Historical scenario - input'!$CV12:$GH12,'Historical scenario - input'!$G12,'Historical scenario - input'!$E12,'Historical scenario - input'!$F12,20,TRUE,TRUE),"") -> 7.291295621 | E27: 9.249576458 | F27: 11.64312544 | G27: 14.54553589 | H27: 18.03774968 | I27: 22.20774058 | J27: 27.1498926 | K27: 32.96399916 | L27: 39.75380059 | M27: 47.62497364 | N27: 56.68249132 | O27: 67.02728822 | P27: 78.75219852 | Q27: 91.9371841 | R27: 106.6439393 | S27: 122.9100446 | T27: 140.7429398 | U27: 160.1140884 | V27: 180.9538004 | W27: 203.1472502 | X27: =IFERROR(IF(OR(D27="",'Historical scenario - input'!$D12=""),"",D27/'Historical scenario - input'!$D12),"") -> 0.4136584979 | Y27: =IFERROR(IF(OR(E27="",'Historical scenario - input'!$D12=""),"",E27/'Historical scenario - input'!$D12),"") -> 0.5247580269 | Z27: =IFERROR(IF(OR(F27="",'Historical scenario - input'!$D12=""),"",F27/'Historical scenario - input'!$D12),"") -> 0.6605517084 | AA27: =IFERROR(IF(OR(G27="",'Historical scenario - input'!$D12=""),"",G27/'Historical scenario - input'!$D12),"") -> 0.825214727 | AB27: =IFERROR(IF(OR(H27="",'Historical scenario - input'!$D12=""),"",H27/'Historical scenario - input'!$D12),"") -> 1.023339174 | AC27: =IFERROR(IF(OR(I27="",'Historical scenario - input'!$D12=""),"",I27/'Historical scenario - input'!$D12),"") -> 1.259916082 | AD27: =IFERROR(IF(OR(J27="",'Historical scenario - input'!$D12=""),"",J27/'Historical scenario - input'!$D12),"") -> 1.540300157 | AE27: =IFERROR(IF(OR(K27="",'Historical scenario - input'!$D12=""),"",K27/'Historical scenario - input'!$D12),"") -> 1.870153 | AF27: =IFERROR(IF(OR(L27="",'Historical scenario - input'!$D12=""),"",L27/'Historical scenario - input'!$D12),"") -> 2.25536013 | AG27: =IFERROR(IF(OR(M27="",'Historical scenario - input'!$D12=""),"",M27/'Historical scenario - input'!$D12),"") -> 2.701916927 | AH27: =IFERROR(IF(OR(N27="",'Historical scenario - input'!$D12=""),"",N27/'Historical scenario - input'!$D12),"") -> 3.215778846 | AI27: =IFERROR(IF(OR(O27="",'Historical scenario - input'!$D12=""),"",O27/'Historical scenario - input'!$D12),"") -> 3.802672228 | AJ27: =IFERROR(IF(OR(P27="",'Historical scenario - input'!$D12=""),"",P27/'Historical scenario - input'!$D12),"") -> 4.467863853 | AK27: =IFERROR(IF(OR(Q27="",'Historical scenario - input'!$D12=""),"",Q27/'Historical scenario - input'!$D12),"") -> 5.215890214 | AL27: =IFERROR(IF(OR(R27="",'Historical scenario - input'!$D12=""),"",R27/'Historical scenario - input'!$D12),"") -> 6.050251428 | AM27: =IFERROR(IF(OR(S27="",'Historical scenario - input'!$D12=""),"",S27/'Historical scenario - input'!$D12),"") -> 6.973079557 | AN27: =IFERROR(IF(OR(T27="",'Historical scenario - input'!$D12=""),"",T27/'Historical scenario - input'!$D12),"") -> 7.984796679 | AO27: =IFERROR(IF(OR(U27="",'Historical scenario - input'!$D12=""),"",U27/'Historical scenario - input'!$D12),"") -> 9.083783834 | AP27: =IFERROR(IF(OR(V27="",'Historical scenario - input'!$D12=""),"",V27/'Historical scenario - input'!$D12),"") -> 10.26608728 | AQ27: =IFERROR(IF(OR(W27="",'Historical scenario - input'!$D12=""),"",W27/'Historical scenario - input'!$D12),"") -> 11.5251926
A28: =IFERROR('Historical scenario - input'!A13,"") -> 2 | B28: =IFERROR('Historical scenario - input'!B13,"") -> POLES | C28: =IFERROR('Historical scenario - input'!C13,"") -> Staking of a wooden pole | D28: =IFERROR(repcalc('Historical scenario - input'!$CV13:$GH13,'Historical scenario - input'!$G13,'Historical scenario - input'!$E13,'Historical scenario - input'!$F13,20,TRUE,TRUE),"") -> 1334.340219 | E28: 1163.073133 | F28: 1014.038835 | G28: 883.9926856 | H28: 770.3867446 | I28: 671.1420087 | J28: 584.5127103 | K28: 509.0031058 | L28: 443.3138975 | M28: 386.3057126 | N28: 336.9730201 | O28: 294.4251125 | P28: 257.8724307 | Q28: 226.6172841 | R28: 200.0483492 | S28: 177.6384323 | T28: 158.9449647 | U28: 143.6125997 | V28: 131.3771194 | W28: 122.0696662 | X28: =IFERROR(IF(OR(D28="",'Historical scenario - input'!$D13=""),"",D28/'Historical scenario - input'!$D13),"") -> 866.0225067 | Y28: =IFERROR(IF(OR(E28="",'Historical scenario - input'!$D13=""),"",E28/'Historical scenario - input'!$D13),"") -> 754.8655849 | Z28: =IFERROR(IF(OR(F28="",'Historical scenario - input'!$D13=""),"",F28/'Historical scenario - input'!$D13),"") -> 658.1383376 | AA28: =IFERROR(IF(OR(G28="",'Historical scenario - input'!$D13=""),"",G28/'Historical scenario - input'!$D13),"") -> 573.7349071 | AB28: =IFERROR(IF(OR(H28="",'Historical scenario - input'!$D13=""),"",H28/'Historical scenario - input'!$D13),"") -> 500.0016115 | AC28: =IFERROR(IF(OR(I28="",'Historical scenario - input'!$D13=""),"",I28/'Historical scenario - input'!$D13),"") -> 435.5891222 | AD28: =IFERROR(IF(OR(J28="",'Historical scenario - input'!$D13=""),"",J28/'Historical scenario - input'!$D13),"") -> 379.3643895 | AE28: =IFERROR(IF(OR(K28="",'Historical scenario - input'!$D13=""),"",K28/'Historical scenario - input'!$D13),"") -> 330.3566357 | AF28: =IFERROR(IF(OR(L28="",'Historical scenario - input'!$D13=""),"",L28/'Historical scenario - input'!$D13),"") -> 287.7225818 | AG28: =IFERROR(IF(OR(M28="",'Historical scenario - input'!$D13=""),"",M28/'Historical scenario - input'!$D13),"") -> 250.7227444 | AH28: =IFERROR(IF(OR(N28="",'Historical scenario - input'!$D13=""),"",N28/'Historical scenario - input'!$D13),"") -> 218.7045068 | AI28: =IFERROR(IF(OR(O28="",'Historical scenario - input'!$D13=""),"",O28/'Historical scenario - input'!$D13),"") -> 191.0897763 | AJ28: =IFERROR(IF(OR(P28="",'Historical scenario - input'!$D13=""),"",P28/'Historical scenario - input'!$D13),"") -> 167.3661077 | AK28: =IFERROR(IF(OR(Q28="",'Historical scenario - input'!$D13=""),"",Q28/'Historical scenario - input'!$D13),"") -> 147.0806813 | AL28: =IFERROR(IF(OR(R28="",'Historical scenario - input'!$D13=""),"",R28/'Historical scenario - input'!$D13),"") -> 129.8367316 | AM28: =IFERROR(IF(OR(S28="",'Historical scenario - input'!$D13=""),"",S28/'Historical scenario - input'!$D13),"") -> 115.2920958 | AN28: =IFERROR(IF(OR(T28="",'Historical scenario - input'!$D13=""),"",T28/'Historical scenario - input'!$D13),"") -> 103.1595352 | AO28: =IFERROR(IF(OR(U28="",'Historical scenario - input'!$D13=""),"",U28/'Historical scenario - input'!$D13),"") -> 93.20842006 | AP28: =IFERROR(IF(OR(V28="",'Historical scenario - input'!$D13=""),"",V28/'Historical scenario - input'!$D13),"") -> 85.2672659 | AQ28: =IFERROR(IF(OR(W28="",'Historical scenario - input'!$D13=""),"",W28/'Historical scenario - input'!$D13),"") -> 79.22647975
A29: =IFERROR('Historical scenario - input'!A14,"") -> 2 | B29: =IFERROR('Historical scenario - input'!B14,"") -> POLES | C29: =IFERROR('Historical scenario - input'!C14,"") -> ˂ = 1 kV; Wood | D29: =IFERROR(repcalc('Historical scenario - input'!$CV14:$GH14,'Historical scenario - input'!$G14,'Historical scenario - input'!$E14,'Historical scenario - input'!$F14,20,TRUE,TRUE),"") -> 14782.87735 | E29: 15820.56677 | F29: 16942.00924 | G29: 18134.76999 | H29: 19385.66908 | I29: 20681.33152 | J29: 22008.60967 | K29: 23354.86659 | L29: 24708.12601 | M29: 26057.11011 | N29: 27391.19657 | O29: 28700.33274 | P29: 29974.94512 | Q29: 31205.87848 | R29: 32384.39067 | S29: 33502.21782 | T29: 34551.71289 | U29: 35526.04736 | V29: 36419.45557 | W29: 37227.49264 | X29: =IFERROR(IF(OR(D29="",'Historical scenario - input'!$D14=""),"",D29/'Historical scenario - input'!$D14),"") -> 2192.460354 | Y29: =IFERROR(IF(OR(E29="",'Historical scenario - input'!$D14=""),"",E29/'Historical scenario - input'!$D14),"") -> 2346.360901 | Z29: =IFERROR(IF(OR(F29="",'Historical scenario - input'!$D14=""),"",F29/'Historical scenario - input'!$D14),"") -> 2512.682929 | AA29: =IFERROR(IF(OR(G29="",'Historical scenario - input'!$D14=""),"",G29/'Historical scenario - input'!$D14),"") -> 2689.582229 | AB29: =IFERROR(IF(OR(H29="",'Historical scenario - input'!$D14=""),"",H29/'Historical scenario - input'!$D14),"") -> 2875.104074 | AC29: =IFERROR(IF(OR(I29="",'Historical scenario - input'!$D14=""),"",I29/'Historical scenario - input'!$D14),"") -> 3067.264805 | AD29: =IFERROR(IF(OR(J29="",'Historical scenario - input'!$D14=""),"",J29/'Historical scenario - input'!$D14),"") -> 3264.114489 | AE29: =IFERROR(IF(OR(K29="",'Historical scenario - input'!$D14=""),"",K29/'Historical scenario - input'!$D14),"") -> 3463.778927 | AF29: =IFERROR(IF(OR(L29="",'Historical scenario - input'!$D14=""),"",L29/'Historical scenario - input'!$D14),"") -> 3664.481914 | AG29: =IFERROR(IF(OR(M29="",'Historical scenario - input'!$D14=""),"",M29/'Historical scenario - input'!$D14),"") -> 3864.550823 | AH29: =IFERROR(IF(OR(N29="",'Historical scenario - input'!$D14=""),"",N29/'Historical scenario - input'!$D14),"") -> 4062.410253 | AI29: =IFERROR(IF(OR(O29="",'Historical scenario - input'!$D14=""),"",O29/'Historical scenario - input'!$D14),"") -> 4256.569285 | AJ29: =IFERROR(IF(OR(P29="",'Historical scenario - input'!$D14=""),"",P29/'Historical scenario - input'!$D14),"") -> 4445.608064 | AK29: =IFERROR(IF(OR(Q29="",'Historical scenario - input'!$D14=""),"",Q29/'Historical scenario - input'!$D14),"") -> 4628.168776 | AL29: =IFERROR(IF(OR(R29="",'Historical scenario - input'!$D14=""),"",R29/'Historical scenario - input'!$D14),"") -> 4802.954859 | AM29: =IFERROR(IF(OR(S29="",'Historical scenario - input'!$D14=""),"",S29/'Historical scenario - input'!$D14),"") -> 4968.740698 | AN29: =IFERROR(IF(OR(T29="",'Historical scenario - input'!$D14=""),"",T29/'Historical scenario - input'!$D14),"") -> 5124.392151 | AO29: =IFERROR(IF(OR(U29="",'Historical scenario - input'!$D14=""),"",U29/'Historical scenario - input'!$D14),"") -> 5268.896475 | AP29: =IFERROR(IF(OR(V29="",'Historical scenario - input'!$D14=""),"",V29/'Historical scenario - input'!$D14),"") -> 5401.398561 | AQ29: =IFERROR(IF(OR(W29="",'Historical scenario - input'!$D14=""),"",W29/'Historical scenario - input'!$D14),"") -> 5521.239183
A30: =IFERROR('Historical scenario - input'!A15,"") -> 2 | B30: =IFERROR('Historical scenario - input'!B15,"") -> POLES | C30: =IFERROR('Historical scenario - input'!C15,"") -> > 1 kV & < = 11 kV; Wood | D30: =IFERROR(repcalc('Historical scenario - input'!$CV15:$GH15,'Historical scenario - input'!$G15,'Historical scenario - input'!$E15,'Historical scenario - input'!$F15,20,TRUE,TRUE),"") -> 24226.43779 | E30: 26083.05095 | F30: 27898.38306 | G30: 29651.8723 | H30: 31325.25444 | I30: 32903.04673 | J30: 34372.84252 | K30: 35725.42129 | L30: 36954.69436 | M30: 38057.51918 | N30: 39033.42141 | O30: 39884.26522 | P30: 40613.90875 | Q30: 41227.87377 | R30: 41733.04919 | S30: 42137.43721 | T30: 42449.94084 | U30: 42680.18359 | V30: 42838.34609 | W30: 42935.00195 | X30: =IFERROR(IF(OR(D30="",'Historical scenario - input'!$D15=""),"",D30/'Historical scenario - input'!$D15),"") -> 3919.28757 | Y30: =IFERROR(IF(OR(E30="",'Historical scenario - input'!$D15=""),"",E30/'Historical scenario - input'!$D15),"") -> 4219.645425 | Z30: =IFERROR(IF(OR(F30="",'Historical scenario - input'!$D15=""),"",F30/'Historical scenario - input'!$D15),"") -> 4513.324943 | AA30: =IFERROR(IF(OR(G30="",'Historical scenario - input'!$D15=""),"",G30/'Historical scenario - input'!$D15),"") -> 4796.999688 | AB30: =IFERROR(IF(OR(H30="",'Historical scenario - input'!$D15=""),"",H30/'Historical scenario - input'!$D15),"") -> 5067.714925 | AC30: =IFERROR(IF(OR(I30="",'Historical scenario - input'!$D15=""),"",I30/'Historical scenario - input'!$D15),"") -> 5322.965892 | AD30: =IFERROR(IF(OR(J30="",'Historical scenario - input'!$D15=""),"",J30/'Historical scenario - input'!$D15),"") -> 5560.74548 | AE30: =IFERROR(IF(OR(K30="",'Historical scenario - input'!$D15=""),"",K30/'Historical scenario - input'!$D15),"") -> 5779.562015 | AF30: =IFERROR(IF(OR(L30="",'Historical scenario - input'!$D15=""),"",L30/'Historical scenario - input'!$D15),"") -> 5978.430487 | AG30: =IFERROR(IF(OR(M30="",'Historical scenario - input'!$D15=""),"",M30/'Historical scenario - input'!$D15),"") -> 6156.842503 | AH30: =IFERROR(IF(OR(N30="",'Historical scenario - input'!$D15=""),"",N30/'Historical scenario - input'!$D15),"") -> 6314.721325 | AI30: =IFERROR(IF(OR(O30="",'Historical scenario - input'!$D15=""),"",O30/'Historical scenario - input'!$D15),"") -> 6452.368536 | AJ30: =IFERROR(IF(OR(P30="",'Historical scenario - input'!$D15=""),"",P30/'Historical scenario - input'!$D15),"") -> 6570.408292 | AK30: =IFERROR(IF(OR(Q30="",'Historical scenario - input'!$D15=""),"",Q30/'Historical scenario - input'!$D15),"") -> 6669.733891 | AL30: =IFERROR(IF(OR(R30="",'Historical scenario - input'!$D15=""),"",R30/'Historical scenario - input'!$D15),"") -> 6751.459806 | AM30: =IFERROR(IF(OR(S30="",'Historical scenario - input'!$D15=""),"",S30/'Historical scenario - input'!$D15),"") -> 6816.880605 | AN30: =IFERROR(IF(OR(T30="",'Historical scenario - input'!$D15=""),"",T30/'Historical scenario - input'!$D15),"") -> 6867.436597 | AO30: =IFERROR(IF(OR(U30="",'Historical scenario - input'!$D15=""),"",U30/'Historical scenario - input'!$D15),"") -> 6904.684646 | AP30: =IFERROR(IF(OR(V30="",'Historical scenario - input'!$D15=""),"",V30/'Historical scenario - input'!$D15),"") -> 6930.271748 | AQ30: =IFERROR(IF(OR(W30="",'Historical scenario - input'!$D15=""),"",W30/'Historical scenario - input'!$D15),"") -> 6945.908471
A31: =IFERROR('Historical scenario - input'!A16,"") -> 2 | B31: =IFERROR('Historical scenario - input'!B16,"") -> POLES | C31: =IFERROR('Historical scenario - input'!C16,"") -> ˃ 11 kV & < = 22 kV; Wood | D31: =IFERROR(repcalc('Historical scenario - input'!$CV16:$GH16,'Historical scenario - input'!$G16,'Historical scenario - input'!$E16,'Historical scenario - input'!$F16,20,TRUE,TRUE),"") -> 16438.41435 | E31: 17025.08229 | F31: 17829.14979 | G31: 18803.95718 | H31: 19902.5429 | I31: 21079.06962 | J31: 22290.01042 | K31: 23495.13239 | L31: 24658.31287 | M31: 25748.2139 | N31: 26738.8266 | O31: 27609.88217 | P31: 28347.11391 | Q31: 28942.34655 | R31: 29393.38752 | S31: 29703.69994 | T31: 29881.84817 | U31: 29940.72321 | V31: 29896.57393 | W31: 29767.88947 | X31: =IFERROR(IF(OR(D31="",'Historical scenario - input'!$D16=""),"",D31/'Historical scenario - input'!$D16),"") -> 2928.971752 | Y31: =IFERROR(IF(OR(E31="",'Historical scenario - input'!$D16=""),"",E31/'Historical scenario - input'!$D16),"") -> 3033.503356 | Z31: =IFERROR(IF(OR(F31="",'Historical scenario - input'!$D16=""),"",F31/'Historical scenario - input'!$D16),"") -> 3176.770883 | AA31: =IFERROR(IF(OR(G31="",'Historical scenario - input'!$D16=""),"",G31/'Historical scenario - input'!$D16),"") -> 3350.460587 | AB31: =IFERROR(IF(OR(H31="",'Historical scenario - input'!$D16=""),"",H31/'Historical scenario - input'!$D16),"") -> 3546.204926 | AC31: =IFERROR(IF(OR(I31="",'Historical scenario - input'!$D16=""),"",I31/'Historical scenario - input'!$D16),"") -> 3755.836672 | AD31: =IFERROR(IF(OR(J31="",'Historical scenario - input'!$D16=""),"",J31/'Historical scenario - input'!$D16),"") -> 3971.600268 | AE31: =IFERROR(IF(OR(K31="",'Historical scenario - input'!$D16=""),"",K31/'Historical scenario - input'!$D16),"") -> 4186.327075 | AF31: =IFERROR(IF(OR(L31="",'Historical scenario - input'!$D16=""),"",L31/'Historical scenario - input'!$D16),"") -> 4393.58081 | AG31: =IFERROR(IF(OR(M31="",'Historical scenario - input'!$D16=""),"",M31/'Historical scenario - input'!$D16),"") -> 4587.777724 | AH31: =IFERROR(IF(OR(N31="",'Historical scenario - input'!$D16=""),"",N31/'Historical scenario - input'!$D16),"") -> 4764.283592 | AI31: =IFERROR(IF(OR(O31="",'Historical scenario - input'!$D16=""),"",O31/'Historical scenario - input'!$D16),"") -> 4919.486953 | AJ31: =IFERROR(IF(OR(P31="",'Historical scenario - input'!$D16=""),"",P31/'Historical scenario - input'!$D16),"") -> 5050.845788 | AK31: =IFERROR(IF(OR(Q31="",'Historical scenario - input'!$D16=""),"",Q31/'Historical scenario - input'!$D16),"") -> 5156.903438 | AL31: =IFERROR(IF(OR(R31="",'Historical scenario - input'!$D16=""),"",R31/'Historical scenario - input'!$D16),"") -> 5237.269234 | AM31: =IFERROR(IF(OR(S31="",'Historical scenario - input'!$D16=""),"",S31/'Historical scenario - input'!$D16),"") -> 5292.56023 | AN31: =IFERROR(IF(OR(T31="",'Historical scenario - input'!$D16=""),"",T31/'Historical scenario - input'!$D16),"") -> 5324.302412 | AO31: =IFERROR(IF(OR(U31="",'Historical scenario - input'!$D16=""),"",U31/'Historical scenario - input'!$D16),"") -> 5334.792678 | AP31: =IFERROR(IF(OR(V31="",'Historical scenario - input'!$D16=""),"",V31/'Historical scenario - input'!$D16),"") -> 5326.926225 | AQ31: =IFERROR(IF(OR(W31="",'Historical scenario - input'!$D16=""),"",W31/'Historical scenario - input'!$D16),"") -> 5303.997423
A32: =IFERROR('Historical scenario - input'!A17,"") -> 2 | B32: =IFERROR('Historical scenario - input'!B17,"") -> POLES | C32: =IFERROR('Historical scenario - input'!C17,"") -> > 22 kV & < = 66 kV; Wood | D32: =IFERROR(repcalc('Historical scenario - input'!$CV17:$GH17,'Historical scenario - input'!$G17,'Historical scenario - input'!$E17,'Historical scenario - input'!$F17,20,TRUE,TRUE),"") -> 4491.995822 | E32: 4547.75222 | F32: 4668.343862 | G32: 4857.001708 | H32: 5115.304812 | I32: 5443.200135 | J32: 5839.019794 | K32: 6299.490042 | L32: 6819.733984 | M32: 7393.277204 | N32: 8012.071174 | O32: 8666.552573 | P32: 9345.75698 | Q32: 10037.5026 | R32: 10728.654 | S32: 11405.46803 | T32: 12054.01445 | U32: 12660.65476 | V32: 13212.55357 | W32: 13698.19046 | X32: =IFERROR(IF(OR(D32="",'Historical scenario - input'!$D17=""),"",D32/'Historical scenario - input'!$D17),"") -> 397.0130189 | Y32: =IFERROR(IF(OR(E32="",'Historical scenario - input'!$D17=""),"",E32/'Historical scenario - input'!$D17),"") -> 401.9408988 | Z32: =IFERROR(IF(OR(F32="",'Historical scenario - input'!$D17=""),"",F32/'Historical scenario - input'!$D17),"") -> 412.5990681 | AA32: =IFERROR(IF(OR(G32="",'Historical scenario - input'!$D17=""),"",G32/'Historical scenario - input'!$D17),"") -> 429.2730865 | AB32: =IFERROR(IF(OR(H32="",'Historical scenario - input'!$D17=""),"",H32/'Historical scenario - input'!$D17),"") -> 452.1025145 | AC32: =IFERROR(IF(OR(I32="",'Historical scenario - input'!$D17=""),"",I32/'Historical scenario - input'!$D17),"") -> 481.0826644 | AD32: =IFERROR(IF(OR(J32="",'Historical scenario - input'!$D17=""),"",J32/'Historical scenario - input'!$D17),"") -> 516.0661247 | AE32: =IFERROR(IF(OR(K32="",'Historical scenario - input'!$D17=""),"",K32/'Historical scenario - input'!$D17),"") -> 556.7635542 | AF32: =IFERROR(IF(OR(L32="",'Historical scenario - input'!$D17=""),"",L32/'Historical scenario - input'!$D17),"") -> 602.7439216 | AG32: =IFERROR(IF(OR(M32="",'Historical scenario - input'!$D17=""),"",M32/'Historical scenario - input'!$D17),"") -> 653.4350029 | AH32: =IFERROR(IF(OR(N32="",'Historical scenario - input'!$D17=""),"",N32/'Historical scenario - input'!$D17),"") -> 708.1254504 | AI32: =IFERROR(IF(OR(O32="",'Historical scenario - input'!$D17=""),"",O32/'Historical scenario - input'!$D17),"") -> 765.9700358 | AJ32: =IFERROR(IF(OR(P32="",'Historical scenario - input'!$D17=""),"",P32/'Historical scenario - input'!$D17),"") -> 825.9996981 | AK32: =IFERROR(IF(OR(Q32="",'Historical scenario - input'!$D17=""),"",Q32/'Historical scenario - input'!$D17),"") -> 887.1377815 | AL32: =IFERROR(IF(OR(R32="",'Historical scenario - input'!$D17=""),"",R32/'Historical scenario - input'!$D17),"") -> 948.2233474 | AM32: =IFERROR(IF(OR(S32="",'Historical scenario - input'!$D17=""),"",S32/'Historical scenario - input'!$D17),"") -> 1008.041742 | AN32: =IFERROR(IF(OR(T32="",'Historical scenario - input'!$D17=""),"",T32/'Historical scenario - input'!$D17),"") -> 1065.36178 | AO32: =IFERROR(IF(OR(U32="",'Historical scenario - input'!$D17=""),"",U32/'Historical scenario - input'!$D17),"") -> 1118.97806 | AP32: =IFERROR(IF(OR(V32="",'Historical scenario - input'!$D17=""),"",V32/'Historical scenario - input'!$D17),"") -> 1167.756157 | AQ32: =IFERROR(IF(OR(W32="",'Historical scenario - input'!$D17=""),"",W32/'Historical scenario - input'!$D17),"") -> 1210.677873
A33: =IFERROR('Historical scenario - input'!A18,"") -> 2 | B33: =IFERROR('Historical scenario - input'!B18,"") -> POLES | C33: =IFERROR('Historical scenario - input'!C18,"") -> > 66 kV & < = 132 kV; Wood | D33: =IFERROR(repcalc('Historical scenario - input'!$CV18:$GH18,'Historical scenario - input'!$G18,'Historical scenario - input'!$E18,'Historical scenario - input'!$F18,20,TRUE,TRUE),"") -> 1156.957002 | E33: 1342.471883 | F33: 1539.918451 | G33: 1746.08652 | H33: 1957.067762 | I33: 2168.413542 | J33: 2375.355187 | K33: 2573.073887 | L33: 2757.000292 | M33: 2923.118112 | N33: 3068.242734 | O33: 3190.245716 | P33: 3288.199311 | Q33: 3362.421905 | R33: 3414.414808 | S33: 3446.692148 | T33: 3462.517458 | U33: 3465.571329 | V33: 3459.582882 | W33: 3447.962563 | X33: =IFERROR(IF(OR(D33="",'Historical scenario - input'!$D18=""),"",D33/'Historical scenario - input'!$D18),"") -> 88.71669231 | Y33: =IFERROR(IF(OR(E33="",'Historical scenario - input'!$D18=""),"",E33/'Historical scenario - input'!$D18),"") -> 102.9421705 | Z33: =IFERROR(IF(OR(F33="",'Historical scenario - input'!$D18=""),"",F33/'Historical scenario - input'!$D18),"") -> 118.0825831 | AA33: =IFERROR(IF(OR(G33="",'Historical scenario - input'!$D18=""),"",G33/'Historical scenario - input'!$D18),"") -> 133.8917697 | AB33: =IFERROR(IF(OR(H33="",'Historical scenario - input'!$D18=""),"",H33/'Historical scenario - input'!$D18),"") -> 150.0700355 | AC33: =IFERROR(IF(OR(I33="",'Historical scenario - input'!$D18=""),"",I33/'Historical scenario - input'!$D18),"") -> 166.2762546 | AD33: =IFERROR(IF(OR(J33="",'Historical scenario - input'!$D18=""),"",J33/'Historical scenario - input'!$D18),"") -> 182.1447598 | AE33: =IFERROR(IF(OR(K33="",'Historical scenario - input'!$D18=""),"",K33/'Historical scenario - input'!$D18),"") -> 197.3060398 | AF33: =IFERROR(IF(OR(L33="",'Historical scenario - input'!$D18=""),"",L33/'Historical scenario - input'!$D18),"") -> 211.409712 | AG33: =IFERROR(IF(OR(M33="",'Historical scenario - input'!$D18=""),"",M33/'Historical scenario - input'!$D18),"") -> 224.1478029 | AH33: =IFERROR(IF(OR(N33="",'Historical scenario - input'!$D18=""),"",N33/'Historical scenario - input'!$D18),"") -> 235.2761131 | AI33: =IFERROR(IF(OR(O33="",'Historical scenario - input'!$D18=""),"",O33/'Historical scenario - input'!$D18),"") -> 244.6314315 | AJ33: =IFERROR(IF(OR(P33="",'Historical scenario - input'!$D18=""),"",P33/'Historical scenario - input'!$D18),"") -> 252.1426172 | AK33: =IFERROR(IF(OR(Q33="",'Historical scenario - input'!$D18=""),"",Q33/'Historical scenario - input'!$D18),"") -> 257.8340845 | AL33: =IFERROR(IF(OR(R33="",'Historical scenario - input'!$D18=""),"",R33/'Historical scenario - input'!$D18),"") -> 261.8209556 | AM33: =IFERROR(IF(OR(S33="",'Historical scenario - input'!$D18=""),"",S33/'Historical scenario - input'!$D18),"") -> 264.2960163 | AN33: =IFERROR(IF(OR(T33="",'Historical scenario - input'!$D18=""),"",T33/'Historical scenario - input'!$D18),"") -> 265.5095179 | AO33: =IFERROR(IF(OR(U33="",'Historical scenario - input'!$D18=""),"",U33/'Historical scenario - input'!$D18),"") -> 265.743692 | AP33: =IFERROR(IF(OR(V33="",'Historical scenario - input'!$D18=""),"",V33/'Historical scenario - input'!$D18),"") -> 265.2844915 | AQ33: =IFERROR(IF(OR(W33="",'Historical scenario - input'!$D18=""),"",W33/'Historical scenario - input'!$D18),"") -> 264.3934331
A34: =IFERROR('Historical scenario - input'!A19,"") -> 2 | B34: =IFERROR('Historical scenario - input'!B19,"") -> POLES | C34: =IFERROR('Historical scenario - input'!C19,"") -> ˂ = 1 kV; Concrete | D34: =IFERROR(repcalc('Historical scenario - input'!$CV19:$GH19,'Historical scenario - input'!$G19,'Historical scenario - input'!$E19,'Historical scenario - input'!$F19,20,TRUE,TRUE),"") -> 109.8065305 | E34: 111.683657 | F34: 113.2460667 | G34: 114.5413766 | H34: 115.6369123 | I34: 116.6238045 | J34: 117.6223694 | K34: 118.7888278 | L34: 120.3232664 | M34: 122.4785789 | N34: 125.5699486 | O34: 129.9842567 | P34: 136.1886335 | Q34: 144.7372118 | R34: 156.2750076 | S34: 171.5377584 | T34: 191.3464988 | U34: 216.5956944 | V34: 248.2338909 | W34: 287.2361167 | X34: =IFERROR(IF(OR(D34="",'Historical scenario - input'!$D19=""),"",D34/'Historical scenario - input'!$D19),"") -> 14.93021055 | Y34: =IFERROR(IF(OR(E34="",'Historical scenario - input'!$D19=""),"",E34/'Historical scenario - input'!$D19),"") -> 15.18544029 | Z34: =IFERROR(IF(OR(F34="",'Historical scenario - input'!$D19=""),"",F34/'Historical scenario - input'!$D19),"") -> 15.39787853 | AA34: =IFERROR(IF(OR(G34="",'Historical scenario - input'!$D19=""),"",G34/'Historical scenario - input'!$D19),"") -> 15.57399966 | AB34: =IFERROR(IF(OR(H34="",'Historical scenario - input'!$D19=""),"",H34/'Historical scenario - input'!$D19),"") -> 15.72295782 | AC34: =IFERROR(IF(OR(I34="",'Historical scenario - input'!$D19=""),"",I34/'Historical scenario - input'!$D19),"") -> 15.85714389 | AD34: =IFERROR(IF(OR(J34="",'Historical scenario - input'!$D19=""),"",J34/'Historical scenario - input'!$D19),"") -> 15.9929171 | AE34: =IFERROR(IF(OR(K34="",'Historical scenario - input'!$D19=""),"",K34/'Historical scenario - input'!$D19),"") -> 16.1515185 | AF34: =IFERROR(IF(OR(L34="",'Historical scenario - input'!$D19=""),"",L34/'Historical scenario - input'!$D19),"") -> 16.36015355 | AG34: =IFERROR(IF(OR(M34="",'Historical scenario - input'!$D19=""),"",M34/'Historical scenario - input'!$D19),"") -> 16.6532078 | AH34: =IFERROR(IF(OR(N34="",'Historical scenario - input'!$D19=""),"",N34/'Historical scenario - input'!$D19),"") -> 17.07353617 | AI34: =IFERROR(IF(OR(O34="",'Historical scenario - input'!$D19=""),"",O34/'Historical scenario - input'!$D19),"") -> 17.67374226 | AJ34: =IFERROR(IF(OR(P34="",'Historical scenario - input'!$D19=""),"",P34/'Historical scenario - input'!$D19),"") -> 18.51734102 | AK34: =IFERROR(IF(OR(Q34="",'Historical scenario - input'!$D19=""),"",Q34/'Historical scenario - input'!$D19),"") -> 19.67967693 | AL34: =IFERROR(IF(OR(R34="",'Historical scenario - input'!$D19=""),"",R34/'Historical scenario - input'!$D19),"") -> 21.24845176 | AM34: =IFERROR(IF(OR(S34="",'Historical scenario - input'!$D19=""),"",S34/'Historical scenario - input'!$D19),"") -> 23.32370249 | AN34: =IFERROR(IF(OR(T34="",'Historical scenario - input'!$D19=""),"",T34/'Historical scenario - input'!$D19),"") -> 26.01706384 | AO34: =IFERROR(IF(OR(U34="",'Historical scenario - input'!$D19=""),"",U34/'Historical scenario - input'!$D19),"") -> 29.45015478 | AP34: =IFERROR(IF(OR(V34="",'Historical scenario - input'!$D19=""),"",V34/'Historical scenario - input'!$D19),"") -> 33.75194752 | AQ34: =IFERROR(IF(OR(W34="",'Historical scenario - input'!$D19=""),"",W34/'Historical scenario - input'!$D19),"") -> 39.05501501
A35: =IFERROR('Historical scenario - input'!A20,"") -> 2 | B35: =IFERROR('Historical scenario - input'!B20,"") -> POLES | C35: =IFERROR('Historical scenario - input'!C20,"") -> > 1 kV & < = 11 kV; Concrete | D35: =IFERROR(repcalc('Historical scenario - input'!$CV20:$GH20,'Historical scenario - input'!$G20,'Historical scenario - input'!$E20,'Historical scenario - input'!$F20,20,TRUE,TRUE),"") -> 551.3934928 | E35: 609.5637986 | F35: 707.8673327 | G35: 847.1259901 | H35: 1028.436449 | I35: 1252.681113 | J35: 1520.039201 | K35: 1829.529772 | L35: 2178.623783 | M35: 2562.964098 | N35: 2976.22943 | O35: 3410.169916 | P35: 3854.828297 | Q35: 4298.942793 | R35: 4730.507486 | S35: 5137.446369 | T35: 5508.340969 | U35: 5833.14154 | V35: 6103.790129 | W35: 6314.691195 | X35: =IFERROR(IF(OR(D35="",'Historical scenario - input'!$D20=""),"",D35/'Historical scenario - input'!$D20),"") -> 66.13809315 | Y35: =IFERROR(IF(OR(E35="",'Historical scenario - input'!$D20=""),"",E35/'Historical scenario - input'!$D20),"") -> 73.11545715 | Z35: =IFERROR(IF(OR(F35="",'Historical scenario - input'!$D20=""),"",F35/'Historical scenario - input'!$D20),"") -> 84.9066886 | AA35: =IFERROR(IF(OR(G35="",'Historical scenario - input'!$D20=""),"",G35/'Historical scenario - input'!$D20),"") -> 101.6103715 | AB35: =IFERROR(IF(OR(H35="",'Historical scenario - input'!$D20=""),"",H35/'Historical scenario - input'!$D20),"") -> 123.3580493 | AC35: =IFERROR(IF(OR(I35="",'Historical scenario - input'!$D20=""),"",I35/'Historical scenario - input'!$D20),"") -> 150.2555638 | AD35: =IFERROR(IF(OR(J35="",'Historical scenario - input'!$D20=""),"",J35/'Historical scenario - input'!$D20),"") -> 182.3244119 | AE35: =IFERROR(IF(OR(K35="",'Historical scenario - input'!$D20=""),"",K35/'Historical scenario - input'!$D20),"") -> 219.4469323 | AF35: =IFERROR(IF(OR(L35="",'Historical scenario - input'!$D20=""),"",L35/'Historical scenario - input'!$D20),"") -> 261.3197736 | AG35: =IFERROR(IF(OR(M35="",'Historical scenario - input'!$D20=""),"",M35/'Historical scenario - input'!$D20),"") -> 307.4203095 | AH35: =IFERROR(IF(OR(N35="",'Historical scenario - input'!$D20=""),"",N35/'Historical scenario - input'!$D20),"") -> 356.9903198 | AI35: =IFERROR(IF(OR(O35="",'Historical scenario - input'!$D20=""),"",O35/'Historical scenario - input'!$D20),"") -> 409.0402562 | AJ35: =IFERROR(IF(OR(P35="",'Historical scenario - input'!$D20=""),"",P35/'Historical scenario - input'!$D20),"") -> 462.3757739 | AK35: =IFERROR(IF(OR(Q35="",'Historical scenario - input'!$D20=""),"",Q35/'Historical scenario - input'!$D20),"") -> 515.6460542 | AL35: =IFERROR(IF(OR(R35="",'Historical scenario - input'!$D20=""),"",R35/'Historical scenario - input'!$D20),"") -> 567.4110211 | AM35: =IFERROR(IF(OR(S35="",'Historical scenario - input'!$D20=""),"",S35/'Historical scenario - input'!$D20),"") -> 616.2221915 | AN35: =IFERROR(IF(OR(T35="",'Historical scenario - input'!$D20=""),"",T35/'Historical scenario - input'!$D20),"") -> 660.709952 | AO35: =IFERROR(IF(OR(U35="",'Historical scenario - input'!$D20=""),"",U35/'Historical scenario - input'!$D20),"") -> 699.6688637 | AP35: =IFERROR(IF(OR(V35="",'Historical scenario - input'!$D20=""),"",V35/'Historical scenario - input'!$D20),"") -> 732.1323981 | AQ35: =IFERROR(IF(OR(W35="",'Historical scenario - input'!$D20=""),"",W35/'Historical scenario - input'!$D20),"") -> 757.4293856
A36: =IFERROR('Historical scenario - input'!A21,"") -> 2 | B36: =IFERROR('Historical scenario - input'!B21,"") -> POLES | C36: =IFERROR('Historical scenario - input'!C21,"") -> ˃ 11 kV & < = 22 kV; Concrete | D36: =IFERROR(repcalc('Historical scenario - input'!$CV21:$GH21,'Historical scenario - input'!$G21,'Historical scenario - input'!$E21,'Historical scenario - input'!$F21,20,TRUE,TRUE),"") -> 552.7224106 | E36: 602.1509608 | F36: 690.4119432 | G36: 820.5942825 | H36: 997.6222871 | I36: 1227.650979 | J36: 1517.421346 | K36: 1873.575126 | L36: 2301.938627 | M36: 2806.798032 | N36: 3390.201876 | O36: 4051.337366 | P36: 4786.03356 | Q36: 5586.444242 | R36: 6440.955953 | S36: 7334.352066 | T36: 8248.24361 | U36: 9161.753931 | V36: 10052.42019 | W36: 10897.25322 | X36: =IFERROR(IF(OR(D36="",'Historical scenario - input'!$D21=""),"",D36/'Historical scenario - input'!$D21),"") -> 65.7801953 | Y36: =IFERROR(IF(OR(E36="",'Historical scenario - input'!$D21=""),"",E36/'Historical scenario - input'!$D21),"") -> 71.66274976 | Z36: =IFERROR(IF(OR(F36="",'Historical scenario - input'!$D21=""),"",F36/'Historical scenario - input'!$D21),"") -> 82.16680125 | AA36: =IFERROR(IF(OR(G36="",'Historical scenario - input'!$D21=""),"",G36/'Historical scenario - input'!$D21),"") -> 97.65996661 | AB36: =IFERROR(IF(OR(H36="",'Historical scenario - input'!$D21=""),"",H36/'Historical scenario - input'!$D21),"") -> 118.728294 | AC36: =IFERROR(IF(OR(I36="",'Historical scenario - input'!$D21=""),"",I36/'Historical scenario - input'!$D21),"") -> 146.1043004 | AD36: =IFERROR(IF(OR(J36="",'Historical scenario - input'!$D21=""),"",J36/'Historical scenario - input'!$D21),"") -> 180.5902395 | AE36: =IFERROR(IF(OR(K36="",'Historical scenario - input'!$D21=""),"",K36/'Historical scenario - input'!$D21),"") -> 222.9765527 | AF36: =IFERROR(IF(OR(L36="",'Historical scenario - input'!$D21=""),"",L36/'Historical scenario - input'!$D21),"") -> 273.9566363 | AG36: =IFERROR(IF(OR(M36="",'Historical scenario - input'!$D21=""),"",M36/'Historical scenario - input'!$D21),"") -> 334.0405946 | AH36: =IFERROR(IF(OR(N36="",'Historical scenario - input'!$D21=""),"",N36/'Historical scenario - input'!$D21),"") -> 403.4722262 | AI36: =IFERROR(IF(OR(O36="",'Historical scenario - input'!$D21=""),"",O36/'Historical scenario - input'!$D21),"") -> 482.1547997 | AJ36: =IFERROR(IF(OR(P36="",'Historical scenario - input'!$D21=""),"",P36/'Historical scenario - input'!$D21),"") -> 569.5919257 | AK36: =IFERROR(IF(OR(Q36="",'Historical scenario - input'!$D21=""),"",Q36/'Historical scenario - input'!$D21),"") -> 664.8498164 | AL36: =IFERROR(IF(OR(R36="",'Historical scenario - input'!$D21=""),"",R36/'Historical scenario - input'!$D21),"") -> 766.5463393 | AM36: =IFERROR(IF(OR(S36="",'Historical scenario - input'!$D21=""),"",S36/'Historical scenario - input'!$D21),"") -> 872.8705441 | AN36: =IFERROR(IF(OR(T36="",'Historical scenario - input'!$D21=""),"",T36/'Historical scenario - input'!$D21),"") -> 981.6339361 | AO36: =IFERROR(IF(OR(U36="",'Historical scenario - input'!$D21=""),"",U36/'Historical scenario - input'!$D21),"") -> 1090.351958 | AP36: =IFERROR(IF(OR(V36="",'Historical scenario - input'!$D21=""),"",V36/'Historical scenario - input'!$D21),"") -> 1196.351279 | AQ36: =IFERROR(IF(OR(W36="",'Historical scenario - input'!$D21=""),"",W36/'Historical scenario - input'!$D21),"") -> 1296.895931
A37: =IFERROR('Historical scenario - input'!A22,"") -> 2 | B37: =IFERROR('Historical scenario - input'!B22,"") -> POLES | C37: =IFERROR('Historical scenario - input'!C22,"") -> > 22 kV & < = 66 kV; Concrete | D37: =IFERROR(repcalc('Historical scenario - input'!$CV22:$GH22,'Historical scenario - input'!$G22,'Historical scenario - input'!$E22,'Historical scenario - input'!$F22,20,TRUE,TRUE),"") -> 259.9659202 | E37: 324.4049899 | F37: 411.2656752 | G37: 523.3833423 | H37: 663.955707 | I37: 836.2748456 | J37: 1043.439084 | K37: 1288.051554 | L37: 1571.916284 | M37: 1895.746557 | N37: 2258.903331 | O37: 2659.183258 | P37: 3092.675961 | Q37: 3553.708585 | R37: 4034.892244 | S37: 4527.279833 | T37: 5020.638052 | U37: 5503.828533 | V37: 5965.284117 | W37: 6393.557102 | X37: =IFERROR(IF(OR(D37="",'Historical scenario - input'!$D22=""),"",D37/'Historical scenario - input'!$D22),"") -> 18.41874268 | Y37: =IFERROR(IF(OR(E37="",'Historical scenario - input'!$D22=""),"",E37/'Historical scenario - input'!$D22),"") -> 22.98428974 | Z37: =IFERROR(IF(OR(F37="",'Historical scenario - input'!$D22=""),"",F37/'Historical scenario - input'!$D22),"") -> 29.13842184 | AA37: =IFERROR(IF(OR(G37="",'Historical scenario - input'!$D22=""),"",G37/'Historical scenario - input'!$D22),"") -> 37.08202636 | AB37: =IFERROR(IF(OR(H37="",'Historical scenario - input'!$D22=""),"",H37/'Historical scenario - input'!$D22),"") -> 47.04166343 | AC37: =IFERROR(IF(OR(I37="",'Historical scenario - input'!$D22=""),"",I37/'Historical scenario - input'!$D22),"") -> 59.25057862 | AD37: =IFERROR(IF(OR(J37="",'Historical scenario - input'!$D22=""),"",J37/'Historical scenario - input'!$D22),"") -> 73.92829018 | AE37: =IFERROR(IF(OR(K37="",'Historical scenario - input'!$D22=""),"",K37/'Historical scenario - input'!$D22),"") -> 91.25923165 | AF37: =IFERROR(IF(OR(L37="",'Historical scenario - input'!$D22=""),"",L37/'Historical scenario - input'!$D22),"") -> 111.3712195 | AG37: =IFERROR(IF(OR(M37="",'Historical scenario - input'!$D22=""),"",M37/'Historical scenario - input'!$D22),"") -> 134.3147902 | AH37: =IFERROR(IF(OR(N37="",'Historical scenario - input'!$D22=""),"",N37/'Historical scenario - input'!$D22),"") -> 160.0446673 | AI37: =IFERROR(IF(OR(O37="",'Historical scenario - input'!$D22=""),"",O37/'Historical scenario - input'!$D22),"") -> 188.4047422 | AJ37: =IFERROR(IF(OR(P37="",'Historical scenario - input'!$D22=""),"",P37/'Historical scenario - input'!$D22),"") -> 219.1179624 | AK37: =IFERROR(IF(OR(Q37="",'Historical scenario - input'!$D22=""),"",Q37/'Historical scenario - input'!$D22),"") -> 251.7824027 | AL37: =IFERROR(IF(OR(R37="",'Historical scenario - input'!$D22=""),"",R37/'Historical scenario - input'!$D22),"") -> 285.8745559 | AM37: =IFERROR(IF(OR(S37="",'Historical scenario - input'!$D22=""),"",S37/'Historical scenario - input'!$D22),"") -> 320.7605144 | AN37: =IFERROR(IF(OR(T37="",'Historical scenario - input'!$D22=""),"",T37/'Historical scenario - input'!$D22),"") -> 355.7152427 | AO37: =IFERROR(IF(OR(U37="",'Historical scenario - input'!$D22=""),"",U37/'Historical scenario - input'!$D22),"") -> 389.9495805 | AP37: =IFERROR(IF(OR(V37="",'Historical scenario - input'!$D22=""),"",V37/'Historical scenario - input'!$D22),"") -> 422.6439877 | AQ37: =IFERROR(IF(OR(W37="",'Historical scenario - input'!$D22=""),"",W37/'Historical scenario - input'!$D22),"") -> 452.9873877
A38: =IFERROR('Historical scenario - input'!A23,"") -> 2 | B38: =IFERROR('Historical scenario - input'!B23,"") -> POLES | C38: =IFERROR('Historical scenario - input'!C23,"") -> > 66 kV & < = 132 kV; Concrete | D38: =IFERROR(repcalc('Historical scenario - input'!$CV23:$GH23,'Historical scenario - input'!$G23,'Historical scenario - input'!$E23,'Historical scenario - input'!$F23,20,TRUE,TRUE),"") -> 37.97038844 | E38: 51.5790732 | F38: 69.74286581 | G38: 93.62573418 | H38: 124.5349086 | I38: 163.885178 | J38: 213.1422512 | K38: 273.74366 | L38: 346.9977088 | M38: 433.9636093 | N38: 535.3189985 | O38: 651.2242112 | P38: 781.1955489 | Q38: 924.0018543 | R38: 1077.599462 | S38: 1239.119624 | T38: 1404.919542 | U38: 1570.703153 | V38: 1731.71115 | W38: 1882.971955 | X38: =IFERROR(IF(OR(D38="",'Historical scenario - input'!$D23=""),"",D38/'Historical scenario - input'!$D23),"") -> 2.56679198 | Y38: =IFERROR(IF(OR(E38="",'Historical scenario - input'!$D23=""),"",E38/'Historical scenario - input'!$D23),"") -> 3.486736819 | Z38: =IFERROR(IF(OR(F38="",'Historical scenario - input'!$D23=""),"",F38/'Historical scenario - input'!$D23),"") -> 4.714606196 | AA38: =IFERROR(IF(OR(G38="",'Historical scenario - input'!$D23=""),"",G38/'Historical scenario - input'!$D23),"") -> 6.329084148 | AB38: =IFERROR(IF(OR(H38="",'Historical scenario - input'!$D23=""),"",H38/'Historical scenario - input'!$D23),"") -> 8.41853923 | AC38: =IFERROR(IF(OR(I38="",'Historical scenario - input'!$D23=""),"",I38/'Historical scenario - input'!$D23),"") -> 11.07861093 | AD38: =IFERROR(IF(OR(J38="",'Historical scenario - input'!$D23=""),"",J38/'Historical scenario - input'!$D23),"") -> 14.40838093 | AE38: =IFERROR(IF(OR(K38="",'Historical scenario - input'!$D23=""),"",K38/'Historical scenario - input'!$D23),"") -> 18.50502615 | AF38: =IFERROR(IF(OR(L38="",'Historical scenario - input'!$D23=""),"",L38/'Historical scenario - input'!$D23),"") -> 23.45698773 | AG38: =IFERROR(IF(OR(M38="",'Historical scenario - input'!$D23=""),"",M38/'Historical scenario - input'!$D23),"") -> 29.33586823 | AH38: =IFERROR(IF(OR(N38="",'Historical scenario - input'!$D23=""),"",N38/'Historical scenario - input'!$D23),"") -> 36.18747578 | AI38: =IFERROR(IF(OR(O38="",'Historical scenario - input'!$D23=""),"",O38/'Historical scenario - input'!$D23),"") -> 44.02264899 | AJ38: =IFERROR(IF(OR(P38="",'Historical scenario - input'!$D23=""),"",P38/'Historical scenario - input'!$D23),"") -> 52.80868993 | AK38: =IFERROR(IF(OR(Q38="",'Historical scenario - input'!$D23=""),"",Q38/'Historical scenario - input'!$D23),"") -> 62.46237255 | AL38: =IFERROR(IF(OR(R38="",'Historical scenario - input'!$D23=""),"",R38/'Historical scenario - input'!$D23),"") -> 72.84554541 | AM38: =IFERROR(IF(OR(S38="",'Historical scenario - input'!$D23=""),"",S38/'Historical scenario - input'!$D23),"") -> 83.76428165 | AN38: =IFERROR(IF(OR(T38="",'Historical scenario - input'!$D23=""),"",T38/'Historical scenario - input'!$D23),"") -> 94.97232869 | AO38: =IFERROR(IF(OR(U38="",'Historical scenario - input'!$D23=""),"",U38/'Historical scenario - input'!$D23),"") -> 106.1792734 | AP38: =IFERROR(IF(OR(V38="",'Historical scenario - input'!$D23=""),"",V38/'Historical scenario - input'!$D23),"") -> 117.0633873 | AQ38: =IFERROR(IF(OR(W38="",'Historical scenario - input'!$D23=""),"",W38/'Historical scenario - input'!$D23),"") -> 127.2885928
A39: =IFERROR('Historical scenario - input'!A24,"") -> 2 | B39: =IFERROR('Historical scenario - input'!B24,"") -> POLES | C39: =IFERROR('Historical scenario - input'!C24,"") -> ˂ = 1 kV; Steel | D39: =IFERROR(repcalc('Historical scenario - input'!$CV24:$GH24,'Historical scenario - input'!$G24,'Historical scenario - input'!$E24,'Historical scenario - input'!$F24,20,TRUE,TRUE),"") -> 131.8394037 | E39: 149.4360507 | F39: 168.0318322 | G39: 187.4936493 | H39: 207.6763859 | I39: 228.4307032 | J39: 249.6115649 | K39: 271.0869587 | L39: 292.7462335 | M39: 314.507477 | N39: 336.3234048 | O39: 358.18533 | P39: 380.1249041 | Q39: 402.2134797 | R39: 424.5591073 | S39: 447.301341 | T39: 470.6041831 | U39: 494.6476224 | V39: 519.6183173 | W39: 545.7000402 | X39: =IFERROR(IF(OR(D39="",'Historical scenario - input'!$D24=""),"",D39/'Historical scenario - input'!$D24),"") -> 16.7413382 | Y39: =IFERROR(IF(OR(E39="",'Historical scenario - input'!$D24=""),"",E39/'Historical scenario - input'!$D24),"") -> 18.97580992 | Z39: =IFERROR(IF(OR(F39="",'Historical scenario - input'!$D24=""),"",F39/'Historical scenario - input'!$D24),"") -> 21.33715454 | AA39: =IFERROR(IF(OR(G39="",'Historical scenario - input'!$D24=""),"",G39/'Historical scenario - input'!$D24),"") -> 23.8084708 | AB39: =IFERROR(IF(OR(H39="",'Historical scenario - input'!$D24=""),"",H39/'Historical scenario - input'!$D24),"") -> 26.37133145 | AC39: =IFERROR(IF(OR(I39="",'Historical scenario - input'!$D24=""),"",I39/'Historical scenario - input'!$D24),"") -> 29.00677301 | AD39: =IFERROR(IF(OR(J39="",'Historical scenario - input'!$D24=""),"",J39/'Historical scenario - input'!$D24),"") -> 31.69637839 | AE39: =IFERROR(IF(OR(K39="",'Historical scenario - input'!$D24=""),"",K39/'Historical scenario - input'!$D24),"") -> 34.42338428 | AF39: =IFERROR(IF(OR(L39="",'Historical scenario - input'!$D24=""),"",L39/'Historical scenario - input'!$D24),"") -> 37.1737399 | AG39: =IFERROR(IF(OR(M39="",'Historical scenario - input'!$D24=""),"",M39/'Historical scenario - input'!$D24),"") -> 39.93704378 | AH39: =IFERROR(IF(OR(N39="",'Historical scenario - input'!$D24=""),"",N39/'Historical scenario - input'!$D24),"") -> 42.70729165 | AI39: =IFERROR(IF(OR(O39="",'Historical scenario - input'!$D24=""),"",O39/'Historical scenario - input'!$D24),"") -> 45.48338038 | AJ39: =IFERROR(IF(OR(P39="",'Historical scenario - input'!$D24=""),"",P39/'Historical scenario - input'!$D24),"") -> 48.26932918 | AK39: =IFERROR(IF(OR(Q39="",'Historical scenario - input'!$D24=""),"",Q39/'Historical scenario - input'!$D24),"") -> 51.07419863 | AL39: =IFERROR(IF(OR(R39="",'Historical scenario - input'!$D24=""),"",R39/'Historical scenario - input'!$D24),"") -> 53.91170926 | AM39: =IFERROR(IF(OR(S39="",'Historical scenario - input'!$D24=""),"",S39/'Historical scenario - input'!$D24),"") -> 56.79958203 | AN39: =IFERROR(IF(OR(T39="",'Historical scenario - input'!$D24=""),"",T39/'Historical scenario - input'!$D24),"") -> 59.75864246 | AO39: =IFERROR(IF(OR(U39="",'Historical scenario - input'!$D24=""),"",U39/'Historical scenario - input'!$D24),"") -> 62.81174598 | AP39: =IFERROR(IF(OR(V39="",'Historical scenario - input'!$D24=""),"",V39/'Historical scenario - input'!$D24),"") -> 65.98259504 | AQ39: =IFERROR(IF(OR(W39="",'Historical scenario - input'!$D24=""),"",W39/'Historical scenario - input'!$D24),"") -> 69.29452555
A40: =IFERROR('Historical scenario - input'!A25,"") -> 2 | B40: =IFERROR('Historical scenario - input'!B25,"") -> POLES | C40: =IFERROR('Historical scenario - input'!C25,"") -> > 1 kV & < = 11 kV; Steel | D40: =IFERROR(repcalc('Historical scenario - input'!$CV25:$GH25,'Historical scenario - input'!$G25,'Historical scenario - input'!$E25,'Historical scenario - input'!$F25,20,TRUE,TRUE),"") -> 43.60095475 | E40: 46.58452602 | F40: 49.3438672 | G40: 51.80605411 | H40: 53.90242362 | I40: 55.5726133 | J40: 56.76838788 | K40: 57.45687787 | L40: 57.62289119 | M40: 57.27004128 | N40: 56.42055689 | O40: 55.11378441 | P40: 53.40354618 | Q40: 51.35465687 | R40: 49.03900889 | S40: 46.53170467 | T40: 43.90773464 | U40: 41.23967828 | V40: 38.5968531 | W40: 36.04626738 | X40: =IFERROR(IF(OR(D40="",'Historical scenario - input'!$D25=""),"",D40/'Historical scenario - input'!$D25),"") -> 4.686585798 | Y40: =IFERROR(IF(OR(E40="",'Historical scenario - input'!$D25=""),"",E40/'Historical scenario - input'!$D25),"") -> 5.007284342 | Z40: =IFERROR(IF(OR(F40="",'Historical scenario - input'!$D25=""),"",F40/'Historical scenario - input'!$D25),"") -> 5.30388081 | AA40: =IFERROR(IF(OR(G40="",'Historical scenario - input'!$D25=""),"",G40/'Historical scenario - input'!$D25),"") -> 5.568536717 | AB40: =IFERROR(IF(OR(H40="",'Historical scenario - input'!$D25=""),"",H40/'Historical scenario - input'!$D25),"") -> 5.793871589 | AC40: =IFERROR(IF(OR(I40="",'Historical scenario - input'!$D25=""),"",I40/'Historical scenario - input'!$D25),"") -> 5.973397181 | AD40: =IFERROR(IF(OR(J40="",'Historical scenario - input'!$D25=""),"",J40/'Historical scenario - input'!$D25),"") -> 6.101928774 | AE40: =IFERROR(IF(OR(K40="",'Historical scenario - input'!$D25=""),"",K40/'Historical scenario - input'!$D25),"") -> 6.175933287 | AF40: =IFERROR(IF(OR(L40="",'Historical scenario - input'!$D25=""),"",L40/'Historical scenario - input'!$D25),"") -> 6.193777751 | AG40: =IFERROR(IF(OR(M40="",'Historical scenario - input'!$D25=""),"",M40/'Historical scenario - input'!$D25),"") -> 6.155850569 | AH40: =IFERROR(IF(OR(N40="",'Historical scenario - input'!$D25=""),"",N40/'Historical scenario - input'!$D25),"") -> 6.064541066 | AI40: =IFERROR(IF(OR(O40="",'Historical scenario - input'!$D25=""),"",O40/'Historical scenario - input'!$D25),"") -> 5.924078515 | AJ40: =IFERROR(IF(OR(P40="",'Historical scenario - input'!$D25=""),"",P40/'Historical scenario - input'!$D25),"") -> 5.740248178 | AK40: =IFERROR(IF(OR(Q40="",'Historical scenario - input'!$D25=""),"",Q40/'Historical scenario - input'!$D25),"") -> 5.520016864 | AL40: =IFERROR(IF(OR(R40="",'Historical scenario - input'!$D25=""),"",R40/'Historical scenario - input'!$D25),"") -> 5.271112155 | AM40: =IFERROR(IF(OR(S40="",'Historical scenario - input'!$D25=""),"",S40/'Historical scenario - input'!$D25),"") -> 5.001606673 | AN40: =IFERROR(IF(OR(T40="",'Historical scenario - input'!$D25=""),"",T40/'Historical scenario - input'!$D25),"") -> 4.719560999 | AO40: =IFERROR(IF(OR(U40="",'Historical scenario - input'!$D25=""),"",U40/'Historical scenario - input'!$D25),"") -> 4.432776567 | AP40: =IFERROR(IF(OR(V40="",'Historical scenario - input'!$D25=""),"",V40/'Historical scenario - input'!$D25),"") -> 4.148704188 | AQ40: =IFERROR(IF(OR(W40="",'Historical scenario - input'!$D25=""),"",W40/'Historical scenario - input'!$D25),"") -> 3.874546458
A41: =IFERROR('Historical scenario - input'!A26,"") -> 2 | B41: =IFERROR('Historical scenario - input'!B26,"") -> POLES | C41: =IFERROR('Historical scenario - input'!C26,"") -> ˃ 11 kV & < = 22 kV; Steel | D41: =IFERROR(repcalc('Historical scenario - input'!$CV26:$GH26,'Historical scenario - input'!$G26,'Historical scenario - input'!$E26,'Historical scenario - input'!$F26,20,TRUE,TRUE),"") -> 56.04103157 | E41: 59.03287298 | F41: 61.62658182 | G41: 63.78274989 | H41: 65.47972717 | I41: 66.71456311 | J41: 67.50241391 | K41: 67.8743927 | L41: 67.87404157 | M41: 67.55281145 | N41: 66.96511688 | O41: 66.16366137 | P41: 65.19578676 | Q41: 64.10158079 | R41: 62.91439196 | S41: 61.66427181 | T41: 60.38472767 | U41: 59.12305446 | V41: 57.95445152 | W41: 57.00012467 | X41: =IFERROR(IF(OR(D41="",'Historical scenario - input'!$D26=""),"",D41/'Historical scenario - input'!$D26),"") -> 6.056443465 | Y41: =IFERROR(IF(OR(E41="",'Historical scenario - input'!$D26=""),"",E41/'Historical scenario - input'!$D26),"") -> 6.379776527 | Z41: =IFERROR(IF(OR(F41="",'Historical scenario - input'!$D26=""),"",F41/'Historical scenario - input'!$D26),"") -> 6.66008277 | AA41: =IFERROR(IF(OR(G41="",'Historical scenario - input'!$D26=""),"",G41/'Historical scenario - input'!$D26),"") -> 6.893103283 | AB41: =IFERROR(IF(OR(H41="",'Historical scenario - input'!$D26=""),"",H41/'Historical scenario - input'!$D26),"") -> 7.076498319 | AC41: =IFERROR(IF(OR(I41="",'Historical scenario - input'!$D26=""),"",I41/'Historical scenario - input'!$D26),"") -> 7.209949004 | AD41: =IFERROR(IF(OR(J41="",'Historical scenario - input'!$D26=""),"",J41/'Historical scenario - input'!$D26),"") -> 7.295093294 | AE41: =IFERROR(IF(OR(K41="",'Historical scenario - input'!$D26=""),"",K41/'Historical scenario - input'!$D26),"") -> 7.335293634 | AF41: =IFERROR(IF(OR(L41="",'Historical scenario - input'!$D26=""),"",L41/'Historical scenario - input'!$D26),"") -> 7.335255686 | AG41: =IFERROR(IF(OR(M41="",'Historical scenario - input'!$D26=""),"",M41/'Historical scenario - input'!$D26),"") -> 7.300539836 | AH41: =IFERROR(IF(OR(N41="",'Historical scenario - input'!$D26=""),"",N41/'Historical scenario - input'!$D26),"") -> 7.237026749 | AI41: =IFERROR(IF(OR(O41="",'Historical scenario - input'!$D26=""),"",O41/'Historical scenario - input'!$D26),"") -> 7.150412177 | AJ41: =IFERROR(IF(OR(P41="",'Historical scenario - input'!$D26=""),"",P41/'Historical scenario - input'!$D26),"") -> 7.045812426 | AK41: =IFERROR(IF(OR(Q41="",'Historical scenario - input'!$D26=""),"",Q41/'Historical scenario - input'!$D26),"") -> 6.927559847 | AL41: =IFERROR(IF(OR(R41="",'Historical scenario - input'!$D26=""),"",R41/'Historical scenario - input'!$D26),"") -> 6.79925846 | AM41: =IFERROR(IF(OR(S41="",'Historical scenario - input'!$D26=""),"",S41/'Historical scenario - input'!$D26),"") -> 6.664155987 | AN41: =IFERROR(IF(OR(T41="",'Historical scenario - input'!$D26=""),"",T41/'Historical scenario - input'!$D26),"") -> 6.525873615 | AO41: =IFERROR(IF(OR(U41="",'Historical scenario - input'!$D26=""),"",U41/'Historical scenario - input'!$D26),"") -> 6.389522583 | AP41: =IFERROR(IF(OR(V41="",'Historical scenario - input'!$D26=""),"",V41/'Historical scenario - input'!$D26),"") -> 6.263229803 | AQ41: =IFERROR(IF(OR(W41="",'Historical scenario - input'!$D26=""),"",W41/'Historical scenario - input'!$D26),"") -> 6.160094183
A42: =IFERROR('Historical scenario - input'!A27,"") -> 2 | B42: =IFERROR('Historical scenario - input'!B27,"") -> POLES | C42: =IFERROR('Historical scenario - input'!C27,"") -> > 22 kV & < = 66 kV; Steel | D42: =IFERROR(repcalc('Historical scenario - input'!$CV27:$GH27,'Historical scenario - input'!$G27,'Historical scenario - input'!$E27,'Historical scenario - input'!$F27,20,TRUE,TRUE),"") -> 17.3793305 | E42: 20.00809655 | F42: 22.79945784 | G42: 25.71228191 | H42: 28.69560218 | I42: 31.68979742 | J42: 34.6284373 | K42: 37.44073456 | L42: 40.0544852 | M42: 42.39932619 | N42: 44.41009953 | O42: 46.030089 | P42: 47.21389474 | Q42: 47.92973169 | R42: 48.16098045 | S42: 47.90687845 | T42: 47.18230974 | U42: 46.01672566 | V42: 44.45229831 | W42: 42.5414668 | X42: =IFERROR(IF(OR(D42="",'Historical scenario - input'!$D27=""),"",D42/'Historical scenario - input'!$D27),"") -> 1.37239952 | Y42: =IFERROR(IF(OR(E42="",'Historical scenario - input'!$D27=""),"",E42/'Historical scenario - input'!$D27),"") -> 1.579986186 | Z42: =IFERROR(IF(OR(F42="",'Historical scenario - input'!$D27=""),"",F42/'Historical scenario - input'!$D27),"") -> 1.800412565 | AA42: =IFERROR(IF(OR(G42="",'Historical scenario - input'!$D27=""),"",G42/'Historical scenario - input'!$D27),"") -> 2.030430537 | AB42: =IFERROR(IF(OR(H42="",'Historical scenario - input'!$D27=""),"",H42/'Historical scenario - input'!$D27),"") -> 2.266015407 | AC42: =IFERROR(IF(OR(I42="",'Historical scenario - input'!$D27=""),"",I42/'Historical scenario - input'!$D27),"") -> 2.502459043 | AD42: =IFERROR(IF(OR(J42="",'Historical scenario - input'!$D27=""),"",J42/'Historical scenario - input'!$D27),"") -> 2.734515622 | AE42: =IFERROR(IF(OR(K42="",'Historical scenario - input'!$D27=""),"",K42/'Historical scenario - input'!$D27),"") -> 2.956595258 | AF42: =IFERROR(IF(OR(L42="",'Historical scenario - input'!$D27=""),"",L42/'Historical scenario - input'!$D27),"") -> 3.162996197 | AG42: =IFERROR(IF(OR(M42="",'Historical scenario - input'!$D27=""),"",M42/'Historical scenario - input'!$D27),"") -> 3.348162055 | AH42: =IFERROR(IF(OR(N42="",'Historical scenario - input'!$D27=""),"",N42/'Historical scenario - input'!$D27),"") -> 3.506947479 | AI42: =IFERROR(IF(OR(O42="",'Historical scenario - input'!$D27=""),"",O42/'Historical scenario - input'!$D27),"") -> 3.634873741 | AJ42: =IFERROR(IF(OR(P42="",'Historical scenario - input'!$D27=""),"",P42/'Historical scenario - input'!$D27),"") -> 3.728355732 | AK42: =IFERROR(IF(OR(Q42="",'Historical scenario - input'!$D27=""),"",Q42/'Historical scenario - input'!$D27),"") -> 3.784883473 | AL42: =IFERROR(IF(OR(R42="",'Historical scenario - input'!$D27=""),"",R42/'Historical scenario - input'!$D27),"") -> 3.803144573 | AM42: =IFERROR(IF(OR(S42="",'Historical scenario - input'!$D27=""),"",S42/'Historical scenario - input'!$D27),"") -> 3.783078814 | AN42: =IFERROR(IF(OR(T42="",'Historical scenario - input'!$D27=""),"",T42/'Historical scenario - input'!$D27),"") -> 3.725861549 | AO42: =IFERROR(IF(OR(U42="",'Historical scenario - input'!$D27=""),"",U42/'Historical scenario - input'!$D27),"") -> 3.633818473 | AP42: =IFERROR(IF(OR(V42="",'Historical scenario - input'!$D27=""),"",V42/'Historical scenario - input'!$D27),"") -> 3.510279805 | AQ42: =IFERROR(IF(OR(W42="",'Historical scenario - input'!$D27=""),"",W42/'Historical scenario - input'!$D27),"") -> 3.359386521
A43: =IFERROR('Historical scenario - input'!A28,"") -> 2 | B43: =IFERROR('Historical scenario - input'!B28,"") -> POLES | C43: =IFERROR('Historical scenario - input'!C28,"") -> > 66 kV & < = 132 kV; Steel | D43: =IFERROR(repcalc('Historical scenario - input'!$CV28:$GH28,'Historical scenario - input'!$G28,'Historical scenario - input'!$E28,'Historical scenario - input'!$F28,20,TRUE,TRUE),"") -> 5.546981179 | E43: 6.664552914 | F43: 7.917188796 | G43: 9.299816294 | H43: 10.80162863 | I43: 12.40550961 | J43: 14.08774007 | K43: 15.81807596 | L43: 17.56027703 | M43: 19.27314197 | N43: 20.91207067 | O43: 22.43112744 | P43: 23.78552576 | Q43: 24.93439935 | R43: 25.84367513 | S43: 26.4888273 | T43: 26.8572766 | U43: 26.95021019 | V43: 26.78363738 | W43: 26.38856449 | X43: =IFERROR(IF(OR(D43="",'Historical scenario - input'!$D28=""),"",D43/'Historical scenario - input'!$D28),"") -> 0.3509941923 | Y43: =IFERROR(IF(OR(E43="",'Historical scenario - input'!$D28=""),"",E43/'Historical scenario - input'!$D28),"") -> 0.4217103487 | Z43: =IFERROR(IF(OR(F43="",'Historical scenario - input'!$D28=""),"",F43/'Historical scenario - input'!$D28),"") -> 0.5009729071 | AA43: =IFERROR(IF(OR(G43="",'Historical scenario - input'!$D28=""),"",G43/'Historical scenario - input'!$D28),"") -> 0.5884608949 | AB43: =IFERROR(IF(OR(H43="",'Historical scenario - input'!$D28=""),"",H43/'Historical scenario - input'!$D28),"") -> 0.683490496 | AC43: =IFERROR(IF(OR(I43="",'Historical scenario - input'!$D28=""),"",I43/'Historical scenario - input'!$D28),"") -> 0.7849786551 | AD43: =IFERROR(IF(OR(J43="",'Historical scenario - input'!$D28=""),"",J43/'Historical scenario - input'!$D28),"") -> 0.891424504 | AE43: =IFERROR(IF(OR(K43="",'Historical scenario - input'!$D28=""),"",K43/'Historical scenario - input'!$D28),"") -> 1.000914302 | AF43: =IFERROR(IF(OR(L43="",'Historical scenario - input'!$D28=""),"",L43/'Historical scenario - input'!$D28),"") -> 1.111154888 | AG43: =IFERROR(IF(OR(M43="",'Historical scenario - input'!$D28=""),"",M43/'Historical scenario - input'!$D28),"") -> 1.219539184 | AH43: =IFERROR(IF(OR(N43="",'Historical scenario - input'!$D28=""),"",N43/'Historical scenario - input'!$D28),"") -> 1.323245044 | AI43: =IFERROR(IF(OR(O43="",'Historical scenario - input'!$D28=""),"",O43/'Historical scenario - input'!$D28),"") -> 1.419365815 | AJ43: =IFERROR(IF(OR(P43="",'Historical scenario - input'!$D28=""),"",P43/'Historical scenario - input'!$D28),"") -> 1.505067555 | AK43: =IFERROR(IF(OR(Q43="",'Historical scenario - input'!$D28=""),"",Q43/'Historical scenario - input'!$D28),"") -> 1.577764387 | AL43: =IFERROR(IF(OR(R43="",'Historical scenario - input'!$D28=""),"",R43/'Historical scenario - input'!$D28),"") -> 1.635300281 | AM43: =IFERROR(IF(OR(S43="",'Historical scenario - input'!$D28=""),"",S43/'Historical scenario - input'!$D28),"") -> 1.676123326 | AN43: =IFERROR(IF(OR(T43="",'Historical scenario - input'!$D28=""),"",T43/'Historical scenario - input'!$D28),"") -> 1.699437551 | AO43: =IFERROR(IF(OR(U43="",'Historical scenario - input'!$D28=""),"",U43/'Historical scenario - input'!$D28),"") -> 1.705318074 | AP43: =IFERROR(IF(OR(V43="",'Historical scenario - input'!$D28=""),"",V43/'Historical scenario - input'!$D28),"") -> 1.69477791 | AQ43: =IFERROR(IF(OR(W43="",'Historical scenario - input'!$D28=""),"",W43/'Historical scenario - input'!$D28),"") -> 1.669779035
A44: =IFERROR('Historical scenario - input'!A29,"") -> 3 | B44: =IFERROR('Historical scenario - input'!B29,"") -> SERVICE LINES | C44: =IFERROR('Historical scenario - input'!C29,"") -> ˂ = 11 kV ; Residential ; Simple Type | D44: =IFERROR(repcalc('Historical scenario - input'!$CV29:$GH29,'Historical scenario - input'!$G29,'Historical scenario - input'!$E29,'Historical scenario - input'!$F29,20,TRUE,TRUE),"") -> 8550.320391 | E44: 9205.712988 | F44: 9834.717233 | G44: 10422.42661 | H44: 10956.0502 | I44: 11425.57692 | J44: 11824.27031 | K44: 12148.94597 | L44: 12400.00341 | M44: 12581.20889 | N44: 12699.25095 | O44: 12763.11327 | P44: 12783.32662 | Q44: 12771.17092 | R44: 12737.89907 | S44: 12694.04603 | T44: 12648.87234 | U44: 12609.9719 | V44: 12583.0541 | W44: 12571.8909 | X44: =IFERROR(IF(OR(D44="",'Historical scenario - input'!$D29=""),"",D44/'Historical scenario - input'!$D29),"") -> 6613.857408 | Y44: =IFERROR(IF(OR(E44="",'Historical scenario - input'!$D29=""),"",E44/'Historical scenario - input'!$D29),"") -> 7120.81773 | Z44: =IFERROR(IF(OR(F44="",'Historical scenario - input'!$D29=""),"",F44/'Historical scenario - input'!$D29),"") -> 7607.366093 | AA44: =IFERROR(IF(OR(G44="",'Historical scenario - input'!$D29=""),"",G44/'Historical scenario - input'!$D29),"") -> 8061.971983 | AB44: =IFERROR(IF(OR(H44="",'Historical scenario - input'!$D29=""),"",H44/'Historical scenario - input'!$D29),"") -> 8474.741353 | AC44: =IFERROR(IF(OR(I44="",'Historical scenario - input'!$D29=""),"",I44/'Historical scenario - input'!$D29),"") -> 8837.930403 | AD44: =IFERROR(IF(OR(J44="",'Historical scenario - input'!$D29=""),"",J44/'Historical scenario - input'!$D29),"") -> 9146.328351 | AE44: =IFERROR(IF(OR(K44="",'Historical scenario - input'!$D29=""),"",K44/'Historical scenario - input'!$D29),"") -> 9397.471983 | AF44: =IFERROR(IF(OR(L44="",'Historical scenario - input'!$D29=""),"",L44/'Historical scenario - input'!$D29),"") -> 9591.670331 | AG44: =IFERROR(IF(OR(M44="",'Historical scenario - input'!$D29=""),"",M44/'Historical scenario - input'!$D29),"") -> 9731.83668 | AH44: =IFERROR(IF(OR(N44="",'Historical scenario - input'!$D29=""),"",N44/'Historical scenario - input'!$D29),"") -> 9823.144762 | AI44: =IFERROR(IF(OR(O44="",'Historical scenario - input'!$D29=""),"",O44/'Historical scenario - input'!$D29),"") -> 9872.543648 | AJ44: =IFERROR(IF(OR(P44="",'Historical scenario - input'!$D29=""),"",P44/'Historical scenario - input'!$D29),"") -> 9888.179109 | AK44: =IFERROR(IF(OR(Q44="",'Historical scenario - input'!$D29=""),"",Q44/'Historical scenario - input'!$D29),"") -> 9878.776415 | AL44: =IFERROR(IF(OR(R44="",'Historical scenario - input'!$D29=""),"",R44/'Historical scenario - input'!$D29),"") -> 9853.039919 | AM44: =IFERROR(IF(OR(S44="",'Historical scenario - input'!$D29=""),"",S44/'Historical scenario - input'!$D29),"") -> 9819.118649 | AN44: =IFERROR(IF(OR(T44="",'Historical scenario - input'!$D29=""),"",T44/'Historical scenario - input'!$D29),"") -> 9784.175817 | AO44: =IFERROR(IF(OR(U44="",'Historical scenario - input'!$D29=""),"",U44/'Historical scenario - input'!$D29),"") -> 9754.085492 | AP44: =IFERROR(IF(OR(V44="",'Historical scenario - input'!$D29=""),"",V44/'Historical scenario - input'!$D29),"") -> 9733.263988 | AQ44: =IFERROR(IF(OR(W44="",'Historical scenario - input'!$D29=""),"",W44/'Historical scenario - input'!$D29),"") -> 9724.629014
A45: =IFERROR('Historical scenario - input'!A30,"") -> 3 | B45: =IFERROR('Historical scenario - input'!B30,"") -> SERVICE LINES | C45: =IFERROR('Historical scenario - input'!C30,"") -> ˂ = 11 kV ; Commercial & Industrial ; Simple Type | D45: =IFERROR(repcalc('Historical scenario - input'!$CV30:$GH30,'Historical scenario - input'!$G30,'Historical scenario - input'!$E30,'Historical scenario - input'!$F30,20,TRUE,TRUE),"") -> 397.6799523 | E45: 453.0513663 | F45: 513.2073806 | G45: 577.5876297 | H45: 645.4325447 | I45: 715.7982742 | J45: 787.5850349 | K45: 859.5784395 | L45: 930.5020798 | M45: 999.0784059 | N45: 1064.093881 | O45: 1124.463669 | P45: 1179.290828 | Q45: 1227.915226 | R45: 1269.948118 | S45: 1305.289532 | T45: 1334.127074 | U45: 1356.916415 | V45: 1374.345316 | W45: 1387.284388 | X45: =IFERROR(IF(OR(D45="",'Historical scenario - input'!$D30=""),"",D45/'Historical scenario - input'!$D30),"") -> 271.8027599 | Y45: =IFERROR(IF(OR(E45="",'Historical scenario - input'!$D30=""),"",E45/'Historical scenario - input'!$D30),"") -> 309.6475219 | Z45: =IFERROR(IF(OR(F45="",'Historical scenario - input'!$D30=""),"",F45/'Historical scenario - input'!$D30),"") -> 350.76242 | AA45: =IFERROR(IF(OR(G45="",'Historical scenario - input'!$D30=""),"",G45/'Historical scenario - input'!$D30),"") -> 394.7644605 | AB45: =IFERROR(IF(OR(H45="",'Historical scenario - input'!$D30=""),"",H45/'Historical scenario - input'!$D30),"") -> 441.1345001 | AC45: =IFERROR(IF(OR(I45="",'Historical scenario - input'!$D30=""),"",I45/'Historical scenario - input'!$D30),"") -> 489.2274436 | AD45: =IFERROR(IF(OR(J45="",'Historical scenario - input'!$D30=""),"",J45/'Historical scenario - input'!$D30),"") -> 538.2916209 | AE45: =IFERROR(IF(OR(K45="",'Historical scenario - input'!$D30=""),"",K45/'Historical scenario - input'!$D30),"") -> 587.4970333 | AF45: =IFERROR(IF(OR(L45="",'Historical scenario - input'!$D30=""),"",L45/'Historical scenario - input'!$D30),"") -> 635.9712927 | AG45: =IFERROR(IF(OR(M45="",'Historical scenario - input'!$D30=""),"",M45/'Historical scenario - input'!$D30),"") -> 682.8412307 | AH45: =IFERROR(IF(OR(N45="",'Historical scenario - input'!$D30=""),"",N45/'Historical scenario - input'!$D30),"") -> 727.2774301 | AI45: =IFERROR(IF(OR(O45="",'Historical scenario - input'!$D30=""),"",O45/'Historical scenario - input'!$D30),"") -> 768.5384364 | AJ45: =IFERROR(IF(OR(P45="",'Historical scenario - input'!$D30=""),"",P45/'Historical scenario - input'!$D30),"") -> 806.0112158 | AK45: =IFERROR(IF(OR(Q45="",'Historical scenario - input'!$D30=""),"",Q45/'Historical scenario - input'!$D30),"") -> 839.2445867 | AL45: =IFERROR(IF(OR(R45="",'Historical scenario - input'!$D30=""),"",R45/'Historical scenario - input'!$D30),"") -> 867.9728542 | AM45: =IFERROR(IF(OR(S45="",'Historical scenario - input'!$D30=""),"",S45/'Historical scenario - input'!$D30),"") -> 892.1276902 | AN45: =IFERROR(IF(OR(T45="",'Historical scenario - input'!$D30=""),"",T45/'Historical scenario - input'!$D30),"") -> 911.8373171 | AO45: =IFERROR(IF(OR(U45="",'Historical scenario - input'!$D30=""),"",U45/'Historical scenario - input'!$D30),"") -> 927.4131734 | AP45: =IFERROR(IF(OR(V45="",'Historical scenario - input'!$D30=""),"",V45/'Historical scenario - input'!$D30),"") -> 939.3253234 | AQ45: =IFERROR(IF(OR(W45="",'Historical scenario - input'!$D30=""),"",W45/'Historical scenario - input'!$D30),"") -> 948.1688053
A46: =IFERROR('Historical scenario - input'!A31,"") -> 4 | B46: =IFERROR('Historical scenario - input'!B31,"") -> SWITCHGEAR | C46: =IFERROR('Historical scenario - input'!C31,"") -> ˂ = 11 kV ; FUSE | D46: =IFERROR(repcalc('Historical scenario - input'!$CV31:$GH31,'Historical scenario - input'!$G31,'Historical scenario - input'!$E31,'Historical scenario - input'!$F31,20,TRUE,TRUE),"") -> 2689.185135 | E46: 2749.306132 | F46: 2804.999984 | G46: 2857.060519 | H46: 2906.405132 | I46: 2954.006845 | J46: 3000.837131 | K46: 3047.823535 | L46: 3095.823726 | M46: 3145.615313 | N46: 3197.89875 | O46: 3253.309221 | P46: 3312.432538 | Q46: 3375.819946 | R46: 3443.997219 | S46: 3517.464531 | T46: 3596.685089 | U46: 3682.062343 | V46: 3773.907429 | W46: 3872.400298 | X46: =IFERROR(IF(OR(D46="",'Historical scenario - input'!$D31=""),"",D46/'Historical scenario - input'!$D31),"") -> 1957.22605 | Y46: =IFERROR(IF(OR(E46="",'Historical scenario - input'!$D31=""),"",E46/'Historical scenario - input'!$D31),"") -> 2000.982941 | Z46: =IFERROR(IF(OR(F46="",'Historical scenario - input'!$D31=""),"",F46/'Historical scenario - input'!$D31),"") -> 2041.517696 | AA46: =IFERROR(IF(OR(G46="",'Historical scenario - input'!$D31=""),"",G46/'Historical scenario - input'!$D31),"") -> 2079.408072 | AB46: =IFERROR(IF(OR(H46="",'Historical scenario - input'!$D31=""),"",H46/'Historical scenario - input'!$D31),"") -> 2115.321762 | AC46: =IFERROR(IF(OR(I46="",'Historical scenario - input'!$D31=""),"",I46/'Historical scenario - input'!$D31),"") -> 2149.966945 | AD46: =IFERROR(IF(OR(J46="",'Historical scenario - input'!$D31=""),"",J46/'Historical scenario - input'!$D31),"") -> 2184.050674 | AE46: =IFERROR(IF(OR(K46="",'Historical scenario - input'!$D31=""),"",K46/'Historical scenario - input'!$D31),"") -> 2218.248027 | AF46: =IFERROR(IF(OR(L46="",'Historical scenario - input'!$D31=""),"",L46/'Historical scenario - input'!$D31),"") -> 2253.183228 | AG46: =IFERROR(IF(OR(M46="",'Historical scenario - input'!$D31=""),"",M46/'Historical scenario - input'!$D31),"") -> 2289.422232 | AH46: =IFERROR(IF(OR(N46="",'Historical scenario - input'!$D31=""),"",N46/'Historical scenario - input'!$D31),"") -> 2327.474839 | AI46: =IFERROR(IF(OR(O46="",'Historical scenario - input'!$D31=""),"",O46/'Historical scenario - input'!$D31),"") -> 2367.803344 | AJ46: =IFERROR(IF(OR(P46="",'Historical scenario - input'!$D31=""),"",P46/'Historical scenario - input'!$D31),"") -> 2410.83411 | AK46: =IFERROR(IF(OR(Q46="",'Historical scenario - input'!$D31=""),"",Q46/'Historical scenario - input'!$D31),"") -> 2456.968341 | AL46: =IFERROR(IF(OR(R46="",'Historical scenario - input'!$D31=""),"",R46/'Historical scenario - input'!$D31),"") -> 2506.588701 | AM46: =IFERROR(IF(OR(S46="",'Historical scenario - input'!$D31=""),"",S46/'Historical scenario - input'!$D31),"") -> 2560.059224 | AN46: =IFERROR(IF(OR(T46="",'Historical scenario - input'!$D31=""),"",T46/'Historical scenario - input'!$D31),"") -> 2617.717039 | AO46: =IFERROR(IF(OR(U46="",'Historical scenario - input'!$D31=""),"",U46/'Historical scenario - input'!$D31),"") -> 2679.855783 | AP46: =IFERROR(IF(OR(V46="",'Historical scenario - input'!$D31=""),"",V46/'Historical scenario - input'!$D31),"") -> 2746.701904 | AQ46: =IFERROR(IF(OR(W46="",'Historical scenario - input'!$D31=""),"",W46/'Historical scenario - input'!$D31),"") -> 2818.386373
A47: =IFERROR('Historical scenario - input'!A32,"") -> 4 | B47: =IFERROR('Historical scenario - input'!B32,"") -> SWITCHGEAR | C47: =IFERROR('Historical scenario - input'!C32,"") -> ˂ = 11 kV ; Switch | D47: =IFERROR(repcalc('Historical scenario - input'!$CV32:$GH32,'Historical scenario - input'!$G32,'Historical scenario - input'!$E32,'Historical scenario - input'!$F32,20,TRUE,TRUE),"") -> 8556.813385 | E47: 8315.611999 | F47: 8084.906684 | G47: 7868.123146 | H47: 7667.046642 | I47: 7482.029128 | J47: 7312.3012 | K47: 7156.340656 | L47: 7012.249153 | M47: 6878.093961 | N47: 6752.181565 | O47: 6633.242243 | P47: 6520.517827 | Q47: 6413.75712 | R47: 6313.133561 | S47: 6219.10697 | T47: 6132.255094 | U47: 6053.101279 | V47: 5981.962413 | W47: 5918.836698 | X47: =IFERROR(IF(OR(D47="",'Historical scenario - input'!$D32=""),"",D47/'Historical scenario - input'!$D32),"") -> 948.5195234 | Y47: =IFERROR(IF(OR(E47="",'Historical scenario - input'!$D32=""),"",E47/'Historical scenario - input'!$D32),"") -> 921.7824411 | Z47: =IFERROR(IF(OR(F47="",'Historical scenario - input'!$D32=""),"",F47/'Historical scenario - input'!$D32),"") -> 896.2088443 | AA47: =IFERROR(IF(OR(G47="",'Historical scenario - input'!$D32=""),"",G47/'Historical scenario - input'!$D32),"") -> 872.1784711 | AB47: =IFERROR(IF(OR(H47="",'Historical scenario - input'!$D32=""),"",H47/'Historical scenario - input'!$D32),"") -> 849.8892169 | AC47: =IFERROR(IF(OR(I47="",'Historical scenario - input'!$D32=""),"",I47/'Historical scenario - input'!$D32),"") -> 829.3800955 | AD47: =IFERROR(IF(OR(J47="",'Historical scenario - input'!$D32=""),"",J47/'Historical scenario - input'!$D32),"") -> 810.565819 | AE47: =IFERROR(IF(OR(K47="",'Historical scenario - input'!$D32=""),"",K47/'Historical scenario - input'!$D32),"") -> 793.2776517 | AF47: =IFERROR(IF(OR(L47="",'Historical scenario - input'!$D32=""),"",L47/'Historical scenario - input'!$D32),"") -> 777.3051632 | AG47: =IFERROR(IF(OR(M47="",'Historical scenario - input'!$D32=""),"",M47/'Historical scenario - input'!$D32),"") -> 762.4341109 | AH47: =IFERROR(IF(OR(N47="",'Historical scenario - input'!$D32=""),"",N47/'Historical scenario - input'!$D32),"") -> 748.4767695 | AI47: =IFERROR(IF(OR(O47="",'Historical scenario - input'!$D32=""),"",O47/'Historical scenario - input'!$D32),"") -> 735.2923907 | AJ47: =IFERROR(IF(OR(P47="",'Historical scenario - input'!$D32=""),"",P47/'Historical scenario - input'!$D32),"") -> 722.7969319 | AK47: =IFERROR(IF(OR(Q47="",'Historical scenario - input'!$D32=""),"",Q47/'Historical scenario - input'!$D32),"") -> 710.962548 | AL47: =IFERROR(IF(OR(R47="",'Historical scenario - input'!$D32=""),"",R47/'Historical scenario - input'!$D32),"") -> 699.8084645 | AM47: =IFERROR(IF(OR(S47="",'Historical scenario - input'!$D32=""),"",S47/'Historical scenario - input'!$D32),"") -> 689.3856526 | AN47: =IFERROR(IF(OR(T47="",'Historical scenario - input'!$D32=""),"",T47/'Historical scenario - input'!$D32),"") -> 679.7581549 | AO47: =IFERROR(IF(OR(U47="",'Historical scenario - input'!$D32=""),"",U47/'Historical scenario - input'!$D32),"") -> 670.9839845 | AP47: =IFERROR(IF(OR(V47="",'Historical scenario - input'!$D32=""),"",V47/'Historical scenario - input'!$D32),"") -> 663.0982682 | AQ47: =IFERROR(IF(OR(W47="",'Historical scenario - input'!$D32=""),"",W47/'Historical scenario - input'!$D32),"") -> 656.1008066
A48: =IFERROR('Historical scenario - input'!A33,"") -> 4 | B48: =IFERROR('Historical scenario - input'!B33,"") -> SWITCHGEAR | C48: =IFERROR('Historical scenario - input'!C33,"") -> ˂ = 11 kV ; Circuit Breaker | D48: =IFERROR(repcalc('Historical scenario - input'!$CV33:$GH33,'Historical scenario - input'!$G33,'Historical scenario - input'!$E33,'Historical scenario - input'!$F33,20,TRUE,TRUE),"") -> 1347.205799 | E48: 1308.226314 | F48: 1281.971193 | G48: 1267.519067 | H48: 1263.938022 | I48: 1270.247533 | J48: 1285.417789 | K48: 1308.400431 | L48: 1338.180735 | M48: 1373.839469 | N48: 1414.6127 | O48: 1459.939644 | P48: 1509.491644 | Q48: 1563.179086 | R48: 1621.136955 | S48: 1683.693222 | T48: 1751.327043 | U48: 1824.625437 | V48: 1904.247596 | W48: 1990.905227 | X48: =IFERROR(IF(OR(D48="",'Historical scenario - input'!$D33=""),"",D48/'Historical scenario - input'!$D33),"") -> 50.71524275 | Y48: =IFERROR(IF(OR(E48="",'Historical scenario - input'!$D33=""),"",E48/'Historical scenario - input'!$D33),"") -> 49.24786928 | Z48: =IFERROR(IF(OR(F48="",'Historical scenario - input'!$D33=""),"",F48/'Historical scenario - input'!$D33),"") -> 48.25950149 | AA48: =IFERROR(IF(OR(G48="",'Historical scenario - input'!$D33=""),"",G48/'Historical scenario - input'!$D33),"") -> 47.71545461 | AB48: =IFERROR(IF(OR(H48="",'Historical scenario - input'!$D33=""),"",H48/'Historical scenario - input'!$D33),"") -> 47.58064704 | AC48: =IFERROR(IF(OR(I48="",'Historical scenario - input'!$D33=""),"",I48/'Historical scenario - input'!$D33),"") -> 47.81816706 | AD48: =IFERROR(IF(OR(J48="",'Historical scenario - input'!$D33=""),"",J48/'Historical scenario - input'!$D33),"") -> 48.38924777 | AE48: =IFERROR(IF(OR(K48="",'Historical scenario - input'!$D33=""),"",K48/'Historical scenario - input'!$D33),"") -> 49.25442388 | AF48: =IFERROR(IF(OR(L48="",'Historical scenario - input'!$D33=""),"",L48/'Historical scenario - input'!$D33),"") -> 50.37549636 | AG48: =IFERROR(IF(OR(M48="",'Historical scenario - input'!$D33=""),"",M48/'Historical scenario - input'!$D33),"") -> 51.71786092 | AH48: =IFERROR(IF(OR(N48="",'Historical scenario - input'!$D33=""),"",N48/'Historical scenario - input'!$D33),"") -> 53.25275953 | AI48: =IFERROR(IF(OR(O48="",'Historical scenario - input'!$D33=""),"",O48/'Historical scenario - input'!$D33),"") -> 54.95908161 | AJ48: =IFERROR(IF(OR(P48="",'Historical scenario - input'!$D33=""),"",P48/'Historical scenario - input'!$D33),"") -> 56.82445488 | AK48: =IFERROR(IF(OR(Q48="",'Historical scenario - input'!$D33=""),"",Q48/'Historical scenario - input'!$D33),"") -> 58.84550591 | AL48: =IFERROR(IF(OR(R48="",'Historical scenario - input'!$D33=""),"",R48/'Historical scenario - input'!$D33),"") -> 61.02731614 | AM48: =IFERROR(IF(OR(S48="",'Historical scenario - input'!$D33=""),"",S48/'Historical scenario - input'!$D33),"") -> 63.38223197 | AN48: =IFERROR(IF(OR(T48="",'Historical scenario - input'!$D33=""),"",T48/'Historical scenario - input'!$D33),"") -> 65.92829113 | AO48: =IFERROR(IF(OR(U48="",'Historical scenario - input'!$D33=""),"",U48/'Historical scenario - input'!$D33),"") -> 68.68759178 | AP48: =IFERROR(IF(OR(V48="",'Historical scenario - input'!$D33=""),"",V48/'Historical scenario - input'!$D33),"") -> 71.68494905 | AQ48: =IFERROR(IF(OR(W48="",'Historical scenario - input'!$D33=""),"",W48/'Historical scenario - input'!$D33),"") -> 74.94715503
A49: =IFERROR('Historical scenario - input'!A34,"") -> 4 | B49: =IFERROR('Historical scenario - input'!B34,"") -> SWITCHGEAR | C49: =IFERROR('Historical scenario - input'!C34,"") -> > 11 kV & < = 22 kV ; Switch | D49: =IFERROR(repcalc('Historical scenario - input'!$CV34:$GH34,'Historical scenario - input'!$G34,'Historical scenario - input'!$E34,'Historical scenario - input'!$F34,20,TRUE,TRUE),"") -> 11087.09569 | E49: 10625.38059 | F49: 10227.68595 | G49: 9869.124179 | H49: 9537.698648 | I49: 9229.686898 | J49: 8946.361946 | K49: 8691.673901 | L49: 8470.613626 | M49: 8288.06401 | N49: 8148.00938 | O49: 8053.019921 | P49: 8003.958034 | Q49: 7999.870755 | R49: 8038.04018 | S49: 8114.165737 | T49: 8222.651049 | U49: 8356.966287 | V49: 8510.056014 | W49: 8674.763328 | X49: =IFERROR(IF(OR(D49="",'Historical scenario - input'!$D34=""),"",D49/'Historical scenario - input'!$D34),"") -> 920.2408964 | Y49: =IFERROR(IF(OR(E49="",'Historical scenario - input'!$D34=""),"",E49/'Historical scenario - input'!$D34),"") -> 881.9180454 | Z49: =IFERROR(IF(OR(F49="",'Historical scenario - input'!$D34=""),"",F49/'Historical scenario - input'!$D34),"") -> 848.9089613 | AA49: =IFERROR(IF(OR(G49="",'Historical scenario - input'!$D34=""),"",G49/'Historical scenario - input'!$D34),"") -> 819.1479476 | AB49: =IFERROR(IF(OR(H49="",'Historical scenario - input'!$D34=""),"",H49/'Historical scenario - input'!$D34),"") -> 791.6392712 | AC49: =IFERROR(IF(OR(I49="",'Historical scenario - input'!$D34=""),"",I49/'Historical scenario - input'!$D34),"") -> 766.0739639 | AD49: =IFERROR(IF(OR(J49="",'Historical scenario - input'!$D34=""),"",J49/'Historical scenario - input'!$D34),"") -> 742.5576873 | AE49: =IFERROR(IF(OR(K49="",'Historical scenario - input'!$D34=""),"",K49/'Historical scenario - input'!$D34),"") -> 721.418305 | AF49: =IFERROR(IF(OR(L49="",'Historical scenario - input'!$D34=""),"",L49/'Historical scenario - input'!$D34),"") -> 703.0700639 | AG49: =IFERROR(IF(OR(M49="",'Historical scenario - input'!$D34=""),"",M49/'Historical scenario - input'!$D34),"") -> 687.9182489 | AH49: =IFERROR(IF(OR(N49="",'Historical scenario - input'!$D34=""),"",N49/'Historical scenario - input'!$D34),"") -> 676.2935636 | AI49: =IFERROR(IF(OR(O49="",'Historical scenario - input'!$D34=""),"",O49/'Historical scenario - input'!$D34),"") -> 668.4093361 | AJ49: =IFERROR(IF(OR(P49="",'Historical scenario - input'!$D34=""),"",P49/'Historical scenario - input'!$D34),"") -> 664.3371465 | AK49: =IFERROR(IF(OR(Q49="",'Historical scenario - input'!$D34=""),"",Q49/'Historical scenario - input'!$D34),"") -> 663.997898 | AL49: =IFERROR(IF(OR(R49="",'Historical scenario - input'!$D34=""),"",R49/'Historical scenario - input'!$D34),"") -> 667.1660014 | AM49: =IFERROR(IF(OR(S49="",'Historical scenario - input'!$D34=""),"",S49/'Historical scenario - input'!$D34),"") -> 673.4845048 | AN49: =IFERROR(IF(OR(T49="",'Historical scenario - input'!$D34=""),"",T49/'Historical scenario - input'!$D34),"") -> 682.4889026 | AO49: =IFERROR(IF(OR(U49="",'Historical scenario - input'!$D34=""),"",U49/'Historical scenario - input'!$D34),"") -> 693.6372122 | AP49: =IFERROR(IF(OR(V49="",'Historical scenario - input'!$D34=""),"",V49/'Historical scenario - input'!$D34),"") -> 706.3438246 | AQ49: =IFERROR(IF(OR(W49="",'Historical scenario - input'!$D34=""),"",W49/'Historical scenario - input'!$D34),"") -> 720.0147092
A50: =IFERROR('Historical scenario - input'!A35,"") -> 4 | B50: =IFERROR('Historical scenario - input'!B35,"") -> SWITCHGEAR | C50: =IFERROR('Historical scenario - input'!C35,"") -> > 11 kV & < = 22 kV ; Circuit Breaker | D50: =IFERROR(repcalc('Historical scenario - input'!$CV35:$GH35,'Historical scenario - input'!$G35,'Historical scenario - input'!$E35,'Historical scenario - input'!$F35,20,TRUE,TRUE),"") -> 1156.43575 | E50: 1061.120439 | F50: 976.2911374 | G50: 901.8436747 | H50: 837.6780728 | I50: 783.690864 | J50: 739.7624109 | K50: 705.7395392 | L50: 681.4156121 | M50: 666.5112765 | N50: 660.6594008 | O50: 663.3972911 | P50: 674.1683264 | Q50: 692.3339755 | R50: 717.1959972 | S50: 748.0276878 | T50: 784.1124048 | U50: 824.7872788 | V50: 869.4899197 | W50: 917.8059027 | X50: =IFERROR(IF(OR(D50="",'Historical scenario - input'!$D35=""),"",D50/'Historical scenario - input'!$D35),"") -> 31.86211251 | Y50: =IFERROR(IF(OR(E50="",'Historical scenario - input'!$D35=""),"",E50/'Historical scenario - input'!$D35),"") -> 29.23598549 | Z50: =IFERROR(IF(OR(F50="",'Historical scenario - input'!$D35=""),"",F50/'Historical scenario - input'!$D35),"") -> 26.89876897 | AA50: =IFERROR(IF(OR(G50="",'Historical scenario - input'!$D35=""),"",G50/'Historical scenario - input'!$D35),"") -> 24.84759282 | AB50: =IFERROR(IF(OR(H50="",'Historical scenario - input'!$D35=""),"",H50/'Historical scenario - input'!$D35),"") -> 23.07970245 | AC50: =IFERROR(IF(OR(I50="",'Historical scenario - input'!$D35=""),"",I50/'Historical scenario - input'!$D35),"") -> 21.59224712 | AD50: =IFERROR(IF(OR(J50="",'Historical scenario - input'!$D35=""),"",J50/'Historical scenario - input'!$D35),"") -> 20.38193058 | AE50: =IFERROR(IF(OR(K50="",'Historical scenario - input'!$D35=""),"",K50/'Historical scenario - input'!$D35),"") -> 19.44453257 | AF50: =IFERROR(IF(OR(L50="",'Historical scenario - input'!$D35=""),"",L50/'Historical scenario - input'!$D35),"") -> 18.77435984 | AG50: =IFERROR(IF(OR(M50="",'Historical scenario - input'!$D35=""),"",M50/'Historical scenario - input'!$D35),"") -> 18.36371565 | AH50: =IFERROR(IF(OR(N50="",'Historical scenario - input'!$D35=""),"",N50/'Historical scenario - input'!$D35),"") -> 18.2024848 | AI50: =IFERROR(IF(OR(O50="",'Historical scenario - input'!$D35=""),"",O50/'Historical scenario - input'!$D35),"") -> 18.27791914 | AJ50: =IFERROR(IF(OR(P50="",'Historical scenario - input'!$D35=""),"",P50/'Historical scenario - input'!$D35),"") -> 18.57468266 | AK50: =IFERROR(IF(OR(Q50="",'Historical scenario - input'!$D35=""),"",Q50/'Historical scenario - input'!$D35),"") -> 19.07518254 | AL50: =IFERROR(IF(OR(R50="",'Historical scenario - input'!$D35=""),"",R50/'Historical scenario - input'!$D35),"") -> 19.76018085 | AM50: =IFERROR(IF(OR(S50="",'Historical scenario - input'!$D35=""),"",S50/'Historical scenario - input'!$D35),"") -> 20.60965545 | AN50: =IFERROR(IF(OR(T50="",'Historical scenario - input'!$D35=""),"",T50/'Historical scenario - input'!$D35),"") -> 21.60386141 | AO50: =IFERROR(IF(OR(U50="",'Historical scenario - input'!$D35=""),"",U50/'Historical scenario - input'!$D35),"") -> 22.72453535 | AP50: =IFERROR(IF(OR(V50="",'Historical scenario - input'!$D35=""),"",V50/'Historical scenario - input'!$D35),"") -> 23.95618231 | AQ50: =IFERROR(IF(OR(W50="",'Historical scenario - input'!$D35=""),"",W50/'Historical scenario - input'!$D35),"") -> 25.28738405
A51: =IFERROR('Historical scenario - input'!A36,"") -> 4 | B51: =IFERROR('Historical scenario - input'!B36,"") -> SWITCHGEAR | C51: =IFERROR('Historical scenario - input'!C36,"") -> > 22 kV & < = 33 kV ; Switch | D51: =IFERROR(repcalc('Historical scenario - input'!$CV36:$GH36,'Historical scenario - input'!$G36,'Historical scenario - input'!$E36,'Historical scenario - input'!$F36,20,TRUE,TRUE),"") -> 618.3614746 | E51: 576.2052336 | F51: 539.4939044 | G51: 508.0568887 | H51: 481.7044708 | I51: 460.2456795 | J51: 443.490788 | K51: 431.2429119 | L51: 423.2838907 | M51: 419.3594653 | N51: 419.1679008 | O51: 422.3549032 | P51: 428.5162177 | Q51: 437.2078903 | R51: 447.9630102 | S51: 460.3129227 | T51: 473.8104664 | U51: 488.0527263 | V51: 502.7010585 | W51: 517.4966408 | X51: =IFERROR(IF(OR(D51="",'Historical scenario - input'!$D36=""),"",D51/'Historical scenario - input'!$D36),"") -> 44.16273065 | Y51: =IFERROR(IF(OR(E51="",'Historical scenario - input'!$D36=""),"",E51/'Historical scenario - input'!$D36),"") -> 41.15197594 | Z51: =IFERROR(IF(OR(F51="",'Historical scenario - input'!$D36=""),"",F51/'Historical scenario - input'!$D36),"") -> 38.53009116 | AA51: =IFERROR(IF(OR(G51="",'Historical scenario - input'!$D36=""),"",G51/'Historical scenario - input'!$D36),"") -> 36.28489233 | AB51: =IFERROR(IF(OR(H51="",'Historical scenario - input'!$D36=""),"",H51/'Historical scenario - input'!$D36),"") -> 34.40283017 | AC51: =IFERROR(IF(OR(I51="",'Historical scenario - input'!$D36=""),"",I51/'Historical scenario - input'!$D36),"") -> 32.87026571 | AD51: =IFERROR(IF(OR(J51="",'Historical scenario - input'!$D36=""),"",J51/'Historical scenario - input'!$D36),"") -> 31.67364886 | AE51: =IFERROR(IF(OR(K51="",'Historical scenario - input'!$D36=""),"",K51/'Historical scenario - input'!$D36),"") -> 30.79891834 | AF51: =IFERROR(IF(OR(L51="",'Historical scenario - input'!$D36=""),"",L51/'Historical scenario - input'!$D36),"") -> 30.23049336 | AG51: =IFERROR(IF(OR(M51="",'Historical scenario - input'!$D36=""),"",M51/'Historical scenario - input'!$D36),"") -> 29.95021499 | AH51: =IFERROR(IF(OR(N51="",'Historical scenario - input'!$D36=""),"",N51/'Historical scenario - input'!$D36),"") -> 29.93653366 | AI51: =IFERROR(IF(OR(O51="",'Historical scenario - input'!$D36=""),"",O51/'Historical scenario - input'!$D36),"") -> 30.16414604 | AJ51: =IFERROR(IF(OR(P51="",'Historical scenario - input'!$D36=""),"",P51/'Historical scenario - input'!$D36),"") -> 30.60418069 | AK51: =IFERROR(IF(OR(Q51="",'Historical scenario - input'!$D36=""),"",Q51/'Historical scenario - input'!$D36),"") -> 31.22493086 | AL51: =IFERROR(IF(OR(R51="",'Historical scenario - input'!$D36=""),"",R51/'Historical scenario - input'!$D36),"") -> 31.99305029 | AM51: =IFERROR(IF(OR(S51="",'Historical scenario - input'!$D36=""),"",S51/'Historical scenario - input'!$D36),"") -> 32.87506815 | AN51: =IFERROR(IF(OR(T51="",'Historical scenario - input'!$D36=""),"",T51/'Historical scenario - input'!$D36),"") -> 33.83904862 | AO51: =IFERROR(IF(OR(U51="",'Historical scenario - input'!$D36=""),"",U51/'Historical scenario - input'!$D36),"") -> 34.85621595 | AP51: =IFERROR(IF(OR(V51="",'Historical scenario - input'!$D36=""),"",V51/'Historical scenario - input'!$D36),"") -> 35.90238453 | AQ51: =IFERROR(IF(OR(W51="",'Historical scenario - input'!$D36=""),"",W51/'Historical scenario - input'!$D36),"") -> 36.95906957
A52: =IFERROR('Historical scenario - input'!A37,"") -> 4 | B52: =IFERROR('Historical scenario - input'!B37,"") -> SWITCHGEAR | C52: =IFERROR('Historical scenario - input'!C37,"") -> > 22 kV & < = 33 kV ; Circuit Breaker | D52: =IFERROR(repcalc('Historical scenario - input'!$CV37:$GH37,'Historical scenario - input'!$G37,'Historical scenario - input'!$E37,'Historical scenario - input'!$F37,20,TRUE,TRUE),"") -> 344.9322829 | E52: 287.5701984 | F52: 246.9665117 | G52: 219.4006001 | H52: 202.2333575 | I52: 193.7063461 | J52: 192.7416672 | K52: 198.7592886 | L52: 211.5210466 | M52: 231.0035342 | N52: 257.2964031 | O52: 290.5188809 | P52: 330.7458839 | Q52: 377.9360717 | R52: 431.8573039 | S52: 492.0096582 | T52: 557.5515644 | U52: 627.2395254 | V52: 699.3950854 | W52: 771.9130633 | X52: =IFERROR(IF(OR(D52="",'Historical scenario - input'!$D37=""),"",D52/'Historical scenario - input'!$D37),"") -> 6.123714376 | Y52: =IFERROR(IF(OR(E52="",'Historical scenario - input'!$D37=""),"",E52/'Historical scenario - input'!$D37),"") -> 5.105343412 | Z52: =IFERROR(IF(OR(F52="",'Historical scenario - input'!$D37=""),"",F52/'Historical scenario - input'!$D37),"") -> 4.384490676 | AA52: =IFERROR(IF(OR(G52="",'Historical scenario - input'!$D37=""),"",G52/'Historical scenario - input'!$D37),"") -> 3.895102533 | AB52: =IFERROR(IF(OR(H52="",'Historical scenario - input'!$D37=""),"",H52/'Historical scenario - input'!$D37),"") -> 3.590325929 | AC52: =IFERROR(IF(OR(I52="",'Historical scenario - input'!$D37=""),"",I52/'Historical scenario - input'!$D37),"") -> 3.438942642 | AD52: =IFERROR(IF(OR(J52="",'Historical scenario - input'!$D37=""),"",J52/'Historical scenario - input'!$D37),"") -> 3.42181633 | AE52: =IFERROR(IF(OR(K52="",'Historical scenario - input'!$D37=""),"",K52/'Historical scenario - input'!$D37),"") -> 3.528649458 | AF52: =IFERROR(IF(OR(L52="",'Historical scenario - input'!$D37=""),"",L52/'Historical scenario - input'!$D37),"") -> 3.755213816 | AG52: =IFERROR(IF(OR(M52="",'Historical scenario - input'!$D37=""),"",M52/'Historical scenario - input'!$D37),"") -> 4.101093849 | AH52: =IFERROR(IF(OR(N52="",'Historical scenario - input'!$D37=""),"",N52/'Historical scenario - input'!$D37),"") -> 4.567881178 | AI52: =IFERROR(IF(OR(O52="",'Historical scenario - input'!$D37=""),"",O52/'Historical scenario - input'!$D37),"") -> 5.157692497 | AJ52: =IFERROR(IF(OR(P52="",'Historical scenario - input'!$D37=""),"",P52/'Historical scenario - input'!$D37),"") -> 5.871857823 | AK52: =IFERROR(IF(OR(Q52="",'Historical scenario - input'!$D37=""),"",Q52/'Historical scenario - input'!$D37),"") -> 6.709643227 | AL52: =IFERROR(IF(OR(R52="",'Historical scenario - input'!$D37=""),"",R52/'Historical scenario - input'!$D37),"") -> 7.666927428 | AM52: =IFERROR(IF(OR(S52="",'Historical scenario - input'!$D37=""),"",S52/'Historical scenario - input'!$D37),"") -> 8.734835116 | AN52: =IFERROR(IF(OR(T52="",'Historical scenario - input'!$D37=""),"",T52/'Historical scenario - input'!$D37),"") -> 9.898425574 | AO52: =IFERROR(IF(OR(U52="",'Historical scenario - input'!$D37=""),"",U52/'Historical scenario - input'!$D37),"") -> 11.13562252 | AP52: =IFERROR(IF(OR(V52="",'Historical scenario - input'!$D37=""),"",V52/'Historical scenario - input'!$D37),"") -> 12.4166277 | AQ52: =IFERROR(IF(OR(W52="",'Historical scenario - input'!$D37=""),"",W52/'Historical scenario - input'!$D37),"") -> 13.70406702
A53: =IFERROR('Historical scenario - input'!A38,"") -> 4 | B53: =IFERROR('Historical scenario - input'!B38,"") -> SWITCHGEAR | C53: =IFERROR('Historical scenario - input'!C38,"") -> > 33 kV & < = 66 kV ; Switch | D53: =IFERROR(repcalc('Historical scenario - input'!$CV38:$GH38,'Historical scenario - input'!$G38,'Historical scenario - input'!$E38,'Historical scenario - input'!$F38,20,TRUE,TRUE),"") -> 302.0217381 | E53: 340.4338977 | F53: 381.5036864 | G53: 425.0464138 | H53: 470.7986459 | I53: 518.4117971 | J53: 567.4491855 | K53: 617.3879351 | L53: 667.6268894 | M53: 717.5012565 | N53: 766.3040652 | O53: 813.3137397 | P53: 857.826278 | Q53: 899.1897781 | R53: 936.8384914 | S53: 970.3233103 | T53: 999.3356756 | U53: 1023.722344 | V53: 1043.489253 | W53: 1058.79378 | X53: =IFERROR(IF(OR(D53="",'Historical scenario - input'!$D38=""),"",D53/'Historical scenario - input'!$D38),"") -> 10.42687917 | Y53: =IFERROR(IF(OR(E53="",'Historical scenario - input'!$D38=""),"",E53/'Historical scenario - input'!$D38),"") -> 11.75300539 | Z53: =IFERROR(IF(OR(F53="",'Historical scenario - input'!$D38=""),"",F53/'Historical scenario - input'!$D38),"") -> 13.17088255 | AA53: =IFERROR(IF(OR(G53="",'Historical scenario - input'!$D38=""),"",G53/'Historical scenario - input'!$D38),"") -> 14.67413446 | AB53: =IFERROR(IF(OR(H53="",'Historical scenario - input'!$D38=""),"",H53/'Historical scenario - input'!$D38),"") -> 16.25366645 | AC53: =IFERROR(IF(OR(I53="",'Historical scenario - input'!$D38=""),"",I53/'Historical scenario - input'!$D38),"") -> 17.89744407 | AD53: =IFERROR(IF(OR(J53="",'Historical scenario - input'!$D38=""),"",J53/'Historical scenario - input'!$D38),"") -> 19.59039149 | AE53: =IFERROR(IF(OR(K53="",'Historical scenario - input'!$D38=""),"",K53/'Historical scenario - input'!$D38),"") -> 21.31445715 | AF53: =IFERROR(IF(OR(L53="",'Historical scenario - input'!$D38=""),"",L53/'Historical scenario - input'!$D38),"") -> 23.04888697 | AG53: =IFERROR(IF(OR(M53="",'Historical scenario - input'!$D38=""),"",M53/'Historical scenario - input'!$D38),"") -> 24.77072991 | AH53: =IFERROR(IF(OR(N53="",'Historical scenario - input'!$D38=""),"",N53/'Historical scenario - input'!$D38),"") -> 26.4555788 | AI53: =IFERROR(IF(OR(O53="",'Historical scenario - input'!$D38=""),"",O53/'Historical scenario - input'!$D38),"") -> 28.07852223 | AJ53: =IFERROR(IF(OR(P53="",'Historical scenario - input'!$D38=""),"",P53/'Historical scenario - input'!$D38),"") -> 29.61525551 | AK53: =IFERROR(IF(OR(Q53="",'Historical scenario - input'!$D38=""),"",Q53/'Historical scenario - input'!$D38),"") -> 31.04327265 | AL53: =IFERROR(IF(OR(R53="",'Historical scenario - input'!$D38=""),"",R53/'Historical scenario - input'!$D38),"") -> 32.34304195 | AM53: =IFERROR(IF(OR(S53="",'Historical scenario - input'!$D38=""),"",S53/'Historical scenario - input'!$D38),"") -> 33.49905861 | AN53: =IFERROR(IF(OR(T53="",'Historical scenario - input'!$D38=""),"",T53/'Historical scenario - input'!$D38),"") -> 34.50067005 | AO53: =IFERROR(IF(OR(U53="",'Historical scenario - input'!$D38=""),"",U53/'Historical scenario - input'!$D38),"") -> 35.34258576 | AP53: =IFERROR(IF(OR(V53="",'Historical scenario - input'!$D38=""),"",V53/'Historical scenario - input'!$D38),"") -> 36.0250107 | AQ53: =IFERROR(IF(OR(W53="",'Historical scenario - input'!$D38=""),"",W53/'Historical scenario - input'!$D38),"") -> 36.55337814
A54: =IFERROR('Historical scenario - input'!A39,"") -> 4 | B54: =IFERROR('Historical scenario - input'!B39,"") -> SWITCHGEAR | C54: =IFERROR('Historical scenario - input'!C39,"") -> > 33 kV & < = 66 kV ; Circuit Breaker | D54: =IFERROR(repcalc('Historical scenario - input'!$CV39:$GH39,'Historical scenario - input'!$G39,'Historical scenario - input'!$E39,'Historical scenario - input'!$F39,20,TRUE,TRUE),"") -> 699.6431308 | E54: 721.7734047 | F54: 742.7230142 | G54: 760.8508286 | H54: 775.0695419 | I54: 785.0018483 | J54: 791.0676621 | K54: 794.5054325 | L54: 797.3362413 | M54: 802.2810118 | N54: 812.6392102 | O54: 832.1332774 | P54: 864.7186884 | Q54: 914.3570525 | R54: 984.7505897 | S54: 1079.041217 | T54: 1199.48578 | U54: 1347.129033 | V54: 1521.505441 | W54: 1720.407328 | X54: =IFERROR(IF(OR(D54="",'Historical scenario - input'!$D39=""),"",D54/'Historical scenario - input'!$D39),"") -> 6.12595146 | Y54: =IFERROR(IF(OR(E54="",'Historical scenario - input'!$D39=""),"",E54/'Historical scenario - input'!$D39),"") -> 6.319720222 | Z54: =IFERROR(IF(OR(F54="",'Historical scenario - input'!$D39=""),"",F54/'Historical scenario - input'!$D39),"") -> 6.503151297 | AA54: =IFERROR(IF(OR(G54="",'Historical scenario - input'!$D39=""),"",G54/'Historical scenario - input'!$D39),"") -> 6.661875232 | AB54: =IFERROR(IF(OR(H54="",'Historical scenario - input'!$D39=""),"",H54/'Historical scenario - input'!$D39),"") -> 6.78637177 | AC54: =IFERROR(IF(OR(I54="",'Historical scenario - input'!$D39=""),"",I54/'Historical scenario - input'!$D39),"") -> 6.873337288 | AD54: =IFERROR(IF(OR(J54="",'Historical scenario - input'!$D39=""),"",J54/'Historical scenario - input'!$D39),"") -> 6.92644848 | AE54: =IFERROR(IF(OR(K54="",'Historical scenario - input'!$D39=""),"",K54/'Historical scenario - input'!$D39),"") -> 6.956548989 | AF54: =IFERROR(IF(OR(L54="",'Historical scenario - input'!$D39=""),"",L54/'Historical scenario - input'!$D39),"") -> 6.98133505 | AG54: =IFERROR(IF(OR(M54="",'Historical scenario - input'!$D39=""),"",M54/'Historical scenario - input'!$D39),"") -> 7.024630586 | AH54: =IFERROR(IF(OR(N54="",'Historical scenario - input'!$D39=""),"",N54/'Historical scenario - input'!$D39),"") -> 7.115325138 | AI54: =IFERROR(IF(OR(O54="",'Historical scenario - input'!$D39=""),"",O54/'Historical scenario - input'!$D39),"") -> 7.286011741 | AJ54: =IFERROR(IF(OR(P54="",'Historical scenario - input'!$D39=""),"",P54/'Historical scenario - input'!$D39),"") -> 7.571323834 | AK54: =IFERROR(IF(OR(Q54="",'Historical scenario - input'!$D39=""),"",Q54/'Historical scenario - input'!$D39),"") -> 8.005948567 | AL54: =IFERROR(IF(OR(R54="",'Historical scenario - input'!$D39=""),"",R54/'Historical scenario - input'!$D39),"") -> 8.622301924 | AM54: =IFERROR(IF(OR(S54="",'Historical scenario - input'!$D39=""),"",S54/'Historical scenario - input'!$D39),"") -> 9.44789397 | AN54: =IFERROR(IF(OR(T54="",'Historical scenario - input'!$D39=""),"",T54/'Historical scenario - input'!$D39),"") -> 10.50248525 | AO54: =IFERROR(IF(OR(U54="",'Historical scenario - input'!$D39=""),"",U54/'Historical scenario - input'!$D39),"") -> 11.79522345 | AP54: =IFERROR(IF(OR(V54="",'Historical scenario - input'!$D39=""),"",V54/'Historical scenario - input'!$D39),"") -> 13.32203243 | AQ54: =IFERROR(IF(OR(W54="",'Historical scenario - input'!$D39=""),"",W54/'Historical scenario - input'!$D39),"") -> 15.06358216
A55: =IFERROR('Historical scenario - input'!A40,"") -> 4 | B55: =IFERROR('Historical scenario - input'!B40,"") -> SWITCHGEAR | C55: =IFERROR('Historical scenario - input'!C40,"") -> > 66 kV & < = 132 kV ; Switch | D55: =IFERROR(repcalc('Historical scenario - input'!$CV40:$GH40,'Historical scenario - input'!$G40,'Historical scenario - input'!$E40,'Historical scenario - input'!$F40,20,TRUE,TRUE),"") -> 84.58590359 | E55: 92.04504453 | F55: 99.25816729 | G55: 106.139076 | H55: 112.6259026 | I55: 118.6847018 | J55: 124.3108054 | K55: 129.5278445 | L55: 134.3846361 | M55: 138.9504006 | N55: 143.3089925 | O55: 147.5529489 | P55: 151.7781668 | Q55: 156.0798966 | R55: 160.5505105 | S55: 165.2791859 | T55: 170.353293 | U55: 175.8609455 | V55: 181.8939155 | W55: 188.5499809 | X55: =IFERROR(IF(OR(D55="",'Historical scenario - input'!$D40=""),"",D55/'Historical scenario - input'!$D40),"") -> 0.9965148244 | Y55: =IFERROR(IF(OR(E55="",'Historical scenario - input'!$D40=""),"",E55/'Historical scenario - input'!$D40),"") -> 1.084391695 | Z55: =IFERROR(IF(OR(F55="",'Historical scenario - input'!$D40=""),"",F55/'Historical scenario - input'!$D40),"") -> 1.169370202 | AA55: =IFERROR(IF(OR(G55="",'Historical scenario - input'!$D40=""),"",G55/'Historical scenario - input'!$D40),"") -> 1.250434862 | AB55: =IFERROR(IF(OR(H55="",'Historical scenario - input'!$D40=""),"",H55/'Historical scenario - input'!$D40),"") -> 1.326856802 | AC55: =IFERROR(IF(OR(I55="",'Historical scenario - input'!$D40=""),"",I55/'Historical scenario - input'!$D40),"") -> 1.39823611 | AD55: =IFERROR(IF(OR(J55="",'Historical scenario - input'!$D40=""),"",J55/'Historical scenario - input'!$D40),"") -> 1.464517788 | AE55: =IFERROR(IF(OR(K55="",'Historical scenario - input'!$D40=""),"",K55/'Historical scenario - input'!$D40),"") -> 1.525980237 | AF55: =IFERROR(IF(OR(L55="",'Historical scenario - input'!$D40=""),"",L55/'Historical scenario - input'!$D40),"") -> 1.583198575 | AG55: =IFERROR(IF(OR(M55="",'Historical scenario - input'!$D40=""),"",M55/'Historical scenario - input'!$D40),"") -> 1.636988295 | AH55: =IFERROR(IF(OR(N55="",'Historical scenario - input'!$D40=""),"",N55/'Historical scenario - input'!$D40),"") -> 1.688337292 | AI55: =IFERROR(IF(OR(O55="",'Historical scenario - input'!$D40=""),"",O55/'Historical scenario - input'!$D40),"") -> 1.73833576 | AJ55: =IFERROR(IF(OR(P55="",'Historical scenario - input'!$D40=""),"",P55/'Historical scenario - input'!$D40),"") -> 1.788113466 | AK55: =IFERROR(IF(OR(Q55="",'Historical scenario - input'!$D40=""),"",Q55/'Historical scenario - input'!$D40),"") -> 1.838792566 | AL55: =IFERROR(IF(OR(R55="",'Historical scenario - input'!$D40=""),"",R55/'Historical scenario - input'!$D40),"") -> 1.891461307 | AM55: =IFERROR(IF(OR(S55="",'Historical scenario - input'!$D40=""),"",S55/'Historical scenario - input'!$D40),"") -> 1.947170295 | AN55: =IFERROR(IF(OR(T55="",'Historical scenario - input'!$D40=""),"",T55/'Historical scenario - input'!$D40),"") -> 2.006948848 | AO55: =IFERROR(IF(OR(U55="",'Historical scenario - input'!$D40=""),"",U55/'Historical scenario - input'!$D40),"") -> 2.071835043 | AP55: =IFERROR(IF(OR(V55="",'Historical scenario - input'!$D40=""),"",V55/'Historical scenario - input'!$D40),"") -> 2.142910054 | AQ55: =IFERROR(IF(OR(W55="",'Historical scenario - input'!$D40=""),"",W55/'Historical scenario - input'!$D40),"") -> 2.221325813
A56: =IFERROR('Historical scenario - input'!A41,"") -> 4 | B56: =IFERROR('Historical scenario - input'!B41,"") -> SWITCHGEAR | C56: =IFERROR('Historical scenario - input'!C41,"") -> > 66 kV & < = 132 kV ; Circuit Breaker | D56: =IFERROR(repcalc('Historical scenario - input'!$CV41:$GH41,'Historical scenario - input'!$G41,'Historical scenario - input'!$E41,'Historical scenario - input'!$F41,20,TRUE,TRUE),"") -> 90.03173478 | E56: 105.7889362 | F56: 123.3939676 | G56: 142.7571221 | H56: 163.6825207 | I56: 185.8665884 | J56: 208.91073 | K56: 232.3496732 | L56: 255.6947556 | M56: 278.4890217 | N56: 300.3687489 | O56: 321.1243751 | P56: 340.7530779 | Q56: 359.4956409 | R56: 377.8517312 | S56: 396.5700761 | T56: 416.6129094 | U56: 439.0969991 | V56: 465.2161283 | W56: 496.1517328 | X56: =IFERROR(IF(OR(D56="",'Historical scenario - input'!$D41=""),"",D56/'Historical scenario - input'!$D41),"") -> 0.3503367791 | Y56: =IFERROR(IF(OR(E56="",'Historical scenario - input'!$D41=""),"",E56/'Historical scenario - input'!$D41),"") -> 0.4116521277 | Z56: =IFERROR(IF(OR(F56="",'Historical scenario - input'!$D41=""),"",F56/'Historical scenario - input'!$D41),"") -> 0.4801578609 | AA56: =IFERROR(IF(OR(G56="",'Historical scenario - input'!$D41=""),"",G56/'Historical scenario - input'!$D41),"") -> 0.5555049057 | AB56: =IFERROR(IF(OR(H56="",'Historical scenario - input'!$D41=""),"",H56/'Historical scenario - input'!$D41),"") -> 0.6369310471 | AC56: =IFERROR(IF(OR(I56="",'Historical scenario - input'!$D41=""),"",I56/'Historical scenario - input'!$D41),"") -> 0.7232549953 | AD56: =IFERROR(IF(OR(J56="",'Historical scenario - input'!$D41=""),"",J56/'Historical scenario - input'!$D41),"") -> 0.812925714 | AE56: =IFERROR(IF(OR(K56="",'Historical scenario - input'!$D41=""),"",K56/'Historical scenario - input'!$D41),"") -> 0.9041327074 | AF56: =IFERROR(IF(OR(L56="",'Historical scenario - input'!$D41=""),"",L56/'Historical scenario - input'!$D41),"") -> 0.9949744645 | AG56: =IFERROR(IF(OR(M56="",'Historical scenario - input'!$D41=""),"",M56/'Historical scenario - input'!$D41),"") -> 1.083672853 | AH56: =IFERROR(IF(OR(N56="",'Historical scenario - input'!$D41=""),"",N56/'Historical scenario - input'!$D41),"") -> 1.168812533 | AI56: =IFERROR(IF(OR(O56="",'Historical scenario - input'!$D41=""),"",O56/'Historical scenario - input'!$D41),"") -> 1.249578046 | AJ56: =IFERROR(IF(OR(P56="",'Historical scenario - input'!$D41=""),"",P56/'Historical scenario - input'!$D41),"") -> 1.325958409 | AK56: =IFERROR(IF(OR(Q56="",'Historical scenario - input'!$D41=""),"",Q56/'Historical scenario - input'!$D41),"") -> 1.398890572 | AL56: =IFERROR(IF(OR(R56="",'Historical scenario - input'!$D41=""),"",R56/'Historical scenario - input'!$D41),"") -> 1.470318869 | AM56: =IFERROR(IF(OR(S56="",'Historical scenario - input'!$D41=""),"",S56/'Historical scenario - input'!$D41),"") -> 1.543156793 | AN56: =IFERROR(IF(OR(T56="",'Historical scenario - input'!$D41=""),"",T56/'Historical scenario - input'!$D41),"") -> 1.621148645 | AO56: =IFERROR(IF(OR(U56="",'Historical scenario - input'!$D41=""),"",U56/'Historical scenario - input'!$D41),"") -> 1.708640056 | AP56: =IFERROR(IF(OR(V56="",'Historical scenario - input'!$D41=""),"",V56/'Historical scenario - input'!$D41),"") -> 1.810276347 | AQ56: =IFERROR(IF(OR(W56="",'Historical scenario - input'!$D41=""),"",W56/'Historical scenario - input'!$D41),"") -> 1.93065479
A57: =IFERROR('Historical scenario - input'!A42,"") -> 5 | B57: =IFERROR('Historical scenario - input'!B42,"") -> TRANSFORMERS | C57: =IFERROR('Historical scenario - input'!C42,"") -> Pole Mounted ; < = 22kV ; < = 60 kVA ; Single Phase | D57: =IFERROR(repcalc('Historical scenario - input'!$CV42:$GH42,'Historical scenario - input'!$G42,'Historical scenario - input'!$E42,'Historical scenario - input'!$F42,20,TRUE,TRUE),"") -> 2908.049625 | E57: 2935.210542 | F57: 2961.518979 | G57: 2986.377046 | H57: 3009.562733 | I57: 3031.223673 | J57: 3051.853627 | K57: 3072.25201 | L57: 3093.467496 | M57: 3116.72784 | N57: 3143.359205 | O57: 3174.699347 | P57: 3212.009758 | Q57: 3256.392146 | R57: 3308.714437 | S57: 3369.550732 | T57: 3439.138573 | U57: 3517.355495 | V57: 3603.715414 | W57: 3697.3841 | X57: =IFERROR(IF(OR(D57="",'Historical scenario - input'!$D42=""),"",D57/'Historical scenario - input'!$D42),"") -> 886.8235726 | Y57: =IFERROR(IF(OR(E57="",'Historical scenario - input'!$D42=""),"",E57/'Historical scenario - input'!$D42),"") -> 895.1064234 | Z57: =IFERROR(IF(OR(F57="",'Historical scenario - input'!$D42=""),"",F57/'Historical scenario - input'!$D42),"") -> 903.1293067 | AA57: =IFERROR(IF(OR(G57="",'Historical scenario - input'!$D42=""),"",G57/'Historical scenario - input'!$D42),"") -> 910.7098925 | AB57: =IFERROR(IF(OR(H57="",'Historical scenario - input'!$D42=""),"",H57/'Historical scenario - input'!$D42),"") -> 917.7804782 | AC57: =IFERROR(IF(OR(I57="",'Historical scenario - input'!$D42=""),"",I57/'Historical scenario - input'!$D42),"") -> 924.3860847 | AD57: =IFERROR(IF(OR(J57="",'Historical scenario - input'!$D42=""),"",J57/'Historical scenario - input'!$D42),"") -> 930.6772874 | AE57: =IFERROR(IF(OR(K57="",'Historical scenario - input'!$D42=""),"",K57/'Historical scenario - input'!$D42),"") -> 936.8978714 | AF57: =IFERROR(IF(OR(L57="",'Historical scenario - input'!$D42=""),"",L57/'Historical scenario - input'!$D42),"") -> 943.3676349 | AG57: =IFERROR(IF(OR(M57="",'Historical scenario - input'!$D42=""),"",M57/'Historical scenario - input'!$D42),"") -> 950.4609875 | AH57: =IFERROR(IF(OR(N57="",'Historical scenario - input'!$D42=""),"",N57/'Historical scenario - input'!$D42),"") -> 958.5823489 | AI57: =IFERROR(IF(OR(O57="",'Historical scenario - input'!$D42=""),"",O57/'Historical scenario - input'!$D42),"") -> 968.1396745 | AJ57: =IFERROR(IF(OR(P57="",'Historical scenario - input'!$D42=""),"",P57/'Historical scenario - input'!$D42),"") -> 979.5176617 | AK57: =IFERROR(IF(OR(Q57="",'Historical scenario - input'!$D42=""),"",Q57/'Historical scenario - input'!$D42),"") -> 993.0522822 | AL57: =IFERROR(IF(OR(R57="",'Historical scenario - input'!$D42=""),"",R57/'Historical scenario - input'!$D42),"") -> 1009.008214 | AM57: =IFERROR(IF(OR(S57="",'Historical scenario - input'!$D42=""),"",S57/'Historical scenario - input'!$D42),"") -> 1027.560531 | AN57: =IFERROR(IF(OR(T57="",'Historical scenario - input'!$D42=""),"",T57/'Historical scenario - input'!$D42),"") -> 1048.781675 | AO57: =IFERROR(IF(OR(U57="",'Historical scenario - input'!$D42=""),"",U57/'Historical scenario - input'!$D42),"") -> 1072.634297 | AP57: =IFERROR(IF(OR(V57="",'Historical scenario - input'!$D42=""),"",V57/'Historical scenario - input'!$D42),"") -> 1098.970166 | AQ57: =IFERROR(IF(OR(W57="",'Historical scenario - input'!$D42=""),"",W57/'Historical scenario - input'!$D42),"") -> 1127.534877
A58: =IFERROR('Historical scenario - input'!A43,"") -> 5 | B58: =IFERROR('Historical scenario - input'!B43,"") -> TRANSFORMERS | C58: =IFERROR('Historical scenario - input'!C43,"") -> Pole Mounted ; < = 22kV ; > 60 kVA and < = 600 kVA ; Single Phase | D58: =IFERROR(repcalc('Historical scenario - input'!$CV43:$GH43,'Historical scenario - input'!$G43,'Historical scenario - input'!$E43,'Historical scenario - input'!$F43,20,TRUE,TRUE),"") -> 78.57221203 | E58: 72.12218832 | F58: 66.65403669 | G58: 62.00903828 | H58: 58.0665754 | I58: 54.73866396 | J58: 51.96482406 | K58: 49.70745193 | L58: 47.9477658 | M58: 46.68234246 | N58: 45.92022187 | O58: 45.68052308 | P58: 45.99047944 | Q58: 46.88376402 | R58: 48.39894153 | S58: 50.57785797 | T58: 53.4637712 | U58: 57.09904224 | V58: 61.52225212 | W58: 66.76468194 | X58: =IFERROR(IF(OR(D58="",'Historical scenario - input'!$D43=""),"",D58/'Historical scenario - input'!$D43),"") -> 11.85786429 | Y58: =IFERROR(IF(OR(E58="",'Historical scenario - input'!$D43=""),"",E58/'Historical scenario - input'!$D43),"") -> 10.88444756 | Z58: =IFERROR(IF(OR(F58="",'Historical scenario - input'!$D43=""),"",F58/'Historical scenario - input'!$D43),"") -> 10.05921179 | AA58: =IFERROR(IF(OR(G58="",'Historical scenario - input'!$D43=""),"",G58/'Historical scenario - input'!$D43),"") -> 9.358203644 | AB58: =IFERROR(IF(OR(H58="",'Historical scenario - input'!$D43=""),"",H58/'Historical scenario - input'!$D43),"") -> 8.763219888 | AC58: =IFERROR(IF(OR(I58="",'Historical scenario - input'!$D43=""),"",I58/'Historical scenario - input'!$D43),"") -> 8.260982249 | AD58: =IFERROR(IF(OR(J58="",'Historical scenario - input'!$D43=""),"",J58/'Historical scenario - input'!$D43),"") -> 7.842363296 | AE58: =IFERROR(IF(OR(K58="",'Historical scenario - input'!$D43=""),"",K58/'Historical scenario - input'!$D43),"") -> 7.50168799 | AF58: =IFERROR(IF(OR(L58="",'Historical scenario - input'!$D43=""),"",L58/'Historical scenario - input'!$D43),"") -> 7.236121847 | AG58: =IFERROR(IF(OR(M58="",'Historical scenario - input'!$D43=""),"",M58/'Historical scenario - input'!$D43),"") -> 7.045148246 | AH58: =IFERROR(IF(OR(N58="",'Historical scenario - input'!$D43=""),"",N58/'Historical scenario - input'!$D43),"") -> 6.93013147 | AI58: =IFERROR(IF(OR(O58="",'Historical scenario - input'!$D43=""),"",O58/'Historical scenario - input'!$D43),"") -> 6.893956904 | AJ58: =IFERROR(IF(OR(P58="",'Historical scenario - input'!$D43=""),"",P58/'Historical scenario - input'!$D43),"") -> 6.940734516 | AK58: =IFERROR(IF(OR(Q58="",'Historical scenario - input'!$D43=""),"",Q58/'Historical scenario - input'!$D43),"") -> 7.075546137 | AL58: =IFERROR(IF(OR(R58="",'Historical scenario - input'!$D43=""),"",R58/'Historical scenario - input'!$D43),"") -> 7.30421183 | AM58: =IFERROR(IF(OR(S58="",'Historical scenario - input'!$D43=""),"",S58/'Historical scenario - input'!$D43),"") -> 7.633046857 | AN58: =IFERROR(IF(OR(T58="",'Historical scenario - input'!$D43=""),"",T58/'Historical scenario - input'!$D43),"") -> 8.068579554 | AO58: =IFERROR(IF(OR(U58="",'Historical scenario - input'!$D43=""),"",U58/'Historical scenario - input'!$D43),"") -> 8.61720291 | AP58: =IFERROR(IF(OR(V58="",'Historical scenario - input'!$D43=""),"",V58/'Historical scenario - input'!$D43),"") -> 9.28473945 | AQ58: =IFERROR(IF(OR(W58="",'Historical scenario - input'!$D43=""),"",W58/'Historical scenario - input'!$D43),"") -> 10.07591001
A59: =IFERROR('Historical scenario - input'!A44,"") -> 5 | B59: =IFERROR('Historical scenario - input'!B44,"") -> TRANSFORMERS | C59: =IFERROR('Historical scenario - input'!C44,"") -> Pole Mounted ; < = 22kV ; > 600 kVA ; Single Phase | D59: =IFERROR(repcalc('Historical scenario - input'!$CV44:$GH44,'Historical scenario - input'!$G44,'Historical scenario - input'!$E44,'Historical scenario - input'!$F44,20,TRUE,TRUE),"") -> 1.873178514 | E59: 1.815075023 | F59: 1.719606084 | G59: 1.593040394 | H59: 1.443357023 | I59: 1.279484913 | J59: 1.110526027 | K59: 0.9450670233 | L59: 0.7906599092 | M59: 0.653515955 | N59: 0.5384167841 | O59: 0.4488098387 | P59: 0.3870283379 | Q59: 0.3545620666 | R59: 0.3523057293 | S59: 0.3807246959 | T59: 0.439900553 | U59: 0.5294467813 | V59: 0.6483135815 | W59: 0.7945259606 | X59: =IFERROR(IF(OR(D59="",'Historical scenario - input'!$D44=""),"",D59/'Historical scenario - input'!$D44),"") -> 0.1249210872 | Y59: =IFERROR(IF(OR(E59="",'Historical scenario - input'!$D44=""),"",E59/'Historical scenario - input'!$D44),"") -> 0.1210462022 | Z59: =IFERROR(IF(OR(F59="",'Historical scenario - input'!$D44=""),"",F59/'Historical scenario - input'!$D44),"") -> 0.1146794392 | AA59: =IFERROR(IF(OR(G59="",'Historical scenario - input'!$D44=""),"",G59/'Historical scenario - input'!$D44),"") -> 0.1062388536 | AB59: =IFERROR(IF(OR(H59="",'Historical scenario - input'!$D44=""),"",H59/'Historical scenario - input'!$D44),"") -> 0.09625656449 | AC59: =IFERROR(IF(OR(I59="",'Historical scenario - input'!$D44=""),"",I59/'Historical scenario - input'!$D44),"") -> 0.08532803738 | AD59: =IFERROR(IF(OR(J59="",'Historical scenario - input'!$D44=""),"",J59/'Historical scenario - input'!$D44),"") -> 0.07406027648 | AE59: =IFERROR(IF(OR(K59="",'Historical scenario - input'!$D44=""),"",K59/'Historical scenario - input'!$D44),"") -> 0.06302592043 | AF59: =IFERROR(IF(OR(L59="",'Historical scenario - input'!$D44=""),"",L59/'Historical scenario - input'!$D44),"") -> 0.05272860792 | AG59: =IFERROR(IF(OR(M59="",'Historical scenario - input'!$D44=""),"",M59/'Historical scenario - input'!$D44),"") -> 0.04358256459 | AH59: =IFERROR(IF(OR(N59="",'Historical scenario - input'!$D44=""),"",N59/'Historical scenario - input'!$D44),"") -> 0.03590667388 | AI59: =IFERROR(IF(OR(O59="",'Historical scenario - input'!$D44=""),"",O59/'Historical scenario - input'!$D44),"") -> 0.02993084351 | AJ59: =IFERROR(IF(OR(P59="",'Historical scenario - input'!$D44=""),"",P59/'Historical scenario - input'!$D44),"") -> 0.02581067441 | AK59: =IFERROR(IF(OR(Q59="",'Historical scenario - input'!$D44=""),"",Q59/'Historical scenario - input'!$D44),"") -> 0.02364551937 | AL59: =IFERROR(IF(OR(R59="",'Historical scenario - input'!$D44=""),"",R59/'Historical scenario - input'!$D44),"") -> 0.02349504566 | AM59: =IFERROR(IF(OR(S59="",'Historical scenario - input'!$D44=""),"",S59/'Historical scenario - input'!$D44),"") -> 0.02539028852 | AN59: =IFERROR(IF(OR(T59="",'Historical scenario - input'!$D44=""),"",T59/'Historical scenario - input'!$D44),"") -> 0.0293366889 | AO59: =IFERROR(IF(OR(U59="",'Historical scenario - input'!$D44=""),"",U59/'Historical scenario - input'!$D44),"") -> 0.03530847008 | AP59: =IFERROR(IF(OR(V59="",'Historical scenario - input'!$D44=""),"",V59/'Historical scenario - input'!$D44),"") -> 0.0432356216 | AQ59: =IFERROR(IF(OR(W59="",'Historical scenario - input'!$D44=""),"",W59/'Historical scenario - input'!$D44),"") -> 0.05298643244
A60: =IFERROR('Historical scenario - input'!A45,"") -> 5 | B60: =IFERROR('Historical scenario - input'!B45,"") -> TRANSFORMERS | C60: =IFERROR('Historical scenario - input'!C45,"") -> Pole Mounted ; < = 22kV ; < = 60 kVA ; Multiple Phase | D60: =IFERROR(repcalc('Historical scenario - input'!$CV45:$GH45,'Historical scenario - input'!$G45,'Historical scenario - input'!$E45,'Historical scenario - input'!$F45,20,TRUE,TRUE),"") -> 1818.544901 | E60: 1836.777059 | F60: 1867.484504 | G60: 1907.832291 | H60: 1955.18054 | I60: 2007.130721 | J60: 2061.570234 | K60: 2116.714492 | L60: 2171.143521 | M60: 2223.828926 | N60: 2274.146796 | O60: 2321.872834 | P60: 2367.157458 | Q60: 2410.48051 | R60: 2452.587293 | S60: 2494.409498 | T60: 2536.976096 | U60: 2581.320165 | V60: 2628.387879 | W60: 2678.95561 | X60: =IFERROR(IF(OR(D60="",'Historical scenario - input'!$D45=""),"",D60/'Historical scenario - input'!$D45),"") -> 222.359811 | Y60: =IFERROR(IF(OR(E60="",'Historical scenario - input'!$D45=""),"",E60/'Historical scenario - input'!$D45),"") -> 224.5891204 | Z60: =IFERROR(IF(OR(F60="",'Historical scenario - input'!$D45=""),"",F60/'Historical scenario - input'!$D45),"") -> 228.3438265 | AA60: =IFERROR(IF(OR(G60="",'Historical scenario - input'!$D45=""),"",G60/'Historical scenario - input'!$D45),"") -> 233.2772907 | AB60: =IFERROR(IF(OR(H60="",'Historical scenario - input'!$D45=""),"",H60/'Historical scenario - input'!$D45),"") -> 239.066726 | AC60: =IFERROR(IF(OR(I60="",'Historical scenario - input'!$D45=""),"",I60/'Historical scenario - input'!$D45),"") -> 245.4188552 | AD60: =IFERROR(IF(OR(J60="",'Historical scenario - input'!$D45=""),"",J60/'Historical scenario - input'!$D45),"") -> 252.0753639 | AE60: =IFERROR(IF(OR(K60="",'Historical scenario - input'!$D45=""),"",K60/'Historical scenario - input'!$D45),"") -> 258.8180442 | AF60: =IFERROR(IF(OR(L60="",'Historical scenario - input'!$D45=""),"",L60/'Historical scenario - input'!$D45),"") -> 265.4732709 | AG60: =IFERROR(IF(OR(M60="",'Historical scenario - input'!$D45=""),"",M60/'Historical scenario - input'!$D45),"") -> 271.9152986 | AH60: =IFERROR(IF(OR(N60="",'Historical scenario - input'!$D45=""),"",N60/'Historical scenario - input'!$D45),"") -> 278.0678396 | AI60: =IFERROR(IF(OR(O60="",'Historical scenario - input'!$D45=""),"",O60/'Historical scenario - input'!$D45),"") -> 283.9034683 | AJ60: =IFERROR(IF(OR(P60="",'Historical scenario - input'!$D45=""),"",P60/'Historical scenario - input'!$D45),"") -> 289.4405767 | AK60: =IFERROR(IF(OR(Q60="",'Historical scenario - input'!$D45=""),"",Q60/'Historical scenario - input'!$D45),"") -> 294.7378371 | AL60: =IFERROR(IF(OR(R60="",'Historical scenario - input'!$D45=""),"",R60/'Historical scenario - input'!$D45),"") -> 299.8863799 | AM60: =IFERROR(IF(OR(S60="",'Historical scenario - input'!$D45=""),"",S60/'Historical scenario - input'!$D45),"") -> 305.0001263 | AN60: =IFERROR(IF(OR(T60="",'Historical scenario - input'!$D45=""),"",T60/'Historical scenario - input'!$D45),"") -> 310.2048924 | AO60: =IFERROR(IF(OR(U60="",'Historical scenario - input'!$D45=""),"",U60/'Historical scenario - input'!$D45),"") -> 315.6269959 | AP60: =IFERROR(IF(OR(V60="",'Historical scenario - input'!$D45=""),"",V60/'Historical scenario - input'!$D45),"") -> 321.3821291 | AQ60: =IFERROR(IF(OR(W60="",'Historical scenario - input'!$D45=""),"",W60/'Historical scenario - input'!$D45),"") -> 327.5652214
A61: =IFERROR('Historical scenario - input'!A46,"") -> 5 | B61: =IFERROR('Historical scenario - input'!B46,"") -> TRANSFORMERS | C61: =IFERROR('Historical scenario - input'!C46,"") -> Pole Mounted ; < = 22kV ; > 60 kVA and < = 600 kVA ; Multiple Phase | D61: =IFERROR(repcalc('Historical scenario - input'!$CV46:$GH46,'Historical scenario - input'!$G46,'Historical scenario - input'!$E46,'Historical scenario - input'!$F46,20,TRUE,TRUE),"") -> 3239.217045 | E61: 3174.384284 | F61: 3143.454298 | G61: 3137.734668 | H61: 3150.540453 | I61: 3176.765119 | J61: 3212.552849 | K61: 3255.046153 | L61: 3302.187433 | M61: 3352.559047 | N61: 3405.252269 | O61: 3459.760146 | P61: 3515.892411 | Q61: 3573.712028 | R61: 3633.492996 | S61: 3695.698046 | T61: 3760.973348 | U61: 3830.155787 | V61: 3904.287087 | W61: 3984.628395 | X61: =IFERROR(IF(OR(D61="",'Historical scenario - input'!$D46=""),"",D61/'Historical scenario - input'!$D46),"") -> 199.9416566 | Y61: =IFERROR(IF(OR(E61="",'Historical scenario - input'!$D46=""),"",E61/'Historical scenario - input'!$D46),"") -> 195.9398347 | Z61: =IFERROR(IF(OR(F61="",'Historical scenario - input'!$D46=""),"",F61/'Historical scenario - input'!$D46),"") -> 194.030672 | AA61: =IFERROR(IF(OR(G61="",'Historical scenario - input'!$D46=""),"",G61/'Historical scenario - input'!$D46),"") -> 193.6776261 | AB61: =IFERROR(IF(OR(H61="",'Historical scenario - input'!$D46=""),"",H61/'Historical scenario - input'!$D46),"") -> 194.4680671 | AC61: =IFERROR(IF(OR(I61="",'Historical scenario - input'!$D46=""),"",I61/'Historical scenario - input'!$D46),"") -> 196.0867926 | AD61: =IFERROR(IF(OR(J61="",'Historical scenario - input'!$D46=""),"",J61/'Historical scenario - input'!$D46),"") -> 198.295801 | AE61: =IFERROR(IF(OR(K61="",'Historical scenario - input'!$D46=""),"",K61/'Historical scenario - input'!$D46),"") -> 200.9187132 | AF61: =IFERROR(IF(OR(L61="",'Historical scenario - input'!$D46=""),"",L61/'Historical scenario - input'!$D46),"") -> 203.828523 | AG61: =IFERROR(IF(OR(M61="",'Historical scenario - input'!$D46=""),"",M61/'Historical scenario - input'!$D46),"") -> 206.9377262 | AH61: =IFERROR(IF(OR(N61="",'Historical scenario - input'!$D46=""),"",N61/'Historical scenario - input'!$D46),"") -> 210.1902313 | AI61: =IFERROR(IF(OR(O61="",'Historical scenario - input'!$D46=""),"",O61/'Historical scenario - input'!$D46),"") -> 213.5547466 | AJ61: =IFERROR(IF(OR(P61="",'Historical scenario - input'!$D46=""),"",P61/'Historical scenario - input'!$D46),"") -> 217.0195277 | AK61: =IFERROR(IF(OR(Q61="",'Historical scenario - input'!$D46=""),"",Q61/'Historical scenario - input'!$D46),"") -> 220.5884612 | AL61: =IFERROR(IF(OR(R61="",'Historical scenario - input'!$D46=""),"",R61/'Historical scenario - input'!$D46),"") -> 224.2784596 | AM61: =IFERROR(IF(OR(S61="",'Historical scenario - input'!$D46=""),"",S61/'Historical scenario - input'!$D46),"") -> 228.1180852 | AN61: =IFERROR(IF(OR(T61="",'Historical scenario - input'!$D46=""),"",T61/'Historical scenario - input'!$D46),"") -> 232.147223 | AO61: =IFERROR(IF(OR(U61="",'Historical scenario - input'!$D46=""),"",U61/'Historical scenario - input'!$D46),"") -> 236.4175301 | AP61: =IFERROR(IF(OR(V61="",'Historical scenario - input'!$D46=""),"",V61/'Historical scenario - input'!$D46),"") -> 240.9933071 | AQ61: =IFERROR(IF(OR(W61="",'Historical scenario - input'!$D46=""),"",W61/'Historical scenario - input'!$D46),"") -> 245.9523988
A62: =IFERROR('Historical scenario - input'!A47,"") -> 5 | B62: =IFERROR('Historical scenario - input'!B47,"") -> TRANSFORMERS | C62: =IFERROR('Historical scenario - input'!C47,"") -> Pole Mounted ; < = 22kV ; > 600 kVA ; Multiple Phase | D62: =IFERROR(repcalc('Historical scenario - input'!$CV47:$GH47,'Historical scenario - input'!$G47,'Historical scenario - input'!$E47,'Historical scenario - input'!$F47,20,TRUE,TRUE),"") -> 27.12471867 | E62: 23.4439803 | F62: 20.09111353 | G62: 17.12281149 | H62: 14.56880754 | I62: 12.43555196 | J62: 10.71039383 | K62: 9.365785433 | L62: 8.36321996 | M62: 7.656775671 | N62: 7.196249031 | O62: 6.929914224 | P62: 6.806956501 | Q62: 6.779608654 | R62: 6.804989361 | S62: 6.846611822 | T62: 6.875509485 | U62: 6.870917725 | V62: 6.820458787 | W62: 6.719802819 | X62: =IFERROR(IF(OR(D62="",'Historical scenario - input'!$D47=""),"",D62/'Historical scenario - input'!$D47),"") -> 1.348737143 | Y62: =IFERROR(IF(OR(E62="",'Historical scenario - input'!$D47=""),"",E62/'Historical scenario - input'!$D47),"") -> 1.165717786 | Z62: =IFERROR(IF(OR(F62="",'Historical scenario - input'!$D47=""),"",F62/'Historical scenario - input'!$D47),"") -> 0.9990013676 | AA62: =IFERROR(IF(OR(G62="",'Historical scenario - input'!$D47=""),"",G62/'Historical scenario - input'!$D47),"") -> 0.851406871 | AB62: =IFERROR(IF(OR(H62="",'Historical scenario - input'!$D47=""),"",H62/'Historical scenario - input'!$D47),"") -> 0.7244127432 | AC62: =IFERROR(IF(OR(I62="",'Historical scenario - input'!$D47=""),"",I62/'Historical scenario - input'!$D47),"") -> 0.6183397153 | AD62: =IFERROR(IF(OR(J62="",'Historical scenario - input'!$D47=""),"",J62/'Historical scenario - input'!$D47),"") -> 0.5325587392 | AE62: =IFERROR(IF(OR(K62="",'Historical scenario - input'!$D47=""),"",K62/'Historical scenario - input'!$D47),"") -> 0.4657000442 | AF62: =IFERROR(IF(OR(L62="",'Historical scenario - input'!$D47=""),"",L62/'Historical scenario - input'!$D47),"") -> 0.4158489358 | AG62: =IFERROR(IF(OR(M62="",'Historical scenario - input'!$D47=""),"",M62/'Historical scenario - input'!$D47),"") -> 0.3807220221 | AH62: =IFERROR(IF(OR(N62="",'Historical scenario - input'!$D47=""),"",N62/'Historical scenario - input'!$D47),"") -> 0.3578230054 | AI62: =IFERROR(IF(OR(O62="",'Historical scenario - input'!$D47=""),"",O62/'Historical scenario - input'!$D47),"") -> 0.3445798949 | AJ62: =IFERROR(IF(OR(P62="",'Historical scenario - input'!$D47=""),"",P62/'Historical scenario - input'!$D47),"") -> 0.3384660012 | AK62: =IFERROR(IF(OR(Q62="",'Historical scenario - input'!$D47=""),"",Q62/'Historical scenario - input'!$D47),"") -> 0.3371061693 | AL62: =IFERROR(IF(OR(R62="",'Historical scenario - input'!$D47=""),"",R62/'Historical scenario - input'!$D47),"") -> 0.338368188 | AM62: =IFERROR(IF(OR(S62="",'Historical scenario - input'!$D47=""),"",S62/'Historical scenario - input'!$D47),"") -> 0.3404378042 | AN62: =IFERROR(IF(OR(T62="",'Historical scenario - input'!$D47=""),"",T62/'Historical scenario - input'!$D47),"") -> 0.3418746985 | AO62: =IFERROR(IF(OR(U62="",'Historical scenario - input'!$D47=""),"",U62/'Historical scenario - input'!$D47),"") -> 0.3416463799 | AP62: =IFERROR(IF(OR(V62="",'Historical scenario - input'!$D47=""),"",V62/'Historical scenario - input'!$D47),"") -> 0.3391373827 | AQ62: =IFERROR(IF(OR(W62="",'Historical scenario - input'!$D47=""),"",W62/'Historical scenario - input'!$D47),"") -> 0.3341324112
A63: =IFERROR('Historical scenario - input'!A48,"") -> 5 | B63: =IFERROR('Historical scenario - input'!B48,"") -> TRANSFORMERS | C63: =IFERROR('Historical scenario - input'!C48,"") -> Kiosk Mounted ; < = 22kV ; < = 60 kVA ; Single Phase | D63: =IFERROR(repcalc('Historical scenario - input'!$CV48:$GH48,'Historical scenario - input'!$G48,'Historical scenario - input'!$E48,'Historical scenario - input'!$F48,20,TRUE,TRUE),"") -> 91.16592727 | E63: 112.6015799 | F63: 133.6111962 | G63: 152.312112 | H63: 166.8258687 | I63: 175.5985329 | J63: 177.6891512 | K63: 172.9526987 | L63: 162.069623 | M63: 146.4163207 | N63: 127.8147367 | O63: 108.2291225 | P63: 89.48420755 | Q63: 73.06170846 | R63: 60.00019771 | S63: 50.89008994 | T63: 45.93241989 | U63: 45.0228467 | V63: 47.82962518 | W63: 53.84987511 | X63: =IFERROR(IF(OR(D63="",'Historical scenario - input'!$D48=""),"",D63/'Historical scenario - input'!$D48),"") -> 2.860962893 | Y63: =IFERROR(IF(OR(E63="",'Historical scenario - input'!$D48=""),"",E63/'Historical scenario - input'!$D48),"") -> 3.533655078 | Z63: =IFERROR(IF(OR(F63="",'Historical scenario - input'!$D48=""),"",F63/'Historical scenario - input'!$D48),"") -> 4.192977419 | AA63: =IFERROR(IF(OR(G63="",'Historical scenario - input'!$D48=""),"",G63/'Historical scenario - input'!$D48),"") -> 4.77984828 | AB63: =IFERROR(IF(OR(H63="",'Historical scenario - input'!$D48=""),"",H63/'Historical scenario - input'!$D48),"") -> 5.235317999 | AC63: =IFERROR(IF(OR(I63="",'Historical scenario - input'!$D48=""),"",I63/'Historical scenario - input'!$D48),"") -> 5.510621148 | AD63: =IFERROR(IF(OR(J63="",'Historical scenario - input'!$D48=""),"",J63/'Historical scenario - input'!$D48),"") -> 5.576228786 | AE63: =IFERROR(IF(OR(K63="",'Historical scenario - input'!$D48=""),"",K63/'Historical scenario - input'!$D48),"") -> 5.427589759 | AF63: =IFERROR(IF(OR(L63="",'Historical scenario - input'!$D48=""),"",L63/'Historical scenario - input'!$D48),"") -> 5.086057821 | AG63: =IFERROR(IF(OR(M63="",'Historical scenario - input'!$D48=""),"",M63/'Historical scenario - input'!$D48),"") -> 4.59482696 | AH63: =IFERROR(IF(OR(N63="",'Historical scenario - input'!$D48=""),"",N63/'Historical scenario - input'!$D48),"") -> 4.011073325 | AI63: =IFERROR(IF(OR(O63="",'Historical scenario - input'!$D48=""),"",O63/'Historical scenario - input'!$D48),"") -> 3.396438918 | AJ63: =IFERROR(IF(OR(P63="",'Historical scenario - input'!$D48=""),"",P63/'Historical scenario - input'!$D48),"") -> 2.80818728 | AK63: =IFERROR(IF(OR(Q63="",'Historical scenario - input'!$D48=""),"",Q63/'Historical scenario - input'!$D48),"") -> 2.292817537 | AL63: =IFERROR(IF(OR(R63="",'Historical scenario - input'!$D48=""),"",R63/'Historical scenario - input'!$D48),"") -> 1.8829221 | AM63: =IFERROR(IF(OR(S63="",'Historical scenario - input'!$D48=""),"",S63/'Historical scenario - input'!$D48),"") -> 1.597029321 | AN63: =IFERROR(IF(OR(T63="",'Historical scenario - input'!$D48=""),"",T63/'Historical scenario - input'!$D48),"") -> 1.441448059 | AO63: =IFERROR(IF(OR(U63="",'Historical scenario - input'!$D48=""),"",U63/'Historical scenario - input'!$D48),"") -> 1.412903895 | AP63: =IFERROR(IF(OR(V63="",'Historical scenario - input'!$D48=""),"",V63/'Historical scenario - input'!$D48),"") -> 1.500986025 | AQ63: =IFERROR(IF(OR(W63="",'Historical scenario - input'!$D48=""),"",W63/'Historical scenario - input'!$D48),"") -> 1.689913097
A64: =IFERROR('Historical scenario - input'!A49,"") -> 5 | B64: =IFERROR('Historical scenario - input'!B49,"") -> TRANSFORMERS | C64: =IFERROR('Historical scenario - input'!C49,"") -> Kiosk Mounted ; < = 22kV ; > 60 kVA and < = 600 kVA ; Multiple Phase | D64: =IFERROR(repcalc('Historical scenario - input'!$CV49:$GH49,'Historical scenario - input'!$G49,'Historical scenario - input'!$E49,'Historical scenario - input'!$F49,20,TRUE,TRUE),"") -> 3410.859533 | E64: 3457.126821 | F64: 3528.438031 | G64: 3613.44581 | H64: 3704.779458 | I64: 3797.703193 | J64: 3889.372639 | K64: 3978.40584 | L64: 4064.605959 | M64: 4148.747404 | N64: 4232.382988 | O64: 4317.657391 | P64: 4407.127389 | Q64: 4503.595638 | R64: 4609.964515 | S64: 4729.111736 | T64: 4863.782733 | U64: 5016.488271 | V64: 5189.392247 | W64: 5384.175474 | X64: =IFERROR(IF(OR(D64="",'Historical scenario - input'!$D49=""),"",D64/'Historical scenario - input'!$D49),"") -> 52.31591138 | Y64: =IFERROR(IF(OR(E64="",'Historical scenario - input'!$D49=""),"",E64/'Historical scenario - input'!$D49),"") -> 53.02556105 | Z64: =IFERROR(IF(OR(F64="",'Historical scenario - input'!$D49=""),"",F64/'Historical scenario - input'!$D49),"") -> 54.11933548 | AA64: =IFERROR(IF(OR(G64="",'Historical scenario - input'!$D49=""),"",G64/'Historical scenario - input'!$D49),"") -> 55.42318848 | AB64: =IFERROR(IF(OR(H64="",'Historical scenario - input'!$D49=""),"",H64/'Historical scenario - input'!$D49),"") -> 56.82406794 | AC64: =IFERROR(IF(OR(I64="",'Historical scenario - input'!$D49=""),"",I64/'Historical scenario - input'!$D49),"") -> 58.24933622 | AD64: =IFERROR(IF(OR(J64="",'Historical scenario - input'!$D49=""),"",J64/'Historical scenario - input'!$D49),"") -> 59.65536616 | AE64: =IFERROR(IF(OR(K64="",'Historical scenario - input'!$D49=""),"",K64/'Historical scenario - input'!$D49),"") -> 61.02096125 | AF64: =IFERROR(IF(OR(L64="",'Historical scenario - input'!$D49=""),"",L64/'Historical scenario - input'!$D49),"") -> 62.34310242 | AG64: =IFERROR(IF(OR(M64="",'Historical scenario - input'!$D49=""),"",M64/'Historical scenario - input'!$D49),"") -> 63.63366754 | AH64: =IFERROR(IF(OR(N64="",'Historical scenario - input'!$D49=""),"",N64/'Historical scenario - input'!$D49),"") -> 64.91647376 | AI64: =IFERROR(IF(OR(O64="",'Historical scenario - input'!$D49=""),"",O64/'Historical scenario - input'!$D49),"") -> 66.22441625 | AJ64: =IFERROR(IF(OR(P64="",'Historical scenario - input'!$D49=""),"",P64/'Historical scenario - input'!$D49),"") -> 67.59671095 | AK64: =IFERROR(IF(OR(Q64="",'Historical scenario - input'!$D49=""),"",Q64/'Historical scenario - input'!$D49),"") -> 69.07634515 | AL64: =IFERROR(IF(OR(R64="",'Historical scenario - input'!$D49=""),"",R64/'Historical scenario - input'!$D49),"") -> 70.70783558 | AM64: =IFERROR(IF(OR(S64="",'Historical scenario - input'!$D49=""),"",S64/'Historical scenario - input'!$D49),"") -> 72.53532083 | AN64: =IFERROR(IF(OR(T64="",'Historical scenario - input'!$D49=""),"",T64/'Historical scenario - input'!$D49),"") -> 74.60091042 | AO64: =IFERROR(IF(OR(U64="",'Historical scenario - input'!$D49=""),"",U64/'Historical scenario - input'!$D49),"") -> 76.94311458 | AP64: =IFERROR(IF(OR(V64="",'Historical scenario - input'!$D49=""),"",V64/'Historical scenario - input'!$D49),"") -> 79.59512326 | AQ64: =IFERROR(IF(OR(W64="",'Historical scenario - input'!$D49=""),"",W64/'Historical scenario - input'!$D49),"") -> 82.58271683
A65: =IFERROR('Historical scenario - input'!A50,"") -> 5 | B65: =IFERROR('Historical scenario - input'!B50,"") -> TRANSFORMERS | C65: =IFERROR('Historical scenario - input'!C50,"") -> Kiosk Mounted ; < = 22kV ; > 600 kVA ; Multiple Phase | D65: =IFERROR(repcalc('Historical scenario - input'!$CV50:$GH50,'Historical scenario - input'!$G50,'Historical scenario - input'!$E50,'Historical scenario - input'!$F50,20,TRUE,TRUE),"") -> 1032.976815 | E65: 1032.394933 | F65: 1045.881531 | G65: 1071.226531 | H65: 1106.663617 | I65: 1150.996343 | J65: 1203.669319 | K65: 1264.79131 | L65: 1335.11732 | M65: 1415.996108 | N65: 1509.288181 | O65: 1617.257755 | P65: 1742.440444 | Q65: 1887.487154 | R65: 2054.98413 | S65: 2247.249703 | T65: 2466.11046 | U65: 2712.663168 | V65: 2987.03368 | W65: 3288.149494 | X65: =IFERROR(IF(OR(D65="",'Historical scenario - input'!$D50=""),"",D65/'Historical scenario - input'!$D50),"") -> 8.654944914 | Y65: =IFERROR(IF(OR(E65="",'Historical scenario - input'!$D50=""),"",E65/'Historical scenario - input'!$D50),"") -> 8.650069528 | Z65: =IFERROR(IF(OR(F65="",'Historical scenario - input'!$D50=""),"",F65/'Historical scenario - input'!$D50),"") -> 8.763068927 | AA65: =IFERROR(IF(OR(G65="",'Historical scenario - input'!$D50=""),"",G65/'Historical scenario - input'!$D50),"") -> 8.975425658 | AB65: =IFERROR(IF(OR(H65="",'Historical scenario - input'!$D50=""),"",H65/'Historical scenario - input'!$D50),"") -> 9.272340389 | AC65: =IFERROR(IF(OR(I65="",'Historical scenario - input'!$D50=""),"",I65/'Historical scenario - input'!$D50),"") -> 9.64378851 | AD65: =IFERROR(IF(OR(J65="",'Historical scenario - input'!$D50=""),"",J65/'Historical scenario - input'!$D50),"") -> 10.08511662 | AE65: =IFERROR(IF(OR(K65="",'Historical scenario - input'!$D50=""),"",K65/'Historical scenario - input'!$D50),"") -> 10.59723602 | AF65: =IFERROR(IF(OR(L65="",'Historical scenario - input'!$D50=""),"",L65/'Historical scenario - input'!$D50),"") -> 11.18647262 | AG65: =IFERROR(IF(OR(M65="",'Historical scenario - input'!$D50=""),"",M65/'Historical scenario - input'!$D50),"") -> 11.86412718 | AH65: =IFERROR(IF(OR(N65="",'Historical scenario - input'!$D50=""),"",N65/'Historical scenario - input'!$D50),"") -> 12.64578824 | AI65: =IFERROR(IF(OR(O65="",'Historical scenario - input'!$D50=""),"",O65/'Historical scenario - input'!$D50),"") -> 13.55042686 | AJ65: =IFERROR(IF(OR(P65="",'Historical scenario - input'!$D50=""),"",P65/'Historical scenario - input'!$D50),"") -> 14.59928803 | AK65: =IFERROR(IF(OR(Q65="",'Historical scenario - input'!$D50=""),"",Q65/'Historical scenario - input'!$D50),"") -> 15.81458277 | AL65: =IFERROR(IF(OR(R65="",'Historical scenario - input'!$D50=""),"",R65/'Historical scenario - input'!$D50),"") -> 17.21798029 | AM65: =IFERROR(IF(OR(S65="",'Historical scenario - input'!$D50=""),"",S65/'Historical scenario - input'!$D50),"") -> 18.82890506 | AN65: =IFERROR(IF(OR(T65="",'Historical scenario - input'!$D50=""),"",T65/'Historical scenario - input'!$D50),"") -> 20.66266141 | AO65: =IFERROR(IF(OR(U65="",'Historical scenario - input'!$D50=""),"",U65/'Historical scenario - input'!$D50),"") -> 22.72843876 | AP65: =IFERROR(IF(OR(V65="",'Historical scenario - input'!$D50=""),"",V65/'Historical scenario - input'!$D50),"") -> 25.02729158 | AQ65: =IFERROR(IF(OR(W65="",'Historical scenario - input'!$D50=""),"",W65/'Historical scenario - input'!$D50),"") -> 27.55023377
A66: =IFERROR('Historical scenario - input'!A51,"") -> 5 | B66: =IFERROR('Historical scenario - input'!B51,"") -> TRANSFORMERS | C66: =IFERROR('Historical scenario - input'!C51,"") -> Ground Outdoor / Indoor Chamber Mounted; ˂ 22 kV ; > 60 kVA and < = 600 kVA ; Multiple Phase | D66: =IFERROR(repcalc('Historical scenario - input'!$CV51:$GH51,'Historical scenario - input'!$G51,'Historical scenario - input'!$E51,'Historical scenario - input'!$F51,20,TRUE,TRUE),"") -> 147.9032526 | E66: 152.6915402 | F66: 157.2805493 | G66: 161.7385731 | H66: 166.1424186 | I66: 170.5764958 | J66: 175.1313874 | K66: 179.9014193 | L66: 184.9808368 | M66: 190.458393 | N66: 196.4104455 | O66: 202.893003 | P66: 209.9335041 | Q66: 217.5233807 | R66: 225.61261 | S66: 234.1074381 | T66: 242.8722505 | U66: 251.736184 | V66: 260.5045544 | W66: 268.9745899 | X66: =IFERROR(IF(OR(D66="",'Historical scenario - input'!$D51=""),"",D66/'Historical scenario - input'!$D51),"") -> 2.155995456 | Y66: =IFERROR(IF(OR(E66="",'Historical scenario - input'!$D51=""),"",E66/'Historical scenario - input'!$D51),"") -> 2.225794639 | Z66: =IFERROR(IF(OR(F66="",'Historical scenario - input'!$D51=""),"",F66/'Historical scenario - input'!$D51),"") -> 2.292688927 | AA66: =IFERROR(IF(OR(G66="",'Historical scenario - input'!$D51=""),"",G66/'Historical scenario - input'!$D51),"") -> 2.357673833 | AB66: =IFERROR(IF(OR(H66="",'Historical scenario - input'!$D51=""),"",H66/'Historical scenario - input'!$D51),"") -> 2.421868979 | AC66: =IFERROR(IF(OR(I66="",'Historical scenario - input'!$D51=""),"",I66/'Historical scenario - input'!$D51),"") -> 2.486504815 | AD66: =IFERROR(IF(OR(J66="",'Historical scenario - input'!$D51=""),"",J66/'Historical scenario - input'!$D51),"") -> 2.55290177 | AE66: =IFERROR(IF(OR(K66="",'Historical scenario - input'!$D51=""),"",K66/'Historical scenario - input'!$D51),"") -> 2.622434839 | AF66: =IFERROR(IF(OR(L66="",'Historical scenario - input'!$D51=""),"",L66/'Historical scenario - input'!$D51),"") -> 2.696477843 | AG66: =IFERROR(IF(OR(M66="",'Historical scenario - input'!$D51=""),"",M66/'Historical scenario - input'!$D51),"") -> 2.776324541 | AH66: =IFERROR(IF(OR(N66="",'Historical scenario - input'!$D51=""),"",N66/'Historical scenario - input'!$D51),"") -> 2.863088001 | AI66: =IFERROR(IF(OR(O66="",'Historical scenario - input'!$D51=""),"",O66/'Historical scenario - input'!$D51),"") -> 2.95758467 | AJ66: =IFERROR(IF(OR(P66="",'Historical scenario - input'!$D51=""),"",P66/'Historical scenario - input'!$D51),"") -> 3.060214518 | AK66: =IFERROR(IF(OR(Q66="",'Historical scenario - input'!$D51=""),"",Q66/'Historical scenario - input'!$D51),"") -> 3.170852649 | AL66: =IFERROR(IF(OR(R66="",'Historical scenario - input'!$D51=""),"",R66/'Historical scenario - input'!$D51),"") -> 3.288769878 | AM66: =IFERROR(IF(OR(S66="",'Historical scenario - input'!$D51=""),"",S66/'Historical scenario - input'!$D51),"") -> 3.412599546 | AN66: =IFERROR(IF(OR(T66="",'Historical scenario - input'!$D51=""),"",T66/'Historical scenario - input'!$D51),"") -> 3.540364794 | AO66: =IFERROR(IF(OR(U66="",'Historical scenario - input'!$D51=""),"",U66/'Historical scenario - input'!$D51),"") -> 3.669574936 | AP66: =IFERROR(IF(OR(V66="",'Historical scenario - input'!$D51=""),"",V66/'Historical scenario - input'!$D51),"") -> 3.79739205 | AQ66: =IFERROR(IF(OR(W66="",'Historical scenario - input'!$D51=""),"",W66/'Historical scenario - input'!$D51),"") -> 3.920860315
A67: =IFERROR('Historical scenario - input'!A52,"") -> 5 | B67: =IFERROR('Historical scenario - input'!B52,"") -> TRANSFORMERS | C67: =IFERROR('Historical scenario - input'!C52,"") -> Ground Outdoor / Indoor Chamber Mounted; ˂ 22 kV ; > 600 kVA ; Multiple Phase | D67: =IFERROR(repcalc('Historical scenario - input'!$CV52:$GH52,'Historical scenario - input'!$G52,'Historical scenario - input'!$E52,'Historical scenario - input'!$F52,20,TRUE,TRUE),"") -> 340.6353103 | E67: 345.7009727 | F67: 359.8015673 | G67: 379.8007396 | H67: 403.5111113 | I67: 429.3996995 | J67: 456.3739104 | K67: 483.6329667 | L67: 510.5698759 | M67: 536.7105608 | N67: 561.6788858 | O67: 585.1785832 | P67: 606.9852267 | Q67: 626.9432702 | R67: 644.9646998 | S67: 661.0270302 | T67: 675.1692562 | U67: 687.4850125 | V67: 698.1126859 | W67: 707.2226386 | X67: =IFERROR(IF(OR(D67="",'Historical scenario - input'!$D52=""),"",D67/'Historical scenario - input'!$D52),"") -> 2.407419882 | Y67: =IFERROR(IF(OR(E67="",'Historical scenario - input'!$D52=""),"",E67/'Historical scenario - input'!$D52),"") -> 2.443221151 | Z67: =IFERROR(IF(OR(F67="",'Historical scenario - input'!$D52=""),"",F67/'Historical scenario - input'!$D52),"") -> 2.542876268 | AA67: =IFERROR(IF(OR(G67="",'Historical scenario - input'!$D52=""),"",G67/'Historical scenario - input'!$D52),"") -> 2.684219234 | AB67: =IFERROR(IF(OR(H67="",'Historical scenario - input'!$D52=""),"",H67/'Historical scenario - input'!$D52),"") -> 2.851790882 | AC67: =IFERROR(IF(OR(I67="",'Historical scenario - input'!$D52=""),"",I67/'Historical scenario - input'!$D52),"") -> 3.034756946 | AD67: =IFERROR(IF(OR(J67="",'Historical scenario - input'!$D52=""),"",J67/'Historical scenario - input'!$D52),"") -> 3.225395584 | AE67: =IFERROR(IF(OR(K67="",'Historical scenario - input'!$D52=""),"",K67/'Historical scenario - input'!$D52),"") -> 3.418047349 | AF67: =IFERROR(IF(OR(L67="",'Historical scenario - input'!$D52=""),"",L67/'Historical scenario - input'!$D52),"") -> 3.60842236 | AG67: =IFERROR(IF(OR(M67="",'Historical scenario - input'!$D52=""),"",M67/'Historical scenario - input'!$D52),"") -> 3.793170103 | AH67: =IFERROR(IF(OR(N67="",'Historical scenario - input'!$D52=""),"",N67/'Historical scenario - input'!$D52),"") -> 3.969632261 | AI67: =IFERROR(IF(OR(O67="",'Historical scenario - input'!$D52=""),"",O67/'Historical scenario - input'!$D52),"") -> 4.135714981 | AJ67: =IFERROR(IF(OR(P67="",'Historical scenario - input'!$D52=""),"",P67/'Historical scenario - input'!$D52),"") -> 4.289832142 | AK67: =IFERROR(IF(OR(Q67="",'Historical scenario - input'!$D52=""),"",Q67/'Historical scenario - input'!$D52),"") -> 4.430884432 | AL67: =IFERROR(IF(OR(R67="",'Historical scenario - input'!$D52=""),"",R67/'Historical scenario - input'!$D52),"") -> 4.558249819 | AM67: =IFERROR(IF(OR(S67="",'Historical scenario - input'!$D52=""),"",S67/'Historical scenario - input'!$D52),"") -> 4.671769388 | AN67: =IFERROR(IF(OR(T67="",'Historical scenario - input'!$D52=""),"",T67/'Historical scenario - input'!$D52),"") -> 4.771718732 | AO67: =IFERROR(IF(OR(U67="",'Historical scenario - input'!$D52=""),"",U67/'Historical scenario - input'!$D52),"") -> 4.858759611 | AP67: =IFERROR(IF(OR(V67="",'Historical scenario - input'!$D52=""),"",V67/'Historical scenario - input'!$D52),"") -> 4.933870063 | AQ67: =IFERROR(IF(OR(W67="",'Historical scenario - input'!$D52=""),"",W67/'Historical scenario - input'!$D52),"") -> 4.998254114
A68: =IFERROR('Historical scenario - input'!A53,"") -> 5 | B68: =IFERROR('Historical scenario - input'!B53,"") -> TRANSFORMERS | C68: =IFERROR('Historical scenario - input'!C53,"") -> Ground Outdoor / Indoor Chamber Mounted; > = 22 kV & < = 33 kV ; < = 15 MVA | D68: =IFERROR(repcalc('Historical scenario - input'!$CV53:$GH53,'Historical scenario - input'!$G53,'Historical scenario - input'!$E53,'Historical scenario - input'!$F53,20,TRUE,TRUE),"") -> 407.7193458 | E68: 456.1773833 | F68: 511.1855998 | G68: 572.8853875 | H68: 641.1731297 | I68: 715.679792 | J68: 795.7663879 | K68: 880.5370494 | L68: 968.8701014 | M68: 1059.466038 | N68: 1150.909747 | O68: 1241.742909 | P68: 1330.541314 | Q68: 1415.991139 | R68: 1496.958006 | S68: 1572.543075 | T68: 1642.121437 | U68: 1705.359599 | V68: 1762.210779 | W68: 1812.888837 | X68: =IFERROR(IF(OR(D68="",'Historical scenario - input'!$D53=""),"",D68/'Historical scenario - input'!$D53),"") -> 1.268715544 | Y68: =IFERROR(IF(OR(E68="",'Historical scenario - input'!$D53=""),"",E68/'Historical scenario - input'!$D53),"") -> 1.419504232 | Z68: =IFERROR(IF(OR(F68="",'Historical scenario - input'!$D53=""),"",F68/'Historical scenario - input'!$D53),"") -> 1.590675358 | AA68: =IFERROR(IF(OR(G68="",'Historical scenario - input'!$D53=""),"",G68/'Historical scenario - input'!$D53),"") -> 1.782668896 | AB68: =IFERROR(IF(OR(H68="",'Historical scenario - input'!$D53=""),"",H68/'Historical scenario - input'!$D53),"") -> 1.995162419 | AC68: =IFERROR(IF(OR(I68="",'Historical scenario - input'!$D53=""),"",I68/'Historical scenario - input'!$D53),"") -> 2.227007587 | AD68: =IFERROR(IF(OR(J68="",'Historical scenario - input'!$D53=""),"",J68/'Historical scenario - input'!$D53),"") -> 2.476216045 | AE68: =IFERROR(IF(OR(K68="",'Historical scenario - input'!$D53=""),"",K68/'Historical scenario - input'!$D53),"") -> 2.740000084 | AF68: =IFERROR(IF(OR(L68="",'Historical scenario - input'!$D53=""),"",L68/'Historical scenario - input'!$D53),"") -> 3.014869347 | AG68: =IFERROR(IF(OR(M68="",'Historical scenario - input'!$D53=""),"",M68/'Historical scenario - input'!$D53),"") -> 3.296780112 | AH68: =IFERROR(IF(OR(N68="",'Historical scenario - input'!$D53=""),"",N68/'Historical scenario - input'!$D53),"") -> 3.581328924 | AI68: =IFERROR(IF(OR(O68="",'Historical scenario - input'!$D53=""),"",O68/'Historical scenario - input'!$D53),"") -> 3.863977873 | AJ68: =IFERROR(IF(OR(P68="",'Historical scenario - input'!$D53=""),"",P68/'Historical scenario - input'!$D53),"") -> 4.140295193 | AK68: =IFERROR(IF(OR(Q68="",'Historical scenario - input'!$D53=""),"",Q68/'Historical scenario - input'!$D53),"") -> 4.40619261 | AL68: =IFERROR(IF(OR(R68="",'Historical scenario - input'!$D53=""),"",R68/'Historical scenario - input'!$D53),"") -> 4.658140237 | AM68: =IFERROR(IF(OR(S68="",'Historical scenario - input'!$D53=""),"",S68/'Historical scenario - input'!$D53),"") -> 4.893341126 | AN68: =IFERROR(IF(OR(T68="",'Historical scenario - input'!$D53=""),"",T68/'Historical scenario - input'!$D53),"") -> 5.10985072 | AO68: =IFERROR(IF(OR(U68="",'Historical scenario - input'!$D53=""),"",U68/'Historical scenario - input'!$D53),"") -> 5.306631272 | AP68: =IFERROR(IF(OR(V68="",'Historical scenario - input'!$D53=""),"",V68/'Historical scenario - input'!$D53),"") -> 5.483537218 | AQ68: =IFERROR(IF(OR(W68="",'Historical scenario - input'!$D53=""),"",W68/'Historical scenario - input'!$D53),"") -> 5.641234026
A69: =IFERROR('Historical scenario - input'!A54,"") -> 5 | B69: =IFERROR('Historical scenario - input'!B54,"") -> TRANSFORMERS | C69: =IFERROR('Historical scenario - input'!C54,"") -> Ground Outdoor / Indoor Chamber Mounted; > = 22 kV & < = 33 kV ; > 15 MVA and < = 40 MVA | D69: =IFERROR(repcalc('Historical scenario - input'!$CV54:$GH54,'Historical scenario - input'!$G54,'Historical scenario - input'!$E54,'Historical scenario - input'!$F54,20,TRUE,TRUE),"") -> 327.2232072 | E69: 320.8592721 | F69: 312.1357149 | G69: 301.5792915 | H69: 289.6974553 | I69: 276.9912975 | J69: 263.980915 | K69: 251.2327283 | L69: 239.3779949 | M69: 229.1136557 | N69: 221.1801646 | O69: 216.3153316 | P69: 215.1877517 | Q69: 218.3174489 | R69: 225.9944489 | S69: 238.2076909 | T69: 254.5966984 | U69: 274.4365624 | V69: 296.6630913 | W69: 319.939771 | X69: =IFERROR(IF(OR(D69="",'Historical scenario - input'!$D54=""),"",D69/'Historical scenario - input'!$D54),"") -> 0.9455922241 | Y69: =IFERROR(IF(OR(E69="",'Historical scenario - input'!$D54=""),"",E69/'Historical scenario - input'!$D54),"") -> 0.9272020629 | Z69: =IFERROR(IF(OR(F69="",'Historical scenario - input'!$D54=""),"",F69/'Historical scenario - input'!$D54),"") -> 0.9019931913 | AA69: =IFERROR(IF(OR(G69="",'Historical scenario - input'!$D54=""),"",G69/'Historical scenario - input'!$D54),"") -> 0.8714878004 | AB69: =IFERROR(IF(OR(H69="",'Historical scenario - input'!$D54=""),"",H69/'Historical scenario - input'!$D54),"") -> 0.8371523017 | AC69: =IFERROR(IF(OR(I69="",'Historical scenario - input'!$D54=""),"",I69/'Historical scenario - input'!$D54),"") -> 0.8004347226 | AD69: =IFERROR(IF(OR(J69="",'Historical scenario - input'!$D54=""),"",J69/'Historical scenario - input'!$D54),"") -> 0.7628380111 | AE69: =IFERROR(IF(OR(K69="",'Historical scenario - input'!$D54=""),"",K69/'Historical scenario - input'!$D54),"") -> 0.7259989791 | AF69: =IFERROR(IF(OR(L69="",'Historical scenario - input'!$D54=""),"",L69/'Historical scenario - input'!$D54),"") -> 0.6917418007 | AG69: =IFERROR(IF(OR(M69="",'Historical scenario - input'!$D54=""),"",M69/'Historical scenario - input'!$D54),"") -> 0.6620804593 | AH69: =IFERROR(IF(OR(N69="",'Historical scenario - input'!$D54=""),"",N69/'Historical scenario - input'!$D54),"") -> 0.6391546785 | AI69: =IFERROR(IF(OR(O69="",'Historical scenario - input'!$D54=""),"",O69/'Historical scenario - input'!$D54),"") -> 0.6250965428 | AJ69: =IFERROR(IF(OR(P69="",'Historical scenario - input'!$D54=""),"",P69/'Historical scenario - input'!$D54),"") -> 0.6218381223 | AK69: =IFERROR(IF(OR(Q69="",'Historical scenario - input'!$D54=""),"",Q69/'Historical scenario - input'!$D54),"") -> 0.630882155 | AL69: =IFERROR(IF(OR(R69="",'Historical scenario - input'!$D54=""),"",R69/'Historical scenario - input'!$D54),"") -> 0.6530667412 | AM69: =IFERROR(IF(OR(S69="",'Historical scenario - input'!$D54=""),"",S69/'Historical scenario - input'!$D54),"") -> 0.6883599185 | AN69: =IFERROR(IF(OR(T69="",'Historical scenario - input'!$D54=""),"",T69/'Historical scenario - input'!$D54),"") -> 0.7357200008 | AO69: =IFERROR(IF(OR(U69="",'Historical scenario - input'!$D54=""),"",U69/'Historical scenario - input'!$D54),"") -> 0.7930521849 | AP69: =IFERROR(IF(OR(V69="",'Historical scenario - input'!$D54=""),"",V69/'Historical scenario - input'!$D54),"") -> 0.8572812264 | AQ69: =IFERROR(IF(OR(W69="",'Historical scenario - input'!$D54=""),"",W69/'Historical scenario - input'!$D54),"") -> 0.9245449376
A70: =IFERROR('Historical scenario - input'!A55,"") -> 5 | B70: =IFERROR('Historical scenario - input'!B55,"") -> TRANSFORMERS | C70: =IFERROR('Historical scenario - input'!C55,"") -> Ground Outdoor / Indoor Chamber Mounted; > 33 kV & < = 66 kV ; < = 15 MVA | D70: =IFERROR(repcalc('Historical scenario - input'!$CV55:$GH55,'Historical scenario - input'!$G55,'Historical scenario - input'!$E55,'Historical scenario - input'!$F55,20,TRUE,TRUE),"") -> 1259.121052 | E70: 1357.095019 | F70: 1455.507511 | G70: 1553.226542 | H70: 1648.932159 | I70: 1741.146352 | J70: 1828.284972 | K70: 1908.729762 | L70: 1980.915988 | M70: 2043.428801 | N70: 2095.099783 | O70: 2135.094319 | P70: 2162.980665 | Q70: 2178.772913 | R70: 2182.942288 | S70: 2176.394209 | T70: 2160.411926 | U70: 2136.570879 | V70: 2106.630924 | W70: 2072.415811 | X70: =IFERROR(IF(OR(D70="",'Historical scenario - input'!$D55=""),"",D70/'Historical scenario - input'!$D55),"") -> 2.770326298 | Y70: =IFERROR(IF(OR(E70="",'Historical scenario - input'!$D55=""),"",E70/'Historical scenario - input'!$D55),"") -> 2.985889257 | Z70: =IFERROR(IF(OR(F70="",'Historical scenario - input'!$D55=""),"",F70/'Historical scenario - input'!$D55),"") -> 3.202417059 | AA70: =IFERROR(IF(OR(G70="",'Historical scenario - input'!$D55=""),"",G70/'Historical scenario - input'!$D55),"") -> 3.417419103 | AB70: =IFERROR(IF(OR(H70="",'Historical scenario - input'!$D55=""),"",H70/'Historical scenario - input'!$D55),"") -> 3.627991222 | AC70: =IFERROR(IF(OR(I70="",'Historical scenario - input'!$D55=""),"",I70/'Historical scenario - input'!$D55),"") -> 3.830881488 | AD70: =IFERROR(IF(OR(J70="",'Historical scenario - input'!$D55=""),"",J70/'Historical scenario - input'!$D55),"") -> 4.022604444 | AE70: =IFERROR(IF(OR(K70="",'Historical scenario - input'!$D55=""),"",K70/'Historical scenario - input'!$D55),"") -> 4.199599593 | AF70: =IFERROR(IF(OR(L70="",'Historical scenario - input'!$D55=""),"",L70/'Historical scenario - input'!$D55),"") -> 4.358424196 | AG70: =IFERROR(IF(OR(M70="",'Historical scenario - input'!$D55=""),"",M70/'Historical scenario - input'!$D55),"") -> 4.495965292 | AH70: =IFERROR(IF(OR(N70="",'Historical scenario - input'!$D55=""),"",N70/'Historical scenario - input'!$D55),"") -> 4.609652122 | AI70: =IFERROR(IF(OR(O70="",'Historical scenario - input'!$D55=""),"",O70/'Historical scenario - input'!$D55),"") -> 4.697648357 | AJ70: =IFERROR(IF(OR(P70="",'Historical scenario - input'!$D55=""),"",P70/'Historical scenario - input'!$D55),"") -> 4.759004076 | AK70: =IFERROR(IF(OR(Q70="",'Historical scenario - input'!$D55=""),"",Q70/'Historical scenario - input'!$D55),"") -> 4.793750284 | AL70: =IFERROR(IF(OR(R70="",'Historical scenario - input'!$D55=""),"",R70/'Historical scenario - input'!$D55),"") -> 4.802923769 | AM70: =IFERROR(IF(OR(S70="",'Historical scenario - input'!$D55=""),"",S70/'Historical scenario - input'!$D55),"") -> 4.788516644 | AN70: =IFERROR(IF(OR(T70="",'Historical scenario - input'!$D55=""),"",T70/'Historical scenario - input'!$D55),"") -> 4.753352322 | AO70: =IFERROR(IF(OR(U70="",'Historical scenario - input'!$D55=""),"",U70/'Historical scenario - input'!$D55),"") -> 4.700897094 | AP70: =IFERROR(IF(OR(V70="",'Historical scenario - input'!$D55=""),"",V70/'Historical scenario - input'!$D55),"") -> 4.635023013 | AQ70: =IFERROR(IF(OR(W70="",'Historical scenario - input'!$D55=""),"",W70/'Historical scenario - input'!$D55),"") -> 4.559742698
A71: =IFERROR('Historical scenario - input'!A56,"") -> 5 | B71: =IFERROR('Historical scenario - input'!B56,"") -> TRANSFORMERS | C71: =IFERROR('Historical scenario - input'!C56,"") -> Ground Outdoor / Indoor Chamber Mounted; > 33 kV & < = 66 kV ; > 15 MVA and < = 40 MVA | D71: =IFERROR(repcalc('Historical scenario - input'!$CV56:$GH56,'Historical scenario - input'!$G56,'Historical scenario - input'!$E56,'Historical scenario - input'!$F56,20,TRUE,TRUE),"") -> 753.366901 | E71: 836.2706933 | F71: 924.9768942 | G71: 1019.299971 | H71: 1118.683048 | I71: 1222.117002 | J71: 1328.09029 | K71: 1434.581301 | L71: 1539.101303 | M71: 1638.790974 | N71: 1730.567555 | O71: 1811.313729 | P71: 1878.094107 | Q71: 1928.381485 | R71: 1960.273228 | S71: 1972.678522 | T71: 1965.459656 | U71: 1939.514578 | V71: 1896.793097 | W71: 1840.244551 | X71: =IFERROR(IF(OR(D71="",'Historical scenario - input'!$D56=""),"",D71/'Historical scenario - input'!$D56),"") -> 1.263406561 | Y71: =IFERROR(IF(OR(E71="",'Historical scenario - input'!$D56=""),"",E71/'Historical scenario - input'!$D56),"") -> 1.402437351 | Z71: =IFERROR(IF(OR(F71="",'Historical scenario - input'!$D56=""),"",F71/'Historical scenario - input'!$D56),"") -> 1.551198859 | AA71: =IFERROR(IF(OR(G71="",'Historical scenario - input'!$D56=""),"",G71/'Historical scenario - input'!$D56),"") -> 1.709379944 | AB71: =IFERROR(IF(OR(H71="",'Historical scenario - input'!$D56=""),"",H71/'Historical scenario - input'!$D56),"") -> 1.876046719 | AC71: =IFERROR(IF(OR(I71="",'Historical scenario - input'!$D56=""),"",I71/'Historical scenario - input'!$D56),"") -> 2.049506869 | AD71: =IFERROR(IF(OR(J71="",'Historical scenario - input'!$D56=""),"",J71/'Historical scenario - input'!$D56),"") -> 2.227225519 | AE71: =IFERROR(IF(OR(K71="",'Historical scenario - input'!$D56=""),"",K71/'Historical scenario - input'!$D56),"") -> 2.405812396 | AF71: =IFERROR(IF(OR(L71="",'Historical scenario - input'!$D56=""),"",L71/'Historical scenario - input'!$D56),"") -> 2.581093863 | AG71: =IFERROR(IF(OR(M71="",'Historical scenario - input'!$D56=""),"",M71/'Historical scenario - input'!$D56),"") -> 2.7482748 | AH71: =IFERROR(IF(OR(N71="",'Historical scenario - input'!$D56=""),"",N71/'Historical scenario - input'!$D56),"") -> 2.902185378 | AI71: =IFERROR(IF(OR(O71="",'Historical scenario - input'!$D56=""),"",O71/'Historical scenario - input'!$D56),"") -> 3.037597813 | AJ71: =IFERROR(IF(OR(P71="",'Historical scenario - input'!$D56=""),"",P71/'Historical scenario - input'!$D56),"") -> 3.149589416 | AK71: =IFERROR(IF(OR(Q71="",'Historical scenario - input'!$D56=""),"",Q71/'Historical scenario - input'!$D56),"") -> 3.233922034 | AL71: =IFERROR(IF(OR(R71="",'Historical scenario - input'!$D56=""),"",R71/'Historical scenario - input'!$D56),"") -> 3.287404922 | AM71: =IFERROR(IF(OR(S71="",'Historical scenario - input'!$D56=""),"",S71/'Historical scenario - input'!$D56),"") -> 3.30820877 | AN71: =IFERROR(IF(OR(T71="",'Historical scenario - input'!$D56=""),"",T71/'Historical scenario - input'!$D56),"") -> 3.296102633 | AO71: =IFERROR(IF(OR(U71="",'Historical scenario - input'!$D56=""),"",U71/'Historical scenario - input'!$D56),"") -> 3.252592384 | AP71: =IFERROR(IF(OR(V71="",'Historical scenario - input'!$D56=""),"",V71/'Historical scenario - input'!$D56),"") -> 3.180947878 | AQ71: =IFERROR(IF(OR(W71="",'Historical scenario - input'!$D56=""),"",W71/'Historical scenario - input'!$D56),"") -> 3.086115195
A72: =IFERROR('Historical scenario - input'!A57,"") -> 5 | B72: =IFERROR('Historical scenario - input'!B57,"") -> TRANSFORMERS | C72: =IFERROR('Historical scenario - input'!C57,"") -> Ground Outdoor / Indoor Chamber Mounted; > 66 kV & < = 132 kV ; < = 100 MVA | D72: =IFERROR(repcalc('Historical scenario - input'!$CV57:$GH57,'Historical scenario - input'!$G57,'Historical scenario - input'!$E57,'Historical scenario - input'!$F57,20,TRUE,TRUE),"") -> 621.8424382 | E72: 651.4613928 | F72: 675.3832529 | G72: 693.7683594 | H72: 707.1949955 | I72: 716.6233753 | J72: 723.3227756 | K72: 728.7680526 | L72: 734.5156234 | M72: 742.0717142 | N72: 752.7668892 | O72: 767.6503616 | P72: 787.4153846 | Q72: 812.3633838 | R72: 842.4098911 | S72: 877.1303787 | T72: 915.8394228 | U72: 957.6928631 | V72: 1001.800267 | W72: 1047.334327 | X72: =IFERROR(IF(OR(D72="",'Historical scenario - input'!$D57=""),"",D72/'Historical scenario - input'!$D57),"") -> 0.5615359488 | Y72: =IFERROR(IF(OR(E72="",'Historical scenario - input'!$D57=""),"",E72/'Historical scenario - input'!$D57),"") -> 0.5882824473 | Z72: =IFERROR(IF(OR(F72="",'Historical scenario - input'!$D57=""),"",F72/'Historical scenario - input'!$D57),"") -> 0.6098843573 | AA72: =IFERROR(IF(OR(G72="",'Historical scenario - input'!$D57=""),"",G72/'Historical scenario - input'!$D57),"") -> 0.62648647 | AB72: =IFERROR(IF(OR(H72="",'Historical scenario - input'!$D57=""),"",H72/'Historical scenario - input'!$D57),"") -> 0.6386109863 | AC72: =IFERROR(IF(OR(I72="",'Historical scenario - input'!$D57=""),"",I72/'Historical scenario - input'!$D57),"") -> 0.6471249988 | AD72: =IFERROR(IF(OR(J72="",'Historical scenario - input'!$D57=""),"",J72/'Historical scenario - input'!$D57),"") -> 0.653174689 | AE72: =IFERROR(IF(OR(K72="",'Historical scenario - input'!$D57=""),"",K72/'Historical scenario - input'!$D57),"") -> 0.6580918811 | AF72: =IFERROR(IF(OR(L72="",'Historical scenario - input'!$D57=""),"",L72/'Historical scenario - input'!$D57),"") -> 0.6632820505 | AG72: =IFERROR(IF(OR(M72="",'Historical scenario - input'!$D57=""),"",M72/'Historical scenario - input'!$D57),"") -> 0.6701053491 | AH72: =IFERROR(IF(OR(N72="",'Historical scenario - input'!$D57=""),"",N72/'Historical scenario - input'!$D57),"") -> 0.6797633025 | AI72: =IFERROR(IF(OR(O72="",'Historical scenario - input'!$D57=""),"",O72/'Historical scenario - input'!$D57),"") -> 0.6932033707 | AJ72: =IFERROR(IF(OR(P72="",'Historical scenario - input'!$D57=""),"",P72/'Historical scenario - input'!$D57),"") -> 0.7110515751 | AK72: =IFERROR(IF(OR(Q72="",'Historical scenario - input'!$D57=""),"",Q72/'Historical scenario - input'!$D57),"") -> 0.7335801089 | AL72: =IFERROR(IF(OR(R72="",'Historical scenario - input'!$D57=""),"",R72/'Historical scenario - input'!$D57),"") -> 0.7607126958 | AM72: =IFERROR(IF(OR(S72="",'Historical scenario - input'!$D57=""),"",S72/'Historical scenario - input'!$D57),"") -> 0.7920659789 | AN72: =IFERROR(IF(OR(T72="",'Historical scenario - input'!$D57=""),"",T72/'Historical scenario - input'!$D57),"") -> 0.8270210068 | AO72: =IFERROR(IF(OR(U72="",'Historical scenario - input'!$D57=""),"",U72/'Historical scenario - input'!$D57),"") -> 0.8648154863 | AP72: =IFERROR(IF(OR(V72="",'Historical scenario - input'!$D57=""),"",V72/'Historical scenario - input'!$D57),"") -> 0.9046453391 | AQ72: =IFERROR(IF(OR(W72="",'Historical scenario - input'!$D57=""),"",W72/'Historical scenario - input'!$D57),"") -> 0.9457634904
A73: =IFERROR('Historical scenario - input'!A58,"") -> 5 | B73: =IFERROR('Historical scenario - input'!B58,"") -> TRANSFORMERS | C73: =IFERROR('Historical scenario - input'!C58,"") -> Other | D73: =IFERROR(repcalc('Historical scenario - input'!$CV58:$GH58,'Historical scenario - input'!$G58,'Historical scenario - input'!$E58,'Historical scenario - input'!$F58,20,TRUE,TRUE),"") -> 2008.987351 | E73: 1916.784036 | F73: 1847.361259 | G73: 1793.977007 | H73: 1752.253797 | I73: 1719.565086 | J73: 1694.503438 | K73: 1676.444118 | L73: 1665.207649 | M73: 1660.817715 | N73: 1663.345805 | O73: 1672.830513 | P73: 1689.257103 | Q73: 1712.581551 | R73: 1742.782862 | S73: 1779.928043 | T73: 1824.235784 | U73: 1876.127519 | V73: 1936.258033 | W73: 2005.521553 | X73: =IFERROR(IF(OR(D73="",'Historical scenario - input'!$D58=""),"",D73/'Historical scenario - input'!$D58),"") -> 24.66510494 | Y73: =IFERROR(IF(OR(E73="",'Historical scenario - input'!$D58=""),"",E73/'Historical scenario - input'!$D58),"") -> 23.53308963 | Z73: =IFERROR(IF(OR(F73="",'Historical scenario - input'!$D58=""),"",F73/'Historical scenario - input'!$D58),"") -> 22.68075968 | AA73: =IFERROR(IF(OR(G73="",'Historical scenario - input'!$D58=""),"",G73/'Historical scenario - input'!$D58),"") -> 22.02534083 | AB73: =IFERROR(IF(OR(H73="",'Historical scenario - input'!$D58=""),"",H73/'Historical scenario - input'!$D58),"") -> 21.51308905 | AC73: =IFERROR(IF(OR(I73="",'Historical scenario - input'!$D58=""),"",I73/'Historical scenario - input'!$D58),"") -> 21.11175726 | AD73: =IFERROR(IF(OR(J73="",'Historical scenario - input'!$D58=""),"",J73/'Historical scenario - input'!$D58),"") -> 20.80406584 | AE73: =IFERROR(IF(OR(K73="",'Historical scenario - input'!$D58=""),"",K73/'Historical scenario - input'!$D58),"") -> 20.58234467 | AF73: =IFERROR(IF(OR(L73="",'Historical scenario - input'!$D58=""),"",L73/'Historical scenario - input'!$D58),"") -> 20.44439024 | AG73: =IFERROR(IF(OR(M73="",'Historical scenario - input'!$D58=""),"",M73/'Historical scenario - input'!$D58),"") -> 20.39049335 | AH73: =IFERROR(IF(OR(N73="",'Historical scenario - input'!$D58=""),"",N73/'Historical scenario - input'!$D58),"") -> 20.42153168 | AI73: =IFERROR(IF(OR(O73="",'Historical scenario - input'!$D58=""),"",O73/'Historical scenario - input'!$D58),"") -> 20.53797906 | AJ73: =IFERROR(IF(OR(P73="",'Historical scenario - input'!$D58=""),"",P73/'Historical scenario - input'!$D58),"") -> 20.73965458 | AK73: =IFERROR(IF(OR(Q73="",'Historical scenario - input'!$D58=""),"",Q73/'Historical scenario - input'!$D58),"") -> 21.02601773 | AL73: =IFERROR(IF(OR(R73="",'Historical scenario - input'!$D58=""),"",R73/'Historical scenario - input'!$D58),"") -> 21.39681076 | AM73: =IFERROR(IF(OR(S73="",'Historical scenario - input'!$D58=""),"",S73/'Historical scenario - input'!$D58),"") -> 21.85285634 | AN73: =IFERROR(IF(OR(T73="",'Historical scenario - input'!$D58=""),"",T73/'Historical scenario - input'!$D58),"") -> 22.39683939 | AO73: =IFERROR(IF(OR(U73="",'Historical scenario - input'!$D58=""),"",U73/'Historical scenario - input'!$D58),"") -> 23.03393404 | AP73: =IFERROR(IF(OR(V73="",'Historical scenario - input'!$D58=""),"",V73/'Historical scenario - input'!$D58),"") -> 23.77217932 | AQ73: =IFERROR(IF(OR(W73="",'Historical scenario - input'!$D58=""),"",W73/'Historical scenario - input'!$D58),"") -> 24.62255401
A74: =IFERROR('Historical scenario - input'!A59,"") -> 6 | B74: =IFERROR('Historical scenario - input'!B59,"") -> UNDERGROUND CABLES | C74: =IFERROR('Historical scenario - input'!C59,"") -> ˂ = 1 kV | D74: =IFERROR(repcalc('Historical scenario - input'!$CV59:$GH59,'Historical scenario - input'!$G59,'Historical scenario - input'!$E59,'Historical scenario - input'!$F59,20,TRUE,TRUE),"") -> 568.2773706 | E74: 654.3083058 | F74: 753.3262366 | G74: 867.5000598 | H74: 999.3684518 | I74: 1151.881682 | J74: 1328.438211 | K74: 1532.912412 | L74: 1769.669436 | M74: 2043.563201 | N74: 2359.913687 | O74: 2724.460243 | P74: 3143.288454 | Q74: 3622.72923 | R74: 4169.230195 | S74: 4789.201101 | T74: 5488.836764 | U74: 6273.922922 | V74: 7149.632275 | W74: 8120.319644 | X74: =IFERROR(IF(OR(D74="",'Historical scenario - input'!$D59=""),"",D74/'Historical scenario - input'!$D59),"") -> 1.138933314 | Y74: =IFERROR(IF(OR(E74="",'Historical scenario - input'!$D59=""),"",E74/'Historical scenario - input'!$D59),"") -> 1.311355275 | Z74: =IFERROR(IF(OR(F74="",'Historical scenario - input'!$D59=""),"",F74/'Historical scenario - input'!$D59),"") -> 1.509805584 | AA74: =IFERROR(IF(OR(G74="",'Historical scenario - input'!$D59=""),"",G74/'Historical scenario - input'!$D59),"") -> 1.738631115 | AB74: =IFERROR(IF(OR(H74="",'Historical scenario - input'!$D59=""),"",H74/'Historical scenario - input'!$D59),"") -> 2.002919845 | AC74: =IFERROR(IF(OR(I74="",'Historical scenario - input'!$D59=""),"",I74/'Historical scenario - input'!$D59),"") -> 2.308584662 | AD74: =IFERROR(IF(OR(J74="",'Historical scenario - input'!$D59=""),"",J74/'Historical scenario - input'!$D59),"") -> 2.662436713 | AE74: =IFERROR(IF(OR(K74="",'Historical scenario - input'!$D59=""),"",K74/'Historical scenario - input'!$D59),"") -> 3.072240959 | AF74: =IFERROR(IF(OR(L74="",'Historical scenario - input'!$D59=""),"",L74/'Historical scenario - input'!$D59),"") -> 3.546745974 | AG74: =IFERROR(IF(OR(M74="",'Historical scenario - input'!$D59=""),"",M74/'Historical scenario - input'!$D59),"") -> 4.09567991 | AH74: =IFERROR(IF(OR(N74="",'Historical scenario - input'!$D59=""),"",N74/'Historical scenario - input'!$D59),"") -> 4.729704993 | AI74: =IFERROR(IF(OR(O74="",'Historical scenario - input'!$D59=""),"",O74/'Historical scenario - input'!$D59),"") -> 5.460323946 | AJ74: =IFERROR(IF(OR(P74="",'Historical scenario - input'!$D59=""),"",P74/'Historical scenario - input'!$D59),"") -> 6.29973341 | AK74: =IFERROR(IF(OR(Q74="",'Historical scenario - input'!$D59=""),"",Q74/'Historical scenario - input'!$D59),"") -> 7.2606217 | AL74: =IFERROR(IF(OR(R74="",'Historical scenario - input'!$D59=""),"",R74/'Historical scenario - input'!$D59),"") -> 8.355911056 | AM74: =IFERROR(IF(OR(S74="",'Historical scenario - input'!$D59=""),"",S74/'Historical scenario - input'!$D59),"") -> 9.59844781 | AN74: =IFERROR(IF(OR(T74="",'Historical scenario - input'!$D59=""),"",T74/'Historical scenario - input'!$D59),"") -> 11.00064752 | AO74: =IFERROR(IF(OR(U74="",'Historical scenario - input'!$D59=""),"",U74/'Historical scenario - input'!$D59),"") -> 12.57410588 | AP74: =IFERROR(IF(OR(V74="",'Historical scenario - input'!$D59=""),"",V74/'Historical scenario - input'!$D59),"") -> 14.32918994 | AQ74: =IFERROR(IF(OR(W74="",'Historical scenario - input'!$D59=""),"",W74/'Historical scenario - input'!$D59),"") -> 16.27462758
A75: =IFERROR('Historical scenario - input'!A60,"") -> 6 | B75: =IFERROR('Historical scenario - input'!B60,"") -> UNDERGROUND CABLES | C75: =IFERROR('Historical scenario - input'!C60,"") -> > 1 kV & < = 11 kV | D75: =IFERROR(repcalc('Historical scenario - input'!$CV60:$GH60,'Historical scenario - input'!$G60,'Historical scenario - input'!$E60,'Historical scenario - input'!$F60,20,TRUE,TRUE),"") -> 1184.281141 | E75: 1275.71467 | F75: 1388.541463 | G75: 1526.713579 | H75: 1694.115935 | I75: 1894.415333 | J75: 2130.911802 | K75: 2406.401524 | L75: 2723.059734 | M75: 3082.350447 | N75: 3484.967963 | O75: 3930.813059 | P75: 4419.004885 | Q75: 4947.928049 | R75: 5515.313209 | S75: 6118.348856 | T75: 6753.821512 | U75: 7418.281361 | V75: 8108.229923 | W75: 8820.325825 | X75: =IFERROR(IF(OR(D75="",'Historical scenario - input'!$D60=""),"",D75/'Historical scenario - input'!$D60),"") -> 1.581880064 | Y75: =IFERROR(IF(OR(E75="",'Historical scenario - input'!$D60=""),"",E75/'Historical scenario - input'!$D60),"") -> 1.704010588 | Z75: =IFERROR(IF(OR(F75="",'Historical scenario - input'!$D60=""),"",F75/'Historical scenario - input'!$D60),"") -> 1.854716741 | AA75: =IFERROR(IF(OR(G75="",'Historical scenario - input'!$D60=""),"",G75/'Historical scenario - input'!$D60),"") -> 2.039277407 | AB75: =IFERROR(IF(OR(H75="",'Historical scenario - input'!$D60=""),"",H75/'Historical scenario - input'!$D60),"") -> 2.262881786 | AC75: =IFERROR(IF(OR(I75="",'Historical scenario - input'!$D60=""),"",I75/'Historical scenario - input'!$D60),"") -> 2.530427737 | AD75: =IFERROR(IF(OR(J75="",'Historical scenario - input'!$D60=""),"",J75/'Historical scenario - input'!$D60),"") -> 2.846323208 | AE75: =IFERROR(IF(OR(K75="",'Historical scenario - input'!$D60=""),"",K75/'Historical scenario - input'!$D60),"") -> 3.214303145 | AF75: =IFERROR(IF(OR(L75="",'Historical scenario - input'!$D60=""),"",L75/'Historical scenario - input'!$D60),"") -> 3.637273073 | AG75: =IFERROR(IF(OR(M75="",'Historical scenario - input'!$D60=""),"",M75/'Historical scenario - input'!$D60),"") -> 4.117188522 | AH75: =IFERROR(IF(OR(N75="",'Historical scenario - input'!$D60=""),"",N75/'Historical scenario - input'!$D60),"") -> 4.65497689 | AI75: =IFERROR(IF(OR(O75="",'Historical scenario - input'!$D60=""),"",O75/'Historical scenario - input'!$D60),"") -> 5.250505641 | AJ75: =IFERROR(IF(OR(P75="",'Historical scenario - input'!$D60=""),"",P75/'Historical scenario - input'!$D60),"") -> 5.902598198 | AK75: =IFERROR(IF(OR(Q75="",'Historical scenario - input'!$D60=""),"",Q75/'Historical scenario - input'!$D60),"") -> 6.609096831 | AL75: =IFERROR(IF(OR(R75="",'Historical scenario - input'!$D60=""),"",R75/'Historical scenario - input'!$D60),"") -> 7.366970314 | AM75: =IFERROR(IF(OR(S75="",'Historical scenario - input'!$D60=""),"",S75/'Historical scenario - input'!$D60),"") -> 8.172463228 | AN75: =IFERROR(IF(OR(T75="",'Historical scenario - input'!$D60=""),"",T75/'Historical scenario - input'!$D60),"") -> 9.021283235 | AO75: =IFERROR(IF(OR(U75="",'Historical scenario - input'!$D60=""),"",U75/'Historical scenario - input'!$D60),"") -> 9.90882231 | AP75: =IFERROR(IF(OR(V75="",'Historical scenario - input'!$D60=""),"",V75/'Historical scenario - input'!$D60),"") -> 10.83040743 | AQ75: =IFERROR(IF(OR(W75="",'Historical scenario - input'!$D60=""),"",W75/'Historical scenario - input'!$D60),"") -> 11.78157542
A76: =IFERROR('Historical scenario - input'!A61,"") -> 6 | B76: =IFERROR('Historical scenario - input'!B61,"") -> UNDERGROUND CABLES | C76: =IFERROR('Historical scenario - input'!C61,"") -> > 11 kV & < = 22 kV | D76: =IFERROR(repcalc('Historical scenario - input'!$CV61:$GH61,'Historical scenario - input'!$G61,'Historical scenario - input'!$E61,'Historical scenario - input'!$F61,20,TRUE,TRUE),"") -> 548.0802305 | E76: 618.8585298 | F76: 693.672025 | G76: 772.0390424 | H76: 853.4306932 | I76: 937.3168558 | J76: 1023.225772 | K76: 1110.814381 | L76: 1199.94416 | M76: 1290.75514 | N76: 1383.729318 | O76: 1479.73435 | P76: 1580.039382 | Q76: 1686.297425 | R76: 1800.492352 | S76: 1924.853331 | T76: 2061.744313 | U76: 2213.540569 | V76: 2382.50722 | W76: 2570.695637 | X76: =IFERROR(IF(OR(D76="",'Historical scenario - input'!$D61=""),"",D76/'Historical scenario - input'!$D61),"") -> 0.5436089685 | Y76: =IFERROR(IF(OR(E76="",'Historical scenario - input'!$D61=""),"",E76/'Historical scenario - input'!$D61),"") -> 0.6138098554 | Z76: =IFERROR(IF(OR(F76="",'Historical scenario - input'!$D61=""),"",F76/'Historical scenario - input'!$D61),"") -> 0.6880130189 | AA76: =IFERROR(IF(OR(G76="",'Historical scenario - input'!$D61=""),"",G76/'Historical scenario - input'!$D61),"") -> 0.7657407148 | AB76: =IFERROR(IF(OR(H76="",'Historical scenario - input'!$D61=""),"",H76/'Historical scenario - input'!$D61),"") -> 0.8464683691 | AC76: =IFERROR(IF(OR(I76="",'Historical scenario - input'!$D61=""),"",I76/'Historical scenario - input'!$D61),"") -> 0.9296701847 | AD76: =IFERROR(IF(OR(J76="",'Historical scenario - input'!$D61=""),"",J76/'Historical scenario - input'!$D61),"") -> 1.014878253 | AE76: =IFERROR(IF(OR(K76="",'Historical scenario - input'!$D61=""),"",K76/'Historical scenario - input'!$D61),"") -> 1.10175231 | AF76: =IFERROR(IF(OR(L76="",'Historical scenario - input'!$D61=""),"",L76/'Historical scenario - input'!$D61),"") -> 1.190154964 | AG76: =IFERROR(IF(OR(M76="",'Historical scenario - input'!$D61=""),"",M76/'Historical scenario - input'!$D61),"") -> 1.280225104 | AH76: =IFERROR(IF(OR(N76="",'Historical scenario - input'!$D61=""),"",N76/'Historical scenario - input'!$D61),"") -> 1.372440795 | AI76: =IFERROR(IF(OR(O76="",'Historical scenario - input'!$D61=""),"",O76/'Historical scenario - input'!$D61),"") -> 1.467662613 | AJ76: =IFERROR(IF(OR(P76="",'Historical scenario - input'!$D61=""),"",P76/'Historical scenario - input'!$D61),"") -> 1.567149354 | AK76: =IFERROR(IF(OR(Q76="",'Historical scenario - input'!$D61=""),"",Q76/'Historical scenario - input'!$D61),"") -> 1.672540539 | AL76: =IFERROR(IF(OR(R76="",'Historical scenario - input'!$D61=""),"",R76/'Historical scenario - input'!$D61),"") -> 1.785803859 | AM76: =IFERROR(IF(OR(S76="",'Historical scenario - input'!$D61=""),"",S76/'Historical scenario - input'!$D61),"") -> 1.909150295 | AN76: =IFERROR(IF(OR(T76="",'Historical scenario - input'!$D61=""),"",T76/'Historical scenario - input'!$D61),"") -> 2.044924514 | AO76: =IFERROR(IF(OR(U76="",'Historical scenario - input'!$D61=""),"",U76/'Historical scenario - input'!$D61),"") -> 2.19548241 | AP76: =IFERROR(IF(OR(V76="",'Historical scenario - input'!$D61=""),"",V76/'Historical scenario - input'!$D61),"") -> 2.363070625 | AQ76: =IFERROR(IF(OR(W76="",'Historical scenario - input'!$D61=""),"",W76/'Historical scenario - input'!$D61),"") -> 2.549723791
A77: =IFERROR('Historical scenario - input'!A62,"") -> 6 | B77: =IFERROR('Historical scenario - input'!B62,"") -> UNDERGROUND CABLES | C77: =IFERROR('Historical scenario - input'!C62,"") -> > 22 kV & < = 33 kV | D77: =IFERROR(repcalc('Historical scenario - input'!$CV62:$GH62,'Historical scenario - input'!$G62,'Historical scenario - input'!$E62,'Historical scenario - input'!$F62,20,TRUE,TRUE),"") -> 373.6309967 | E77: 395.2914111 | F77: 421.3065049 | G77: 448.2712381 | H77: 473.6199447 | I77: 495.6832936 | J77: 513.7152949 | K77: 527.8653335 | L77: 539.0780017 | M77: 548.9158315 | N77: 559.3142998 | O77: 572.2918039 | P77: 589.6471249 | Q77: 612.6814333 | R77: 641.9804376 | S77: 677.2851919 | T77: 717.4686167 | U77: 760.6207899 | V77: 804.2316322 | W77: 845.4468269 | X77: =IFERROR(IF(OR(D77="",'Historical scenario - input'!$D62=""),"",D77/'Historical scenario - input'!$D62),"") -> 0.7528321894 | Y77: =IFERROR(IF(OR(E77="",'Historical scenario - input'!$D62=""),"",E77/'Historical scenario - input'!$D62),"") -> 0.7964759378 | Z77: =IFERROR(IF(OR(F77="",'Historical scenario - input'!$D62=""),"",F77/'Historical scenario - input'!$D62),"") -> 0.8488939657 | AA77: =IFERROR(IF(OR(G77="",'Historical scenario - input'!$D62=""),"",G77/'Historical scenario - input'!$D62),"") -> 0.90322543 | AB77: =IFERROR(IF(OR(H77="",'Historical scenario - input'!$D62=""),"",H77/'Historical scenario - input'!$D62),"") -> 0.9543007488 | AC77: =IFERROR(IF(OR(I77="",'Historical scenario - input'!$D62=""),"",I77/'Historical scenario - input'!$D62),"") -> 0.9987563733 | AD77: =IFERROR(IF(OR(J77="",'Historical scenario - input'!$D62=""),"",J77/'Historical scenario - input'!$D62),"") -> 1.035089202 | AE77: =IFERROR(IF(OR(K77="",'Historical scenario - input'!$D62=""),"",K77/'Historical scenario - input'!$D62),"") -> 1.063600232 | AF77: =IFERROR(IF(OR(L77="",'Historical scenario - input'!$D62=""),"",L77/'Historical scenario - input'!$D62),"") -> 1.08619273 | AG77: =IFERROR(IF(OR(M77="",'Historical scenario - input'!$D62=""),"",M77/'Historical scenario - input'!$D62),"") -> 1.106015055 | AH77: =IFERROR(IF(OR(N77="",'Historical scenario - input'!$D62=""),"",N77/'Historical scenario - input'!$D62),"") -> 1.126967015 | AI77: =IFERROR(IF(OR(O77="",'Historical scenario - input'!$D62=""),"",O77/'Historical scenario - input'!$D62),"") -> 1.153115495 | AJ77: =IFERROR(IF(OR(P77="",'Historical scenario - input'!$D62=""),"",P77/'Historical scenario - input'!$D62),"") -> 1.188084875 | AK77: =IFERROR(IF(OR(Q77="",'Historical scenario - input'!$D62=""),"",Q77/'Historical scenario - input'!$D62),"") -> 1.234496894 | AL77: =IFERROR(IF(OR(R77="",'Historical scenario - input'!$D62=""),"",R77/'Historical scenario - input'!$D62),"") -> 1.2935317 | AM77: =IFERROR(IF(OR(S77="",'Historical scenario - input'!$D62=""),"",S77/'Historical scenario - input'!$D62),"") -> 1.364667542 | AN77: =IFERROR(IF(OR(T77="",'Historical scenario - input'!$D62=""),"",T77/'Historical scenario - input'!$D62),"") -> 1.445633457 | AO77: =IFERROR(IF(OR(U77="",'Historical scenario - input'!$D62=""),"",U77/'Historical scenario - input'!$D62),"") -> 1.532581129 | AP77: =IFERROR(IF(OR(V77="",'Historical scenario - input'!$D62=""),"",V77/'Historical scenario - input'!$D62),"") -> 1.620452976 | AQ77: =IFERROR(IF(OR(W77="",'Historical scenario - input'!$D62=""),"",W77/'Historical scenario - input'!$D62),"") -> 1.703497813
